Workbook

Sheet Prvi_list
A1: VERZIJA: 3.1.2024
A3: Izbira obrazca
A17: POROČILO O OBRATOVALNEM MONITORINGU ZA KOMUNALNO ČISTILNO NAPRAVO
A19: =Poročilo_3!B3 -> CČN KRANJ
A24: ="Za leto " & Poročilo_1!B3 -> Za leto 2023

Sheet Drugi_list
A1: Naslov: | B1: POROČILO O OBRATOVALNEM MONITORINGU ZA KOMUNALNO ČISTILNO NAPRAVO
A2: Naslov: | B2: CČN KRANJ
A4: Naprava: | B4: CČN KRANJ
A6: Za leto: | B6: 2023
A8: Evidenčna oznaka: | B8: 2700-15/28723-24/LP-KR6
A10: Datum: | B10: 2024-01-18
A12: Izvajalec: | B12: NLZOH, COZ, OOV
B13: Enota Kranj
B14: Gosposvetska ulica 12
B15: 4000 Kranj
A17: Naročnik: | B17: KOMUNALA KRANJ, Javno podjetje, d.o.o.
B18: Ulica Mirka Vadnova 1
B19: 4000 Kranj
A21: Odgovorna oseba izvajalca monitoringa: | B21: dr. Romana Martinčič, direktorica
A23: Vodja kakovosti: | B23: dr. Brigita Tepuš, univ.dipl.inž.kem.
A25: Operativno vodenje in odgovorna oseba za izdelavo poročila: | B25: Nina Oman, univ.dipl.kem.
A27: Vodja oddelka za odpadne vode: | B27: Tatjana Jurša, univ. dipl.inž. kem. tehnol.
A29: Vzorčenje, meritve in izdelava poročila: | B29: Karl Zupanc, Nina Oman
A31: Sodelavci: | B31: Nina Oman
B32: Karl Zupanc
B33: Jernej Zupanec
B34: sodelavci Oddelka za za kemijske analize živil, vod in drugih vzorcev okolja Kranj

Sheet Poročilo_1
A1: POROČILO O MONITORINGU ODPADNIH VOD
A3: OBČASNE ALI TRAJNE MERITVE ZA LETO | B3: 2023
A4: PODATKI O UPRAVLJAVCU ČN
A5: Naziv upravljavca: | B5: KOMUNALA KRANJ, Javno podjetje, d.o.o.
A6: Naslov upravljavca
A7: Naselje: | B7: KRANJ
A8: Ulica: | B8: MIRKA VADNOVA
A9: Hišna številka: | B9: 1
A10: Poštna številka: | B10: 4000
A11: Ime pošte: | B11: KRANJ
A12: Matična številka upravljavca: | B12: 5067731
A13: Identifikacijska številka za DDV: | B13: 72495421
A14: Šifra dejavnosti upravljavca: | B14: 37
A15: Kontaktna oseba: | B15: ANA ŠIVIC
A16: telefon: | B16: 030 425 451
A18: elektronski naslov: | B18: ana.sivic@komunala-kranj.si
A20: PODATKI O IZVAJALCU MONITORINGA
A21: Naziv izvajalca monitoringa: | B21: NLZOH Kranj
A22: Naslov izvajalca monitoringa
A23: Naselje:
A24: Ulica: | B24: Gosposvetska ulica
A25: Hišna številka: | B25: 12
A26: Poštna številka: | B26: 4000 | D26: 17
A27: Ime pošte: | B27: Kranj
A28: Identifikacijska številka za DDV: | B28: 19651295
A29: Šifra dejavnosti izvajalca monitoringa: | B29: 86909
A30: Kontaktna oseba: | B30: NINA OMAN
A31: telefon: | B31: 04 2017 156, gsm: 031 697 578
A33: elektronski naslov: | B33: nina.oman@nlzoh.si
A35: PODATKI O IZVAJALCU JAVNE SLUŽBE ODVAJANJA IN ČIŠČENJA ODPADNIH VOD
A37: Naziv izvajalca javne službe: | B37: KOMUNALA KRANJ, JAVNO PODJETJE, D.O.O.
A38: Naslov izvajalca javne službe
A39: Naselje: | B39: Kranj
A40: Ulica in hišna številka: | B40: ULICA MIRKA VADNOVA 1
A41: Poštna številka: | B41: 4000 | D41: 0
A42: Ime pošte: | B42: KRANJ
A43: Identifikacijska številka za DDV: | B43: 72495421
A44: Kontaktna oseba: | B44: Marko Margetič
A45: telefon: | B45: 041 343 134
B46: (04)2811301
A47: elektronski naslov: | B47: marko.margetic@komunala-kranj.si
A49: PODATKI O DIGITALNEM PODPISNIKU
A50: Obrazec digitalno podpisal (ime in priimek): | B50: Nina Oman
A51: Serijska št. digitalnega potrdila podpisnika: | B51: 2475532416030
A53: Kraj: | B53: Kranj,
A54: Datum: | B54: 2024-01-18
A56: Ime in priimek zakonitega zastopnika | B56: Ime in priimek zakonitega zastopnika
A57: izvajalca monitoringa | B57: upravljavca čistilne naprave
A58: dr. Romana Martinčič, direktorica | B58: Matjaž Berčon, direktor

Sheet Poročilo_2
A1: 1. Glavne tehnične značilnosti čistilne naprave
A2: 1.1 Opis tehnologije čiščenja (tehnološka shema procesa je obvezna priloga in se doda na list Priloge)
A3: Nova komunalna čistilna naprava Kranj ima zmogljivost 95.000 PE. Izbrani proces obdelave odpadne vode je enostopenjska biološka faza s sistemom prezračevanja nitrifikacije-denitrifikacije s kemičnim obarjanjem fosforja, primarnim usedalnikom in anaerobno stabilizacijo blata v mezofilnem gnilišču (35–40 °C). Na novi čistilni napravi so, zaradi zmanjšanja emisij hrupa in smradu v okolico, popolnoma zaprti vhodno črpališče, objekt z grabljami, peskolov in maščobnik ter primarni usedalnik. Odpadni zrak se vodi na biofilter in ustrezno obdela. Prispevno področje s katerega se odpadne vode odvajajo na novo KČN Kranj vključuje Mestno občino Kranj, Občino Šenčur in Občino Naklo. Prebivalci Kranja, Naklega in Šenčurja skupaj predstavljajo 58.951 PE. Poleg komunalnih odpadnih vod se na novi napravi čistijo tudi industrijske odpadne vode ter izcedne vode iz zaprtega odlagališča nenevarnih odpadkov Tenetiše. Del obremenitve predstavljajo tudi dovozi grezničnih gošč ter blata in malih komunalnih čistilnih naprav. Pregled predvidenih populacijskih enot za KČN Kranj: Prebivalci gospodinjstev (zaokroženo): 61.190 PE Industrija, obremenitev 650 mg BPK5/l: 20.000 PE Obrt: 8.500 PE Greznice: 2.000 PE Izcedne vode: 1.315 PE Skupaj: 93.005 PE Rezerva za prihodnost: 1.995 PE Velikost nove naprave: 95.000 PE Pred čistilno napravo je pod nivojem zemljišča zgrajen deževni bazen, s črpališčem razbremenjevanja za zmanjšanje maksimalnega pretoka odpadne vode skozi čistilno napravo in za preprečitev prelivov neobdelane odpadne vode v reko Savo. Deževni bazen je na vhodu opremljen z elektromotornimi grobimi grabljami za odstranjevanje grobih delcev. Po končanem deževnem dotoku se vsebina deževnega bazena prečrpa s potopno črpalko v dovodni kanal z dotokom na KČN Kranj. Izpiralna enota omogoča, da se delci, ki so ostali v bazenu po tem, ko je deževni dogodek končan, izperejo iz bazena z namenom, da se prepreči nastanek smradu. Vgradnja deževnega bazena omejuje zmogljivost hidravlične obdelave odpadne vode KČN Kranj na 2,736 m3/h ali 760 l/s.
A4: OPIS LINIJE VODE Obstoječi dovodni kanal kanalizacije je podaljšan od iztoka v obstoječe vhodno črpališče do iztoka v novozgrajeno vhodno črpališče. Zaradi hidravličnih nivojev je zmogljivost akumulacije vode v obstoječih bioloških reaktorjih in sekundarnih usedalnikih omejena. Zato je investitor zahteval, da mora biti pred vhodnim črpališčem postavljen deževni bazen, zmogljivosti 3.910 m3. Neposredno pred vhodnim črpališčem je za odstranjevanje večjih naplavin nameščen lovilec kamenja. Opremljen je s puhalom in cevnim sistemom za dovod tlačnega zraka skozi betonsko odprtino. Dovod tlačnega zraka proizvaja obtok, ki preprečuje usedanje organskih zmesi v lovilcu kamenja. Vhodno črpališče sestoji iz treh polžnih črpalk premera 2 m. Vsaka polžna črpalka lahko črpa maksimalni pretok odpadne vode skozi čistilno napravo (760 l/s). Dve polžni črpalki sta delovni, ena pa služi kot rezerva. Polžne črpalke črpajo odpadno vodo iz skupnega črpališča in jo iztočijo v skupni betonski kanal na žlebu polžnih črpalk. Vhodno črpališče je pokrito zaradi zmanjšanja emisij smradu in hrupa v okolico. Odpadni zrak se ustrezno obdela na biofiltru. Vhodno črpališče črpa odpadno vodo na nivo, ki omogoča gravitacijski pretok odpadne vode skozi čistilno napravo in gravitacijski iztok v reko Savo. Prelivni prag pred iztokom v reko Savo je izbran tako, da omogoča nemoten iztok prečiščene vode iz KČN v reko Savo. Mehanske grablje so povezane z vhodnim črpališčem z 1,2 m širokim betonskim kanalom. Pretok je hidravlično razdeljen na 2 kanala finih grabelj, vsakega širine 1,2 m. Odpadki iz avtomatskih finih grabelj se z vijačnim transporterjem transportirajo na pralni in kompaktirni sistem za obdelavo odpadkov. Objekt z grabljami je pokrit tako, da so emisije smradu omejene na minimum in da je odpadni zrak obdelan na biofiltru. Prostori pod grabljami so namenjeni za sprejem gošče iz greznic, blatnenice in centrata. Odpadna voda nadaljuje pot v dvolinijski sistem peskolova in ločevalnik maščob s križnim pretokom. Pretok je z razdelilno komoro, ki je strukturno priključena na peskolov in ločevalnik maščob, hidravlično razdeljen na 2 liniji. Obe liniji, tako peskolov kot lovilec maščob, se iztekata v skupno iztočno komoro. PE cev premera 1000 mm povezuje iztočno komoro s primarnim usedalnikom. S primarnim usedanjem naj bi odstranili 50–70 % suspendiranih delcev in med 25–40 % BPK, saj je postopek zasnovan za učinkovito delovanje.
A5: Plavajoče blato, ki plava na površini linije primarnega usedalnika, se usmeri v odtočni kanal za plavajoče blato na koncu pritoka primarnega usedalnika s posnemalom plavajočih snovi (eno za vsako linijo). Odtočni kanal izteka v komoro za plavajoče blato, ki se nahaja pod pritočnimi kanali na liniji primarnega usedalnika. Biološka stopnja čiščenja Za biološko obdelavo odpadne vode je predviden sistem, ki sestoji iz 3 kaskadnih linij, vsaka s 3 bazeni, to je skupno 9 bazenov (vsak 15,5 m x 15,5 m in globine 6,25 m). V primerjavi s konvencionalnim sistemom z aktivnim blatom ima ta tehnologija višjo koncentracijo suhe snovi v reaktorjih. S povišano koncentracijo aktivne biomase se lahko potrebna prostornina biološke faze zmanjša za 20 %, v primerjavi s konvencionalnim sistemom z aktivnim blatom. Prednosti manjših volumnov so manjše emisije snovi v zrak, nižja investicija in nižji obratovalni stroški. Vsaka linija sestoji iz 3 bazenov, vsak ima prostornino 1.562 m3, pri čemer je: • prvi bazen anoksični bazen, opremljen s strojnim mešalnim sistemom, namenjen za denitrifikacijo; • drugi bazen poljubni bazen, opremljen s strojnim mešalnim sistemom in sistemom prezračevanja, ki lahko deluje anoksično ali aerobno za denitrifikacijo ali nitrifikacijo; • tretji bazen aerobni bazen, opremljen s sistemom prezračevanja, namenjen za nitrifikacijo. Razdelilnik bazenov biološke stopnje enakomerno porazdeli pretok vode v 3 komore, ki so priključene na 3 linije prezračevalnega bazena s PE cevmi premera 600 mm. Pri normalnem obratovanju se pretok porazdeli v 33,3 % v vsako linijo, vendar se lahko pritok zaustavi ali zmanjša z vstavljanjem blokad v sitemu prezračevanja prezračevalnega bazena. Povratno aktivno biološko blato iz sekundarnega usedalnika se delno odvaja v denitrifikacijski bazen prve kaskadne linije, višek pa v anaerobno obdelavo. Znotraj vsake kaskadne linije je od nitrifikacijskega bazena do denitrifikacijskega bazena vgrajeno notranje kroženje, da se zagotovi povratek z nitrati obogatene odpadne vode v območje denitrifikacije in da se poveča zmogljivost denitrifikacije. Mešanje denitrifikacijskih in poljubnih bazenov se bo izvajalo z denitrifikacijskimi mešali. Izbira tega tipa mešala omogoča pokrivanje sistema prezračevanja v poljubnih bazenih. Nitrifikacijski bazen zadnje kaskade ima izpust v iztočni kanal, od koder PE cev premera 1.000 mm povezuje prezračevalni bazen z razdelilnikom sekundarnih usedalnikov.
A6: V vsaki kaskadi lahko bazeni DN/N 1,2, DN/N 2,2 in DN/N 3,2 obratujejo bodisi kot bazeni nitrifikacije ali denitrifikacije, kar omogoča visoko prilagodljivost sistema. Vsaka kaskada je sestavljena iz bazena, ki je namenjen izključno za denitrifikacijo, iz bazena za nitrifikacijo in iz pojubnega bazena, ki se lahko bodisi prezračuje in uporabi kot nitrifikacijski bazen ali deluje anoksično kot denifitrifikacijski bazen. Delovanje poljubnega denitrifikacijskega/nitrifikacijskega bazena določa koncentracija amonija v obdelani odpadni vodi. Vsak bazen, ki se lahko prezračuje (vsi nitrifikacijski bazeni, vključno s poljubnimi bazeni), ima ločeno linijo oskrbe z zrakom za vsako linijo. Krmilni ventil za zrak je vgrajen na liniji zraka v vsakem bazenu in krmili pretok zraka v vsak bazen. Vsaka rešetka prenosnika (prenosniki s finimi mehurčki) se lahko krmili z ročnim ventilom. Puhala (turbokompresorji) so frekvenčno vodeni s spremenljivim tlačnim nadzorom; merjenje tlaka je vgrajeno v cev za dovajanje zraka iz kompresorske postaje v strojnici v prezračevalni bazen. Krmilni ventili so vodeni z: – merjenjem koncentracije O2 v vsakem nitrifikacijskem bazenu in želeno vrednostjo kisika ~1,5 mg/l, – merjenjem koncentracije NH4-N v iztočnem kanalu iz biološke stopnje. Obtočne črpalke (propelerske črpalke) so vodene z merjenjem koncentracije NO3-N na prelivnem mestu iz vsakega denitrifikacijskega bazena, npr. merjenje NO3-N v denitrifikacijskem bazenu prve kaskadne linije uravnava obtočno črpalko iz nitrifikacijskega bazena v prvi kaskadni liniji in tako dalje. Odstranjevanje fosforja Fosfor se v večini odstranjuje biološko, viški pa z obarjanjem z FeCl3 pred primarnim usedalnikom v kanalu ali pred sekundarnim usedanjem (v razdelilniku pred sekundarnim usedanjem). Po izračunih bo treba dnevno dodajati približno 244 kg Fe3+ (1,25 m3/d, 40 % FeCl3 raztopine), da se doseže povprečna koncentracija P v prečiščeni odpadni vodi pod 2 mg/l. Razdelilnik in črpališče sekundarnega blata Dovod vode v posamezne sekundarne usedalnike je predviden po štirih podzemnih cevovodih, ki jih je mogoče zapirati z ročnimi ventili. Dovod sekundarnega blata iz sekundarnih usedalnikov v črpališče blata je po štirih podzemnih cevovodih, po katerih se sekundarno blato gravitacijsko odvaja v štiri prelivne komore.
A7: Prelivne komore so opremljene s štirimi elektromotornimi prelivniki, s katerimi se uravnava višina preliva v črpališče blata. V črpališču blata (dva ločena črpalna bazena) je vgrajenih šest potopnih centrifugalnih črpalk, ki črpajo sekundarno blato po šestih tlačnih cevovodih v jašek iztoka sekundarnega blata. Od tu se sekundarno blato gravitacijsko preliva nazaj v prezračevalni bazen. Naknadni usedalnik Izveden je 47,5 m dolg in 10 m širok pravokotni naknadni usedalnik s 4 linijami, s horizontalnim pretokom (globina 4,5 m). Vsaka linija je predvidena za pretok 190 l/s (25 % skupnega pritoka), sistem sekundarnega usedanja pa je hidravlično sposoben prevzeti celotni pretok (760 l/s) v času, ko ena linija ne obratuje, to je 3 linije s pretokom 253 l/s vsaka. Umirjevalno korito dotoka v sekundarni usedalnik tvorijo štiri PE cevi premera 500 mm, ki so vgrajene na dnu štirih iztočnih komor, ki vodijo vodo v ceveh, poravnanih v obliki U, v linije sekundarnih usedalnikov. Cevi v obliki U vstopajo v ozke pritočne komore na vstopu v vsako linijo sekundarnega usedalnika iz dna, tako se omogoči enakomeren pretok na linije. Sekundarno blato se useda na dnu vsake linije sekundarnega usedanja in se potiska v poglobljeni del sekundarnega usedalnika s strgali za blato (eno za vsako linijo). Plavajoče blato oz. plavajoče snovi, ki plavajo na površini linij sekundarnega usedalnika, se usmerijo v korito za odvajanje plavajočega blata, na koncu sekundarnega usedanja s sistemom za odstranjevanje plavajočega blata oz. plavajočih snovi (eden za vsako linijo). Plavajoče blato oz. plavajoče snovi iztekajo v dva črpalna jaška, od tu pa se s potopnima črpalkama črpajo v zalogovnik zgoščenega blata. Sekundarno blato, ki se zbira v vsakem lijaku sekundarnih usedalnikov, gravitira v štiri komore razdelilnika povratnega aktivnega blata; ena komora za vsako linijo. Razdelilnik povratnega aktivnega blata je priključen na razdelilnik sekundarnih usedalnikov. Globinska filtracija Filtracijski kanali so priključeni na stopnjo sekundarnega usedanja. Nameščene so štiri v celoti potopljene filtracijske enote v 4 ločenih kanalih, ena za vsako linijo sekundarnega usedanja. Vsak filter je predviden za pretok 190 l/s (25 % skupnega pritoka), filtracijski sistem pa je sposoben prevzeti celoten pretok (760 l/s) v času, ko en filter/ena linija sekundarnega usedanja ne obratuje.
A8: Prečiščena odpadna voda iz sekundarnega usedalnika teče skozi filter v filtrne segmente. Iz cevi, ki se nahaja v sredini filtrirnega segmenta, teče voda brez suspendiranih delcev v iztočni kanal. Delci se zadržijo na površini filtra. V filtracijskih kanalih se z nivojskimi senzorji sproži avtomatski sistem za povratno spiranje, ki zazna povečanje hidravličnega upora na površini filtra. Filtri za kakršnekoli posege čiščenja ne potrebujejo kemikalij. UV-dezinfekcija Iztočni kanali iz vsake filtrske enote vodijo v skupno kineto, ki je na razpolago za vgradnjo sistema UV-dezinfekcije, če bo to potrebno v prihodnosti. Kanal UV-dezinfekcije je strukturno priključen na filtracijo in fazo sekundarnega usedanja. Če se bo vgradila, se bo za enoto UV-dezinfekcije vgradil nizkotlačni UV-sistem, ki deluje neprekinjeno. Meritev pretoka na iztoku in iztočni objekt Preden očiščena odpadna voda izteka v reko Savo, se pretok meri s pomočjo magnetnega merilca pretoka. Iztočni objekt je izveden kot armiranobetonska konstrukcija, na spodnjem delu in obeh stranskih robovih temeljena na globokem pragu. RAVNANJE Z BLATOM Primarno blato in odvišno biološko blato se bo z namenom stabilizacije blata in zmanjšanja količine blata anaerobno obdelalo v mezofilnem gnilišču (35–40 °C). Postavljeno bo eno gnilišče z razpoložljivo prostornino pribl. 4.400 m3 in zadrževalnim časom blata 29 dni. Pred vstopom v gnilišče je predvideno strojno predzgoščanje. Bioplin se bo dovajal na kogeneracijske enote za sočasno proizvodnjo toplotne in električne energije, ki se bo porabila za procese čiščenja. Pregnito blato iz gnilišča se bo preko zalogovnikov blata dovajalo na dehidracijo. Dehidrirano blato bo prevzemal pooblaščeni prevzemnik. Sprejem grezničnih gošč in blata iz malih komunalnih čistilnih naprav Objekt za sprejem gošče iz greznic je izveden z dvema sprejemnima mestoma, enim za sprejem greznične gošče ter drugim za sprejem maščob in identifikacijskim sistemom. Med iztokom se merita pretok in kakovost (prevodnost pH/T/el.) iztočenega blata. Ustrezne grablje odstranijo tuj material in grobe delce. Poleg objekta za sprejem gošče iz greznic bo zunaj grabelj postavljena tudi postaja za sprejem maščob. Avtomatizirani ventili sprožijo iztok maščob v zalogovnik goste gošče iz greznic v kleti strojnice. Tam se maščobe in gosto blato iz greznic homogenizirajo z mešalnim sistemom in prečrpajo v zalogovnik zgoščenega blata v kleti strojnice za nadaljnjo anaerobno obdelavo. Onesnažen zrak iz obeh bazenov za sprejem gošče iz greznic, iz naprave za sprejem gošče iz greznic in iz pralnika odpadkov iz grabelj se odsesava v zračni biofilter linije vode.
A10: 1.2 Objekti naprave in njihove prostornine
A11: Deževni bazen: 3.960 m3,
A12: Vhodno črpališče: 50 m3
A13: Tri kaskadne linije s po tremi bazeni, skupno 9 bazenov (vsak 15,5 m x 15,5 m in globine 6,25 m = 1.501,56 m): 13.514,06 m3,
A14: Naknadni usedalnik (47,5 m x 10 m x globina 4,5 m): 2.137,5 m3.
A18: 1.3 Rekonstrukcija naprave
A19: =IF(Poročilo_3!B9<>"","Rekonstruirana naprava je pričela z obratovanjem v letu " & Poročilo_3!B9 & " .","") -> Rekonstruirana naprava je pričela z obratovanjem v letu 2015 .
A20: V času poskusnega obratovanja, ki je bil določen od 27.10.2015 do 16.05.2016, so bile izvedene prve meritve odpadnih vod na rekonstruirani komunalni čistilni napravi Kranj (95.000 PE).
A23: 1.4 Priključena naselja in deli naselij, priključene industrijske naprave in njihov delež v skupni letni količini čiščene odpadne vode
A24: Priključena naselja so: Kranj, Kokrica, Mlaka pri Kranju, Britof, Naklo, Malo Naklo, Polica, Strahinj, Cegelnica, Spodnje Bitnje, Zgornje Bitnje, Srednje Bitnje, Šutna, Žabnica, Orehovlje, Predoslje, Milje, Šenčur, Srednja vas pri Šenčurju, Luže, Visoko, Hotemaže, Olševek, Žeje, Bistrica, Spodnje Duplje, Zgornje Duplje, Podbrezje. Priključene industrijske naprave: Savatech d.o.o., Goodyear Dunlop Sava Tires d.o.o., Iskraemeco, podjetja na lokaciji Savska loka 4 (ISD Plast, ISD Livarna, ISD Galvanika, Hidria Perles, Hidria Rotomatika) ter obrati na lokaciji Iskra Labore (Intec Tiv,Grašič d.o.o. cinkanje in prašno lakiranje), Gorenjski Tisk v likvidaciji, Exoterm, Surovina, Dinos in drugi manjši obrati: skupaj ~10 % obremenitve. Podroben seznam podjetij je v zavihku priloge.
A25: Prispevno področje s katerega se odpadne vode odvajajo na novo KČN Kranj vključuje Mestno občino Kranj, Občino Šenčur in Občino Naklo.
A29: 1.5 Opombe
A30: Podatki v zavihku Poročilo 3, vrstice 45 do 48, so podani s strani naročnika in so točni.
A34: 1.6 Razlog za izvajanje prvih meritev
A38: 1.7 Dokumenti
A39: 1.7.1 Vodno soglasje (številka in datum)
A41: 1.7.2 Okoljevarstveno dovoljenje za emisije v vode (številka in datum)
A43: 1.7.3 Strokovna ocena vplivov emisije snovi in toplote pri odvajanju odpadnih voda iz 28. člena Uredbe o emisiji snovi in toplote pri odvajanju odpadnih voda v vode in javno kanalizacijo (Ur. l. RS, št. 64/12, 64/14 in 98/15) (evidenčna številka, datum izdaje in izdelovalec)
A45: 1.7.4 Gradbeno dovoljenje (številka, datum izdaje in upravni organ, ki jo je izdal)
A47: 1.7.5 Odločba o poskusnem obratovanju (številka, datum izdaje in upravni organ, ki jo je izdal)

Sheet Poročilo_3
A1: 2. Osnovni podatki o ČN
A3: IME ČN | B3: CČN KRANJ
A4: Zmogljivost (PE): | B4: 95000
A5: Tip naprave: | B5: komunalna
A6: Dodatno čiščenje:
A7: Recipient: | B7: SAVA
A8: Leto pričetka obratovanja: | B8: 2015
A9: Leto začetka obratovanja rekonstruirane naprave: | B9: 2015
A10: Vrednotenje iztoka odpadne vode: | B10: 7 OVD
A11: Predvideno leto prilagoditve obstoječe ČN: | B11: 2015
A12: Hidravlični zadrževalni čas: | B12: 24
A13: NASLOV:
A14: Ulica: | B14: SAVSKA LOKA
A15: Hišna številka: | B15: 31
A16: Poštna številka: | B16: 4000
A17: Pošta: | B17: KRANJ
A18: Občina: | B18: Kranj
A19: KONTAKTNA OSEBA:
A20: Ime in priimek: | B20: ANA ŠIVIC
A21: telefon: | B21: 030 425 451
A22: elektronski naslov: | B22: ana.sivic@komunala-kranj.si
A23: PODROČJE, KI GA POKRIVA ČN:
A24: Naselja, deli naselij: | B24: Kranj, Kokrica, Mlaka pri Kranju, Britof, Naklo, Malo Naklo, Polica, Strahinj, Cegelnica, Spodnje Bitnje, Zgornje Bitnje, Srednje Bitnje, Šutna, Žabnica, Orehovlje, Predoslje, Milje, Šenčur, Srednja vas pri Šenčurju, Luže, Visoko, Hotemaže, Olševek, Žeje, Bistrica, Spodnje Duplje, Zgornje Duplje, Podbrezje
A25: Vrsta kanalizacije: | B25: delno mešan
A26: Izvor odpadnih vod: | B26: javna kanalizacija, industrija ~10 % obremenitve
A27: Večji nepriključeni onesnaževalci: | B27: -
A28: LOKACIJSKE INFORMACIJE:
A29: Iztok na prispevne površine občutljivih območij zaradi evtrofikacije: | B29: NE
A30: Iztok na občutljivo območje (PRISPEVNO območje kopalnih voda): | B30: NE
A31: Iztok na občutljivo območje (VPLIVNO območje kopalnih voda): | B31: NE
A32: Transverzalna (prečna) Mercatorjeva koordinata iztoka | C32: =IF(B32="NE","Na zavihku Poročilo_4 pojasnite zakaj se trajne meritve pretoka ne izvajajo!","") -> 
A33: n: | B33: 120424
A34: e: | B34: 451370
A35: Transverzalna (prečna) Mercatorjeva koordinata CENTROIDA čistilne naprave
A36: n: | B36: 120346
A37: e: | B37: 451357
A38: Transverzalna (prečna) Mercatorjeva koordinata merilnega mesta na IZTOKU
A39: n: | B39: 120390
A40: e: | B40: 451367
A41: Transverzalna (prečna) Mercatorjeva koordinata merilnega mesta na VTOKU
A42: n: | B42: 120350
A43: e: | B43: 451427
A44: PODATKI ZA TEKOČE LETO OBRATOVANJA:
A45: Št. priključenih prebivalcev na ČN: | B45: 53222
A46: Št. priključenih prebivalcev na kanalizacijski sistem: | B46: 53222
A47: Število dni normalnega obratovanja: | B47: 345
A48: Količina čiščene vode (1000 m3): | B48: 4343.368
A49: Čas vzorčenja reprezentativnega vzorca (ure): | B49: 24
A50: Ali se izvajajo trajne meritve pretoka: | B50: DA
A51: Ali je merilno mesto urejeno: | B51: DA
A52: Pojasilo glede neurejenosti merilnega mesta: | B52: Na merilnih mestih na vtoku in iztoku iz ČN ni omogočeno dodatno merjenje pretoka v odprtem kanalu, zato se količina vode v času vzorčenja pridobi s popisom števca zavezanca.

Sheet Aglomeracije
A1: 2.1 Aglomeracije iz katerih se odvajajo komunalne odpadne vode na ČN
A2: ID aglomeracije | B2: ime aglomeracije | C2: velikost aglomeracije (PE) | D2: Ali je aglomeracija priključena na ČN
A3: 20594 | B3: Kranj 2019 | C3: 58617 | D3: DA
A4: 3944 | B4: Šenčur 2019 | C4: 4114 | D4: DA
A5: 3809 | B5: Duplje 2019 | C5: 1106 | D5: DA
A6: 3812 | B6: Bistrica 2019 | C6: 1056 | D6: DA
A7: 3954 | B7: Luže 2019 | C7: 317 | D7: DA
A8: 3956 | B8: Olševek 2019 | C8: 373 | D8: DA
A9: 3805 | B9: Naklo 2019 | C9: 2842 | D9: DA
A10: 3804 | B10: Strahinj 2019 | C10: 732 | D10: DA

Sheet Blato
A1: 2.2 BLATO
C3: SHEMATIČNI PRIKAZ:
A5: ODPADNE SNOVI IZ GREZNIC, KČN IN MKČN
A6: ali se sprejemajo: | B6: DA
A7: količina (m3): | B7: 10632
A8: povpr. suha snov (%): | B8: 0.02
A9: ali gre za ocenjeni odstotek povpr. suhe snovi: | B9: DA
A11: BIOLOŠKO RAZGRADLJIVI ODPADKI
A12: ali se sprejemajo: | B12: NE
A13: količina (m3):
A14: povpr. suha snov (%):
A15: ali gre za ocenjeni odstotek povpr. suhe snovi:
A17: NASTALO BLATO PRED OBDELAVO
A18: letna količina nastalega blata (m3): | B18: 34460
A19: povpr. suha snov nastalega blata (%): | B19: 0.02561
A20: ali gre za ocenjeni odstotek povpr. suhe snovi: | B20: NE
A21: letna količina nastalega blata (tone SS): | B21: =B18*B19 -> 882.5206
A23: ODVOZ NA DRUGO ČN (neobdelano ali obdelano blato) | C23: ODVOZ na ČN | D23: ODVOZ na ČN | E23: ODVOZ na ČN
A24: količina (m3): | B24: =C24+D24+E24 -> 0
A25: povpr. suha snov blata (%): | B25: =IF((C24+D24+E24)>0,((C24*C25)+(D24*D25)+(E24*E25))/(C24+D24+E24),0) -> 0
A26: ali gre za ocenjeni odstotek povpr. suhe snovi: | B26: =IF(OR(C26="DA",D26="DA",E26="DA"),"DA",IF(AND(C26="NE",D26="NE",E26="NE"),"NE",IF(AND(C26="",D26="",E26=""),"","NE"))) -> 
A27: količina (tone SS): | B27: =B24*B25 -> 0 | C27: =C24*C25 -> 0 | D27: =D24*D25 -> 0 | E27: =E24*E25 -> 0
A28: ime ČN na katero se blato odvaža: | B28: =IF(OR(C27>0,D27>0,E27>0),IF(E27=MAX(C27:E27),E28,IF(D27=MAX(C27:E27),D28,C28)),"") -> 
A30: OBDELANO BLATO | C30: KONTROLE BILANCE BLATA:
A31: letna količina blata po obdelavi (tone): | B31: 3086.5 | C31: 1. Iz podanih podatkov sledi, da je količina blata oddanega kot odpadek (celica B46 / celica B32) enaka: | F31: =IF(B32>0,ROUND((B46)/B32,1),0) & " ton." -> 3086,5 ton.
A32: povpr. suha snov v blatu (%): | B32: 0.2859 | C32: Pozivam vas, da preverite ali se ta količina ujema s količinami, ki jih poročate na evidenčnih listih odpadkov. Če se podatki ne ujemajo ponovno preverite vpisane podatke.
A33: ali gre za ocenjeni odstotek povpr. suhe snovi: | B33: NE
A34: letna količina blata (tone SS): | B34: =B31*B32 -> 882.43035 | C34: POJASNILO za 1. kontrolo:
A35: ali se izkorišča bioplin: | B35: DA
A36: količina bioplina (1000 m3): | B36: 542.86 | C36: 2. Količina nastalega blata (celica B21) je: | F36: =B21 & " ton SS." -> 882,5206 ton SS.
A37: ali se izvaja dehidracija: | B37: DA | C37: Ta se mora ujemati z vsoto količin blata odpeljanega na drugo ČN (celica B27) in količin blata po obdelavi (celica B34), ki pa znaša: | F37: =B27+B34 & " ton SS." -> 882,43035 ton SS.
C38: Če se podatki ne ujemajo ponovno preverite vpisane podatke. Zaradi zaokroževanja je dovoljeno malenkostno odstopanje.
A39: NADALJNJE RAVNANJE Z BLATOM (odpadkom) | C39: POJASNILO za 2. kontrolo:
A40: na odlagališča (tone SS):
A41: na kmetijske povšine (tone SS): | C41: 3. Vsota količin blata po obdelavi (celica B34) in količin blata, ki je ostalo na ČN iz prejšnjih let (celica B50) je: | F41: =B34+B50 & " ton SS." -> 882,43035 ton SS.
A42: kompostirano in vnešeno na kmetijska zemljišča (tone SS): | C42: Ta se mora ujemati z vsoto količin blata oddanega kot odpadek (celica B46) in blata, ki ostane na ČN (celica B47) kar znaša: | F42: =B46+B47 & " ton SS." -> 882,43 ton SS.
A43: odvažanje na sežig (tone SS): | B43: 582.42 | C43: Če se podatki ne ujemajo, ponovno preverite vpisane podatke. Zaradi zaokroževanja je dovoljeno malenkostno odstopanje.
A44: drugo (tone SS): | B44: 300.01 | C44: POJASNILO za 3. kontrolo:
A45: Pojasnilo na kakšen način se ravna z blatom (v primeru, da ste izponili rubriko "drugo" A44): | B45: Kompostiranje v nerazvrščeni kompost z odlaganjem na deponijo.
A46: celotna količina blata oddanega kot odpadek (tone SS): | B46: =SUM(B40:B44) -> 882.43 | C46: 4. Vsota količin blata po obdelavi (celica B34) in blata odpeljanega na drugo ČN (celica B27) znaša: | F46: =B34+B27 & " ton SS." -> 882,43035 ton SS.
A47: ostanek na ČN (tone SS) | C47: ="Pri obravnavani ČN s " & Poročilo_3!B45 & " priključenih prebivalcev to znese:" -> Pri obravnavani ČN s 53222 priključenih prebivalcev to znese: | F47: =IF(Poročilo_3!B45>0,ROUND((((B34+B27)*1000)/Poročilo_3!B45),1),0) & " kg SS / preb. / leto." -> 16,6 kg SS / preb. / leto.
C48: Povprečje EU je 22,5 kg suhe snovi na enega preb. na leto. V primeru, da vaši podatki niso v okvirju od 10 do 50 kg SS / preb. / leto preverite vpisane podatke.
A49: BLATO, KI JE OSTALO NA ČN IZ PREJŠNJIH LET
A50: količina (tone SS): | C50: POJASNILO za 4. kontrolo:
A54: OBDELAVA BLATA
A55: stabilizacija - anaerobna: | B55: DA
A56: stabilizacija - aerobna: | B56: NE
A57: sušenje - zalogovnik: | B57: NE
A58: sušenje - sušilna greda: | B58: NE

Sheet Poročilo_4
A1: 3. Letna količina čiščene odpadne vode
A2: =IF(AND(Poročilo_1!B3<>"", Poročilo_3!B48<>""),"V letu " & Poročilo_1!B3 & " se je na čistilni napravi čistilo " & Poročilo_3!B48*1000 & " m3 odpadne vode.","") -> V letu 2023 se je na čistilni napravi čistilo 4343368 m3 odpadne vode.
A4: 4. Obseg in vrsta meritev in analiz
A6: 4.1 Nabor parametrov
A7: Obseg laboratorijske analize odvzetih vzorcev odpadne vode je bil določen skladno z določili Okoljevarstvenega dovoljenja št.: 35441-29/2013-6 z dne: 29.11.2013, Odločbah št. 35444-71/2016-2 z dne 16.2.2017 in št. 35472-54/2017-10 z dne 25.7.2018: - vtok: KPK, BPK5, neraztopljene snovi, celotni fosfor, amonijev dušik in celotni dušik, ki je vsota dušika po Kjeldahlu (N-organski+N-NH4), nitratnega dušika (N-NO3) in nitritnega dušika (N-NO2), - iztok: KPK, BPK5, neraztopljene snovi, amonijev dušik, celotni fosfor in celotni dušik, ki je vsota dušika po Kjeldahlu (N-organski+N-NH4), nitratnega dušika (N-NO3) in nitritnega dušika (N-NO2). Skladno z OVD so bili pri štirih meritvah odpadne vode v sklopu vseh meritev na iztoku iz KČN dodani tudi EPRTR parametri: baker, cink in adsorbljivi organski halogeni (AOX): 3., 9., 15., in 20. meritev.
A8: 4.2 Frekvenca vzorčenja in čas vzorčenja
A9: Število meritev odpadne vode in obseg meritev smo določili glede na zahteve Okoljevarstvenega dovoljenja št.: 35441-29/2013-6 z dne: 29.11.2013, Odločbah št. 35444-71/2016-2 z dne 16.2.2017 in št. 35472-54/2017-10 z dne 25.7.2018: 24-krat RV 24 h/leto v sklopu obratovalnega monitoringa. V letu 2023 smo tako izvedli 24 meritev v sklopu obratovalnega monitoringa. Pri izvedbi meritev odpadnih vod na vtoku in iztoku iz ČN v sklopu obratovalnega monitoringa smo odvzeli reprezentativne vzorce v obdobju (RV 24 h) v času pretoka odpadne vode preko ČN. Na vtoku na ČN je bil vzorec odvzet na vstopu v ČN v mehanski stopnji, na iztoku iz ČN pa v iztočnem kanalu.
A10: 4.3 Meritve pretoka odpadne vode v času vzorčenja
B11: FALSE
B12: TRUE
B13: FALSE
A14: Na merilnih mestih na vtoku in iztoku iz ČN ni omogočeno dodatno merjenje pretoka v odprtem kanalu, zato se količina vode v času vzorčenja pridobi s popisom števca zavezanca.
A15: 4.4 Trajne meritve pretoka odpadne vode
A16: =IF(ISBLANK(Poročilo_3!B4),"",IF(Poročilo_3!B4<2000,"Trajne meritve pretoka odpadne vode za ČN manjšo od 2000 PE niso predpisane.","Trajne meritve pretoka odpadne vode za ČN enako ali večjo od 2000 PE so predpisane.")) -> Trajne meritve pretoka odpadne vode za ČN enako ali večjo od 2000 PE so predpisane.
A17: Trajne meritve se izvajajo na vtoku in iztoku iz ČN in so v zavihku Trajne meritve.
A19: 5. Mesto in čas vzorčenja in analiz
A20: Zaporedna številka: 1 Naziv merilnega mesta: vtok na KČN Kranj (mehanska stopnja) GKX = 119863, GKY = 451798 Transverzalna (prečna) Mercatorjeva koordinata: n=120350, e=451427 Zemljišče parc. št.: 581/4 k.o. Drulovka Iztok v vode: /
A21: Zaporedna številka: 2 Naziv merilnega mesta: iztok iz KČN Kranj (na iztoku iz ČN za merilnim mestom za merjenje pretoka) GKX = 119903, GKY = 451738 Transverzalna (prečna) Mercatorjeva koordinata: n= 120390, e=451367 Zemljišče parc. št.: 521/4 k.o. Čirče Iztok v vode-iztok V1: reka Sava GKX = 119937, GKY = 451741 Transverzalna (prečna) Mercatorjeva koordinata: n=120424, 451370 Zemljišče parc. št.: 521/5 k.o. Čirče
A24: 6. Pojasnilo v zvezi z upoštevanjem hidravličnega zadrževalnega časa (16. člen Pravilnika o prvih meritvah in obratovalnem monitoringu odpadnih voda)
A25: Dejanski hidravlični zadržavalni čas je (v urah): 24 Pri izvajanju vzorčenj na vtoku/iztoku smo upoštevali zadrževalni čas 24 h, ki predstavlja dejanski povprečni zadrževalni čas glede na količino obdelane odpadne vode in skupni volumen bazenov KČN (~20.000 m3).
A29: 7. Navedite letnico naslednjega monitoringa odpadnih voda
A30: 2024

Sheet Poročilo_5
A2: 7. UPORABLJENE MERILNE METODE
A3: Zap. št. | B3: Parameter | C3: Meja zaznavnosti (LOD) | D3: Meja določljivosti (LOQ) | E3: Merilna metoda | F3: Akreditirana metoda (DA/NE) | G3: Ime podizvajalca
A4: 1 | B4: Temperatura vode (°C) | E4: SIST DIN 38404-4:2000 | F4: da
A5: 2 | B5: pH | E5: SIST EN ISO 10523: 2012 | F5: da
A6: 3 | B6: Neraztopljene snovi (mg/L) | C6: 1 | D6: 2 | E6: SIST ISO 11923:1998 | F6: da
A7: 26 | B7: Amonij (mg/L) | C7: 0.3 | D7: 0.5 | E7: SIST ISO 5664:1996 | F7: da
A8: 38 | B8: Kemijska potreba po kisiku - KPK (K2Cr2O7) (mg/L) | C8: 3 | D8: 5 | E8: SIST ISO 15705:2010 | F8: da
A9: 39 | B9: Biokemijska potreba po kisiku (BPK5) (mg/L) | C9: 1.7 | D9: 5 | E9: ISO 5815-1:2019 modificirana | F9: da
A10: 33 | B10: Celotni fosfor (mg/L) | C10: 0.03 | D10: 0.05 | E10: SIST EN ISO 6878:2004, poglavje 8, modificiran | F10: da
A11: 60 | B11: Celotni dušik (mg/L) | C11: 0.15 | D11: 1 | E11: SIST EN ISO 20236:2022 | F11: da
A12: 28 | B12: Nitratni dušik (mg/l)
A13: 27 | B13: Nitritni dušik * (mg/l)
A14: 61 | B14: Kjeldahlov dušik (mg/l)
A15: 4 | B15: Usedljive snovi (ml/L) | C15: 0.1 | D15: 0.1 | E15: DIN 38409-H9-2:1980 | F15: da
A16: 200 | B16: Količina vode (popis števca) (m3) | E16: Interna metoda | F16: ne
A17: 999 | B17: Temperatura aeracijskega bazena (°C) | E17: SIST DIN 38404-4:2000 | F17: da
A18: 11 | B18: Baker (mg/L) | C18: 0.01 | D18: 0.02 | E18: ISO 17294-2:2016 | F18: da | G18: NLZOH Novo mesto
A19: 11 | B19: Baker (mg/L) | C19: 0.003 | D19: 0.01 | E19: ISO 17294-2:2016 | F19: da
A20: 13 | B20: Cink (mg/L) | C20: 0.003 | D20: 0.01 | E20: ISO 17294-2:2016 | F20: da
A21: 13 | B21: Cink (mg/L) | C21: 0.05 | D21: 0.1 | E21: ISO 17294-2:2016 | F21: da | G21: NLZOH Novo mesto
A22: 43 | B22: Adsorbljivi organski halogeni (AOX) (mg/L) | C22: 0.01 | D22: 0.02 | E22: SIST EN ISO 9562:2005 | F22: da
A23: 12002 | B23: shranjevanje vzorcev | E23: ISO 5667-3:2012 | F23: da
A24: 12001 | B24: vzorčenje | E24: ISO 5667-10: 1996 | F24: da

Sheet Poročilo_6
AE1: Mejna vrednost za amonijev in celotni dušik se uporablja pri temperaturi odpadne vode 12°C in več na iztoku aeracijskega bazena. V primeru nižje temperature se mejna vrednost za citirana parametra ne uporablja in se ju ne vrednoti.
A2: 8. Podatki o meritvah na vtoku in iztoku komunalne ali skupne čistilne naprave | K2: =IF(Poročilo_3!B3="","",Poročilo_3!B3) -> CČN KRANJ
A3: Čas vzorčenja reprezentativnega vzorca (ure): | E3: =IF(Poročilo_3!$B$49="","",Poročilo_3!$B$49) -> 24 | F3: Skupna letna količina odpadne vode na ČN (1000 m3) | M3: =IF(Poročilo_3!B48="","",Poročilo_3!B48) -> 4343.368
A4: Ali se izvajajo trajne meritve pretoka: | E4: =IF(Poročilo_3!B50="","",Poročilo_3!B50) -> DA | F4: Iztok ČN v (ime vodotoka): | J4: =IF(Poročilo_3!B7="","",Poročilo_3!B7) -> SAVA
A5: Število dni obratovanja čistilne naprave (dni): | E5: =IF(Poročilo_3!B47="","",Poročilo_3!B47) -> 345 | F5: Velikost naprave (PE): | I5: =IF(Poročilo_3!B4="","",Poročilo_3!B4) -> 95000
A6: Po katerem členu uredbe KČN se vrednoti iztok odpadne vode: | G6: =IF(Poročilo_3!B10="","",Poročilo_3!B10) -> 7 OVD
A7: Zap. št. | B7: Naziv | D7: Mejna | J7: Št. vzorčenja | Q7: Zap. št. | R7: Naziv | X7: Št. vzorčenja | AE7: Povprečna | AF7: Minim. | AG7: Maks. | AH7: Vsota | AI7: letna količina emisije (kg/leto)
A8: param. | B8: parametra | D8: vrednost | E8: 1 | F8: 2 | G8: 3 | H8: 4 | I8: 5 | J8: 6 | K8: 7 | L8: 8 | M8: 9 | N8: 10 | O8: 11 | P8: 12 | Q8: param. | R8: parametra | S8: 13 | T8: 14 | U8: 15 | V8: 16 | W8: 17 | X8: 18 | Y8: 19 | Z8: 20 | AA8: 21 | AB8: 22 | AC8: 23 | AD8: 24 | AE8: vrednost | AF8: vrednost | AG8: vrednost
A9: identifikacija vzorca | C9: vtok | D9: / | E9: 1502 | F9: 5593 | G9: 10826 | H9: 15320 | I9: 20325 | J9: 27377 | K9: 32592 | L9: 34694 | M9: 42797 | N9: 50115 | O9: 57883 | P9: 66027 | Q9: identifikacija vzorca | S9: 68909 | T9: 73587 | U9: 78984 | V9: 86261 | W9: 90343 | X9: 96851 | Y9: 103370 | Z9: 110436 | AA9: 117542 | AB9: 126103 | AC9: 130322 | AD9: 138729 | AE9: / | AF9: / | AG9: / | AH9: / | AI9: /
A10: identifikacija vzorca | C10: iztok | D10: / | E10: 1501 | F10: 5592 | G10: 10825 | H10: 15319 | I10: 20324 | J10: 27376 | K10: 32591 | L10: 34693 | M10: 42796 | N10: 50114 | O10: 57882 | P10: 66026 | Q10: identifikacija vzorca | S10: 68908 | T10: 73586 | U10: 78983 | V10: 86260 | W10: 90342 | X10: 96850 | Y10: 103369 | Z10: 110435 | AA10: 117541 | AB10: 126102 | AC10: 130321 | AD10: 138728 | AE10: / | AF10: / | AG10: / | AH10: / | AI10: /
B11: datum vzorč. | C11: vtok | D11: / | E11: 09.01.23 | F11: 22.01.23 | G11: 08.02.23 | H11: 20.02.23 | I11: 05.03.23 | J11: 21.03.23 | K11: 03.04.23 | L11: 10.04.23 | M11: 02.05.23 | N11: 21.05.23 | O11: 06.06.23 | P11: 26.06.23 | R11: datum vzorč. | S11: 04.07.23 | T11: 16.07.23 | U11: 01.08.23 | V11: 22.08.23 | W11: 03.09.23 | X11: 18.09.23 | Y11: 03.10.23 | Z11: 17.10.23 | AA11: 06.11.23 | AB11: 22.11.23 | AC11: 03.12.23 | AD11: 20.12.23 | AE11: / | AF11: / | AG11: / | AH11: / | AI11: /
B12: (dd.mm.ll) | C12: iztok | D12: / | E12: 10.01.23 | F12: 23.01.23 | G12: 09.02.23 | H12: 21.02.23 | I12: 06.03.23 | J12: 22.03.23 | K12: 04.04.23 | L12: 11.04.23 | M12: 03.05.23 | N12: 22.05.20 | O12: 07.06.23 | P12: 27.06.23 | R12: (dd.mm.ll) | S12: 05.07.23 | T12: 17.07.23 | U12: 02.08.23 | V12: 23.08.23 | W12: 04.09.23 | X12: 19.09.23 | Y12: 04.10.23 | Z12: 18.10.23 | AA12: 07.11.23 | AB12: 23.11.23 | AC12: 04.12.23 | AD12: 21.12.23 | AE12: / | AF12: / | AG12: / | AH12: / | AI12: /
B13: čas pričetka vzor. | C13: vtok | D13: / | E13: 08:45:00 | F13: 08:55:00 | G13: 07:15:00 | H13: 07:10:00 | I13: 06:45:00 | J13: 06:40:00 | K13: 06:45:00 | L13: 06:55:00 | M13: 06:55:00 | N13: 07:00:00 | O13: 07:35:00 | P13: 06:45:00 | R13: čas vzorč. | S13: 06:45:00 | T13: 06:45:00 | U13: 09:15:00 | V13: 08:45:00 | W13: 07:35:00 | X13: 07:55:00 | Y13: 09:55:00 | Z13: 09:10:00 | AA13: 07:10:00 | AB13: 07:43:00 | AC13: 07:10:00 | AD13: 07:15:00 | AE13: / | AF13: / | AG13: / | AH13: / | AI13: /
B14: (hh:mm) | C14: iztok | D14: / | E14: 06:45:00 | F14: 08:55:00 | G14: 07:15:00 | H14: 07:10:00 | I14: 06:45:00 | J14: 06:40:00 | K14: 06:45:00 | L14: 06:55:00 | M14: 06:55:00 | N14: 07:00:00 | O14: 07:35:00 | P14: 06:45:00 | R14: (hh:mm) | S14: 06:45:00 | T14: 06:45:00 | U14: 09:15:00 | V14: 08:45:00 | W14: 07:35:00 | X14: 07:55:00 | Y14: 09:55:00 | Z14: 09:10:00 | AA14: 07:10:00 | AB14: 07:43:00 | AC14: 07:10:00 | AD14: 07:15:00 | AE14: / | AF14: / | AG14: / | AH14: / | AI14: /
A15: 200 | B15: Količ. odpad. vode | C15: vtok | D15: / | E15: 19950 | F15: 15800 | G15: 8350 | H15: 8850 | I15: 9550 | J15: 8500 | K15: 9750 | L15: 8150 | M15: 11800 | N15: 9450 | O15: 19400 | P15: 10000 | Q15: 200 | R15: Količ. odpad. vode | S15: 12900 | T15: 7600 | U15: 11700 | V15: 8400 | W15: 8550 | X15: 11600 | Y15: 8150 | Z15: 9200 | AA15: 20100 | AB15: 9050 | AC15: 19700 | AD15: 10450 | AE15: 11539.58333 | AF15: / | AG15: / | AH15: / | AI15: /
B16: v času vzor. (m3) | C16: iztok | D16: / | E16: 19950 | F16: 15800 | G16: 8350 | H16: 8850 | I16: 9550 | J16: 8500 | K16: 9750 | L16: 8150 | M16: 11800 | N16: 9450 | O16: 19400 | P16: 10000 | R16: v času vzor. (m3) | S16: 12900 | T16: 7600 | U16: 11700 | V16: 8400 | W16: 8550 | X16: 11600 | Y16: 8150 | Z16: 9200 | AA16: 20100 | AB16: 9050 | AC16: 19700 | AD16: 10450 | AE16: 11539.58333 | AF16: / | AG16: / | AH16: / | AI16: /
A17: 1 | B17: Temperatura | C17: vtok | D17: / | E17: 9.2 | F17: 9.2 | G17: 8.5 | H17: 9.7 | I17: 9.6 | J17: 11.8 | K17: 10.9 | L17: 11.2 | M17: 12.2 | N17: 13.7 | O17: 15.3 | P17: 17.7 | Q17: 1 | R17: Temperatura | S17: 17.8 | T17: 18.3 | U17: 17.7 | V17: 19.6 | W17: 18.9 | X17: 18.2 | Y17: 18.5 | Z17: 15.9 | AA17: 13.4 | AB17: 13.3 | AC17: 10.4 | AD17: 10.2 | AE17: 13.48212674 | AF17: 8.5 | AG17: 19.6 | AH17: 331.2
C18: iztok | E18: 10.1 | F18: 8.5 | G18: 9 | H18: 9.2 | I18: 11.3 | J18: 14.7 | K18: 12.3 | L18: 13 | M18: 13.8 | N18: 16.6 | O18: 17.8 | P18: 18.1 | S18: 20.4 | T18: 21.8 | U18: 20.4 | V18: 22.5 | W18: 20.6 | X18: 20.3 | Y18: 17.1 | Z18: 17.4 | AA18: 13.4 | AB18: 13.4 | AC18: 11 | AD18: 11.4 | AE18: 14.77216104 | AF18: 8.5 | AG18: 22.5 | AH18: 364.1 | AI18: =IF($M$3="",0,AE18*$M$3) -> 64160.93155
A19: 2 | B19: pH | C19: vtok | D19: / | E19: 8.1 | F19: 8.5 | G19: 7.9 | H19: 6.8 | I19: 7.8 | J19: 8 | K19: 7.9 | L19: 7.7 | M19: 8 | N19: 8 | O19: 8.2 | P19: 7.8 | Q19: 2 | R19: pH | S19: 8 | T19: 7.8 | U19: 8 | V19: 8.1 | W19: 8.1 | X19: 8.1 | Y19: 8.2 | Z19: 7.7 | AA19: 7.9 | AB19: 7.8 | AC19: 8.2 | AD19: 7.9 | AE19: 7.979310345 | AF19: 6.8 | AG19: 8.5 | AH19: 190.5
C20: iztok | E20: 6.9 | F20: 6.6 | G20: 6.7 | H20: 6.7 | I20: 6.6 | J20: 6.7 | K20: 6.7 | L20: 6.7 | M20: 6.8 | N20: 6.7 | O20: 6.8 | P20: 6.9 | S20: 7 | T20: 7.2 | U20: 6.8 | V20: 6.6 | W20: 6.7 | X20: 6.8 | Y20: 6.8 | Z20: 6.7 | AA20: 6.9 | AB20: 6.7 | AC20: 6.7 | AD20: 6.9 | AE20: 6.781819823 | AF20: 6.6 | AG20: 7.2 | AH20: 162.6 | AI20: =IF($M$3="",0,AE20*$M$3) -> 29455.9392
A21: 3 | B21: Neraztop. Sn. | C21: vtok | D21: / | E21: 320 | F21: 340 | G21: 390 | H21: 700 | I21: 360 | J21: 430 | K21: 550 | L21: 600 | M21: 280 | N21: 390 | O21: 320 | P21: 610 | Q21: 3 | R21: Neraztop. Sn. | S21: 300 | T21: 370 | U21: 420 | V21: 490 | W21: 520 | X21: 680 | Y21: 650 | Z21: 390 | AA21: 300 | AB21: 370 | AC21: 360 | AD21: 410 | AE21: 417.1763856 | AF21: 280 | AG21: 700 | AH21: 10550
B22: (mg/l) | C22: iztok | D22: 35 | E22: 4.6 | F22: 2 | G22: 2 | H22: 2.5 | I22: 2.7 | J22: 2.4 | K22: 2 | L22: 2 | M22: 2.6 | N22: LOD | O22: 2 | P22: 2.1 | R22: (mg/l) | S22: 2 | T22: 2 | U22: LOD | V22: 2 | W22: 2 | X22: LOD | Y22: LOD | Z22: 2 | AA22: 2 | AB22: 2 | AC22: 16 | AD22: 4.8 | AE22: 2.953077756 | AF22: 0 | AG22: 16 | AH22: 55.7 | AI22: =IF($M$3="",0,AE22*$M$3) -> 12826.30343
A23: 26 | B23: Amonijev dušik | C23: vtok | D23: / | E23: 21.4 | F23: 41.6 | G23: 50.9 | H23: 51.2 | I23: 49.6 | J23: 55.3 | K23: 47.6 | L23: 59 | M23: 27.2 | N23: 42.1 | O23: 21.1 | P23: 46.4 | Q23: 26 | R23: Amonijev dušik | S23: 38.2 | T23: 32.1 | U23: 21.9 | V23: 49.8 | W23: 42.7 | X23: 40.3 | Y23: 50.2 | Z23: 45.1 | AA23: 19.9 | AB23: 51.4 | AC23: 16.8 | AD23: 49 | AE23: 36.89924174 | AF23: 16.8 | AG23: 59 | AH23: 970.8
B24: (mg/l) | C24: iztok | D24: 10 | E24: 0.953 | F24: 0.785 | G24: 0.673 | H24: 0.5 | I24: 1.06 | J24: 0.5 | K24: 0.5 | L24: 0.5 | M24: 0.518 | N24: LOD | O24: 0.5 | P24: 1.26 | R24: (mg/l) | S24: 0.813 | T24: 0.5 | U24: 1.23 | V24: 0.588 | W24: 0.701 | X24: 0.5 | Y24: 0.701 | Z24: 0.841 | AA24: 3.19 | AB24: 1.6 | AC24: 1.68 | AD24: 0.897 | AE24: 0.9694133058 | AF24: 0 | AG24: 3.19 | AH24: 20.29 | AI24: =IF($M$3="",0,AE24*$M$3) -> 4210.518731
A25: 38 | B25: KPK | C25: vtok | D25: / | E25: 481 | F25: 582 | G25: 665 | H25: 1750 | I25: 735 | J25: 943 | K25: 932 | L25: 1120 | M25: 496 | N25: 704 | O25: 396 | P25: 1080 | Q25: 38 | R25: KPK | S25: 599 | T25: 622 | U25: 665 | V25: 687 | W25: 885 | X25: 1260 | Y25: 852 | Z25: 568 | AA25: 390 | AB25: 592 | AC25: 450 | AD25: 713 | AE25: 700.2699043 | AF25: 390 | AG25: 1750 | AH25: 18167
B26: (mg/l) | C26: iztok | D26: 110 | E26: 22 | F26: 17 | G26: 25 | H26: 22 | I26: 26 | J26: 29 | K26: 31 | L26: 23 | M26: 23 | N26: 23 | O26: 17 | P26: 22 | R26: (mg/l) | S26: 21 | T26: 16 | U26: 14 | V26: 17 | W26: 15 | X26: 18 | Y26: 20 | Z26: 17 | AA26: 13 | AB26: 16 | AC26: 15 | AD26: 11 | AE26: 19.15905398 | AF26: 11 | AG26: 31 | AH26: 473 | AI26: =IF($M$3="",0,AE26*$M$3) -> 83214.82197
B27: (%) | C27: učinek | E27: 95.42619543 | F27: 97.0790378 | G27: 96.2406015 | H27: 98.74285714 | I27: 96.46258503 | J27: 96.92470838 | K27: 96.67381974 | L27: 97.94642857 | M27: 95.36290323 | N27: 96.73295455 | O27: 95.70707071 | P27: 97.96296296 | R27: (%) | S27: 96.49415693 | T27: 97.42765273 | U27: 97.89473684 | V27: 97.52547307 | W27: 98.30508475 | X27: 98.57142857 | Y27: 97.65258216 | Z27: 97.00704225 | AA27: 96.66666667 | AB27: 97.2972973 | AC27: 96.66666667 | AD27: 98.457223 | AE27: 97.26404721 | AF27: 0 | AG27: 0 | AH27: 0
A28: 39 | B28: BPK5 | C28: vtok | D28: / | E28: 240 | F28: 280 | G28: 320 | H28: 860 | I28: 360 | J28: 460 | K28: 460 | L28: 560 | M28: 240 | N28: 340 | O28: 190 | P28: 540 | Q28: 39 | R28: BPK5 | S28: 280 | T28: 300 | U28: 320 | V28: 340 | W28: 440 | X28: 620 | Y28: 420 | Z28: 280 | AA28: 190 | AB28: 280 | AC28: 220 | AD28: 350 | AE28: 342.3451887 | AF28: 190 | AG28: 860 | AH28: 8890
B29: (mg/l) | C29: iztok | D29: 20 | E29: 5 | F29: 5 | G29: 5 | H29: 5 | I29: 5 | J29: 5 | K29: 5 | L29: 5 | M29: 5 | N29: 5 | O29: 5 | P29: 5 | R29: (mg/l) | S29: 5 | T29: 5 | U29: 5 | V29: 5 | W29: 5 | X29: 5 | Y29: 5 | Z29: 5 | AA29: 5 | AB29: 5 | AC29: 5 | AD29: 5 | AE29: 3.408088103 | AF29: 1.7 | AG29: 5 | AH29: 82.05 | AI29: =IF($M$3="",0,AE29*$M$3) -> 14802.58081
B30: (%) | C30: učinek | E30: 98.60416667 | F30: 98.80357143 | G30: 98.953125 | H30: 99.61046512 | I30: 99.06944444 | J30: 99.27173913 | K30: 98.91304348 | L30: 99.40178571 | M30: 98.60416667 | N30: 99.01470588 | O30: 98.23684211 | P30: 99.37962963 | R30: (%) | S30: 98.80357143 | T30: 98.88333333 | U30: 98.953125 | V30: 99.01470588 | W30: 99.23863636 | X30: 99.45967742 | Y30: 99.20238095 | Z30: 98.80357143 | AA30: 98.23684211 | AB30: 98.80357143 | AC30: 98.47727273 | AD30: 99.04285714 | AE30: 99.0044878 | AF30: =IF(IFERROR(MATCH("lod",S30:AD30,0),0)>0,0,MIN(S30:AD30)) -> 98.23684211 | AG30: =MAX(E30:P30,S30:AD30) -> 99.61046512
A31: 33 | B31: Celotni fosfor | C31: vtok | D31: / | E31: 6.53 | F31: 8.54 | G31: 9.48 | H31: 12.8 | I31: 8.89 | J31: 12 | K31: 11.3 | L31: 16.4 | M31: 7.18 | N31: 10.8 | O31: 6.9 | P31: 14.8 | Q31: 0 | R31: Celotni fosfor | S31: 7.98 | T31: 9.2 | U31: 6.35 | V31: 11.9 | W31: 7.72 | X31: 13.3 | Y31: 12.3 | Z31: 13.2 | AA31: 6.48 | AB31: 9.93 | AC31: 8.34 | AD31: 8.89 | AE31: 9.472551002 | AF31: 6.35 | AG31: 16.4 | AH31: 241.21
B32: (mg/l) | C32: iztok | D32: 2 | E32: 1.51 | F32: 1.56 | G32: 1.62 | H32: 1.51 | I32: 1.62 | J32: 1.6 | K32: 1.69 | L32: 1.55 | M32: 0.364 | N32: 0.854 | O32: 1.37 | P32: 1.77 | R32: (mg/l) | S32: 1.65 | T32: 1.51 | U32: 1.34 | V32: 1.58 | W32: 1.63 | X32: 2.01 | Y32: 1.28 | Z32: 2.29 | AA32: 1.79 | AB32: 1.53 | AC32: 1.62 | AD32: 1.28 | AE32: 1.523980863 | AF32: 0.364 | AG32: 2.29 | AH32: 36.528 | AI32: =IF($M$3="",0,AE32*$M$3) -> 6619.209713
B33: (%) | C33: učinek | E33: 76.87595712 | F33: 81.73302108 | G33: 82.91139241 | H33: 88.203125 | I33: 81.77727784 | J33: 86.66666667 | K33: 85.04424779 | L33: 90.54878049 | M33: 94.93036212 | N33: 92.09259259 | O33: 80.14492754 | P33: 88.04054054 | R33: (%) | S33: 79.32330827 | T33: 83.58695652 | U33: 78.8976378 | V33: 86.72268908 | W33: 78.88601036 | X33: 84.88721805 | Y33: 89.59349593 | Z33: 82.65151515 | AA33: 72.37654321 | AB33: 84.59214502 | AC33: 80.57553957 | AD33: 85.60179978 | AE33: 83.9116109 | AF33: =IF(IFERROR(MATCH("lod",S33:AD33,0),0)>0,0,MIN(S33:AD33)) -> 72.37654321 | AG33: =MAX(E33:P33,S33:AD33) -> 94.93036212
A34: 60 | B34: Celotni dušik | C34: vtok | D34: / | E34: 29 | F34: 59 | G34: 71 | H34: 84 | I34: 73 | J34: 84 | K34: 77 | L34: 85 | M34: 44 | N34: 63 | O34: 36 | P34: 74 | Q34: 60 | R34: Celotni dušik | S34: 54 | T34: 52 | U34: 40 | V34: 71 | W34: 65 | X34: 62 | Y34: 69 | Z34: 58 | AA34: 29 | AB34: 69 | AC34: 25 | AD34: 59 | AE34: 54.51561654 | AF34: 25 | AG34: 85 | AH34: 1432
B35: (mg/l) | C35: iztok | D35: 15 | E35: 11 | F35: 6 | G35: 12 | H35: 6.1 | I35: 7 | J35: 5.6 | K35: 3.7 | L35: 3.9 | M35: 3.7 | N35: 4.5 | O35: 3.8 | P35: 6 | R35: (mg/l) | S35: 7.2 | T35: 2.2 | U35: 3.8 | V35: 6.6 | W35: 4.2 | X35: 4 | Y35: 7.1 | Z35: 5.8 | AA35: 11 | AB35: 4.6 | AC35: 8.7 | AD35: 8.3 | AE35: 6.479653367 | AF35: 2.2 | AG35: 12 | AH35: 146.8 | AI35: =IF($M$3="",0,AE35*$M$3) -> 28143.51909
B36: (%) | C36: učinek | E36: 62.06896552 | F36: 89.83050847 | G36: 83.09859155 | H36: 92.73809524 | I36: 90.4109589 | J36: 93.33333333 | K36: 95.19480519 | L36: 95.41176471 | M36: 91.59090909 | N36: 92.85714286 | O36: 89.44444444 | P36: 91.89189189 | R36: (%) | S36: 86.66666667 | T36: 95.76923077 | U36: 90.5 | V36: 90.70422535 | W36: 93.53846154 | X36: 93.5483871 | Y36: 89.71014493 | Z36: 90 | AA36: 62.06896552 | AB36: 93.33333333 | AC36: 65.2 | AD36: 85.93220339 | AE36: 88.11413357 | AF36: =IF(IFERROR(MATCH("lod",S36:AD36,0),0)>0,0,MIN(S36:AD36)) -> 62.06896552 | AG36: =MAX(E36:P36,S36:AD36) -> 95.76923077
A37: 28 | B37: Nitratni dušik | C37: vtok | D37: / | Q37: 28 | R37: Nitratni dušik | AE37: 0 | AF37: 0 | AG37: 0 | AH37: 0
B38: (mg/l) | C38: iztok | R38: (mg/l) | AE38: 0 | AF38: 0 | AG38: 0 | AH38: 0 | AI38: =IF($M$3="",0,AE38*$M$3) -> 0
A39: 27 | B39: Nitritni dušik | C39: vtok | D39: / | Q39: 27 | R39: Nitritni dušik | AE39: 0 | AF39: 0 | AG39: 0 | AH39: 0
B40: (mg/l) | C40: iztok | R40: (mg/l) | AE40: 0 | AF40: 0 | AG40: 0 | AH40: 0 | AI40: =IF($M$3="",0,AE40*$M$3) -> 0
A41: 61 | B41: Kjeldahlov dušik | C41: vtok | D41: / | Q41: 61 | R41: Kjeldahlov dušik | AE41: 0 | AF41: 0 | AG41: 0 | AH41: 0
B42: (mg/l) | C42: iztok | R42: (mg/l) | AE42: 0 | AF42: 0 | AG42: 0 | AH42: 0 | AI42: =IF($M$3="",0,AE42*$M$3) -> 0
A43: 4 | B43: Usedljive sn. | C43: vtok | D43: / | Q43: 4 | R43: Usedljive sn. | AE43: 0 | AF43: 0 | AG43: 0 | AH43: 0
B44: (ml/l) | C44: iztok | E44: 0.1 | F44: 0.1 | G44: 0.1 | H44: 0.1 | I44: 0.1 | J44: 0.1 | K44: 0.1 | L44: 0.1 | M44: 0.1 | N44: 0.1 | O44: 0.1 | P44: 0.1 | R44: (ml/l) | S44: 0.1 | T44: 0.1 | U44: 0.1 | V44: 0.1 | W44: 0.1 | X44: 0.1 | Y44: 0.1 | Z44: 0.1 | AA44: 0.1 | AB44: 0.1 | AC44: 0.1 | AD44: 0.1 | AE44: 0.1 | AF44: 0.1 | AG44: 0.1 | AH44: 2.4 | AI44: =IF($M$3="",0,AE44*$M$3) -> 434.3368
A45: 999 | B45: Temperatura aeracijskega bazena | C45: vtok | D45: / | Q45: 999 | R45: Temperatura aeracijskega bazena | AE45: 0 | AF45: 0 | AG45: 0 | AH45: 0
B46: (st C) | C46: iztok | E46: 10.3 | F46: 8.7 | G46: 9.6 | H46: 9.5 | I46: 11.6 | J46: 13.6 | K46: 12.6 | L46: 13.3 | M46: 14.4 | N46: 16.3 | O46: 17.6 | P46: 18.6 | R46: (st C) | S46: 21.1 | T46: 21.3 | U46: 20.9 | V46: 23.4 | W46: 21.5 | X46: 21.7 | Y46: 18.3 | Z46: 17.7 | AA46: 13.9 | AB46: 13.8 | AC46: 11.8 | AD46: 12 | AE46: 15.16891136 | AF46: 8.7 | AG46: 23.4 | AH46: 373.5 | AI46: =IF($M$3="",0,AE46*$M$3) -> 65884.16418
A47: 11 | B47: Baker | C47: vtok | D47: / | Q47: 11 | R47: Baker | AE47: 0 | AF47: 0 | AG47: 0 | AH47: 0
B48: (mg/L) | C48: iztok | D48: 0.5 | G48: LOD | M48: LOD | R48: (mg/L) | U48: LOD | Z48: LOD | AE48: 0 | AF48: 0 | AG48: 0 | AH48: 0 | AI48: =IF($M$3="",0,AE48*$M$3) -> 0
A49: 13 | B49: Cink | C49: vtok | D49: / | Q49: 13 | R49: Cink | AE49: 0 | AF49: 0 | AG49: 0 | AH49: 0
B50: (mg/L) | C50: iztok | D50: 2 | G50: 0.046 | M50: 0.011 | R50: (mg/L) | U50: LOD | Z50: 0.023 | AE50: 0.01828491739 | AF50: 0 | AG50: 0.046 | AH50: 0.08 | AI50: =IF($M$3="",0,AE50*$M$3) -> 79.41812506
A51: 43 | B51: Adsorbljivi organski halogeni (AOX) | C51: vtok | D51: / | Q51: 43 | R51: Adsorbljivi organski halogeni (AOX) | AE51: 0 | AF51: 0 | AG51: 0 | AH51: 0
B52: (mg/L) | C52: iztok | D52: 0.5 | G52: 0.034 | M52: 0.1 | R52: (mg/L) | U52: 0.033 | Z52: 0.062 | AE52: 0.05896224117 | AF52: 0.033 | AG52: 0.1 | AH52: 0.229 | AI52: =IF($M$3="",0,AE52*$M$3) -> 256.0947115

Sheet Poročilo_7
A1: Za izračun letnega povprečja čiščenja mora biti vnesen tudi podatek o številu dni obratovanja ČN (na listu Poročilo_3 celica B47)!
A2: Učinek čiščenja ČN (%) | B2: letni povprečni
A3: Po KPK | B3: =IF(OR(Poročilo_6!AE27=0,Poročilo_6!E5=""),"",Poročilo_6!AE27*Poročilo_6!E5/365) -> 91.93451038
A4: Po BPK5 | B4: =IF(OR(Poročilo_6!AE30=0,Poročilo_6!E5=""),"",Poročilo_6!AE30*Poročilo_6!E5/365) -> 93.57958436
A5: Po celotnem fosforju | B5: =IF(OR(Poročilo_6!AE33=0,Poročilo_6!E5=""),"",Poročilo_6!AE33*Poročilo_6!E5/365) -> 79.31371441
A6: Po celotnem dušiku | B6: =IF(OR(Poročilo_6!AE36=0,Poročilo_6!E5=""),"",Poročilo_6!AE36*Poročilo_6!E5/365) -> 83.28596186
A8: 9. Vrednotenje izmerjene emisije
A9: 9.1 Vrednotenje po 10. členu Uredbe o emisiji snovi in toplote pri odvajanju odpadnih voda v vode in javno kanalizacijo (Uradni list RS, št. 64/12, 64/14 in 98/15) (preseganje mejnih vrednosti)
A10: Vrednotenje emisije snovi in ugotavljanje čezmerne obremenitve okolja za komunalno ČN: 10. in 11. člen, Uredbe o emisiji snovi in toplote pri odvajanju odpadnih vod v vode in javno kanalizacijo (Ur. l. RS, št. 64/12, 64/14, 98/15, 44/22 - ZVO-2, 75/22, 157/22). Pri opravljenih meritvah so bila ugotovljena preseganja mejnih vrednosti parametrov komunalne čistilne naprave, določenih v okoljevarstvenem dovoljenju št.: 35441-29/2013-6 z dne: 29.11.2013, Odločbah št. 35444-71/2016-2 z dne 16.2.2017 in št. 35472-54/2017-10 z dne 25.7.2018 in sicer pri parametru celotni fosfor pri dveh občasnih meritvah (pri 18. in pri 20. občasni meritvi).
A11: Pri vseh ostalih opravljenih meritvah ni bilo ugotovljenega preseganje predpisanih mejnih vrednosti (MV). Pri vseh meritvah in parametrih, vključno z EPRTR parametri, pa so izmerjene vrednosti ustrezale predpisanim MV. Preseganje pri 18. občasni meritvi je bilo ugotovljeno pri parametru celotni fosfor (izmerjena vrednost je bila 2,01mg/l, MV= 2 mg/l, preseganje je bilo 0,5%). Preseganje pri 20. občasni meritvi je bilo ugotovljeno tudi pri parametru celotni fosfor (izmerjena vrednost je bila 2,29mg/l, MV= 2 mg/l, preseganje je bilo 14,5%).
A12: 9.2 Vrednotenje po 11. členu Uredbe o emisiji snovi in toplote pri odvajanju odpadnih voda v vode in javno kanalizacijo (Uradni list RS, št. 64/12, 64/14 in 98/15) (ugotavljanje čezmerne obremenitve)
A13: KČN, pri kateri je predpisano več kot 12 meritev letno povzroča čezmerno obremenitev okolja, če: ▪ena od izmerjenih vrednosti kateregakoli parametra, za katerega je mejna vrednost določena v Uredbi o odvajanju in čiščenju komunalne odpadne vode (Ur. l. RS, št. 98/15, 76/17, 81/19, 194/21 in 44/22 – ZVO-2) - Uredba KOV, presega predpisano mejno vrednost za več kot 100%, ▪v treh ali več meritvah izmerjena vrednost istega parametra presega predpisano mejno vrednost za 50% in manj, ▪je letna povprečna vrednost učinka čiščenja manjša od predpisane mejne vrednosti letnega povprečnega učinka čiščenja KČN, če je v OVD za to KČN določeno, da se namesto mejne vrednosti parametra onesnaženosti uporablja učinek čiščenja. V letu 2023 sta bili izmerjeni dve prekoračitvi MV, pri dveh (2)od 24 predpisanih meritvah, obe prekoračitvi pri istem parametru. Vsi prekoračeni parametri so parametri Uredbe KOV in noben parameter, ki je določen z uredbo KOV ni bil prekoračen za več kot 100%.
A14: Na podlagi določil navedenega 11. člena in opravljenih meritev se pri komunalni čistilni napravi Kranj, ne ugotavlja čezmerna obremenitev okolja.
A15: Mejna vrednost za amonijev in celotni dušik se uporablja pri temperaturi odpadne vode 12°C in več na iztoku aeracijskega bazena. V primeru nižje temperature se mejna vrednost za citirana parametra ne uporablja in se ju ne vrednoti.

Sheet Parametri (hidden)
A1: IDParameter | B1: ImeParametra | C1: Izrazen | D1: Enota
A2: 73 | B2: 1,1,1 Trikloroetan | C2: Cl | D2: mg/l
A3: 875 | B3: 1,1,1,2-tetrakloroetan | C3: Cl | D3: mg/l
A4: 820 | B4: 1,1,1-trikloro-22 bis (p-klorofenik) etan | D4: mg/l
A5: 98 | B5: 1,1,2,2 - Tetrakloroetan | C5: Cl | D5: mg/l
A6: 874 | B6: 1,1,2-trikloroetan | C6: Cl | D6: mg/l
A7: 873 | B7: 1,1-dikloroetan | C7: Cl | D7: mg/l
A8: 3009 | B8: 1,1-Dikloroeten | C8: Cl | D8: mg/l
A9: 112 | B9: 1,2,3,4,5,6 - Heksaklorocikloheksan (HCH) | C9: HCH | D9: mg/l
A10: 861 | B10: 1,2,3-triklorobenzen | D10: mg/l
A11: 862 | B11: 1,2,4-triklorobenzen | D11: mg/l
A12: 186 | B12: 1,2,4-trimetilbenzen | D12: mg/l
A13: 879 | B13: 1,2-dibromometan | C13: Cl | D13: mg/l
A14: 72 | B14: 1,2-Dikloroetan | C14: Cl | D14: mg/l
A15: 863 | B15: 1,3,5-triklorobenzen | D15: mg/l
A16: 187 | B16: 1,3,5-trimetilbenzen | D16: mg/l
A17: 179 | B17: 1,4-Dioksan | D17: mg/l
A18: 177 | B18: 1-Butanol | D18: mg/l
A19: 174 | B19: 1-Propanol | D19: mg/l
A20: 845 | B20: 2,2',4,4',5,5'-heksaBDE (BDE-153) | D20: mg/l
A21: 846 | B21: 2,2',4,4',5,6'-heksaBDE (BDE-154) | D21: mg/l
A22: 844 | B22: 2,2',4,4',5-pentaBDE (BDE-99) | D22: mg/l
A23: 847 | B23: 2,2',4,4',6-pentaBDE (BDE-100) | D23: mg/l
A24: 843 | B24: 2,2',4,4'-tetraBDE (BDE-47) | D24: mg/l
A25: 3012 | B25: 2,4 DP (diklorprop) | C25: diklorprop | D25: mg/l
A26: 848 | B26: 2,4,4'-triBDE (BDE-28) | D26: mg/l
A27: 178 | B27: 2-Butanol | D27: mg/l
A28: 197 | B28: 2-butanon | D28: mg/l
A29: 175 | B29: 2-Propanol | D29: mg/l
A30: 222 | B30: 4-(1,1,3,3-tetrametil butil) fenol dietoksilat | D30: mg/l
A31: 221 | B31: 4-(1,1,3,3-tetrametil butil) fenol monoetoksilat | D31: mg/l
A32: 220 | B32: 4-nonilfenol | D32: mg/l
A33: 219 | B33: 4-nonilfenol dietoksilat | D33: mg/l
A34: 218 | B34: 4-nonilfenol monoetoksilat | D34: mg/l
A35: 223 | B35: 4-tert-oktilfenol | D35: mg/l
A36: 133 | B36: Acenaften | D36: mg/l
A37: 132 | B37: Acenaftilen | D37: mg/l
A38: 173 | B38: Aceton | D38: mg/l
A39: 198 | B39: Acetonitril | D39: mg/l
A40: 43 | B40: Adsorbljivi organski halogeni (AOX) | C40: Cl | D40: mg/l
A41: 229 | B41: Aklonifen | D41: mg/l
A42: 828 | B42: Akrilamid | D42: mg/l
A43: 801 | B43: Alaklor | D43: mg/l
A44: 86 | B44: Aldrin | D44: mg/l
A45: 856 | B45: alfa-HCH | D45: mg/l
A46: 9 | B46: Aluminij | C46: Al | D46: mg/l
A47: 1090 | B47: Aluminij-faktor(g/t) | C47: Al | D47: g/t
A48: 1091 | B48: Aluminij-faktor(kg/t) | C48: Al | D48: kg/t
A49: 1093 | B49: Aluminij-količina(g) | C49: Al | D49: g
A50: 1092 | B50: Aluminij-količina(kg) | C50: Al | D50: kg
A51: 26 | B51: Amonijev dušik | C51: N | D51: mg/l
A52: 50 | B52: Antimon | C52: Sb | D52: mg/l
A53: 136 | B53: Antracen | D53: mg/l
A54: 1431 | B54: AOX-faktor(g/t) | C54: AOX | D54: g/t
A55: 1430 | B55: AOX-faktor(kg/t) | C55: Cl | D55: kg/t
A56: 1433 | B56: AOX-količina(g) | C56: AOX | D56: g
A57: 1432 | B57: AOX-količina(kg) | C57: Cl | D57: kg
A58: 10 | B58: Arzen | C58: As | D58: mg/l
A59: 1101 | B59: Arzen-faktor(g/t) | C59: As | D59: g/t
A60: 1100 | B60: Arzen-faktor(kg/t) | C60: As | D60: kg/t
A61: 1103 | B61: Arzen-količina(g) | C61: As | D61: g
A62: 1102 | B62: Arzen-količina(kg) | C62: As | D62: kg
A63: 803 | B63: Atrazin | D63: mg/l
A64: 151 | B64: Azbest | D64: mg/l
A65: 11 | B65: Baker | C65: Cu | D65: mg/l
A66: 1111 | B66: Baker-faktor(g/t) | C66: Cu | D66: g/t
A67: 1112 | B67: Baker-faktor(kg/t) | C67: Cu | D67: kg/t
A68: 1113 | B68: Baker-faktor(mg/m2) | C68: Cu | D68: mg/m2
A69: 1110 | B69: Baker-faktor(mg/t) | C69: Cu | D69: mg/t
A70: 1114 | B70: Baker-količina(g) | C70: Cu | D70: g
A71: 1115 | B71: Baker-količina(kg) | C71: Cu | D71: kg
A72: 12 | B72: Barij | C72: Ba | D72: mg/l
A73: 3010 | B73: Bentazon | D73: mg/l
A74: 420 | B74: Benzen | D74: mg/l
A75: 139 | B75: Benzo(a)antracen | D75: mg/l
A76: 141 | B76: Benzo(a)piren | D76: mg/l
A77: 146 | B77: Benzo(b)fluoronaten | D77: mg/l
A78: 142 | B78: Benzo(g,h,i)perilen | D78: mg/l
A79: 140 | B79: Benzo(k)fluoranten | D79: mg/l
A80: 51 | B80: Berilij | C80: Be | D80: mg/l
A81: 857 | B81: beta-HCH | D81: mg/l
A82: 230 | B82: Bifenok | D82: mg/l
A83: 39 | B83: Biokemijska potreba po kisiku (BPK5) | C83: O2 | D83: mg/l
A84: 7 | B84: Biološka razgradljivost | D84: %
A85: 188 | B85: Bisfenol-A | D85: mg/l
A86: 8 | B86: Bor | C86: B | D86: mg/l
A87: 1081 | B87: Bor-faktor(g/t) | C87: B | D87: g/t
A88: 1080 | B88: Bor-faktor(kg/t) | C88: B | D88: kg/t
A89: 1082 | B89: Bor-količina(g) | C89: B | D89: g
A90: 1083 | B90: Bor-količina(kg) | C90: B | D90: kg
A91: 1391 | B91: BPK5-faktor(g/t) | C91: O2 | D91: g/t
A92: 1390 | B92: BPK5-faktor(kg/t) | C92: O2 | D92: kg/t
A93: 1393 | B93: BPK5-količina(g) | C93: O2 | D93: g
A94: 1392 | B94: BPK5-količina(kg) | C94: O2 | D94: kg
A95: 825 | B95: Bromacil | D95: mg/l
A96: 827 | B96: Bromat | D96: mg/l
A97: 170 | B97: Bromirani difenileter (PBDE) | C97: PBDE | D97: mg/l
A98: 234 | B98: Bromodiklorometan | C98: Cl | D98: mg/l
A99: 877 | B99: bromoklorometan | C99: Cl | D99: mg/l
A100: 1420 | B100: BTX-faktor(g/t) | D100: g/t
A101: 1421 | B101: BTX-faktor(kg/t) | D101: kg/t
A102: 1422 | B102: BTX-količina(g) | D102: g
A103: 1423 | B103: BTX-količina(kg) | D103: kg
A104: 196 | B104: Butilacetat | D104: mg/l
A105: 29 | B105: Celotni cianid | C105: CN | D105: mg/l
A106: 60 | B106: Celotni dušik | C106: N | D106: mg/l
A107: 1600 | B107: Celotni dušik-faktor(g/t) | C107: N | D107: g/t
A108: 1601 | B108: Celotni dušik-faktor(kg/t) | C108: N | D108: kg/t
A109: 1602 | B109: Celotni dušik-količina(g) | C109: N | D109: g
A110: 1603 | B110: Celotni dušik-količina(kg) | C110: N | D110: kg
A111: 33 | B111: Celotni fosfor | C111: P | D111: mg/l
A112: 1330 | B112: Celotni fosfor-faktor(g/t) | C112: P | D112: g/t
A113: 1331 | B113: Celotni fosfor-faktor(kg/t) | C113: P | D113: kg/t
A114: 1332 | B114: Celotni fosfor-količina(g) | C114: P | D114: g
A115: 1333 | B115: Celotni fosfor-količina(kg) | C115: P | D115: kg
A116: 25 | B116: Celotni klor | C116: Cl2 | D116: mg/l
A117: 17 | B117: Celotni krom | C117: Cr | D117: mg/l
A118: 1171 | B118: Celotni krom-faktor(g/t) | C118: Cr | D118: g/t
A119: 1174 | B119: Celotni krom-faktor(kg/t) | C119: Cr | D119: kg/t
A120: 1170 | B120: Celotni krom-faktor(mg/t) | C120: Cr | D120: mg/t
A121: 1172 | B121: Celotni krom-količina(g) | C121: Cr | D121: g
A122: 1173 | B122: Celotni krom-količina(kg) | C122: Cr | D122: kg
A123: 1410 | B123: Celotni ogljikovod.-faktor(g/t) | D123: g/t
A124: 1411 | B124: Celotni ogljikovod.-faktor(kg/t) | D124: kg/t
A125: 1412 | B125: Celotni ogljikovod.-količina(g) | D125: g
A126: 1413 | B126: Celotni ogljikovod.-količina(kg) | D126: kg
A127: 41 | B127: Celotni ogljikovodiki (mineralna olja) | D127: mg/l
A128: 37 | B128: Celotni organski ogljik (TOC) | C128: C | D128: mg/l
A129: 80 | B129: Celotni pesticidi | D129: mg/l
A130: 30 | B130: Cianid - prosti | C130: CN | D130: mg/l
A131: 1300 | B131: Cianid prosti-faktor(g/t) | C131: CN | D131: g/t
A132: 1301 | B132: Cianid prosti-faktor(kg/t) | C132: CN | D132: kg/t
A133: 1302 | B133: Cianid prosti-količina(g) | C133: CN | D133: g
A134: 1303 | B134: Cianid prosti-količina(kg) | C134: CN | D134: kg
A135: 231 | B135: Cibutrin | D135: mg/l
A136: 850 | B136: ciklodienski pesticidi | D136: mg/l
A137: 13 | B137: Cink | C137: Zn | D137: mg/l
A138: 1132 | B138: Cink-faktor(g/kg) | C138: Zn | D138: g/kg
A139: 1131 | B139: Cink-faktor(g/t) | C139: Zn | D139: g/t
A140: 1133 | B140: Cink-faktor(mg/m2) | C140: Zn | D140: mg/m2
A141: 1130 | B141: Cink-faktor(mg/t) | C141: Zn | D141: mg/t
A142: 1134 | B142: Cink-količina(g) | C142: Zn | D142: g
A143: 1135 | B143: Cink-količina(kg) | C143: Zn | D143: kg
A144: 232 | B144: Cipermetrin | D144: mg/l
A145: 869 | B145: cis-1,2-dikloroeten | C145: Cl | D145: mg/l
A146: 852 | B146: DDD (p,p) | D146: mg/l
A147: 853 | B147: DDE (p,p) | D147: mg/l
A148: 851 | B148: DDT (o,p) | D148: mg/l
A149: 858 | B149: delta-HCH | D149: mg/l
A150: 830 | B150: Desetil-atrazin | D150: mg/l
A151: 206 | B151: Di(2-etilheksil)ftalat (DEHP) | C151: DEHP | D151: mg/l
A152: 143 | B152: Dibenzo(a,h)antracen | D152: mg/l
A153: 878 | B153: dibromoklorometan | C153: Cl | D153: mg/l
A154: 876 | B154: dibromometan | C154: Cl | D154: mg/l
A155: 122 | B155: Dibutil kositer oksid | C155: Sn | D155: mg/l
A156: 189 | B156: Dibutilftalat | D156: mg/l
A157: 190 | B157: Dibutilkositrov kation | C157: Sn | D157: mg/l
A158: 121 | B158: Dibutilkositrove spojine (DBT kation) | C158: DBT kation | D158: mg/l
A159: 87 | B159: Dieldrin | D159: mg/l
A160: 867 | B160: Dietilentriaminopentaocetna kislina (DTPA) | D160: mg/l
A161: 880 | B161: difenilkositrove spojine | D161: mg/l
A162: 76 | B162: Diklorometan | C162: Cl | D162: mg/l
A163: 233 | B163: Diklorvos | D163: mg/l
A164: 83 | B164: Dikofol | D164: mg/l
A165: 150 | B165: Dioksini in furani (PCDD/PCDF) | C165: PCDD/PCDF | D165: mg/l
A166: 883 | B166: dioktil kositrove spojine | C166: DOT | D166: mg/l
A167: 807 | B167: Diuron | D167: mg/l
A168: 12009 | B168: Dnevna proizvodnja (bruto) (t) | C168: bruto | D168: t
A169: 12008 | B169: Dnevna proizvodnja (neto) (t) | C169: neto | D169: t
A170: 12010 | B170: Dnevna proizvodnja (t) | D170: t
A171: 12011 | B171: Dnevna proizvodnja-faktor(t/m3) | D171: t/m3
A172: 85 | B172: Drini-vsota | D172: mg/l
A173: 61 | B173: Dušik-Kjeldahl | D173: mg/l
A174: 808 | B174: Endosulfan | D174: mg/l
A175: 854 | B175: endosulfan(alfa) | D175: mg/l
A176: 855 | B176: endosulfan(beta) | D176: mg/l
A177: 88 | B177: Endrin | D177: mg/l
A178: 191 | B178: Epiklorhidrin | D178: mg/l
A179: 217 | B179: Escherichia coli | D179: cfu/100 ml
A180: 172 | B180: Etanol | D180: mg/l
A181: 176 | B181: Etilacetat | D181: mg/l
A182: 183 | B182: Etilbenzen | D182: mg/l
A183: 184 | B183: Etilenoksid | D183: mg/l
A184: 135 | B184: Fenantren | D184: mg/l
A185: 818 | B185: Fenilureazni pesticidi | D185: mg/l
A186: 46 | B186: Fenoli | C186: C6H5OH | D186: mg/l
A187: 1460 | B187: Fenoli-faktor(g/t) | C187: C6H5OH | D187: g/t
A188: 1461 | B188: Fenoli-faktor(kg/t) | C188: C6H5OH | D188: kg/t
A189: 1462 | B189: Fenoli-količina(g) | C189: C6H5OH | D189: g
A190: 1463 | B190: Fenoli-količina(kg) | C190: C6H5OH | D190: kg
A191: 838 | B191: Fenotrin (sumitrin) | D191: mg/l
A192: 821 | B192: Fipronil | D192: mg/l
A193: 137 | B193: Fluoranten | D193: mg/l
A194: 134 | B194: Fluoren | D194: mg/l
A195: 31 | B195: Fluorid | C195: F | D195: mg/l
A196: 1310 | B196: Fluorid-faktor(g/t) | C196: F | D196: g/t
A197: 1313 | B197: Fluorid-faktor(kg/t) | C197: F | D197: kg/t
A198: 1311 | B198: Fluorid-količina(g) | C198: F | D198: g
A199: 1312 | B199: Fluorid-količina(kg) | C199: F | D199: kg
A200: 180 | B200: Formaldehid | D200: mg/l
... 270 more rows

Sheet Priloge
A1: 10. Priloge | K1: Pregledna karta prispevnih in občutljivih območij - KČN Kranj se ne nahaja za omenjenem območju. | AA1: Orto - foto posnetek lokacije nove - rekonstruirane KČN | AS1: ID_ČN | AT1: čistilna naprava | AU1: Naselje
AS2: 213 | AT2: ČN Bašelj | AU2: Bašelj
A3: Obvezna vsebina priloge je elektronska in pisna oblika tehnološke sheme procesa. | AS3: 2493 | AT3: CČN Kranj | AU3: Britof
A4: Shema nove - rekonstruirane ČN | AS4: 2493 | AT4: CČN Kranj | AU4: Cegelnica
AS5: 2493 | AT5: CČN Kranj | AU5: Hotemaže
AS6: 2493 | AT6: CČN Kranj | AU6: Kokrica
AS7: 2493 | AT7: CČN Kranj | AU7: Kranj
AS8: 2493 | AT8: CČN Kranj | AU8: Luže
AS9: 2493 | AT9: CČN Kranj | AU9: Malo Naklo
AS10: 2493 | AT10: CČN Kranj | AU10: Milje
AS11: 2493 | AT11: CČN Kranj | AU11: Mlaka pri Kranju
AS12: 2493 | AT12: CČN Kranj | AU12: Naklo
AS13: 2493 | AT13: CČN Kranj | AU13: Olševek
AS14: 2493 | AT14: CČN Kranj | AU14: Podbrezje
AS15: 2493 | AT15: CČN Kranj | AU15: Polica
AS16: 2493 | AT16: CČN Kranj | AU16: Spodnje Bitnje
AS17: 2493 | AT17: CČN Kranj | AU17: Spodnje Duplje
AS18: 2493 | AT18: CČN Kranj | AU18: Srednja vas pri Šenčurju
AS19: 2493 | AT19: CČN Kranj | AU19: Srednje Bitnje
AS20: 2493 | AT20: CČN Kranj | AU20: Strahinj
AS21: 2493 | AT21: CČN Kranj | AU21: Šenčur
AS22: 2493 | AT22: CČN Kranj | AU22: Šutna
AS23: 2493 | AT23: CČN Kranj | AU23: Visoko
AS24: 2493 | AT24: CČN Kranj | AU24: Zgornje Bitnje
AS25: 2493 | AT25: CČN Kranj | AU25: Zgornje Duplje
AS26: 2493 | AT26: CČN Kranj | AU26: Žabnica
AS27: 2493 | AT27: CČN Kranj | AU27: Žeje
A48: Pretok skozi tri bazene vsake linije je usmerjen skozi spiralno oblikovano pot. Spodnja slika prikazuje
A49: porazdelitev vtoka in pretok odpadne vode skozi biološko stopnjo.

Sheet Trajne meritve
A1: Podatki o mesečnih meritvah iztoka - CČN Kranj
B2: pretok | F2: KPK laboratorij | I2: BPK5 laboratorij | L2: fosfor | O2: fosfor laboratorij | R2: amoniak | U2: amoniak laboratorij | X2: TOC | AA2: TN | AD2: TN laboratorij | AG2: usedljive snovi laboratorij | AJ2: nerazt.snovi laboratorij | AM2: pH laboratorij | AP2: prevodnost laboratorij
B3: kumul. | C3: povpr. | D3: max. | E3: min. | F3: povpr. | G3: max. | H3: min. | I3: povpr. | J3: max. | K3: min. | L3: povpr. | M3: max. | N3: min. | O3: povpr. | P3: max. | Q3: min. | R3: povpr. | S3: max. | T3: min. | U3: povpr. | V3: max. | W3: min. | X3: povpr. | Y3: max. | Z3: min. | AA3: povpr. | AB3: max. | AC3: min. | AD3: povpr. | AE3: max. | AF3: min. | AG3: povpr. | AH3: max. | AI3: min. | AJ3: povpr. | AK3: max. | AL3: min. | AM3: povpr. | AN3: max. | AO3: min. | AP3: povpr. | AQ3: max. | AR3: min.
B4: m3 | C4: m3/dan | D4: m3/dan | E4: m3/dan | F4: mgO2/l | G4: mgO2/l | H4: mgO2/l | I4: mgO2/l | J4: mgO2/l | K4: mgO2/l | L4: mgPO4P/l | M4: mgPO4P/l | N4: mgPO4P/l | O4: mgPO4P/l | P4: mgPO4P/l | Q4: mgPO4P/l | R4: mgNH4N/l | S4: mgNH4N/l | T4: mgNH4N/l | U4: mgNH4N/l | V4: mgNH4N/l | W4: mgNH4N/l | X4: mgC/l | Y4: mgC/l | Z4: mgC/l | AA4: mgN/l | AB4: mgN/l | AC4: mgN/l | AD4: mgN/l | AE4: mgN/l | AF4: mgN/l | AG4: ml/l | AH4: ml/l | AI4: ml/l | AJ4: mg/l | AK4: mg/l | AL4: mg/l | AP4: µS/cm | AQ4: µS/cm | AR4: µS/cm
A5: 2023-01-01 | B5: 433500 | C5: 13984 | D5: 24400 | E5: 6700 | F5: 31.6 | G5: 102 | H5: 19.2 | I5: 3.4 | J5: 15 | K5: 0 | L5: 1.53 | M5: 2.71 | N5: 1.12 | O5: 1.9 | P5: 3.64 | Q5: 1.47 | R5: 1.38 | S5: 9.01 | T5: 0 | U5: 1.1 | V5: 4.71 | W5: 0.01 | X5: 9.93 | Y5: 83.32 | Z5: 5.95 | AA5: 14.2 | AB5: 28.47 | AC5: 4.93 | AD5: 12.85 | AE5: 36.1 | AF5: 6.56 | AG5: 1.8 | AH5: 14 | AI5: 0 | AJ5: 9.5 | AK5: 63 | AL5: 0 | AM5: 7.36 | AN5: 7.56 | AO5: 7.21 | AP5: 895 | AQ5: 1712 | AR5: 553
A6: 2023-02-01 | B6: 264600 | C6: 9450 | D6: 14000 | E6: 8200 | F6: 24.9 | G6: 31.9 | H6: 20.5 | I6: 1.2 | J6: 4 | K6: 0 | L6: 1.57 | M6: 2.47 | N6: 1.15 | O6: 1.66 | P6: 1.81 | Q6: 1.53 | R6: 0.84 | S6: 3.61 | T6: 0 | U6: 0.42 | V6: 1.17 | W6: 0.18 | X6: 9.88 | Y6: 12.16 | Z6: 8.49 | AA6: 11.3 | AB6: 19.22 | AC6: 3.97 | AD6: 8.52 | AE6: 11.9 | AF6: 5.78 | AG6: 0 | AH6: 0.1 | AI6: 0 | AJ6: 2 | AK6: 7 | AL6: 0 | AM6: 7.14 | AN6: 7.44 | AO6: 6.83 | AP6: 897 | AQ6: 971 | AR6: 815
A7: 2023-03-01 | B7: 325900 | C7: 10513 | D7: 20700 | E7: 8300 | F7: 25.8 | G7: 31.9 | H7: 20.6 | I7: 1.1 | J7: 2 | K7: 0 | L7: 1.63 | M7: 2.48 | N7: 0.99 | O7: 1.69 | P7: 1.94 | Q7: 1.53 | R7: 0.61 | S7: 7.73 | T7: 0 | U7: 0.43 | V7: 1.22 | W7: 0.08 | X7: 10.4 | Y7: 16.6 | Z7: 7.15 | AA7: 8.62 | AB7: 18.17 | AC7: 2.6 | AD7: 6.23 | AE7: 7.62 | AF7: 3.97 | AG7: 0 | AH7: 0 | AI7: 0 | AJ7: 0.8 | AK7: 2 | AL7: 0 | AM7: 7.17 | AN7: 7.23 | AO7: 7.07 | AP7: 806 | AQ7: 912 | AR7: 543
A8: 2023-04-01 | B8: 319900 | C8: 10663 | D8: 19800 | E8: 5900 | F8: 25.8 | G8: 32.3 | H8: 21.5 | I8: 2.8 | J8: 7 | K8: 0 | L8: 1.41 | M8: 2.53 | N8: 0.45 | O8: 1.76 | P8: 1.96 | Q8: 1.53 | R8: 1.02 | S8: 12.92 | T8: 0 | U8: 1.05 | V8: 3.07 | W8: 0.09 | X8: 18.22 | Y8: 250.02 | Z8: 2.3 | AA8: 7.89 | AB8: 44.72 | AC8: 2.98 | AD8: 6.98 | AE8: 12.2 | AF8: 3.9 | AG8: 0 | AH8: 0 | AI8: 0 | AJ8: 4.7 | AK8: 13 | AL8: 1 | AM8: 7.08 | AN8: 7.21 | AO8: 6.68 | AP8: 725 | AQ8: 814 | AR8: 560
A9: 2023-05-01 | B9: 346000 | C9: 11161 | D9: 21500 | E9: 6200 | F9: 24 | G9: 28.8 | H9: 19 | I9: 1.5 | J9: 3 | K9: 0 | L9: 0.68 | M9: 2.92 | N9: 0.09 | O9: 0.93 | P9: 2.18 | Q9: 0.25 | R9: 1.42 | S9: 21.19 | T9: 0 | U9: 0.76 | V9: 3.18 | W9: 0.07 | X9: 10.41 | Y9: 14.95 | Z9: 7.46 | AA9: 6.93 | AB9: 19.42 | AC9: 1.71 | AD9: 5.41 | AE9: 7.59 | AF9: 2.94 | AG9: 0 | AH9: 0 | AI9: 0 | AJ9: 2 | AK9: 6 | AL9: 0 | AM9: 7.05 | AN9: 7.3 | AO9: 6.71 | AP9: 642 | AQ9: 830 | AR9: 422
A10: 2023-06-01 | B10: 317500 | C10: 10583 | D10: 21700 | E10: 6900 | F10: 22.2 | G10: 25.9 | H10: 16.5 | I10: 2.7 | J10: 5 | K10: 1 | L10: 1.57 | M10: 2.98 | N10: 0.11 | O10: 1.94 | P10: 2.3 | Q10: 1.31 | R10: 0.09 | S10: 1.25 | T10: 0 | U10: 0.22 | V10: 1.16 | W10: 0.07 | X10: 8.85 | Y10: 11 | Z10: 3.71 | AA10: 5.45 | AB10: 18.69 | AC10: 0.09 | AD10: 5.91 | AE10: 14.8 | AF10: 2.79 | AG10: 0 | AH10: 0 | AI10: 0 | AJ10: 1.6 | AK10: 5 | AL10: 0 | AM10: 7.21 | AN10: 7.74 | AO10: 6.93 | AP10: 751 | AQ10: 878 | AR10: 514
A11: 2023-07-01 | B11: 365100 | C11: 11777 | D11: 21300 | E11: 6700 | F11: 19.2 | G11: 23.7 | H11: 14.9 | I11: 2.4 | J11: 6 | K11: 0 | L11: 1.47 | M11: 2.03 | N11: 0.69 | O11: 1.73 | P11: 2.09 | Q11: 1.42 | R11: 0.17 | S11: 0.71 | T11: 0 | U11: 0.24 | V11: 0.94 | W11: 0.08 | X11: 7.2 | Y11: 12.62 | Z11: 5.69 | AA11: 4.84 | AB11: 11.21 | AC11: 1.93 | AD11: 4.54 | AE11: 8.36 | AF11: 2.6 | AG11: 0 | AH11: 0 | AI11: 0 | AJ11: 2.3 | AK11: 7 | AL11: 0 | AM11: 7.19 | AN11: 7.36 | AO11: 7.12 | AP11: 656 | AQ11: 807 | AR11: 462
A12: 2023-08-01 | B12: 355500 | C12: 11468 | D12: 23500 | E12: 7100 | F12: 17.9 | G12: 21.4 | H12: 13.4 | I12: 3.3 | J12: 7 | K12: 0 | L12: 1.27 | M12: 2.45 | N12: 0.57 | O12: 1.68 | P12: 3.23 | Q12: 1.08 | R12: 0.26 | S12: 4.26 | T12: 0 | U12: 0.19 | V12: 0.51 | W12: 0.05 | X12: 7.42 | Y12: 9.64 | Z12: 4.46 | AA12: 7.04 | AB12: 14.56 | AC12: 2.68 | AD12: 7.16 | AE12: 13.1 | AF12: 4.05 | AG12: 0 | AH12: 0 | AI12: 0 | AJ12: 1.7 | AK12: 4 | AL12: 0 | AM12: 7.29 | AN12: 7.38 | AO12: 7.17 | AP12: 703 | AQ12: 887 | AR12: 516
A13: 2023-09-01 | B13: 276100 | C13: 9203 | D13: 16600 | E13: 7800 | F13: 20 | G13: 22.8 | H13: 17.1 | I13: 2.3 | J13: 5 | K13: 0 | L13: 1.89 | M13: 5.93 | N13: 0.56 | O13: 1.7 | P13: 2.49 | Q13: 1.2 | R13: 0.23 | S13: 1.27 | T13: 0 | U13: 0.1 | V13: 0.12 | W13: 0.07 | X13: 8.23 | Y13: 17.51 | Z13: 6.53 | AA13: 6.06 | AB13: 12.92 | AC13: 3.72 | AD13: 5.32 | AE13: 6.15 | AF13: 4.51 | AG13: 0 | AH13: 0 | AI13: 0 | AJ13: 1.4 | AK13: 3 | AL13: 0 | AM13: 7.31 | AN13: 7.4 | AO13: 7.25 | AP13: 791 | AQ13: 878 | AR13: 598
A14: 2023-10-01 | B14: 408700 | C14: 13184 | D14: 23300 | E14: 7700 | F14: 17.9 | G14: 20.3 | H14: 15 | I14: 1.1 | J14: 2 | K14: 0 | L14: 1.82 | M14: 4.73 | N14: 0.54 | O14: 1.77 | P14: 2.34 | Q14: 0.61 | R14: 0.55 | S14: 5.91 | T14: 0 | U14: 0.32 | V14: 1.02 | W14: 0.07 | X14: 7.88 | Y14: 9.77 | Z14: 5.16 | AA14: 7.61 | AB14: 14.82 | AC14: 2.65 | AD14: 6.85 | AE14: 12.7 | AF14: 4.27 | AG14: 0 | AH14: 0 | AI14: 0 | AJ14: 0.6 | AK14: 3 | AL14: 0 | AM14: 7.27 | AN14: 7.37 | AO14: 7.12 | AP14: 734 | AQ14: 873 | AR14: 517
A15: 2023-11-01 | B15: 401640 | C15: 13388 | D15: 23800 | E15: 7000 | F15: 19.8 | G15: 32.4 | H15: 10.4 | I15: 1.6 | J15: 5 | K15: 1 | L15: 1.54 | M15: 2.63 | N15: 0.43 | O15: 2.53 | P15: 3.81 | Q15: 1.09 | R15: 1.05 | S15: 6.3 | T15: 0 | U15: 1.14 | V15: 2.38 | W15: 0.27 | X15: 7.01 | Y15: 17.51 | Z15: 4.74 | AA15: 10.23 | AB15: 16.62 | AC15: 2.93 | AD15: 8.41 | AE15: 11.8 | AF15: 5.97 | AG15: 0.1 | AH15: 1 | AI15: 0 | AJ15: 4.4 | AK15: 19 | AL15: 0 | AM15: 7.21 | AN15: 7.5 | AO15: 6.98 | AP15: 703 | AQ15: 582 | AR15: 458
A16: 2023-12-01 | B16: 389700 | C16: 12571 | D16: 22200 | E16: 8100 | F16: 17.9 | G16: 21.4 | H16: 14.7 | I16: 0 | J16: 0 | K16: 0 | L16: 1.73 | M16: 2.11 | N16: 0.7 | O16: 2.44 | P16: 3.07 | Q16: 1.56 | R16: 0.52 | S16: 2.15 | T16: 0 | U16: 1.06 | V16: 2.18 | W16: 0.5 | X16: 8.88 | Y16: 26.77 | Z16: 5.56 | AA16: 8.28 | AB16: 18.4 | AC16: 4.55 | AD16: 9.28 | AE16: 15.6 | AF16: 5.59 | AG16: 0 | AH16: 0 | AI16: 0 | AJ16: 1.9 | AK16: 4 | AL16: 0 | AM16: 7.25 | AN16: 7.33 | AO16: 7.06 | AP16: 743 | AQ16: 857 | AR16: 632
A17: kumul.23 | B17: =SUM(B5:B16) -> 4204140
A18: povp.23 | C18: =AVERAGE(C5:C16) -> 11495.41667 | F18: =AVERAGE(F5:F16) -> 22.25 | I18: =AVERAGE(I5:I16) -> 1.95 | L18: =AVERAGE(L5:L16) -> 1.509166667 | O18: =AVERAGE(O5:O16) -> 1.810833333 | R18: =AVERAGE(R5:R16) -> 0.6783333333 | U18: =AVERAGE(U5:U16) -> 0.5858333333 | X18: =AVERAGE(X5:X16) -> 9.525833333 | AA18: =AVERAGE(AA5:AA16) -> 8.204166667 | AD18: =AVERAGE(AD5:AD16) -> 7.288333333 | AG18: =AVERAGE(AG5:AG16) -> 0.1583333333 | AJ18: =AVERAGE(AJ5:AJ16) -> 2.741666667 | AM18: =AVERAGE(AM5:AM16) -> 7.210833333 | AP18: =AVERAGE(AP5:AP16) -> 753.8333333
A19: max.23 | D19: =MAX(D5:D16) -> 24400 | G19: =MAX(G5:G16) -> 102 | J19: =MAX(J5:J16) -> 15 | M19: =MAX(M5:M16) -> 5.93 | P19: =MAX(P5:P16) -> 3.81 | S19: =MAX(S5:S16) -> 21.19 | V19: =MAX(V5:V16) -> 4.71 | Y19: =MAX(Y5:Y16) -> 250.02 | AB19: =MAX(AB5:AB16) -> 44.72 | AE19: =MAX(AE5:AE16) -> 36.1 | AH19: =MAX(AH5:AH16) -> 14 | AK19: =MAX(AK5:AK16) -> 63 | AN19: =MAX(AN5:AN16) -> 7.74 | AQ19: =MAX(AQ5:AQ16) -> 1712
A20: min.23 | E20: =MIN(E5:E16) -> 5900 | H20: =MIN(H5:H16) -> 10.4 | K20: =MIN(K5:K16) -> 0 | N20: =MIN(N5:N16) -> 0.09 | Q20: =MIN(Q5:Q16) -> 0.25 | T20: =MIN(T5:T16) -> 0 | W20: =MIN(W5:W16) -> 0.01 | Z20: =MIN(Z5:Z16) -> 2.3 | AC20: =MIN(AC5:AC16) -> 0.09 | AF20: =MIN(AF5:AF16) -> 2.6 | AI20: =MIN(AI5:AI16) -> 0 | AL20: =MIN(AL5:AL16) -> 0 | AO20: =MIN(AO5:AO16) -> 6.68 | AR20: =MIN(AR5:AR16) -> 422
A21: št.meritev | B21: online | F21: 100 | I21: 100 | L21: online | O21: 100 | R21: online | U21: 100 | X21: online | AA21: online | AD21: 100 | AG21: 100 | AJ21: 100 | AM21: 100 | AP21: 100
A38: Podatki o mesčnih meritvah dotoka - CČN Kranj
B39: pretok | F39: temp. | I39: pH | L39: KPK laboratorij | O39: BPK5 laboratorij | R39: fosfor | U39: fosfor laboratorij | X39: amoniak | AA39: amoniak laboratorij | AD39: usedljive snovi laboratorij | AG39: nerazt.snovi laboratorij | AJ39: cel.N laboratorij | AM39: prevodnost laboratorij
B40: kumul. | C40: povpr. | D40: max. | E40: min. | F40: povpr. | G40: max. | H40: min. | I40: povpr. | J40: max. | K40: min. | L40: povpr. | M40: max. | N40: min. | O40: povpr. | P40: max. | Q40: min. | R40: povpr. | S40: max. | T40: min. | U40: povpr. | V40: max. | W40: min. | X40: povpr. | Y40: max. | Z40: min. | AA40: povpr. | AB40: max. | AC40: min. | AD40: povpr. | AE40: max. | AF40: min. | AG40: povpr. | AH40: max. | AI40: min. | AJ40: povpr. | AK40: max. | AL40: min. | AM40: povpr. | AN40: max. | AO40: min.
B41: m3 | C41: m3/dan | D41: m3/dan | E41: m3/dan | F41: st.C | G41: st.C | H41: st.C | L41: mgO2/l | M41: mgO2/l | N41: mgO2/l | O41: mgO2/l | P41: mgO2/l | Q41: mgO2/l | R41: mgPO4P/l | S41: mgPO4P/l | T41: mgPO4P/l | U41: mgPO4P/l | V41: mgPO4P/l | W41: mgPO4P/l | X41: mgNH4N/l | Y41: mgNH4N/l | Z41: mgNH4N/l | AA41: mgNH4N/l | AB41: mgNH4N/l | AC41: mgNH4N/l | AD41: ml/l | AE41: ml/l | AF41: ml/l | AG41: mg/l | AH41: mg/l | AI41: mg/l | AJ41: mgN/l | AK41: mgN/l | AL41: mgN/l | AM41: µS/cm | AN41: µS/cm | AO41: µS/cm
A42: 2023-01-01 | B42: 443900 | C42: 14319 | D42: 23990 | E42: 7910 | F42: 9.8 | G42: 12.9 | H42: 3.9 | I42: 7.84 | J42: 8.61 | K42: 7.25 | L42: 464 | M42: 678 | N42: 264 | O42: 210 | P42: 260 | Q42: 110 | R42: 4.14 | S42: 11.43 | T42: 0.2 | U42: 6.87 | V42: 11.52 | W42: 3.72 | X42: 43.13 | Y42: 116.45 | Z42: 4.82 | AA42: 36.26 | AB42: 78 | AC42: 17.1 | AD42: 9.3 | AE42: 13 | AF42: 2 | AG42: 207 | AH42: 333 | AI42: 120 | AJ42: 50.8 | AK42: 93.5 | AL42: 30.1 | AM42: 1200 | AN42: 1744 | AO42: 638
A43: 2023-02-01 | B43: 279990 | C43: 10000 | D43: 13980 | E43: 8260 | F43: 9.8 | G43: 11.3 | H43: 7.3 | I43: 7.75 | J43: 9.95 | K43: 6.6 | L43: 847 | M43: 2260 | N43: 271 | O43: 401 | P43: 1200 | Q43: 100 | R43: 3.01 | S43: 28.05 | T43: 0.32 | U43: 10.18 | V43: 16.3 | W43: 7.01 | X43: 51.27 | Y43: 76.87 | Z43: 17.49 | AA43: 51.4 | AB43: 62 | AC43: 38.2 | AD43: 12.3 | AE43: 22 | AF43: 5 | AG43: 332 | AH43: 653 | AI43: 80 | AJ43: 70.9 | AK43: 90.6 | AL43: 46.5 | AM43: 1258 | AN43: 2080 | AO43: 1012
A44: 2023-03-01 | B44: 340680 | C44: 10990 | D44: 21480 | E44: 8690 | F44: 10.6 | G44: 12.1 | H44: 8.2 | I44: 7.91 | J44: 8.61 | K44: 7.35 | L44: 814 | M44: 1265 | N44: 447 | O44: 411 | P44: 600 | Q44: 180 | R44: 5.39 | S44: 14.45 | T44: 0.93 | U44: 10.2 | V44: 13.48 | W44: 5.61 | X44: 50.17 | Y44: 83.48 | Z44: 4.79 | AA44: 50.27 | AB44: 63 | AC44: 28.7 | AD44: 11.6 | AE44: 15 | AF44: 6 | AG44: 397 | AH44: 800 | AI44: 167 | AJ44: 69.9 | AK44: 82.9 | AL44: 40.3 | AM44: 1155 | AN44: 1342 | AO44: 802
A45: 2023-04-01 | B45: 328240 | C45: 10941 | D45: 21630 | E45: 6350 | F45: 11.6 | G45: 13.5 | H45: 7.1 | I45: 7.8 | J45: 8.54 | K45: 6 | L45: 821 | M45: 1364 | N45: 308 | O45: 338 | P45: 450 | Q45: 100 | R45: 3.43 | S45: 13.21 | T45: 0.21 | U45: 10.62 | V45: 18.1 | W45: 5.24 | X45: 42.97 | Y45: 82.66 | Z45: 6.47 | AA45: 38.45 | AB45: 53 | AC45: 10.5 | AD45: 17.3 | AE45: 24 | AF45: 13 | AG45: 403 | AH45: 573 | AI45: 187 | AJ45: 59.7 | AK45: 82.2 | AL45: 22.9 | AM45: 931 | AN45: 1191 | AO45: 416
A46: 2023-05-01 | B46: 362660 | C46: 11699 | D46: 21280 | E46: 6530 | F46: 14 | G46: 19.3 | H46: 11.4 | I46: 7.89 | J46: 8.47 | K46: 6.92 | L46: 691 | M46: 934 | N46: 292 | O46: 340 | P46: 450 | Q46: 140 | R46: 6.78 | S46: 17.32 | T46: 0.24 | U46: 9.88 | V46: 13.97 | W46: 3.94 | X46: 46.47 | Y46: 97.84 | Z46: 9.12 | AA46: 42.06 | AB46: 57 | AC46: 14.5 | AD46: 7.3 | AE46: 18 | AF46: 0 | AG46: 313 | AH46: 467 | AI46: 107 | AJ46: 59.3 | AK46: 79.1 | AL46: 26.9 | AM46: 912 | AN46: 1209 | AO46: 452
A47: 2023-06-01 | B47: 340260 | C47: 11342 | D47: 22060 | E47: 7510 | F47: 16.9 | G47: 19.2 | H47: 14.5 | I47: 7.93 | J47: 8.42 | K47: 7.03 | L47: 702 | M47: 1205 | N47: 254 | O47: 362 | P47: 550 | Q47: 120 | R47: 6.57 | S47: 16.99 | T47: 0.83 | U47: 12.13 | V47: 17.57 | W47: 5 | X47: 45.74 | Y47: 135.3 | Z47: 3.01 | AA47: 41.86 | AB47: 73 | AC47: 11.7 | AD47: 12.9 | AE47: 16 | AF47: 5.5 | AG47: 375 | AH47: 680 | AI47: 147 | AJ47: 61 | AK47: 91 | AL47: 21.7 | AM47: 1004 | AN47: 1317 | AO47: 377
A48: 2023-07-01 | B48: 393310 | C48: 12687 | D48: 21990 | E48: 7660 | F48: 18.4 | G48: 20.4 | H48: 12.5 | I48: 7.91 | J48: 8.53 | K48: 7.5 | L48: 570 | M48: 823 | N48: 293 | O48: 263 | P48: 450 | Q48: 50 | R48: 4.2 | S48: 18.76 | T48: 0.23 | U48: 8.16 | V48: 13.09 | W48: 4.33 | X48: 32.65 | Y48: 65.24 | Z48: 5.06 | AA48: 31.98 | AB48: 48 | AC48: 18 | AD48: 8.3 | AE48: 15 | AF48: 4 | AG48: 269 | AH48: 473 | AI48: 140 | AJ48: 46.71 | AK48: 70.6 | AL48: 27.5 | AM48: 869 | AN48: 1183 | AO48: 623
A49: 2023-08-01 | B49: 381110 | C49: 12294 | D49: 22260 | E49: 7870 | F49: 18.4 | G49: 21.3 | H49: 13.6 | I49: 7.96 | J49: 8.46 | K49: 7.28 | L49: 678 | M49: 1117 | N49: 406 | O49: 236 | P49: 650 | Q49: 170 | R49: 5.33 | S49: 18.36 | T49: 0.21 | U49: 9.02 | V49: 13.38 | W49: 4.79 | X49: 36.16 | Y49: 94.01 | Z49: 0.7 | AA49: 33.94 | AB49: 47 | AC49: 14.8 | AD49: 10.3 | AE49: 24 | AF49: 2 | AG49: 370 | AH49: 633 | AI49: 213 | AJ49: 51.4 | AK49: 75.1 | AL49: 27 | AM49: 966 | AN49: 1234 | AO49: 658
A50: 2023-09-01 | B50: 292290 | C50: 9743 | D50: 16390 | E50: 7950 | F50: 19.2 | G50: 20.4 | H50: 16.9 | I50: 8.08 | J50: 8.56 | K50: 7.48 | L50: 752 | M50: 1143 | N50: 566 | O50: 355 | P50: 500 | Q50: 239 | R50: 4.86 | S50: 10.13 | T50: 2.95 | U50: 9.86 | V50: 11.76 | W50: 7.52 | X50: 50.49 | Y50: 102.35 | Z50: 9.69 | AA50: 44 | AB50: 56 | AC50: 37 | AD50: 10.9 | AE50: 15 | AF50: 8.5 | AG50: 365 | AH50: 607 | AI50: 220 | AJ50: 64.4 | AK50: 75.5 | AL50: 53.2 | AM50: 1097 | AN50: 1287 | AO50: 897
A51: 2023-10-01 | B51: 415110 | C51: 13391 | D51: 22310 | E51: 8310 | F51: 16.8 | G51: 19.3 | H51: 12.1 | I51: 7.6 | J51: 8.34 | K51: 6.16 | L51: 640 | M51: 1117 | N51: 381 | O51: 295 | P51: 380 | Q51: 170 | R51: 4.49 | S51: 15.31 | T51: 0.2 | U51: 9.4 | V51: 13.21 | W51: 6.06 | X51: 38.15 | Y51: 83.52 | Z51: 2.61 | AA51: 39.6 | AB51: 52 | AC51: 22.5 | AD51: 10.3 | AE51: 12 | AF51: 8.5 | AG51: 329 | AH51: 647 | AI51: 227 | AJ51: 58.1 | AK51: 76.7 | AL51: 35.6 | AM51: 1012 | AN51: 1238 | AO51: 706
A52: 2023-11-01 | B52: 379400 | C52: 12647 | D52: 21660 | E52: 5990 | F52: 13 | G52: 15 | H52: 6 | I52: 7.71 | J52: 8.34 | K52: 6.71 | L52: 576 | M52: 988 | N52: 119 | O52: 267 | P52: 450 | Q52: 35 | R52: 4.5 | S52: 19.88 | T52: 0.2 | U52: 8.23 | V52: 16.19 | W52: 1.57 | X52: 39.53 | Y52: 104.91 | Z52: 2.09 | AA52: 37.12 | AB52: 59 | AC52: 5.8 | AD52: 9.7 | AE52: 14 | AF52: 2.5 | AG52: 313 | AH52: 593 | AI52: 80 | AJ52: 53.9 | AK52: 80.2 | AL52: 14.5 | AM52: 928 | AN52: 1177 | AO52: 484
A53: 2023-12-01 | B53: 386418 | C53: 12405 | D53: 25180 | E53: 8152 | F53: 10.8 | G53: 12 | H53: 8.1 | I53: 7.85 | J53: 8.35 | K53: 7.3 | L53: 585 | M53: 734 | N53: 150 | O53: 272 | P53: 380 | Q53: 25 | R53: 5.6 | S53: 19.29 | T53: 0.44 | U53: 8.2 | V53: 9.88 | W53: 3.02 | X53: 37.92 | Y53: 71.15 | Z53: 2.02 | AA53: 34.26 | AB53: 47.9 | AC53: 14.2 | AD53: 10.7 | AE53: 16 | AF53: 1.4 | AG53: 373 | AH53: 753 | AI53: 47 | AJ53: 51.69 | AK53: 70 | AL53: 22.5 | AM53: 908 | AN53: 1138 | AO53: 422
A54: kumul.23 | B54: =SUM(B42:B53) -> 4343368
A55: povp.23 | C55: =AVERAGE(C42:C53) -> 11871.5 | F55: =AVERAGE(F42:F53) -> 14.10833333 | I55: =AVERAGE(I42:I53) -> 7.8525 | L55: =AVERAGE(L42:L53) -> 678.3333333 | O55: =AVERAGE(O42:O53) -> 312.5 | R55: =AVERAGE(R42:R53) -> 4.858333333 | U55: =AVERAGE(U42:U53) -> 9.395833333 | X55: =AVERAGE(X42:X53) -> 42.8875 | AA55: =AVERAGE(AA42:AA53) -> 40.1 | AD55: =AVERAGE(AD42:AD53) -> 10.90833333 | AG55: =AVERAGE(AG42:AG53) -> 337.1666667 | AJ55: =AVERAGE(AJ42:AJ53) -> 58.15 | AM55: =AVERAGE(AM42:AM53) -> 1020
A56: max.23 | D56: =MAX(D42:D53) -> 25180 | G56: =MAX(G42:G53) -> 21.3 | J56: =MAX(J42:J53) -> 9.95 | M56: =MAX(M42:M53) -> 2260 | P56: =MAX(P42:P53) -> 1200 | S56: =MAX(S42:S53) -> 28.05 | V56: =MAX(V42:V53) -> 18.1 | Y56: =MAX(Y42:Y53) -> 135.3 | AB56: =MAX(AB42:AB53) -> 78 | AE56: =MAX(AE42:AE53) -> 24 | AH56: =MAX(AH42:AH53) -> 800 | AK56: =MAX(AK42:AK53) -> 93.5 | AN56: =MAX(AN42:AN53) -> 2080
A57: min.23 | E57: =MIN(E42:E53) -> 5990 | H57: =MIN(H42:H53) -> 3.9 | K57: =MIN(K42:K53) -> 6 | N57: =MIN(N42:N53) -> 119 | Q57: =MIN(Q42:Q53) -> 25 | T57: =MIN(T42:T53) -> 0.2 | W57: =MIN(W42:W53) -> 1.57 | Z57: =MIN(Z42:Z53) -> 0.7 | AC57: =MIN(AC42:AC53) -> 5.8 | AF57: =MIN(AF42:AF53) -> 0 | AI57: =MIN(AI42:AI53) -> 47 | AL57: =MIN(AL42:AL53) -> 14.5 | AO57: =MIN(AO42:AO53) -> 377
A58: št.meritev | B58: online | F58: online | I58: online | L58: 98 | O58: 98 | R58: online | U58: 98 | X58: online | AA58: 98 | AD58: 98 | AG58: 98 | AJ58: 98 | AM58: 98
A74: Dnevni - mesečni podatki o trajnih meritvah za CČN Kranj
J76: VTOK | N76: Septika | O76: VTOK | S76: VTOK | AD76: VTOK | AK76: Mehansko predčiščenje | AU76: IZTOK | BC76: IZTOK | BN76: IZTOK | BU76: Deževni bazen
A77: Slovenčeva 95, 1000 Ljubljana Slovenia | J77: Pretok | N77: Pretok | O77: KPK | P77: BPK | Q77: Neraztopljene snovi | R77: Usedljive snovi | S77: Temperatura | V77: pH | Z77: Fosfor | AD77: Prevodnost | AE77: Celotni dušik | AF77: NO3-N | AG77: Amoniak | AK77: KPK | AL77: BPK | AM77: Neraztopljene snovi | AN77: Usedljive snovi | AO77: Fosfor | AP77: pH | AQ77: Prevodnost | AR77: Celotni dušik | AS77: NO3-N | AT77: Amoniak | AU77: Pretok | AY77: KPK | AZ77: BPK | BA77: Neraztopljene snovi | BB77: Usedljive snovi | BC77: pH | BD77: Fosfor | BH77: Totalni ogljik | BK77: Totalni dušik | BN77: Prevodnost | BO77: Celotni dušik | BP77: NO3-N | BQ77: Amoniak | BU77: KPK | BV77: BPK | BW77: Neraztopljene snovi | BX77: Usedljive snovi | BY77: Fosfor | BZ77: pH | CA77: Prevodnost | CB77: Celotni dušik | CC77: NO3-N | CD77: Amoniak
I79: Tag: | J79: LT 05.01 in LT 05.02 | N79: FT 15.01 | O79: Laboratori | P79: Laboratori | Q79: Laboratori | R79: Laboratori | S79: AT 05.03 | V79: pH 05.03 | Y79: Laboratori | Z79: PO4P 05.06 | AC79: Laboratori | AD79: Laboratori | AE79: Laboratori | AF79: Laboratori | AG79: NH4N 08.10 | AJ79: Laboratori | AK79: Laboratori | AL79: Laboratori | AM79: Laboratori | AN79: Laboratori | AO79: Laboratori | AP79: Laboratori | AQ79: Laboratori | AR79: Laboratori | AS79: Laboratori | AT79: Laboratori | AU79: FT 13.01 | AY79: Laboratori | AZ79: Laboratori | BA79: Laboratori | BB79: Laboratori | BC79: Laboratori | BD79: PO4P 07.02 | BG79: Laboratori | BH79: TOC 14.01 | BK79: TN 14.01 | BN79: Laboratori | BO79: Laboratori | BP79: Laboratori | BQ79: NH4N 08.11 | BT79: Laboratori | BU79: Laboratori | BV79: Laboratori | BW79: Laboratori | BX79: Laboratori | BY79: Laboratori | BZ79: Laboratori | CA79: Laboratori | CB79: Laboratori | CC79: Laboratori | CD79: Laboratori
I80: Enote | J80: m³ | K80: m³/h | L80: m³/h | M80: m³/h | N80: m³ | O80: mg/l | P80: mg/l | Q80: mg/l | R80: ml/l | S80: °C | T80: °C | U80: °C | Z80: mg/l | AA80: mg/l | AB80: mg/l | AC80: mg/l | AD80: µS/cm | AE80: mg/l | AF80: mg/l | AG80: mg/l | AH80: mg/l | AI80: mg/l | AJ80: mg/l | AK80: mg/l | AL80: mg/l | AM80: mg/l | AN80: ml/l | AO80: mg/l | AQ80: µS/cm | AR80: mg/l | AS80: mg/l | AT80: mg/l | AU80: m³ | AV80: m³/h | AW80: m³/h | AX80: m³/h | AY80: mg/l | AZ80: mg/l | BA80: mg/l | BB80: ml/l | BD80: mg/l | BE80: mg/l | BF80: mg/l | BG80: mg/l | BH80: mgC/l | BI80: mgC/l | BJ80: mgC/l | BK80: mgN/l | BL80: mgN/l | BM80: mgN/l | BN80: µS/cm | BO80: mg/l | BP80: mg/l | BQ80: mg/l | BR80: mg/l | BS80: mg/l | BT80: mg/l | BU80: mg/l | BV80: mg/l | BW80: mg/l | BX80: ml/l | BY80: mg/l | CA80: µS/cm | CB80: mg/l | CC80: mg/l | CD80: mg/l
A84: Datum | B84: Dan | J84: Kumulativa | K84: Minimalno | L84: Maksimalno | M84: Povprečje | N84: Kumulativa | O84: Vrednost | P84: Vrednost | Q84: Vrednost | R84: Vrednost | S84: Minimalno | T84: Maksimalno | U84: Povprečje | V84: Minimalno | W84: Maksimalno | X84: Povprečje | Y84: Vrednost | Z84: Minimalno | AA84: Maksimalno | AB84: Povprečje | AC84: Vrednost | AD84: Vrednost | AE84: Vrednost | AF84: Vrednost | AG84: Minimalno | AH84: Maksimalno | AI84: Povprečje | AJ84: Vrednost | AK84: Vrednost | AL84: Vrednost | AM84: Vrednost | AN84: Vrednost | AO84: Vrednost | AP84: Vrednost | AQ84: Vrednost | AR84: Vrednost | AS84: Vrednost | AT84: Vrednost | AU84: Kumulativa | AV84: Minimalno | AW84: Maksimalno | AX84: Povprečje | AY84: Vrednost | AZ84: Vrednost | BA84: Vrednost | BB84: Vrednost | BC84: Vrednost | BD84: Minimalno | BE84: Maksimalno | BF84: Povprečje | BG84: Vrednost | BH84: Minimalno | BI84: Maksimalno | BJ84: Povprečje | BK84: Minimalno | BL84: Maksimalno | BM84: Povprečje | BN84: Vrednost | BO84: Vrednost | BP84: Vrednost | BQ84: Minimalno | BR84: Maksimalno | BS84: Povprečje | BT84: Vrednost | BU84: Vrednost | BV84: Vrednost | BW84: Vrednost | BX84: Vrednost | BY84: Vrednost | BZ84: Vrednost | CA84: Vrednost | CB84: Vrednost | CC84: Vrednost | CD84: Vrednost
A85: 2023-01-01 | B85: =IF(A85>0,A85,"") -> 2023-01-01 | J85: 9500 | K85: 223.3338142 | L85: 564.6339696 | M85: 395.6067731 | N85: 0 | S85: 11.42819503 | T85: 12.15020963 | U85: 11.78175764 | V85: 7.581143411 | W85: 7.89637332 | X85: 7.702835118 | Z85: 1.709810972 | AA85: 1.709810972 | AB85: 1.709810972 | AG85: 54.83917637 | AH85: 97.83117688 | AI85: 78.82916764 | AU85: 6700 | AV85: 128.4179484 | AW85: 422.5079285 | AX85: 282.1097411 | BD85: 1.580931584 | BE85: 1.956251776 | BF85: 1.775450865 | BH85: 9.765364583 | BI85: 10.18333333 | BJ85: 9.976291233 | BK85: 12.92531357 | BL85: 18.44709466 | BM85: 16.41708707 | BQ85: 0.05359419752 | BR85: 1.958377347 | BS85: 0.9341321985
A86: 2023-01-02 | B86: =IF(A86>0,A86,"") -> 2023-01-02 | J86: 10420 | K86: 196.5301885 | L86: 614.5447535 | M86: 433.97081 | N86: 0 | S86: 11.66904346 | T86: 12.57218873 | U86: 12.03164368 | V86: 7.57387565 | W86: 7.950484451 | X86: 7.70394381 | Z86: 1.709810972 | AA86: 1.709810972 | AB86: 1.709810972 | AG86: 73.2133639 | AH86: 116.4508364 | AI86: 91.39602929 | AU86: 7500 | AV86: 94.36485291 | AW86: 493.1459493 | AX86: 313.0832005 | BD86: 1.673128873 | BE86: 2.010535924 | BF86: 1.901107906 | BH86: 10.30651042 | BI86: 11.52994792 | BJ86: 10.73570964 | BK86: 14.24156364 | BL86: 22.806939 | BM86: 18.58534888 | BQ86: 0.4514239296 | BR86: 9.013082981 | BS86: 3.363248347
A87: 2023-01-03 | B87: 2023-01-03 | J87: 10790 | K87: 197.9648908 | L87: 623.1481455 | M87: 449.4149649 | N87: 0 | S87: 11.65700836 | T87: 12.36345407 | U87: 11.94282883 | V87: 7.551961899 | W87: 7.92136666 | X87: 7.698939748 | Z87: 1.709810972 | AA87: 1.709810972 | AB87: 1.709810972 | AG87: 57.31814715 | AH87: 104.7107053 | AI87: 82.7956971 | AU87: 7900 | AV87: 110.3696279 | AW87: 462.293811 | AX87: 326.1402024 | BD87: 1.816404788 | BE87: 1.982785034 | BF87: 1.895050841 | BH87: 11.74322917 | BI87: 12.82083333 | BJ87: 12.24085286 | BK87: 21.44372001 | BL87: 28.46723588 | BM87: 25.61290182 | BQ87: 0.8396025161 | BR87: 8.299635951 | BS87: 4.643417591
A88: 2023-01-04 | B88: 2023-01-04 | J88: 10540 | K88: 241.9873634 | L88: 637.0466827 | M88: 439.5664535 | N88: 0 | O88: 425 | P88: 180 | Q88: 120 | R88: 2 | S88: 11.59311852 | T88: 12.86014225 | U88: 12.13808213 | V88: 7.516336417 | W88: 8.124837343 | X88: 7.695443841 | Y88: 7.968 | Z88: 1.709810972 | AA88: 4.368167003 | AB88: 2.52911219 | AC88: 11.52 | AD88: 1368 | AE88: 93.5 | AG88: 51.37351119 | AH88: 95.79484126 | AI88: 76.24335786 | AJ88: 78 | AU88: 8300 | AV88: 134.6570974 | AW88: 486.2919332 | AX88: 348.7525967 | BD88: 1.824993014 | BE88: 1.965325594 | BF88: 1.902675936 | BH88: 12.32526042 | BI88: 13.01875 | BJ88: 12.58269314 | BK88: 25.82418938 | BL88: 27.17536081 | BM88: 26.53606997 | BQ88: 0.7304979285 | BR88: 7.290166632 | BS88: 4.238808796
A89: 2023-01-05 | B89: 2023-01-05 | J89: 8630 | K89: 156.0643309 | L89: 503.6988785 | M89: 359.5262056 | N89: 0 | S89: 11.54631915 | T89: 12.47529507 | U89: 12.08302396 | V89: 7.525010816 | W89: 7.896615378 | X89: 7.691530191 | Z89: 2.090919956 | AA89: 6.180820711 | AB89: 4.006403961 | AG89: 48.18779806 | AH89: 82.16076406 | AI89: 68.59279664 | AK89: 315 | AL89: 130 | AM89: 74 | AN89: 0.3 | AO89: 8.85 | AP89: 7.86 | AQ89: 1267 | AR89: 71.1 | AT89: 60 | AU89: 8100 | AV89: 111.8706411 | AW89: 472.7285502 | AX89: 338.6750136 | AY89: 30.9 | AZ89: 1 | BA89: 6 | BB89: 0 | BC89: 7.497 | BD89: 1.732938099 | BE89: 2.013290552 | BF89: 1.900232888 | BG89: 2.43 | BH89: 11.978125 | BI89: 12.69166667 | BJ89: 12.33640408 | BK89: 25.76329842 | BL89: 28.31297067 | BM89: 27.14430037 | BN89: 896 | BO89: 36.1 | BQ89: 0.7769346386 | BR89: 7.00148348 | BS89: 3.04565628 | BT89: 4.71
A90: 2023-01-06 | B90: 2023-01-06 | J90: 8170 | K90: 158.9867854 | L90: 457.7473948 | M90: 340.5577843 | N90: 0 | S90: 11.40409738 | T90: 12.23878662 | U90: 11.85790994 | V90: 7.540517521 | W90: 8.551140356 | X90: 7.750637556 | Z90: 2.34663163 | AA90: 5.710066239 | AB90: 4.171223448 | AG90: 20.15929479 | AH90: 75.60549342 | AI90: 58.98118247 | AU90: 8100 | AV90: 105.9389242 | AW90: 457.5195007 | AX90: 338.0518514 | BD90: 1.761647876 | BE90: 2.181648531 | BF90: 1.911443658 | BH90: 11.28125 | BI90: 12.54947917 | BJ90: 11.74047309 | BK90: 24.13978284 | BL90: 26.63915812 | BM90: 25.71117726 | BQ90: 0.4276412666 | BR90: 5.849965151 | BS90: 2.281492334
A91: 2023-01-07 | B91: 2023-01-07 | J91: 7910 | K91: 118.6897185 | L91: 524.7974533 | M91: 329.4050795 | N91: 0 | S91: 11.15826311 | T91: 11.9877166 | U91: 11.63874167 | V91: 7.581908703 | W91: 7.989522727 | X91: 7.679392921 | Z91: 2.383946073 | AA91: 8.26272347 | AB91: 3.945382413 | AG91: 47.45728874 | AH91: 65.24587339 | AI91: 54.71841413 | AU91: 8100 | AV91: 131.0221151 | AW91: 527.8139181 | AX91: 336.1469533 | BD91: 1.813134138 | BE91: 1.982315193 | BF91: 1.892784723 | BH91: 11.25390625 | BI91: 11.70104167 | BJ91: 11.430523 | BK91: 22.13564237 | BL91: 28.33425179 | BM91: 25.79793121 | BQ91: 0.1630843679 | BR91: 2.337810922 | BS91: 1.140393959
A92: 2023-01-08 | B92: 2023-01-08 | J92: 12260 | K92: 110.1321375 | L92: 1226.904891 | M92: 510.9866272 | N92: 0 | S92: 9.851381334 | T92: 12.02314305 | U92: 11.16114315 | V92: 7.296057105 | W92: 8.060931524 | X92: 7.631277303 | Z92: 1.737447739 | AA92: 6.709920232 | AB92: 3.582004836 | AG92: 23.62569459 | AH92: 69.94098447 | AI92: 49.62137051 | AU92: 12100 | AV92: 118.5076477 | AW92: 1076.985624 | AX92: 505.7493324 | BD92: 1.586979071 | BE92: 2.705584208 | BF92: 1.928984917 | BH92: 10.88776042 | BI92: 11.42838542 | BJ92: 11.06892361 | BK92: 16.10545425 | BL92: 24.70326754 | BM92: 20.82991529 | BQ92: 0.06984872731 | BR92: 3.505047003 | BS92: 0.9936739162
A93: 2023-01-09 | B93: 2023-01-09 | J93: 23990 | K93: 984.555838 | L93: 1009.018127 | M93: 999.5405482 | N93: 0 | S93: 7.414644615 | T93: 9.823497295 | U93: 8.38491449 | V93: 7.253874898 | W93: 7.478623247 | X93: 7.339029718 | Z93: 0.2037513703 | AA93: 2.417208195 | AB93: 0.6645125138 | AG93: 12.20512152 | AH93: 24.03904502 | AI93: 16.18967965 | AU93: 24400 | AV93: 963.8309733 | AW93: 1063.621202 | AX93: 1016.110228 | BD93: 1.188456754 | BE93: 2.495419065 | BF93: 1.676343684 | BH93: 7.473177083 | BI93: 45.73828125 | BJ93: 13.98386502 | BK93: 10.01657896 | BL93: 18.22645423 | BM93: 13.2643174 | BQ93: 0.02928556024 | BR93: 1.085557435 | BS93: 0.151090797 | BU93: 159 | BV93: 70 | BW93: 122 | BX93: 1 | BY93: 1.97 | BZ93: 7.283 | CA93: 291 | CB93: 15.1 | CD93: 9.2
A94: 2023-01-10 | B94: 2023-01-10 | J94: 15760 | K94: 451.7988022 | L94: 1016.488228 | M94: 656.3059593 | N94: 0 | O94: 399 | P94: 250 | Q94: 313 | R94: 13 | S94: 8.950802024 | T94: 10.6904723 | U94: 9.903245517 | V94: 7.491003307 | W94: 8.095606232 | X94: 7.872205468 | Y94: 7.935 | Z94: 0.3747543715 | AA94: 3.322396608 | AB94: 1.755543861 | AC94: 5.87 | AD94: 638 | AE94: 33.2 | AG94: 20.02518355 | AH94: 45.04856071 | AI94: 32.86739959 | AJ94: 18.9 | AU94: 15500 | AV94: 420.0484355 | AW94: 987.6482544 | AX94: 647.8436932 | BD94: 1.165680691 | BE94: 1.482929353 | BF94: 1.304071987 | BH94: 6.749479167 | BI94: 48.49036458 | BJ94: 11.5484158 | BK94: 6.426985073 | BL94: 13.81279786 | BM94: 9.956629772 | BQ94: 0.04095052804 | BR94: 1.813676029 | BS94: 0.8255939466
A95: 2023-01-11 | B95: 2023-01-11 | J95: 12720 | K95: 311.6102427 | L95: 768.5956767 | M95: 529.7634529 | N95: 0 | S95: 9.441364463 | T95: 10.90004686 | U95: 10.25967279 | V95: 7.802260002 | W95: 8.227743753 | X95: 7.973326056 | Z95: 1.967681654 | AA95: 4.244500736 | AB95: 2.748505063 | AG95: 31.58361912 | AH95: 51.51066449 | AI95: 41.9417479 | AK95: 178 | AL95: 65 | AM95: 54 | AN95: 0.5 | AO95: 4.92 | AP95: 7.686 | AQ95: 821 | AR95: 39.5 | AT95: 34.1 | AU95: 12700 | AV95: 295.2835378 | AW95: 701.5154439 | AX95: 529.3955557 | AY95: 20.3 | AZ95: 9 | BA95: 0 | BB95: 0 | BC95: 7.561 | BD95: 1.188489352 | BE95: 1.553016502 | BF95: 1.386053325 | BG95: 1.48 | BH95: 7.11640625 | BI95: 7.7171875 | BJ95: 7.427983941 | BK95: 10.59553205 | BL95: 13.84720405 | BM95: 12.33805364 | BN95: 553 | BO95: 10.4 | BQ95: 0.04001913033 | BR95: 1.826331665 | BS95: 1.026675626 | BT95: 0.91
A96: 2023-01-12 | B96: 2023-01-12 | J96: 11310 | K96: 271.0455256 | L96: 602.4643122 | M96: 471.4885931 | N96: 10 | O96: 678 | P96: 240 | Q96: 213 | R96: 11 | S96: 9.670521243 | T96: 11.43335964 | U96: 10.64991931 | V96: 7.625708469 | W96: 8.31388518 | X96: 7.890199259 | Y96: 7.716 | Z96: 1.14263463 | AA96: 9.20483249 | AB96: 3.560978797 | AC96: 8.21 | AD96: 1004 | AE96: 58.8 | AG96: 6.322453884 | AH96: 59.57416395 | AI96: 43.96797818 | AJ96: 42 | AK96: 219 | AL96: 125 | AM96: 62 | AN96: 0.3 | AO96: 5.52 | AP96: 7.728 | AQ96: 896 | AR96: 46 | AT96: 35 | AU96: 11200 | AV96: 272.6055857 | AW96: 599.0668091 | AX96: 466.7230014 | AY96: 19.2 | AZ96: 0 | BA96: 1 | BB96: 0 | BC96: 7.432 | BD96: 1.378303508 | BE96: 1.645163673 | BF96: 1.51769395 | BG96: 1.58 | BH96: 7.734114583 | BI96: 8.93125 | BJ96: 8.188476562 | BK96: 10.71675088 | BL96: 15.07153244 | BM96: 14.30708888 | BN96: 635 | BO96: 12.5 | BQ96: 0.9599910875 | BR96: 2.192441638 | BS96: 1.4431641 | BT96: 1.03
A97: 2023-01-13 | B97: 2023-01-13 | J97: 9720 | K97: 192.1223961 | L97: 507.766685 | M97: 404.6074246 | N97: 0 | S97: 10.32414775 | T97: 11.45645188 | U97: 10.99726505 | V97: 7.771705675 | W97: 8.230460167 | X97: 7.952781323 | Z97: 2.883052007 | AA97: 6.027155956 | AB97: 4.171064504 | AG97: 41.69458637 | AH97: 66.24038315 | AI97: 54.30657008 | AU97: 9600 | AV97: 190.1945679 | AW97: 518.2653097 | AX97: 400.9075139 | BD97: 1.358325827 | BE97: 1.741880331 | BF97: 1.537681986 | BH97: 8.971875 | BI97: 9.55703125 | BJ97: 9.325010851 | BK97: 10.98787572 | BL97: 14.77753261 | BM97: 13.48453033 | BQ97: 0.04343135568 | BR97: 1.672824693 | BS97: 1.017701046
A98: 2023-01-14 | B98: 2023-01-14 | J98: 9740 | K98: 193.9935359 | L98: 606.8383499 | M98: 405.9441698 | N98: 0 | S98: 10.45566293 | T98: 11.88285762 | U98: 11.10614261 | V98: 7.73879323 | W98: 8.340302817 | X98: 7.882668614 | Z98: 1.595339602 | AA98: 11.4283762 | AB98: 3.918113983 | AG98: 42.19169973 | AH98: 64.47268537 | AI98: 48.70705732 | AU98: 9600 | AV98: 184.6064646 | AW98: 574.3634013 | AX98: 400.9323805 | BD98: 1.477051258 | BE98: 1.815290179 | BF98: 1.58471436 | BH98: 9.390885417 | BI98: 9.998697917 | BJ98: 9.694021267 | BK98: 11.6819071 | BL98: 15.84079803 | BM98: 14.51939165 | BQ98: 0.04793013167 | BR98: 1.608079064 | BS98: 0.6831884715
A99: 2023-01-15 | B99: 2023-01-15 | J99: 12150 | K99: 164.6050334 | L99: 1205.152866 | M99: 506.2055903 | N99: 0 | S99: 7.682394814 | T99: 11.47537354 | U99: 10.67494899 | V99: 7.383496547 | W99: 8.25148236 | X99: 7.826076742 | Z99: 2.89716869 | AA99: 5.337073803 | AB99: 4.12085243 | AG99: 20.13614982 | AH99: 64.43243084 | AI99: 46.9434794 | AU99: 11900 | AV99: 130.3529867 | AW99: 1149.016162 | AX99: 496.7703823 | BD99: 1.416822193 | BE99: 2.271335753 | BF99: 1.622559623 | BH99: 9.892447917 | BI99: 10.36380208 | BJ99: 10.07944878 | BK99: 11.18779761 | BL99: 15.46851683 | BM99: 13.36351655 | BQ99: 0.08301624556 | BR99: 2.060708421 | BS99: 1.169474956
A100: 2023-01-16 | B100: 2023-01-16 | J100: 23990 | K100: 962.6615448 | L100: 1029.048505 | M100: 1000.039781 | N100: 0 | S100: 3.901130843 | T100: 8.453056351 | U100: 6.333467614 | V100: 7.267813142 | W100: 8.061275077 | X100: 7.65505095 | Z100: 5.337073803 | AA100: 5.337073803 | AB100: 5.337073803 | AG100: 4.815981571 | AH100: 17.19816392 | AI100: 11.70643223 | AU100: 24000 | AV100: 944.0465393 | AW100: 1073.224058 | AX100: 1000.171008 | BD100: 1.231121699 | BE100: 2.118362578 | BF100: 1.513873691 | BH100: 9.208072917 | BI100: 83.31953125 | BJ100: 30.5030816 | BK100: 8.08284448 | BL100: 15.23517307 | BM100: 10.92290713 | BQ100: 0.04057142461 | BR100: 1.604894805 | BS100: 0.4976573478 | BU100: 93.1 | BV100: 45 | BW100: 56 | BX100: 0.2 | BY100: 1.23 | BZ100: 7.18 | CA100: 213 | CB100: 8.94 | CD100: 5.13
A101: 2023-01-17 | B101: 2023-01-17 | J101: 23490 | K101: 834.3171254 | L101: 1223.779899 | M101: 977.8415719 | N101: 10 | O101: 313 | P101: 110 | Q101: 153 | R101: 9 | S101: 6.734044441 | T101: 8.469755046 | U101: 7.806859595 | V101: 7.548793999 | W101: 8.16313947 | X101: 7.815362466 | Y101: 7.708 | Z101: 5.337073803 | AA101: 5.337073803 | AB101: 5.337073803 | AC101: 4.64 | AD101: 1744 | AE101: 30.1 | AG101: 12.46141745 | AH101: 27.64522012 | AI101: 19.32441252 | AJ101: 17.1 | AK101: 175 | AL101: 65 | AM101: 100 | AN101: 3.5 | AO101: 3.37 | AP101: 7.852 | AQ101: 3170 | AR101: 27.3 | AT101: 16.3 | AU101: 23400 | AV101: 804.7417053 | AW101: 1152.886239 | AX101: 977.9059855 | AY101: 102 | AZ101: 15 | BA101: 63 | BB101: 14 | BC101: 7.35 | BD101: 1.175857882 | BE101: 1.616620882 | BF101: 1.356079533 | BG101: 3.64 | BH101: 6.472916667 | BI101: 35.55755208 | BJ101: 12.67023655 | BK101: 7.170610062 | BL101: 12.80840718 | BM101: 9.825557443 | BN101: 838 | BO101: 9.99 | BQ101: 0.04065459085 | BR101: 1.998948816 | BS101: 0.7705487471 | BT101: 0.01
A102: 2023-01-18 | B102: 2023-01-18 | J102: 23450 | K102: 771.0358775 | L102: 1156.698491 | M102: 976.5562664 | N102: 0 | S102: 7.237281712 | T102: 8.587041394 | U102: 7.72147271 | V102: 7.671675809 | W102: 8.06775926 | X102: 7.816173977 | Z102: 5.337073803 | AA102: 5.337073803 | AB102: 5.337073803 | AG102: 15.27228069 | AH102: 27.4283692 | AI102: 21.35551242 | AU102: 24000 | AV102: 796.0792399 | AW102: 1150.408671 | AX102: 998.4755875 | BD102: 1.209902658 | BE102: 1.531108896 | BF102: 1.402560226 | BH102: 6.700520833 | BI102: 7.494010417 | BJ102: 7.046365017 | BK102: 8.738203923 | BL102: 12.27117284 | BM102: 10.94170597 | BQ102: 0.07692743614 | BR102: 2.34812657 | BS102: 1.248687085 | BU102: 74.3 | BV102: 36 | BW102: 22 | BX102: 0 | BY102: 1.09 | BZ102: 7.585 | CA102: 811 | CB102: 12.5 | CD102: 8.48
A103: 2023-01-19 | B103: 2023-01-19 | J103: 22630 | K103: 786.188267 | L103: 1009.160388 | M103: 943.7822466 | N103: 0 | O103: 264 | P103: 140 | Q103: 120 | R103: 6.5 | S103: 6.940803949 | T103: 9.081514422 | U103: 8.276881083 | V103: 7.622764548 | W103: 8.606400712 | X103: 7.952561502 | Y103: 7.752 | Z103: 5.337073803 | AA103: 5.337073803 | AB103: 5.337073803 | AC103: 3.72 | AD103: 1385 | AE103: 31 | AG103: 9.121369067 | AH103: 34.14638004 | AI103: 23.41631508 | AJ103: 20.5 | AK103: 111 | AL103: 45 | AM103: 40 | AN103: 0.6 | AO103: 2.14 | AP103: 7.701 | AQ103: 1903 | AR103: 21.1 | AT103: 13.8 | AU103: 23200 | AV103: 802.1194519 | AW103: 1060.564917 | AX103: 966.9588416 | AY103: 19.6 | AZ103: 2 | BA103: 3 | BB103: 0 | BC103: 7.278 | BD103: 1.172699034 | BE103: 1.454897563 | BF103: 1.308111086 | BG103: 1.58 | BH103: 6.177083333 | BI103: 6.6921875 | BJ103: 6.452061632 | BK103: 9.12965711 | BL103: 12.33482917 | BM103: 10.67615711 | BN103: 1712 | BO103: 9.55 | BQ103: 0.09763920854 | BR103: 2.75153714 | BS103: 1.377949672 | BT103: 0.65
A104: 2023-01-20 | B104: 2023-01-20 | J104: 17660 | K104: 532.501444 | L104: 943.0314351 | M104: 734.7077515 | N104: 0 | S104: 7.955887826 | T104: 9.31147658 | U104: 8.636841171 | V104: 7.83203001 | W104: 8.354647287 | X104: 7.984915301 | Z104: 5.337073803 | AA104: 5.337073803 | AB104: 5.337073803 | AG104: 21.68477573 | AH104: 36.74594059 | AI104: 30.09276706 | AU104: 17800 | AV104: 519.7301534 | AW104: 967.6287231 | AX104: 741.6087589 | BD104: 1.229357111 | BE104: 1.390090718 | BF104: 1.285523123 | BH104: 6.420052083 | BI104: 6.682552083 | BJ104: 6.536914063 | BK104: 9.153891468 | BL104: 13.29923541 | BM104: 11.59795401 | BQ104: 0.001961947652 | BR104: 2.002859056 | BS104: 1.033134738
A105: 2023-01-21 | B105: 2023-01-21 | J105: 14660 | K105: 387.6229741 | L105: 797.8057404 | M105: 611.2199174 | N105: 0 | S105: 8.207353592 | T105: 9.70847578 | U105: 9.058862266 | V105: 7.840102243 | W105: 8.221444702 | X105: 7.959229761 | Z105: 5.337073803 | AA105: 5.337073803 | AB105: 5.337073803 | AG105: 24.91787462 | AH105: 45.26554216 | AI105: 33.21977318 | AU105: 14800 | AV105: 385.7240743 | AW105: 816.0264201 | AX105: 617.2469933 | BD105: 1.21900622 | BE105: 1.366151728 | BF105: 1.303071421 | BH105: 6.671354167 | BI105: 7.348697917 | BJ105: 7.077875434 | BK105: 9.602344449 | BL105: 14.40107911 | BM105: 12.59689155 | BQ105: 0.1011527988 | BR105: 2.053637574 | BS105: 1.050615369
A106: 2023-01-22 | B106: 2023-01-22 | J106: 12890 | K106: 321.8653542 | L106: 718.164061 | M106: 536.6799667 | N106: 0 | S106: 8.29182744 | T106: 10.32716835 | U106: 9.352938743 | V106: 7.782486995 | W106: 8.17251269 | X106: 7.92679359 | Z106: 5.337073803 | AA106: 5.337073803 | AB106: 5.337073803 | AG106: 28.02542925 | AH106: 49.14935958 | AI106: 36.06120026 | AU106: 12800 | AV106: 294.9941833 | AW106: 728.2985779 | AX106: 536.8418445 | BD106: 1.199223244 | BE106: 1.343818531 | BF106: 1.277679584 | BH106: 7.3921875 | BI106: 7.854166667 | BJ106: 7.639973958 | BK106: 5.095406914 | BL106: 12.28593823 | BM106: 8.982182425 | BQ106: 0.001960659865 | BR106: 1.888576637 | BS106: 0.8429350327
A107: 2023-01-23 | B107: 2023-01-23 | J107: 18730 | K107: 283.605805 | L107: 1184.929588 | M107: 779.6847845 | N107: 0 | O107: 623 | P107: 260 | Q107: 333 | R107: 13 | S107: 4.839500252 | T107: 9.987030284 | U107: 7.472221224 | V107: 7.487602178 | W107: 8.380493736 | X107: 7.803059732 | Y107: 7.744 | Z107: 5.337073803 | AA107: 5.337073803 | AB107: 5.337073803 | AC107: 7.9 | AD107: 1476 | AE107: 58.4 | AG107: 10.27228117 | AH107: 42.08981228 | AI107: 26.18082195 | AJ107: 42 | AU107: 18800 | AV107: 232.9824717 | AW107: 1171.929213 | AX107: 785.5133831 | BD107: 1.120055536 | BE107: 1.634562016 | BF107: 1.386289099 | BH107: 7.153125 | BI107: 8.444791667 | BJ107: 7.939268663 | BK107: 4.930641413 | BL107: 9.046688271 | BM107: 6.974428445 | BQ107: 0.001960659865 | BR107: 2.677094289 | BS107: 0.8337039822
A108: 2023-01-24 | B108: 2023-01-24 | J108: 21010 | K108: 587.8424021 | L108: 1082.392935 | M108: 875.9611882 | N108: 0 | S108: 6.684587526 | T108: 8.553826682 | U108: 7.789819702 | V108: 7.761498562 | W108: 8.233360736 | X108: 7.948999673 | Z108: 5.337073803 | AA108: 5.337073803 | AB108: 5.337073803 | AG108: 12.6827357 | AH108: 33.80269794 | AI108: 22.55406855 | AK108: 95.7 | AL108: 35 | AM108: 28 | AN108: 0.1 | AO108: 2.36 | AP108: 7.826 | AQ108: 778 | AR108: 21.4 | AT108: 13.6 | AU108: 21500 | AV108: 601.5263021 | AW108: 1045.464368 | AX108: 892.8629156 | AY108: 19.2 | AZ108: 0 | BA108: 0 | BB108: 0 | BC108: 7.306 | BD108: 1.121770342 | BE108: 1.579806097 | BF108: 1.275520447 | BG108: 1.47 | BH108: 5.954166667 | BI108: 7.049479167 | BJ108: 6.253613281 | BK108: 6.329813083 | BL108: 10.99809453 | BM108: 7.441930442 | BN108: 983 | BO108: 6.6 | BQ108: 0.001954122214 | BR108: 1.998359871 | BS108: 0.7789482076 | BT108: 0.31 | BU108: 63.2 | BV108: 22 | BW108: 6 | BX108: 0 | BY108: 0.806 | BZ108: 7.765 | CA108: 463 | CB108: 7.96 | CD108: 5.13
A109: 2023-01-25 | B109: 2023-01-25 | J109: 17970 | K109: 519.7458496 | L109: 902.9007436 | M109: 748.2962372 | N109: 0 | S109: 7.58874797 | T109: 9.102082157 | U109: 8.44198144 | V109: 7.775638835 | W109: 8.347695486 | X109: 8.015369652 | Z109: 5.337073803 | AA109: 5.337073803 | AB109: 5.337073803 | AG109: 10.87403719 | AH109: 35.0891585 | AI109: 25.99912281 | AU109: 17900 | AV109: 519.2780396 | AW109: 910.1200378 | AX109: 749.488323 | BD109: 1.218953931 | BE109: 1.397391444 | BF109: 1.321921943 | BH109: 5.989322917 | BI109: 6.502604167 | BJ109: 6.169596354 | BK109: 8.533922513 | BL109: 13.03804763 | BM109: 10.86230354 | BQ109: 0.001954122214 | BR109: 2.514731709 | BS109: 1.103512173 | BU109: 13.4 | BW109: 2 | BX109: 0 | BY109: 0.204 | BZ109: 7.857 | CA109: 373 | CB109: 2.76 | CD109: 1.33
A110: 2023-01-26 | B110: 2023-01-26 | J110: 15320 | K110: 427.8766357 | L110: 766.6353149 | M110: 637.855358 | N110: 0 | O110: 468 | P110: 240 | Q110: 180 | R110: 8 | S110: 7.860380626 | T110: 9.400631936 | U110: 8.727190296 | V110: 7.917459091 | W110: 8.302942117 | X110: 8.061715947 | Y110: 7.818 | Z110: 5.337073803 | AA110: 5.337073803 | AB110: 5.337073803 | AC110: 5.17 | AD110: 892 | AE110: 42.9 | AG110: 21.93147945 | AH110: 42.08023561 | AI110: 32.88470306 | AJ110: 28.6 | AK110: 224 | AL110: 70 | AM110: 122 | AN110: 8.5 | AO110: 4.06 | AP110: 7.802 | AQ110: 798 | AR110: 33.2 | AT110: 21.7 | AU110: 15300 | AV110: 439.3807638 | AW110: 763.9250203 | AX110: 636.3796318 | AY110: 19.5 | AZ110: 0 | BA110: 3 | BB110: 0 | BC110: 7.207 | BD110: 1.257391675 | BE110: 1.484959173 | BF110: 1.337531937 | BG110: 1.48 | BH110: 6.256510417 | BI110: 6.799479167 | BJ110: 6.436534288 | BK110: 8.934000842 | BL110: 13.75786034 | BM110: 11.84627634 | BN110: 751 | BO110: 11.1 | BQ110: 0.001964763971 | BR110: 2.421413143 | BS110: 1.190901768 | BT110: 0.8
A111: 2023-01-27 | B111: 2023-01-27 | J111: 13360 | K111: 346.9786827 | L111: 701.7192291 | M111: 556.6423306 | N111: 0 | S111: 8.190177727 | T111: 9.767680375 | U111: 9.097746409 | V111: 7.888139025 | W111: 8.269763017 | X111: 8.048223937 | Z111: 5.337073803 | AA111: 5.337073803 | AB111: 5.337073803 | AG111: 27.57790343 | AH111: 52.89870898 | AI111: 39.5218206 | AU111: 13300 | AV111: 325.267627 | AW111: 695.2763 | AX111: 554.0371812 | BD111: 1.257274572 | BE111: 1.51098756 | BF111: 1.363614226 | BH111: 6.902083333 | BI111: 8.986197917 | BJ111: 7.712076823 | BK111: 11.48353217 | BL111: 13.77703222 | BM111: 12.85129977 | BQ111: 0.001964763971 | BR111: 2.668291942 | BS111: 1.099657352
A112: 2023-01-28 | B112: 2023-01-28 | J112: 11640 | K112: 270.8863803 | L112: 644.9146413 | M112: 485.2319018 | N112: 0 | S112: 8.599464846 | T112: 10.07227524 | U112: 9.408448868 | V112: 7.86171937 | W112: 8.312886206 | X112: 7.992311431 | Z112: 5.337073803 | AA112: 5.337073803 | AB112: 5.337073803 | AG112: 33.96180547 | AH112: 54.13935928 | AI112: 40.13591316 | AU112: 11500 | AV112: 254.9732117 | AW112: 652.1990336 | AX112: 483.2899024 | BD112: 1.283247983 | BE112: 1.506202281 | BF112: 1.383447499 | BH112: 8.934635417 | BI112: 9.508854167 | BJ112: 9.254155816 | BK112: 11.68462594 | BL112: 14.25567309 | BM112: 12.90435058 | BQ112: 0.00803309854 | BR112: 1.622746944 | BS112: 1.062382929
A113: 2023-01-29 | B113: 2023-01-29 | J113: 10870 | K113: 247.2559794 | L113: 613.1944417 | M113: 452.9296863 | N113: 0 | S113: 8.723324458 | T113: 10.20011393 | U113: 9.486935396 | V113: 7.790399106 | W113: 8.300279522 | X113: 7.927711562 | Z113: 5.337073803 | AA113: 5.337073803 | AB113: 5.337073803 | AG113: 34.65106659 | AH113: 55.01522942 | AI113: 41.74076627 | AU113: 10800 | AV113: 200.3761383 | AW113: 619.104421 | AX113: 449.7107732 | BD113: 1.261807561 | BE113: 1.476880312 | BF113: 1.382674446 | BH113: 8.579427083 | BI113: 9.051041667 | BJ113: 8.894281684 | BK113: 5.945625718 | BL113: 12.05803185 | BM113: 9.217170716 | BQ113: 0.001967705553 | BR113: 1.452507093 | BS113: 0.9386611457
A114: 2023-01-30 | B114: 2023-01-30 | J114: 10210 | K114: 229.629631 | L114: 560.3491511 | M114: 426.112396 | N114: 0 | S114: 8.741403643 | T114: 10.05336426 | U114: 9.500100189 | V114: 7.775905244 | W114: 8.347492035 | X114: 7.963370358 | Z114: 5.337073803 | AA114: 5.337073803 | AB114: 5.337073803 | AG114: 34.41901398 | AH114: 58.22907136 | AI114: 44.33702185 | AU114: 10300 | AV114: 185.7457804 | AW114: 584.2375346 | AX114: 428.750848 | BD114: 1.281145372 | BE114: 1.549660442 | BF114: 1.410366447 | BI114: 8.9875 | BJ114: 5.811046007 | BK114: 5.393907007 | BL114: 10.90232868 | BM114: 7.085465619 | BQ114: 0.001970273675 | BR114: 1.601695613 | BS114: 0.8753467113
A115: 2023-01-31 | B115: 2023-01-31 | J115: 12410 | K115: 229.3643878 | L115: 856.3512726 | M115: 516.9573223 | N115: 0 | O115: 540 | P115: 260 | Q115: 220 | R115: 12 | S115: 8.924788205 | T115: 10.26948067 | U115: 9.525338691 | V115: 7.528495804 | W115: 8.144298585 | X115: 7.820947317 | Y115: 7.759 | Z115: 2.171156645 | AA115: 5.337073803 | AB115: 3.897373593 | AC115: 7.92 | AD115: 1092 | AE115: 58.8 | AG115: 35.32252668 | AH115: 53.09213193 | AI115: 42.46251832 | AJ115: 43 | AK115: 266 | AL115: 130 | AM115: 74 | AN115: 0.4 | AO115: 5.91 | AP115: 7.688 | AQ115: 1070 | AR115: 50.2 | AT115: 40 | AU115: 12400 | AV115: 184.7692179 | AW115: 837.9267537 | AX115: 516.817039 | AY115: 21.8 | AZ115: 0 | BA115: 0 | BB115: 0 | BC115: 7.225 | BD115: 1.30494619 | BE115: 1.607796087 | BF115: 1.479247281 | BG115: 1.53 | BH115: 8.837239583 | BI115: 9.055208333 | BJ115: 8.937890625 | BK115: 5.184141143 | BL115: 10.21753209 | BM115: 7.479555451 | BN115: 790 | BO115: 6.56 | BQ115: 0.001970273675 | BR115: 2.833341002 | BS115: 1.128685849 | BT115: 0.37
B116: Povprečje | J116: =IF(OR(J85,J86,J87,J88,J89,J90,J91,J92,J93,J94,J95,J96,J97,J98,J99,J100,J101,J102,J103,J104,J105,J106,J107,J108,J108,J109,J110<>""),AVERAGE(J85:J115),"") -> 14319.35484 | M116: =IF(OR(M85,M86,M87,M88,M89,M90,M91,M92,M93,M94,M95,M96,M97,M98,M99,M100,M101,M102,M103,M104,M105,M106,M107,M108,M108,M109,M110<>""),AVERAGE(M85:M115),"") -> 596.5609401 | N116: 0.6451612903 | O116: 463.75 | P116: 210 | Q116: 206.5 | R116: 9.3125 | U116: =IF(OR(U85,U86,U87,U88,U89,U90,U91,U92,U93,U94,U95,U96,U97,U98,U99,U100,U101,U102,U103,U104,U105,U106,U107,U108,U108,U109,U110<>""),AVERAGE(U85:U115),"") -> 9.782204682 | X116: =IF(OR(X85,X86,X87,X88,X89,X90,X91,X92,X93,X94,X95,X96,X97,X98,X99,X100,X101,X102,X103,X104,X105,X106,X107,X108,X108,X109,X110<>""),AVERAGE(X85:X115),"") -> 7.838131768 | Y116: =IF(OR(Y85,Y86,Y87,Y88,Y89,Y90,Y91,Y92,Y93,Y94,Y95,Y96,Y97,Y98,Y99,Y100,Y101,Y102,Y103,Y104,Y105,Y106,Y107,Y108,Y108,Y109,Y110<>""),AVERAGE(Y85:Y115),"") -> 7.8 | AB116: =IF(OR(AB85,AB86,AB87,AB88,AB89,AB90,AB91,AB92,AB93,AB94,AB95,AB96,AB97,AB98,AB99,AB100,AB101,AB102,AB103,AB104,AB105,AB106,AB107,AB108,AB108,AB109,AB110<>""),AVERAGE(AB85:AB115),"") -> 4.13731005 | AC116: =IF(OR(AC85,AC86,AC87,AC88,AC89,AC90,AC91,AC92,AC93,AC94,AC95,AC96,AC97,AC98,AC99,AC100,AC101,AC102,AC103,AC104,AC105,AC106,AC107,AC108,AC108,AC109,AC110<>""),AVERAGE(AC85:AC115),"") -> 6.86875 | AD116: =IF(OR(AD85,AD86,AD87,AD88,AD89,AD90,AD91,AD92,AD93,AD94,AD95,AD96,AD97,AD98,AD99,AD100,AD101,AD102,AD103,AD104,AD105,AD106,AD107,AD108,AD108,AD109,AD110<>""),AVERAGE(AD85:AD115),"") -> 1199.875 | AE116: =IF(OR(AE85,AE86,AE87,AE88,AE89,AE90,AE91,AE92,AE93,AE94,AE95,AE96,AE97,AE98,AE99,AE100,AE101,AE102,AE103,AE104,AE105,AE106,AE107,AE108,AE108,AE109,AE110<>""),AVERAGE(AE85:AE115),"") -> 50.8375 | AF116: =IF(OR(AF85,AF86,AF87,AF88,AF89,AF90,AF91,AF92,AF93,AF94,AF95,AF96,AF97,AF98,AF99,AF100,AF101,AF102,AF103,AF104,AF105,AF106,AF107,AF108,AF108,AF109,AF110<>""),AVERAGE(AF85:AF115),"") ->  | AI116: =IF(OR(AI85,AI86,AI87,AI88,AI89,AI90,AI91,AI92,AI93,AI94,AI95,AI96,AI97,AI98,AI99,AI100,AI101,AI102,AI103,AI104,AI105,AI106,AI107,AI108,AI108,AI109,AI110<>""),AVERAGE(AI85:AI115),"") -> 43.13209991 | AJ116: 36.2625 | AK116: 197.9625 | AL116: 83.125 | AM116: 69.25 | AN116: 1.775 | AO116: 4.64125 | AP116: 7.767875 | AQ116: 1337.875 | AR116: 38.725 | AT116: 29.3125 | AU116: 13983.87097 | AX116: =IF(OR(AX85,AX86,AX87,AX88,AX89,AX90,AX91,AX92,AX93,AX94,AX95,AX96,AX97,AX98,AX99,AX100,AX101,AX102,AX103,AX104,AX105,AX106,AX107,AX108,AX108,AX109,AX110<>""),AVERAGE(AX85:AX115),"") -> 583.3371181 | AY116: 31.5625 | AZ116: 3.375 | BA116: 9.5 | BB116: 1.75 | BC116: 7.357 | BF116: =IF(OR(BF85,BF86,BF87,BF88,BF89,BF90,BF91,BF92,BF93,BF94,BF95,BF96,BF97,BF98,BF99,BF100,BF101,BF102,BF103,BF104,BF105,BF106,BF107,BF108,BF108,BF109,BF110<>""),AVERAGE(BF85:BF115),"") -> 1.533043956 | BG116: =IF(OR(BG85,BG86,BG87,BG88,BG89,BG90,BG91,BG92,BG93,BG94,BG95,BG96,BG97,BG98,BG99,BG100,BG101,BG102,BG103,BG104,BG105,BG106,BG107,BG108,BG108,BG109,BG110<>""),AVERAGE(BG85:BG115),"") -> 1.89875 | BJ116: =IF(OR(BJ85,BJ86,BJ87,BJ88,BJ89,BJ90,BJ91,BJ92,BJ93,BJ94,BJ95,BJ96,BJ97,BJ98,BJ99,BJ100,BJ101,BJ102,BJ103,BJ104,BJ105,BJ106,BJ107,BJ108,BJ108,BJ109,BJ110<>""),AVERAGE(BJ85:BJ115),"") -> 9.925614989 | BM116: =IF(OR(BM85,BM86,BM87,BM88,BM89,BM90,BM91,BM92,BM93,BM94,BM95,BM96,BM97,BM98,BM99,BM100,BM101,BM102,BM103,BM104,BM105,BM106,BM107,BM108,BM108,BM109,BM110<>""),AVERAGE(BM85:BM115),"") -> 14.19594828 | BN116: =IF(OR(BN85,BN86,BN87,BN88,BN89,BN90,BN91,BN92,BN93,BN94,BN95,BN96,BN97,BN98,BN99,BN100,BN101,BN102,BN103,BN104,BN105,BN106,BN107,BN108,BN108,BN109,BN110<>""),AVERAGE(BN85:BN115),"") -> 894.75 | BO116: =IF(OR(BO85,BO86,BO87,BO88,BO89,BO90,BO91,BO92,BO93,BO94,BO95,BO96,BO97,BO98,BO99,BO100,BO101,BO102,BO103,BO104,BO105,BO106,BO107,BO108,BO108,BO109,BO110<>""),AVERAGE(BO85:BO115),"") -> 12.85 | BP116: =IF(OR(BP85,BP86,BP87,BP88,BP89,BP90,BP91,BP92,BP93,BP94,BP95,BP96,BP97,BP98,BP99,BP100,BP101,BP102,BP103,BP104,BP105,BP106,BP107,BP108,BP108,BP109,BP110<>""),AVERAGE(BP85:BP115),"") ->  | BS116: =IF(OR(BS85,BS86,BS87,BS88,BS89,BS90,BS91,BS92,BS93,BS94,BS95,BS96,BS97,BS98,BS99,BS100,BS101,BS102,BS103,BS104,BS105,BS106,BS107,BS108,BS108,BS109,BS110<>""),AVERAGE(BS85:BS115),"") -> 1.380356144 | BT116: 1.09875 | BU116: 80.6 | BV116: 43.25 | BW116: 41.6 | BX116: 0.24 | BY116: 1.06 | BZ116: 7.534 | CA116: 430.2 | CB116: 9.452 | CD116: 5.854
B117: Skupno: | J117: =IF(OR(J85,J86,J87,J88,J89,J90,J91,J92,J93,J94,J95,J96,J97,J98,J99,J100,J101,J102,J103,J104,J105,J106,J107,J108,J108,J109,J110<>""),SUM(J85:J115),"") -> 443900 | N117: =IF(OR(N85,N86,N87,N88,N89,N90,N91,N92,N93,N94,N95,N96,N97,N98,N99,N100,N101,N102,N103,N104,N105,N106,N107,N108,N108,N109,N110<>""),SUM(N85:N115),"") -> 20 | AU117: =IF(OR(AU85,AU86,AU87,AU88,AU89,AU90,AU91,AU92,AU93,AU94,AU95,AU96,AU97,AU98,AU99,AU100,AU101,AU102,AU103,AU104,AU105,AU106,AU107,AU108,AU108,AU109,AU110<>""),SUM(AU85:AU115),"") -> 433500
B118: Min: | J118: =IF(OR(J85,J86,J87,J88,J89,J90,J91,J92,J93,J94,J95,J96,J97,J98,J99,J100,J101,J102,J103,J104,J105,J106,J107,J108,J108,J109,J110<>""),MIN(J85:J115),"") -> 7910 | K118: 110.1321375 | L118: 457.7473948 | M118: 329.4050795 | N118: 0 | O118: 264 | P118: 110 | Q118: 120 | R118: 2 | S118: 3.901130843 | T118: 8.453056351 | U118: 6.333467614 | V118: 7.253874898 | W118: 7.478623247 | X118: 7.339029718 | Y118: 7.708 | Z118: 0.2037513703 | AA118: 1.709810972 | AB118: 0.6645125138 | AC118: 3.72 | AD118: 638 | AE118: 30.1 | AG118: 4.815981571 | AH118: 17.19816392 | AI118: 11.70643223 | AJ118: 17.1 | AK118: =IF(OR(AK85,AK86,AK87,AK88,AK89,AK90,AK91,AK92,AK93,AK94,AK95,AK96,AK97,AK98,AK99,AK100,AK101,AK102,AK103,AK104,AK105,AK106,AK107,AK108,AK108,AK109,AK110<>""),MIN(AK85:AK115),"") -> 95.7 | AL118: =IF(OR(AL85,AL86,AL87,AL88,AL89,AL90,AL91,AL92,AL93,AL94,AL95,AL96,AL97,AL98,AL99,AL100,AL101,AL102,AL103,AL104,AL105,AL106,AL107,AL108,AL108,AL109,AL110<>""),MIN(AL85:AL115),"") -> 35 | AM118: 28 | AN118: 0.1 | AO118: 2.14 | AP118: 7.686 | AQ118: 778 | AR118: 21.1 | AT118: 13.6 | AU118: 6700 | AV118: 94.36485291 | AW118: 422.5079285 | AX118: 282.1097411 | AY118: 19.2 | AZ118: 0 | BA118: 0 | BB118: 0 | BC118: 7.207 | BD118: 1.120055536 | BE118: 1.343818531 | BF118: 1.275520447 | BG118: 1.47 | BH118: 5.954166667 | BI118: 6.502604167 | BJ118: 5.811046007 | BK118: 4.930641413 | BL118: 9.046688271 | BM118: 6.974428445 | BN118: 553 | BO118: 6.56 | BQ118: 0.001954122214 | BR118: 1.085557435 | BS118: 0.151090797 | BT118: 0.01 | BU118: 13.4 | BV118: =IF(OR(BV85,BV86,BV87,BV88,BV89,BV90,BV91,BV92,BV93,BV94,BV95,BV96,BV97,BV98,BV99,BV100,BV101,BV102,BV103,BV104,BV105,BV106,BV107,BV108,BV108,BV109,BV110<>""),MIN(BV85:BV115),"") -> 22 | BW118: 2 | BX118: 0 | BY118: 0.204 | BZ118: 7.18 | CA118: 213 | CB118: 2.76 | CD118: 1.33
B119: Max: | J119: =IF(OR(J85,J86,J87,J88,J89,J90,J91,J92,J93,J94,J95,J96,J97,J98,J99,J100,J101,J102,J103,J104,J105,J106,J107,J108,J108,J109,J110<>""),MAX(J85:J115),"") -> 23990 | K119: 984.555838 | L119: 1226.904891 | M119: 1000.039781 | N119: 10 | O119: 678 | P119: 260 | Q119: 333 | R119: 13 | S119: 11.66904346 | T119: 12.86014225 | U119: 12.13808213 | V119: 7.917459091 | W119: 8.606400712 | X119: 8.061715947 | Y119: 7.968 | Z119: 5.337073803 | AA119: 11.4283762 | AB119: 5.337073803 | AC119: 11.52 | AD119: 1744 | AE119: 93.5 | AG119: 73.2133639 | AH119: 116.4508364 | AI119: 91.39602929 | AJ119: 78 | AK119: =IF(OR(AK85,AK86,AK87,AK88,AK89,AK90,AK91,AK92,AK93,AK94,AK95,AK96,AK97,AK98,AK99,AK100,AK101,AK102,AK103,AK104,AK105,AK106,AK107,AK108,AK108,AK109,AK110<>""),MAX(AK85:AK115),"") -> 315 | AL119: =IF(OR(AL85,AL86,AL87,AL88,AL89,AL90,AL91,AL92,AL93,AL94,AL95,AL96,AL97,AL98,AL99,AL100,AL101,AL102,AL103,AL104,AL105,AL106,AL107,AL108,AL108,AL109,AL110<>""),MAX(AL85:AL115),"") -> 130 | AM119: 122 | AN119: 8.5 | AO119: 8.85 | AP119: 7.86 | AQ119: 3170 | AR119: 71.1 | AT119: 60 | AU119: 24400 | AV119: 963.8309733 | AW119: 1171.929213 | AX119: 1016.110228 | AY119: 102 | AZ119: 15 | BA119: 63 | BB119: 14 | BC119: 7.561 | BD119: 1.824993014 | BE119: 2.705584208 | BF119: 1.928984917 | BG119: 3.64 | BH119: 12.32526042 | BI119: 83.31953125 | BJ119: 30.5030816 | BK119: 25.82418938 | BL119: 28.46723588 | BM119: 27.14430037 | BN119: 1712 | BO119: 36.1 | BQ119: 0.9599910875 | BR119: 9.013082981 | BS119: 4.643417591 | BT119: 4.71 | BU119: 159 | BV119: =IF(OR(BV85,BV86,BV87,BV88,BV89,BV90,BV91,BV92,BV93,BV94,BV95,BV96,BV97,BV98,BV99,BV100,BV101,BV102,BV103,BV104,BV105,BV106,BV107,BV108,BV108,BV109,BV110<>""),MAX(BV85:BV115),"") -> 70 | BW119: 122 | BX119: 1 | BY119: 1.97 | BZ119: 7.857 | CA119: 811 | CB119: 15.1 | CD119: 9.2
J122: VTOK | N122: Septika | O122: VTOK | S122: VTOK | AD122: VTOK | AK122: Mehansko predčiščenje | AU122: IZTOK | BC122: IZTOK | BN122: IZTOK | BU122: Deževni bazen
A123: Slovenčeva 95, 1000 Ljubljana Slovenia | J123: Pretok | N123: Pretok | O123: KPK | P123: BPK | Q123: Neraztopljene snovi | R123: Usedljive snovi | S123: Temperatura | V123: pH | Z123: Fosfor | AD123: Prevodnost | AE123: Celotni dušik | AF123: NO3-N | AG123: Amoniak | AK123: KPK | AL123: BPK | AM123: Neraztopljene snovi | AN123: Usedljive snovi | AO123: Fosfor | AP123: pH | AQ123: Prevodnost | AR123: Celotni dušik | AS123: NO3-N | AT123: Amoniak | AU123: Pretok | AY123: KPK | AZ123: BPK | BA123: Neraztopljene snovi | BB123: Usedljive snovi | BC123: pH | BD123: Fosfor | BH123: Totalni ogljik | BK123: Totalni dušik | BN123: Prevodnost | BO123: Celotni dušik | BP123: NO3-N | BQ123: Amoniak | BU123: KPK | BV123: BPK | BW123: Neraztopljene snovi | BX123: Usedljive snovi | BY123: Fosfor | BZ123: pH | CA123: Prevodnost | CB123: Celotni dušik | CC123: NO3-N | CD123: Amoniak
I125: Tag: | J125: LT 05.01 in LT 05.02 | N125: FT 15.01 | O125: Laboratori | P125: Laboratori | Q125: Laboratori | R125: Laboratori | S125: AT 05.03 | V125: pH 05.03 | Y125: Laboratori | Z125: PO4P 05.06 | AC125: Laboratori | AD125: Laboratori | AE125: Laboratori | AF125: Laboratori | AG125: NH4N 08.10 | AJ125: Laboratori | AK125: Laboratori | AL125: Laboratori | AM125: Laboratori | AN125: Laboratori | AO125: Laboratori | AP125: Laboratori | AQ125: Laboratori | AR125: Laboratori | AS125: Laboratori | AT125: Laboratori | AU125: FT 13.01 | AY125: Laboratori | AZ125: Laboratori | BA125: Laboratori | BB125: Laboratori | BC125: Laboratori | BD125: PO4P 07.02 | BG125: Laboratori | BH125: TOC 14.01 | BK125: TN 14.01 | BN125: Laboratori | BO125: Laboratori | BP125: Laboratori | BQ125: NH4N 08.11 | BT125: Laboratori | BU125: Laboratori | BV125: Laboratori | BW125: Laboratori | BX125: Laboratori | BY125: Laboratori | BZ125: Laboratori | CA125: Laboratori | CB125: Laboratori | CC125: Laboratori | CD125: Laboratori
I126: Enote | J126: m³ | K126: m³/h | L126: m³/h | M126: m³/h | N126: m³ | O126: mg/l | P126: mg/l | Q126: mg/l | R126: ml/l | S126: °C | T126: °C | U126: °C | Z126: mg/l | AA126: mg/l | AB126: mg/l | AC126: mg/l | AD126: µS/cm | AE126: mg/l | AF126: mg/l | AG126: mg/l | AH126: mg/l | AI126: mg/l | AJ126: mg/l | AK126: mg/l | AL126: mg/l | AM126: mg/l | AN126: ml/l | AO126: mg/l | AQ126: µS/cm | AR126: mg/l | AS126: mg/l | AT126: mg/l | AU126: m³ | AV126: m³/h | AW126: m³/h | AX126: m³/h | AY126: mg/l | AZ126: mg/l | BA126: mg/l | BB126: ml/l | BD126: mg/l | BE126: mg/l | BF126: mg/l | BG126: mg/l | BH126: mgC/l | BI126: mgC/l | BJ126: mgC/l | BK126: mgN/l | BL126: mgN/l | BM126: mgN/l | BN126: µS/cm | BO126: mg/l | BP126: mg/l | BQ126: mg/l | BR126: mg/l | BS126: mg/l | BT126: mg/l | BU126: mg/l | BV126: mg/l | BW126: mg/l | BX126: ml/l | BY126: mg/l | CA126: µS/cm | CB126: mg/l | CC126: mg/l | CD126: mg/l
A130: Datum | B130: Dan | J130: Kumulativa | K130: Minimalno | L130: Maksimalno | M130: Povprečje | N130: Kumulativa | O130: Vrednost | P130: Vrednost | Q130: Vrednost | R130: Vrednost | S130: Minimalno | T130: Maksimalno | U130: Povprečje | V130: Minimalno | W130: Maksimalno | X130: Povprečje | Y130: Vrednost | Z130: Minimalno | AA130: Maksimalno | AB130: Povprečje | AC130: Vrednost | AD130: Vrednost | AE130: Vrednost | AF130: Vrednost | AG130: Minimalno | AH130: Maksimalno | AI130: Povprečje | AJ130: Vrednost | AK130: Vrednost | AL130: Vrednost | AM130: Vrednost | AN130: Vrednost | AO130: Vrednost | AP130: Vrednost | AQ130: Vrednost | AR130: Vrednost | AS130: Vrednost | AT130: Vrednost | AU130: Kumulativa | AV130: Minimalno | AW130: Maksimalno | AX130: Povprečje | AY130: Vrednost | AZ130: Vrednost | BA130: Vrednost | BB130: Vrednost | BC130: Vrednost | BD130: Minimalno | BE130: Maksimalno | BF130: Povprečje | BG130: Vrednost | BH130: Minimalno | BI130: Maksimalno | BJ130: Povprečje | BK130: Minimalno | BL130: Maksimalno | BM130: Povprečje | BN130: Vrednost | BO130: Vrednost | BP130: Vrednost | BQ130: Minimalno | BR130: Maksimalno | BS130: Povprečje | BT130: Vrednost | BU130: Vrednost | BV130: Vrednost | BW130: Vrednost | BX130: Vrednost | BY130: Vrednost | BZ130: Vrednost | CA130: Vrednost | CB130: Vrednost | CC130: Vrednost | CD130: Vrednost
A131: 2023-02-01 | B131: =IF(A131>0,A131,"") -> 2023-02-01 | J131: 10640 | K131: 210.9278535 | L131: 592.5371318 | M131: 443.6076338 | N131: 0 | S131: 8.864828714 | T131: 10.41464748 | U131: 9.693536688 | V131: 7.711996778 | W131: 9.954197598 | X131: 8.385539578 | Z131: 0.4053904623 | AA131: 18.03155621 | AB131: 3.596248775 | AG131: 40.15937767 | AH131: 61.26225103 | AI131: 46.93620577 | AU131: 10500 | AV131: 170.970757 | AW131: 581.2355103 | AX131: 439.0635296 | BD131: 1.296067492 | BE131: 1.596001923 | BF131: 1.409298644 | BH131: 8.911979167 | BI131: 9.200260417 | BJ131: 9.022374132 | BK131: 7.996594429 | BL131: 11.09793841 | BM131: 9.866153191 | BQ131: 0.1290440543 | BR131: 2.363579587 | BS131: 0.8447037002
A132: 2023-02-02 | B132: =IF(A132>0,A132,"") -> 2023-02-02 | J132: 10760 | K132: 209.2110335 | L132: 599.7371765 | M132: 448.075306 | N132: 0 | O132: 585 | P132: 260 | Q132: 653 | R132: 11 | S132: 9.034554561 | T132: 10.82838017 | U132: 9.755017711 | V132: 7.906450526 | W132: 8.345340824 | X132: 8.04388155 | Y132: 8.5 | Z132: 1.226765325 | AA132: 4.239541554 | AB132: 2.870136396 | AC132: 7.63 | AD132: 1197 | AE132: 60.3 | AG132: 33.77206279 | AH132: 64.61265182 | AI132: 50.03214045 | AJ132: 42 | AK132: 241 | AL132: 130 | AM132: 70 | AN132: 0.3 | AO132: 5.37 | AP132: 7.923 | AQ132: 1081 | AR132: 52.8 | AT132: 41 | AU132: 10700 | AV132: 168.6197723 | AW132: 614.2577861 | AX132: 445.2092411 | AY132: 21.8 | AZ132: 2 | BA132: 1 | BB132: 0 | BC132: 7.303 | BD132: 1.276952477 | BE132: 1.685997864 | BF132: 1.417501553 | BG132: 1.63 | BH132: 8.902604167 | BI132: 9.405989583 | BJ132: 9.083723958 | BK132: 8.971828906 | BL132: 12.9403135 | BM132: 10.67545006 | BN132: 861 | BO132: 9.12 | BQ132: 0.001965234289 | BR132: 3.607438946 | BS132: 1.322298832 | BT132: 0.48
A133: 2023-02-03 | B133: 2023-02-03 | J133: 10760 | K133: 195.6283742 | L133: 602.3750951 | M133: 448.6587317 | N133: 0 | S133: 9.222361501 | T133: 10.52354344 | U133: 9.912507753 | V133: 7.814282449 | W133: 8.506058311 | X133: 8.019266319 | Z133: 2.025539259 | AA133: 4.705800366 | AB133: 3.012601309 | AG133: 39.03028297 | AH133: 60.98656413 | AI133: 48.97442067 | AU133: 10600 | AV133: 187.2287109 | AW133: 597.2764384 | AX133: 444.1354751 | BD133: 1.376587192 | BE133: 1.747547448 | BF133: 1.540878026 | BH133: 9.198958333 | BI133: 9.97890625 | BJ133: 9.37047526 | BK133: 13.05051672 | BL133: 16.506751 | BM133: 15.3107589 | BQ133: 0.001963472227 | BR133: 2.215968013 | BS133: 0.9408864345
A134: 2023-02-04 | B134: 2023-02-04 | J134: 12000 | K134: 223.8594714 | L134: 827.9441528 | M134: 500.3994643 | N134: 0 | S134: 9.144900465 | T134: 9.925416867 | U134: 9.523014673 | V134: 7.786083412 | W134: 8.355498091 | X134: 7.935108597 | Z134: 2.118716862 | AA134: 3.429966784 | AB134: 2.822110577 | AG134: 27.18644997 | AH134: 56.48567746 | AI134: 39.23982296 | AU134: 11900 | AV134: 190.4658346 | AW134: 855.5772115 | AX134: 497.0845987 | BD134: 1.376755712 | BE134: 1.700209399 | BF134: 1.568474139 | BH134: 9.502864583 | BI134: 9.819270833 | BJ134: 9.686979167 | BK134: 12.13598509 | BL134: 18.30182934 | BM134: 16.51149913 | BQ134: 0.15569388 | BR134: 2.464158138 | BS134: 0.9631298441
A135: 2023-02-05 | B135: 2023-02-05 | J135: 9450 | K135: 198.6496914 | L135: 546.7906011 | M135: 393.7021749 | N135: 0 | S135: 8.660521952 | T135: 10.03409832 | U135: 9.482103733 | V135: 7.852649546 | W135: 8.356652228 | X135: 8.0053782 | Z135: 2.89775635 | AA135: 5.413462917 | AB135: 3.703324563 | AG135: 37.19152501 | AH135: 56.33291359 | AI135: 42.4165835 | AU135: 9600 | AV135: 181.2970022 | AW135: 568.7933777 | AX135: 396.8935115 | BD135: 1.345851711 | BE135: 1.6229032 | BF135: 1.448728114 | BH135: 9.214322917 | BI135: 9.79375 | BJ135: 9.501519097 | BK135: 9.692438142 | BL135: 17.12156369 | BM135: 13.28430173 | BQ135: 0.001973285107 | BR135: 1.398056597 | BS135: 0.5826743767
A136: 2023-02-06 | B136: 2023-02-06 | J136: 8850 | K136: 165.6659907 | L136: 476.4612279 | M136: 369.1298735 | N136: 0 | S136: 8.636766164 | T136: 9.808491564 | U136: 9.313460377 | V136: 7.867289718 | W136: 8.411458556 | X136: 8.0434163 | Z136: 3.376340357 | AA136: 5.314127596 | AB136: 3.87252674 | AG136: 38.1090107 | AH136: 58.88107376 | AI136: 45.99510214 | AU136: 8900 | AV136: 124.2042613 | AW136: 493.8150736 | AX136: 371.4561672 | BD136: 1.339407245 | BE136: 1.620493561 | BF136: 1.47305449 | BH136: 8.4890625 | BI136: 9.395052083 | BJ136: 8.965505642 | BK136: 7.611516285 | BL136: 11.2857667 | BM136: 9.426891398 | BQ136: 0.002033485197 | BR136: 1.514178954 | BS136: 0.7345239145
A137: 2023-02-07 | B137: 2023-02-07 | J137: 8680 | K137: 175.0144669 | L137: 492.2429573 | M137: 361.3807696 | N137: 0 | O137: 707 | P137: 300 | Q137: 327 | R137: 14 | S137: 8.547331127 | T137: 9.671561003 | U137: 9.274081866 | V137: 7.793207836 | W137: 8.247552808 | X137: 7.978636353 | Y137: 7.696 | Z137: 2.698733518 | AA137: 4.932995558 | AB137: 3.91425727 | AC137: 9.14 | AD137: 1124 | AE137: 67.7 | AG137: 43.3747935 | AH137: 62.09683386 | AI137: 51.0604435 | AJ137: 48 | AK137: 244 | AL137: 110 | AM137: 58 | AN137: 0 | AO137: 5.62 | AP137: 7.543 | AQ137: 1009 | AR137: 58.4 | AT137: 46 | AU137: 8700 | AV137: 145.9418193 | AW137: 482.3675964 | AX137: 363.5622874 | AY137: 20.5 | AZ137: 0 | BA137: 0 | BB137: 0 | BC137: 7.135 | BD137: 1.333704956 | BE137: 1.620287963 | BF137: 1.460278463 | BG137: 1.63 | BH137: 9.463541667 | BI137: 10.0546875 | BJ137: 9.708083767 | BK137: 7.763204018 | BL137: 9.905016327 | BM137: 9.117362186 | BN137: 815 | BO137: 8.45 | BQ137: 0.001967703225 | BR137: 1.862639622 | BS137: 0.6041906783 | BT137: 0.24
A138: 2023-02-08 | B138: 2023-02-08 | J138: 8680 | K138: 186.8778924 | L138: 526.8060349 | M138: 361.409504 | N138: 0 | S138: 8.551512305 | T138: 10.0530362 | U138: 9.287688094 | V138: 7.781373978 | W138: 8.26629378 | X138: 7.957537324 | Z138: 2.448287249 | AA138: 5.759235311 | AB138: 4.110322348 | AG138: 44.47979876 | AH138: 63.52711538 | AI138: 49.06653348 | AU138: 8500 | AV138: 137.1889252 | AW138: 511.7187276 | AX138: 356.2727313 | BD138: 1.384569367 | BE138: 1.632897476 | BF138: 1.496421008 | BH138: 9.631770833 | BI138: 9.869791667 | BJ138: 9.746777344 | BK138: 9.182016404 | BL138: 12.98039169 | BM138: 11.20139344 | BQ138: 0.001967703225 | BR138: 1.819339712 | BS138: 0.6962062847
A139: 2023-02-09 | B139: 2023-02-09 | J139: 8260 | K139: 177.7777779 | L139: 453.2503845 | M139: 343.9216008 | N139: 0 | O139: 649 | P139: 360 | Q139: 353 | R139: 14 | S139: 8.726326958 | T139: 9.758650939 | U139: 9.240605494 | V139: 7.688028638 | W139: 8.46571207 | X139: 7.989488172 | Y139: 7.859 | Z139: 1.320138812 | AA139: 7.871367353 | AB139: 4.287240678 | AC139: 9.2 | AD139: 1234 | AE139: 67.8 | AG139: 20.84486012 | AH139: 64.39787591 | AI139: 50.90140211 | AJ139: 51 | AK139: 330 | AL139: 160 | AM139: 116 | AN139: 0.4 | AO139: 7.19 | AP139: 7.454 | AQ139: 1142 | AR139: 55.9 | AT139: 47 | AU139: 8200 | AV139: 146.6651988 | AW139: 468.3159505 | AX139: 343.4380171 | BD139: 1.213250426 | BE139: 1.638044103 | BF139: 1.368856012 | BH139: 9.579427083 | BI139: 9.89921875 | BJ139: 9.732356771 | BK139: 9.761063369 | BL139: 13.9842665 | BM139: 12.77529198 | BQ139: 0.001971362159 | BR139: 2.831194687 | BS139: 0.5270395375
A140: 2023-02-10 | B140: 2023-02-10 | J140: 8540 | K140: 173.9269853 | L140: 492.6432287 | M140: 355.4065583 | N140: 0 | S140: 8.488467852 | T140: 9.768744278 | U140: 9.201046847 | V140: 7.612628826 | W140: 8.240015697 | X140: 7.896809368 | Z140: 0.5000324845 | AA140: 11.23617601 | AB140: 4.802424594 | AG140: 45.64951757 | AH140: 68.35434303 | AI140: 53.89154079 | AU140: 8500 | AV140: 152.4884043 | AW140: 475.965686 | AX140: 354.0807383 | AY140: 24.6 | AZ140: 0 | BA140: 7 | BB140: 0.1 | BC140: 7.076 | BD140: 1.196833481 | BE140: 1.618980138 | BF140: 1.42691981 | BG140: 1.58 | BH140: 9.198177083 | BI140: 9.820833333 | BJ140: 9.632367622 | BK140: 10.28953185 | BL140: 13.3583446 | BM140: 12.34501848 | BN140: 927 | BO140: 11.9 | BQ140: 0.001971362159 | BR140: 2.251136994 | BS140: 0.7068503381 | BT140: 0.18
A141: 2023-02-11 | B141: 2023-02-11 | J141: 8990 | K141: 163.2764267 | L141: 542.5708888 | M141: 374.4328488 | N141: 0 | S141: 8.350178083 | T141: 10.31543228 | U141: 9.313298464 | V141: 7.815103674 | W141: 8.376874574 | X141: 7.934599081 | Z141: 0.8392028809 | AA141: 9.267695375 | AB141: 3.981575706 | AG141: 42.75160586 | AH141: 59.75325336 | AI141: 49.14397737 | AU141: 8900 | AV141: 153.7362335 | AW141: 522.8768534 | AX141: 368.6063518 | BD141: 1.396319385 | BE141: 1.692290296 | BF141: 1.539120886 | BH141: 9.063541667 | BI141: 9.45234375 | BJ141: 9.273958333 | BK141: 10.31156336 | BL141: 14.33564154 | BM141: 13.28150684 | BQ141: 0.1125253422 | BR141: 1.700473388 | BS141: 1.046151512
A142: 2023-02-12 | B142: 2023-02-12 | J142: 9050 | K142: 142.3032405 | L142: 547.173997 | M142: 376.8867137 | N142: 0 | S142: 8.53449324 | T142: 10.37878531 | U142: 9.496853244 | V142: 7.787897015 | W142: 8.343942547 | X142: 7.943973714 | Z142: 1.302617896 | AA142: 7.846254555 | AB142: 4.125296356 | AG142: 41.80326907 | AH142: 67.21544234 | AI142: 49.04096978 | AU142: 8900 | AV142: 117.3683258 | AW142: 542.8963847 | AX142: 372.621863 | BD142: 1.389756366 | BE142: 1.74083637 | BF142: 1.57033619 | BH142: 9.239583333 | BI142: 9.498177083 | BJ142: 9.394314236 | BK142: 8.546063042 | BL142: 14.9206885 | BM142: 12.86878215 | BQ142: 0.001976908883 | BR142: 2.325147227 | BS142: 0.7317750396
A143: 2023-02-13 | B143: 2023-02-13 | J143: 9240 | K143: 179.6633862 | L143: 730.3939962 | M143: 385.8254748 | N143: 0 | S143: 9.045625321 | T143: 10.13231904 | U143: 9.613785223 | V143: 7.572320286 | W143: 8.389463584 | X143: 7.90271855 | Z143: 1.218646169 | AA143: 4.881322879 | AB143: 2.132417181 | AG143: 42.27968534 | AH143: 66.37783413 | AI143: 50.04193686 | AU143: 9300 | AV143: 156.0148814 | AW143: 655.7616882 | AX143: 386.0262378 | BD143: 1.356246571 | BE143: 1.666919629 | BF143: 1.524588858 | BH143: 9.298177083 | BI143: 10.10208333 | BJ143: 9.787999132 | BK143: 8.683359893 | BL143: 12.62685992 | BM143: 10.70809066 | BQ143: 0.001968056662 | BR143: 2.124993002 | BS143: 0.8204198934
A144: 2023-02-14 | B144: 2023-02-14 | J144: 8980 | K144: 176.5962566 | L144: 502.0760966 | M144: 373.8131542 | N144: 0 | O144: 970 | P144: 350 | Q144: 367 | R144: 10 | S144: 9.12226367 | T144: 10.70753892 | U144: 9.813233941 | V144: 7.773271688 | W144: 8.284255282 | X144: 7.939007935 | Y144: 7.803 | Z144: 1.218646169 | AA144: 28.05100466 | AB144: 6.550714404 | AC144: 12.02 | AD144: 2080 | AE144: 79.5 | AG144: 45.46398532 | AH144: 67.04440079 | AI144: 54.04045657 | AJ144: 61 | AK144: 312 | AL144: 140 | AM144: 86 | AN144: 0.5 | AO144: 6.99 | AP144: 7.597 | AQ144: 1188 | AR144: 57.5 | AT144: 48 | AU144: 9000 | AV144: 140.5888102 | AW144: 500.7414347 | AX144: 377.4896043 | AY144: 23.2 | AZ144: 0 | BA144: 1 | BB144: 0 | BC144: 7.437 | BD144: 1.333965005 | BE144: 1.827908585 | BF144: 1.557221171 | BG144: 1.68 | BH144: 9.875520833 | BI144: 10.3375 | BJ144: 10.03167318 | BK144: 6.942938248 | BL144: 10.27767283 | BM144: 9.141344516 | BN144: 925 | BO144: 9.31 | BQ144: 0.001968056662 | BR144: 1.837073763 | BS144: 0.7606618635 | BT144: 0.36
A145: 2023-02-15 | B145: 2023-02-15 | J145: 8590 | K145: 148.777488 | L145: 492.9615148 | M145: 358.867226 | N145: 0 | S145: 8.906834094 | T145: 10.42005715 | U145: 9.821352923 | V145: 7.79276274 | W145: 8.291514111 | X145: 8.022367026 | Z145: 9.975801468 | AA145: 9.975801468 | AB145: 9.975801468 | AG145: 47.93208631 | AH145: 75.03877385 | AI145: 62.68675563 | AU145: 8600 | AV145: 131.2933858 | AW145: 506.4018758 | AX145: 360.6891131 | BD145: 1.474224828 | BE145: 1.872439174 | BF145: 1.623223414 | BH145: 9.9671875 | BI145: 10.23776042 | BJ145: 10.10370009 | BK145: 8.936391465 | BL145: 10.31259441 | BM145: 9.780828928 | BQ145: 0.1104785644 | BR145: 2.553215384 | BS145: 1.131306829
A146: 2023-02-16 | B146: 2023-02-16 | J146: 9080 | K146: 135.0477425 | L146: 492.2164358 | M146: 378.2852476 | N146: 0 | O146: 678 | P146: 280 | Q146: 293 | R146: 9.5 | S146: 9.209428533 | T146: 10.4162481 | U146: 9.861223696 | V146: 7.100861645 | W146: 8.277300135 | X146: 7.603165466 | Y146: 8.103 | Z146: 0.3228747373 | AA146: 9.975801468 | AB146: 3.81868237 | AC146: 10.49 | AD146: 1156 | AE146: 82.2 | AG146: 29.65359053 | AH146: 74.61347961 | AI146: 59.10677308 | AJ146: 62 | AK146: 317 | AL146: 160 | AM146: 94 | AN146: 0.6 | AO146: 7.46 | AP146: 7.511 | AQ146: 1178 | AR146: 60.9 | AT146: 50 | AU146: 8900 | AV146: 130.8051025 | AW146: 508.3730916 | AX146: 368.8504942 | AY146: 27 | AZ146: 1 | BA146: 3 | BB146: 0 | BC146: 7.134 | BD146: 1.630129981 | BE146: 1.931119243 | BF146: 1.81829081 | BG146: 1.77 | BH146: 10.07942708 | BI146: 10.36302083 | BJ146: 10.20640191 | BK146: 10.2820789 | BL146: 15.214173 | BM146: 13.50021776 | BN146: 971 | BO146: 10.2 | BQ146: 0.4518029769 | BR146: 2.353800046 | BS146: 1.323479593 | BT146: 0.34
A147: 2023-02-17 | B147: 2023-02-17 | J147: 11470 | K147: 204.6899113 | L147: 677.0037552 | M147: 477.770743 | N147: 0 | S147: 9.215548229 | T147: 11.01340071 | U147: 10.02719784 | V147: 6.947669156 | W147: 7.179226947 | X147: 7.067845426 | Z147: 0.5184334517 | AA147: 2.487058902 | AB147: 1.590031681 | AG147: 47.49157422 | AH147: 72.6159228 | AI147: 58.90937905 | AU147: 9500 | AV147: 154.6404653 | AW147: 550.8897298 | AX147: 398.0667422 | BD147: 1.617085417 | BE147: 2.033618291 | BF147: 1.885302095 | BH147: 10.10130208 | BI147: 11.2921875 | BJ147: 10.6055447 | BK147: 13.76132895 | BL147: 17.64811049 | BM147: 16.24509877 | BQ147: 0.7062201699 | BR147: 2.260489027 | BS147: 1.438892252
A148: 2023-02-18 | B148: 2023-02-18 | J148: 11500 | K148: 218.4992273 | L148: 646.1684998 | M148: 478.6399039 | N148: 0 | S148: 9.32111996 | T148: 10.51729012 | U148: 10.01995687 | V148: 6.790123192 | W148: 7.015999158 | X148: 6.899349399 | Z148: 2.211397409 | AA148: 2.211397409 | AB148: 2.211397409 | AG148: 43.15059566 | AH148: 67.56904729 | AI148: 50.82121678 | AU148: 8900 | AV148: 141.0047516 | AW148: 515.3356201 | AX148: 371.7018163 | BD148: 1.61007063 | BE148: 1.947075085 | BF148: 1.861051051 | BH148: 10.97838542 | BI148: 11.26276042 | BJ148: 11.13525391 | BK148: 14.71443858 | BL148: 19.22447017 | BM148: 17.52899925 | BQ148: 0.1073748382 | BR148: 1.682050387 | BS148: 0.8882852308
A149: 2023-02-19 | B149: 2023-02-19 | J149: 13790 | K149: 279.6706179 | L149: 790.1427429 | M149: 575.3076347 | N149: 0 | S149: 9.529633745 | T149: 11.01793528 | U149: 10.25664368 | V149: 6.715830414 | W149: 6.969455234 | X149: 6.838144075 | Z149: 2.211397409 | AA149: 2.211397409 | AB149: 2.211397409 | AG149: 44.06492297 | AH149: 70.03531507 | AI149: 51.76120528 | AU149: 9100 | AV149: 137.7133718 | AW149: 550.4195251 | AX149: 379.9377935 | BD149: 1.442292686 | BE149: 1.85942806 | BF149: 1.678115962 | BH149: 10.771875 | BI149: 11.48411458 | BJ149: 11.00080295 | BK149: 9.874688276 | BL149: 16.4236886 | BM149: 12.66181733 | BQ149: 0.009115135492 | BR149: 1.738935284 | BS149: 0.4975646642
A150: 2023-02-20 | B150: 2023-02-20 | J150: 11970 | K150: 222.0244975 | L150: 769.0441722 | M150: 498.4677396 | N150: 0 | S150: 9.595443424 | T150: 10.72352066 | U150: 10.18610187 | V150: 6.648395038 | W150: 6.969932429 | X150: 6.800830336 | Z150: 2.211397409 | AA150: 2.211397409 | AB150: 2.211397409 | AG150: 44.55059853 | AH150: 66.25120125 | AI150: 52.2563628 | AU150: 8400 | AV150: 131.8359182 | AW150: 493.9959167 | AX150: 350.6740739 | BD150: 1.393192685 | BE150: 1.680154397 | BF150: 1.514108359 | BH150: 9.786458333 | BI150: 11.51927083 | BJ150: 10.27592231 | BK150: 4.560891072 | BL150: 10.27256339 | BM150: 7.750844464 | BQ150: 0.001979433699 | BR150: 1.253820091 | BS150: 0.3029919327
A151: 2023-02-21 | B151: 2023-02-21 | J151: 11030 | K151: 350.6028163 | L151: 544.748261 | M151: 459.1083524 | N151: 0 | O151: 2260 | P151: 1200 | Q151: 113 | R151: 13 | S151: 9.767559179 | T151: 10.8199478 | U151: 10.40363476 | V151: 6.670325756 | W151: 6.791779327 | X151: 6.738430277 | Y151: 7.433 | Z151: 2.211397409 | AA151: 2.211397409 | AB151: 2.211397409 | AC151: 16.3 | AD151: 1189 | AE151: 90.6 | AG151: 48.10361265 | AH151: 75.76275202 | AI151: 58.59580631 | AJ151: 52 | AK151: 338 | AL151: 170 | AM151: 80 | AN151: 0.4 | AO151: 7.68 | AP151: 7.458 | AQ151: 1143 | AR151: 61.3 | AT151: 49 | AU151: 9000 | AV151: 143.5546672 | AW151: 540.9794271 | AX151: 374.1620594 | AY151: 23.9 | AZ151: 0 | BA151: 1 | BB151: 0 | BC151: 7.168 | BD151: 1.146540987 | BE151: 1.563377146 | BF151: 1.27298801 | BG151: 1.81 | BH151: 9.563541667 | BI151: 10.25520833 | BJ151: 9.908767361 | BK151: 5.211094268 | BL151: 6.721078968 | BM151: 6.177063199 | BN151: 912 | BO151: 6.49 | BQ151: 0.001976460684 | BR151: 1.944734995 | BS151: 0.440067496 | BT151: 1.17
A152: 2023-02-22 | B152: 2023-02-22 | J152: 8870 | K152: 150.2411261 | L152: 503.1539307 | M152: 369.5454147 | N152: 0 | S152: 9.91785291 | T152: 11.04879023 | U152: 10.49255456 | V152: 6.603018983 | W152: 8.186107508 | X152: 7.381310504 | Z152: 0.8239703178 | AA152: 2.211397409 | AB152: 1.43964109 | AG152: 44.40483475 | AH152: 74.13784281 | AI152: 58.24150592 | AU152: 8700 | AV152: 146.9183848 | AW152: 527.5969137 | AX152: 362.107993 | AY152: 31.9 | AZ152: 3 | BA152: 3 | BB152: 0 | BC152: 7.234 | BD152: 1.163213406 | BE152: 1.830099026 | BF152: 1.544188077 | BG152: 1.53 | BH152: 9.267447917 | BI152: 9.76484375 | BJ152: 9.440321181 | BK152: 6.691453648 | BL152: 9.587110265 | BM152: 8.401258618 | BN152: 894 | BO152: 6.69 | BQ152: 0.1925887836 | BR152: 2.082998157 | BS152: 1.096954222 | BT152: 0.5
A153: 2023-02-23 | B153: 2023-02-23 | J153: 8790 | K153: 170.2932096 | L153: 520.8357432 | M153: 366.2423831 | N153: 0 | O153: 659 | P153: 360 | Q153: 473 | R153: 22 | S153: 9.937343359 | T153: 10.95776757 | U153: 10.54705193 | V153: 7.637888718 | W153: 8.28000892 | X153: 7.881543104 | Y153: 8.002 | Z153: 0.8239703178 | AA153: 0.8239703178 | AB153: 0.8239703178 | AC153: 9.65 | AD153: 1072 | AE153: 72.6 | AG153: 32.38654053 | AH153: 76.87178281 | AI153: 59.24807257 | AJ153: 57 | AK153: 393 | AL153: 250 | AM153: 86 | AN153: 0.4 | AO153: 8.54 | AP153: 7.446 | AQ153: 1123 | AR153: 63.4 | AT153: 51 | AU153: 8600 | AV153: 122.01604 | AW153: 502.9658183 | AX153: 359.9144941 | AY153: 25.4 | AZ153: 4 | BA153: 1 | BB153: 0 | BC153: 6.988 | BD153: 1.577752391 | BE153: 1.868232687 | BF153: 1.771038034 | BG153: 1.53 | BH153: 9.105729167 | BI153: 9.430729167 | BJ153: 9.229828559 | BK153: 8.502563159 | BL153: 11.47828207 | BM153: 10.54345395 | BN153: 913 | BO153: 8.78 | BQ153: 0.156123719 | BR153: 2.556103031 | BS153: 1.048007027 | BT153: 0.29
A154: 2023-02-24 | B154: 2023-02-24 | J154: 9010 | K154: 176.5407974 | L154: 494.7241496 | M154: 375.3411927 | N154: 0 | S154: 9.864632543 | T154: 11.25839655 | U154: 10.58900478 | V154: 7.720247618 | W154: 8.257637246 | X154: 7.896244957 | Z154: 0.8239703178 | AA154: 0.8239703178 | AB154: 0.8239703178 | AG154: 50.2835832 | AH154: 74.50498403 | AI154: 61.33042182 | AU154: 8800 | AV154: 126.555247 | AW154: 486.2195923 | AX154: 367.2319328 | BD154: 1.645310114 | BE154: 1.869138259 | BF154: 1.780767213 | BH154: 9.054166667 | BI154: 9.7359375 | BJ154: 9.387098524 | BK154: 9.261000983 | BL154: 13.53000116 | BM154: 12.60053225 | BQ154: 0.1136607772 | BR154: 1.786257158 | BS154: 0.7741045446
A155: 2023-02-25 | B155: 2023-02-25 | J155: 13980 | K155: 191.4520624 | L155: 1199.100596 | M155: 581.2589405 | N155: 0 | S155: 7.545443265 | T155: 10.74213878 | U155: 9.617034114 | V155: 7.444037199 | W155: 8.316864045 | X155: 7.802566295 | Z155: 0.8239703178 | AA155: 0.8239703178 | AB155: 0.8239703178 | AG155: 20.41973133 | AH155: 57.62281672 | AI155: 39.72994041 | AU155: 14000 | AV155: 176.1067525 | AW155: 1143.681236 | AX155: 585.224639 | BD155: 1.493305767 | BE155: 2.469949953 | BF155: 1.794658699 | BH155: 9.916927083 | BI155: 12.16354167 | BJ155: 10.80749783 | BK155: 11.89031342 | BL155: 16.09289179 | BM155: 14.84915926 | BQ155: 0.1103487571 | BR155: 2.77444907 | BS155: 1.062061947
A156: 2023-02-26 | B156: 2023-02-26 | J156: 11050 | K156: 187.6398533 | L156: 1008.588922 | M156: 460.3650242 | N156: 0 | S156: 7.304339457 | T156: 10.6292347 | U156: 9.343468205 | V156: 7.66695056 | W156: 8.384494527 | X156: 8.050309956 | Z156: 0.8239703178 | AA156: 0.8239703178 | AB156: 0.8239703178 | AG156: 17.4896649 | AH156: 55.57731056 | AI156: 36.79216895 | AU156: 12000 | AV156: 215.1873362 | AW156: 1036.205111 | AX156: 499.5463534 | BD156: 1.405973742 | BE156: 2.175244244 | BF156: 1.603761872 | BH156: 10.228125 | BI156: 11.87369792 | BJ156: 11.13934462 | BK156: 5.264438168 | BL156: 12.08653243 | BM156: 8.589366016 | BQ156: 0.1935417886 | BR156: 1.756094368 | BS156: 0.8623517024
A157: 2023-02-27 | B157: 2023-02-27 | J157: 8670 | K157: 143.7958136 | L157: 481.1704259 | M157: 361.180032 | N157: 0 | O157: 271 | P157: 100 | Q157: 80 | R157: 5 | S157: 9.279688962 | T157: 10.34835019 | U157: 9.886891123 | V157: 7.812040536 | W157: 8.385964584 | X157: 8.048687579 | Y157: 7.818 | Z157: 0.8239703178 | AA157: 0.8239703178 | AB157: 0.8239703178 | AC157: 7.01 | AD157: 1012 | AE157: 46.5 | AG157: 41.35366135 | AH157: 63.90230687 | AI157: 48.72677521 | AJ157: 38.2 | AK157: 328 | AL157: 120 | AM157: 78 | AN157: 0.3 | AO157: 6.64 | AP157: 7.585 | AQ157: 1072 | AR157: 50.5 | AT157: 43 | AU157: 8800 | AV157: 143.4461619 | AW157: 490.0354167 | AX157: 365.4204698 | AY157: 26.2 | AZ157: 1 | BA157: 1 | BB157: 0 | BC157: 6.825 | BD157: 1.393384965 | BE157: 1.639440825 | BF157: 1.519309503 | BG157: 1.75 | BH157: 10.12265625 | BI157: 10.66822917 | BJ157: 10.33704427 | BK157: 4.376344188 | BL157: 6.416063372 | BM157: 5.467553413 | BN157: 856 | BO157: 5.78 | BQ157: 0.001971125137 | BR157: 1.457237109 | BS157: 0.553647778 | BT157: 0.22
A158: 2023-02-28 | B158: 2023-02-28 | J158: 9310 | K158: 170.6886569 | L158: 578.5349147 | M158: 387.7089748 | N158: 10 | S158: 9.255197128 | T158: 10.65966781 | U158: 9.944011126 | V158: 7.750336917 | W158: 8.461327744 | X158: 7.961003282 | Z158: 0.8239703178 | AA158: 0.8239703178 | AB158: 0.8239703178 | AG158: 46.68874957 | AH158: 69.43723551 | AI158: 56.61410311 | AU158: 9100 | AV158: 138.4729238 | AW158: 607.1325033 | AX158: 381.9466796 | BD158: 1.417001535 | BE158: 1.821498189 | BF158: 1.554375336 | BH158: 10.12682292 | BI158: 10.37838542 | BJ158: 10.24270833 | BK158: 3.973359934 | BL158: 6.545484765 | BM158: 5.66875652 | BQ158: 0.001971125137 | BR158: 1.897992742 | BS158: 0.7148583591
B162: Povprečje | J162: =IF(OR(J131,J132,J133,J134,J135,J136,J137,J138,J139,J140,J141,J142,J143,J144,J145,J146,J147,J148,J149,J150,J151,J152,J153,J154,J154,J155,J156<>""),AVERAGE(J131:J161),"") -> 9999.642857 | M162: =IF(OR(M131,M132,M133,M134,M135,M136,M137,M138,M139,M140,M141,M142,M143,M144,M145,M146,M147,M148,M149,M150,M151,M152,M153,M154,M154,M155,M156<>""),AVERAGE(M131:M161),"") -> 416.5978078 | N162: 0.3571428571 | O162: 847.375 | P162: 401.25 | Q162: 332.375 | R162: 12.3125 | U162: =IF(OR(U131,U132,U133,U134,U135,U136,U137,U138,U139,U140,U141,U142,U143,U144,U145,U146,U147,U148,U149,U150,U151,U152,U153,U154,U154,U155,U156<>""),AVERAGE(U131:U161),"") -> 9.782727199 | X162: =IF(OR(X131,X132,X133,X134,X135,X136,X137,X138,X139,X140,X141,X142,X143,X144,X145,X146,X147,X148,X149,X150,X151,X152,X153,X154,X154,X155,X156<>""),AVERAGE(X131:X161),"") -> 7.748827097 | Y162: =IF(OR(Y131,Y132,Y133,Y134,Y135,Y136,Y137,Y138,Y139,Y140,Y141,Y142,Y143,Y144,Y145,Y146,Y147,Y148,Y149,Y150,Y151,Y152,Y153,Y154,Y154,Y155,Y156<>""),AVERAGE(Y131:Y161),"") -> 7.90175 | AB162: =IF(OR(AB131,AB132,AB133,AB134,AB135,AB136,AB137,AB138,AB139,AB140,AB141,AB142,AB143,AB144,AB145,AB146,AB147,AB148,AB149,AB150,AB151,AB152,AB153,AB154,AB154,AB155,AB156<>""),AVERAGE(AB131:AB161),"") -> 3.014098752 | AC162: =IF(OR(AC131,AC132,AC133,AC134,AC135,AC136,AC137,AC138,AC139,AC140,AC141,AC142,AC143,AC144,AC145,AC146,AC147,AC148,AC149,AC150,AC151,AC152,AC153,AC154,AC154,AC155,AC156<>""),AVERAGE(AC131:AC161),"") -> 10.18 | AD162: =IF(OR(AD131,AD132,AD133,AD134,AD135,AD136,AD137,AD138,AD139,AD140,AD141,AD142,AD143,AD144,AD145,AD146,AD147,AD148,AD149,AD150,AD151,AD152,AD153,AD154,AD154,AD155,AD156<>""),AVERAGE(AD131:AD161),"") -> 1258 | AE162: =IF(OR(AE131,AE132,AE133,AE134,AE135,AE136,AE137,AE138,AE139,AE140,AE141,AE142,AE143,AE144,AE145,AE146,AE147,AE148,AE149,AE150,AE151,AE152,AE153,AE154,AE154,AE155,AE156<>""),AVERAGE(AE131:AE161),"") -> 70.9 | AF162: =IF(OR(AF131,AF132,AF133,AF134,AF135,AF136,AF137,AF138,AF139,AF140,AF141,AF142,AF143,AF144,AF145,AF146,AF147,AF148,AF149,AF150,AF151,AF152,AF153,AF154,AF154,AF155,AF156<>""),AVERAGE(AF131:AF161),"") ->  | AI162: =IF(OR(AI131,AI132,AI133,AI134,AI135,AI136,AI137,AI138,AI139,AI140,AI141,AI142,AI143,AI144,AI145,AI146,AI147,AI148,AI149,AI150,AI151,AI152,AI153,AI154,AI154,AI155,AI156<>""),AVERAGE(AI131:AI161),"") -> 51.27150082 | AJ162: 51.4 | AK162: 312.875 | AL162: 155 | AM162: 83.5 | AN162: 0.3625 | AO162: 6.93625 | AP162: 7.564625 | AQ162: 1117 | AR162: 57.5875 | AT162: 46.875 | AU162: 9450 | AX162: =IF(OR(AX131,AX132,AX133,AX134,AX135,AX136,AX137,AX138,AX139,AX140,AX141,AX142,AX143,AX144,AX145,AX146,AX147,AX148,AX149,AX150,AX151,AX152,AX153,AX154,AX154,AX155,AX156<>""),AVERAGE(AX131:AX161),"") -> 394.3362503 | AY162: 24.94444444 | AZ162: 1.222222222 | BA162: 2 | BB162: 0.01111111111 | BC162: 7.144444444 | BF162: =IF(OR(BF131,BF132,BF133,BF134,BF135,BF136,BF137,BF138,BF139,BF140,BF141,BF142,BF143,BF144,BF145,BF146,BF147,BF148,BF149,BF150,BF151,BF152,BF153,BF154,BF154,BF155,BF156<>""),AVERAGE(BF131:BF161),"") -> 1.57224485 | BG162: =IF(OR(BG131,BG132,BG133,BG134,BG135,BG136,BG137,BG138,BG139,BG140,BG141,BG142,BG143,BG144,BG145,BG146,BG147,BG148,BG149,BG150,BG151,BG152,BG153,BG154,BG154,BG155,BG156<>""),AVERAGE(BG131:BG161),"") -> 1.656666667 | BJ162: =IF(OR(BJ131,BJ132,BJ133,BJ134,BJ135,BJ136,BJ137,BJ138,BJ139,BJ140,BJ141,BJ142,BJ143,BJ144,BJ145,BJ146,BJ147,BJ148,BJ149,BJ150,BJ151,BJ152,BJ153,BJ154,BJ154,BJ155,BJ156<>""),AVERAGE(BJ131:BJ161),"") -> 9.884226578 | BM162: =IF(OR(BM131,BM132,BM133,BM134,BM135,BM136,BM137,BM138,BM139,BM140,BM141,BM142,BM143,BM144,BM145,BM146,BM147,BM148,BM149,BM150,BM151,BM152,BM153,BM154,BM154,BM155,BM156<>""),AVERAGE(BM131:BM161),"") -> 11.29567123 | BN162: =IF(OR(BN131,BN132,BN133,BN134,BN135,BN136,BN137,BN138,BN139,BN140,BN141,BN142,BN143,BN144,BN145,BN146,BN147,BN148,BN149,BN150,BN151,BN152,BN153,BN154,BN154,BN155,BN156<>""),AVERAGE(BN131:BN161),"") -> 897.1111111 | BO162: =IF(OR(BO131,BO132,BO133,BO134,BO135,BO136,BO137,BO138,BO139,BO140,BO141,BO142,BO143,BO144,BO145,BO146,BO147,BO148,BO149,BO150,BO151,BO152,BO153,BO154,BO154,BO155,BO156<>""),AVERAGE(BO131:BO161),"") -> 8.524444444 | BP162: =IF(OR(BP131,BP132,BP133,BP134,BP135,BP136,BP137,BP138,BP139,BP140,BP141,BP142,BP143,BP144,BP145,BP146,BP147,BP148,BP149,BP150,BP151,BP152,BP153,BP154,BP154,BP155,BP156<>""),AVERAGE(BP131:BP161),"") ->  | BS162: =IF(OR(BS131,BS132,BS133,BS134,BS135,BS136,BS137,BS138,BS139,BS140,BS141,BS142,BS143,BS144,BS145,BS146,BS147,BS148,BS149,BS150,BS151,BS152,BS153,BS154,BS154,BS155,BS156<>""),AVERAGE(BS131:BS161),"") -> 0.8362887796 | BT162: 0.42
B163: Skupno: | J163: =IF(OR(J131,J132,J133,J134,J135,J136,J137,J138,J139,J140,J141,J142,J143,J144,J145,J146,J147,J148,J149,J150,J151,J152,J153,J154,J154,J155,J156<>""),SUM(J131:J161),"") -> 279990 | N163: =IF(OR(N131,N132,N133,N134,N135,N136,N137,N138,N139,N140,N141,N142,N143,N144,N145,N146,N147,N148,N149,N150,N151,N152,N153,N154,N154,N155,N156<>""),SUM(N131:N161),"") -> 10 | AU163: =IF(OR(AU131,AU132,AU133,AU134,AU135,AU136,AU137,AU138,AU139,AU140,AU141,AU142,AU143,AU144,AU145,AU146,AU147,AU148,AU149,AU150,AU151,AU152,AU153,AU154,AU154,AU155,AU156<>""),SUM(AU131:AU161),"") -> 264600
B164: Min: | J164: =IF(OR(J131,J132,J133,J134,J135,J136,J137,J138,J139,J140,J141,J142,J143,J144,J145,J146,J147,J148,J149,J150,J151,J152,J153,J154,J154,J155,J156<>""),MIN(J131:J161),"") -> 8260 | K164: 135.0477425 | L164: 453.2503845 | M164: 343.9216008 | N164: 0 | O164: 271 | P164: 100 | Q164: 80 | R164: 5 | S164: 7.304339457 | T164: 9.671561003 | U164: 9.201046847 | V164: 6.603018983 | W164: 6.791779327 | X164: 6.738430277 | Y164: 7.433 | Z164: 0.3228747373 | AA164: 0.8239703178 | AB164: 0.8239703178 | AC164: 7.01 | AD164: 1012 | AE164: 46.5 | AG164: 17.4896649 | AH164: 55.57731056 | AI164: 36.79216895 | AJ164: 38.2 | AK164: =IF(OR(AK131,AK132,AK133,AK134,AK135,AK136,AK137,AK138,AK139,AK140,AK141,AK142,AK143,AK144,AK145,AK146,AK147,AK148,AK149,AK150,AK151,AK152,AK153,AK154,AK154,AK155,AK156<>""),MIN(AK131:AK161),"") -> 241 | AL164: =IF(OR(AL131,AL132,AL133,AL134,AL135,AL136,AL137,AL138,AL139,AL140,AL141,AL142,AL143,AL144,AL145,AL146,AL147,AL148,AL149,AL150,AL151,AL152,AL153,AL154,AL154,AL155,AL156<>""),MIN(AL131:AL161),"") -> 110 | AM164: 58 | AN164: 0 | AO164: 5.37 | AP164: 7.446 | AQ164: 1009 | AR164: 50.5 | AT164: 41 | AU164: 8200 | AV164: 117.3683258 | AW164: 468.3159505 | AX164: 343.4380171 | AY164: 20.5 | AZ164: 0 | BA164: 0 | BB164: 0 | BC164: 6.825 | BD164: 1.146540987 | BE164: 1.563377146 | BF164: 1.27298801 | BG164: 1.53 | BH164: 8.4890625 | BI164: 9.200260417 | BJ164: 8.965505642 | BK164: 3.973359934 | BL164: 6.416063372 | BM164: 5.467553413 | BN164: 815 | BO164: 5.78 | BQ164: 0.001963472227 | BR164: 1.253820091 | BS164: 0.3029919327 | BT164: 0.18 | BV164: =IF(OR(BV131,BV132,BV133,BV134,BV135,BV136,BV137,BV138,BV139,BV140,BV141,BV142,BV143,BV144,BV145,BV146,BV147,BV148,BV149,BV150,BV151,BV152,BV153,BV154,BV154,BV155,BV156<>""),MIN(BV131:BV161),"") -> 
B165: Max: | J165: =IF(OR(J131,J132,J133,J134,J135,J136,J137,J138,J139,J140,J141,J142,J143,J144,J145,J146,J147,J148,J149,J150,J151,J152,J153,J154,J154,J155,J156<>""),MAX(J131:J161),"") -> 13980 | K165: 350.6028163 | L165: 1199.100596 | M165: 581.2589405 | N165: 10 | O165: 2260 | P165: 1200 | Q165: 653 | R165: 22 | S165: 9.937343359 | T165: 11.25839655 | U165: 10.58900478 | V165: 7.906450526 | W165: 9.954197598 | X165: 8.385539578 | Y165: 8.5 | Z165: 9.975801468 | AA165: 28.05100466 | AB165: 9.975801468 | AC165: 16.3 | AD165: 2080 | AE165: 90.6 | AG165: 50.2835832 | AH165: 76.87178281 | AI165: 62.68675563 | AJ165: 62 | AK165: =IF(OR(AK131,AK132,AK133,AK134,AK135,AK136,AK137,AK138,AK139,AK140,AK141,AK142,AK143,AK144,AK145,AK146,AK147,AK148,AK149,AK150,AK151,AK152,AK153,AK154,AK154,AK155,AK156<>""),MAX(AK131:AK161),"") -> 393 | AL165: =IF(OR(AL131,AL132,AL133,AL134,AL135,AL136,AL137,AL138,AL139,AL140,AL141,AL142,AL143,AL144,AL145,AL146,AL147,AL148,AL149,AL150,AL151,AL152,AL153,AL154,AL154,AL155,AL156<>""),MAX(AL131:AL161),"") -> 250 | AM165: 116 | AN165: 0.6 | AO165: 8.54 | AP165: 7.923 | AQ165: 1188 | AR165: 63.4 | AT165: 51 | AU165: 14000 | AV165: 215.1873362 | AW165: 1143.681236 | AX165: 585.224639 | AY165: 31.9 | AZ165: 4 | BA165: 7 | BB165: 0.1 | BC165: 7.437 | BD165: 1.645310114 | BE165: 2.469949953 | BF165: 1.885302095 | BG165: 1.81 | BH165: 10.97838542 | BI165: 12.16354167 | BJ165: 11.13934462 | BK165: 14.71443858 | BL165: 19.22447017 | BM165: 17.52899925 | BN165: 971 | BO165: 11.9 | BQ165: 0.7062201699 | BR165: 3.607438946 | BS165: 1.438892252 | BT165: 1.17 | BV165: =IF(OR(BV131,BV132,BV133,BV134,BV135,BV136,BV137,BV138,BV139,BV140,BV141,BV142,BV143,BV144,BV145,BV146,BV147,BV148,BV149,BV150,BV151,BV152,BV153,BV154,BV154,BV155,BV156<>""),MAX(BV131:BV161),"") -> 
J168: VTOK | N168: Septika | O168: VTOK | S168: VTOK | AD168: VTOK | AK168: Mehansko predčiščenje | AU168: IZTOK | BC168: IZTOK | BN168: IZTOK | BU168: Deževni bazen
A169: Slovenčeva 95, 1000 Ljubljana Slovenia | J169: Pretok | N169: Pretok | O169: KPK | P169: BPK | Q169: Neraztopljene snovi | R169: Usedljive snovi | S169: Temperatura | V169: pH | Z169: Fosfor | AD169: Prevodnost | AE169: Celotni dušik | AF169: NO3-N | AG169: Amoniak | AK169: KPK | AL169: BPK | AM169: Neraztopljene snovi | AN169: Usedljive snovi | AO169: Fosfor | AP169: pH | AQ169: Prevodnost | AR169: Celotni dušik | AS169: NO3-N | AT169: Amoniak | AU169: Pretok | AY169: KPK | AZ169: BPK | BA169: Neraztopljene snovi | BB169: Usedljive snovi | BC169: pH | BD169: Fosfor | BH169: Totalni ogljik | BK169: Totalni dušik | BN169: Prevodnost | BO169: Celotni dušik | BP169: NO3-N | BQ169: Amoniak | BU169: KPK | BV169: BPK | BW169: Neraztopljene snovi | BX169: Usedljive snovi | BY169: Fosfor | BZ169: pH | CA169: Prevodnost | CB169: Celotni dušik | CC169: NO3-N | CD169: Amoniak
I171: Tag: | J171: LT 05.01 in LT 05.02 | N171: FT 15.01 | O171: Laboratori | P171: Laboratori | Q171: Laboratori | R171: Laboratori | S171: AT 05.03 | V171: pH 05.03 | Y171: Laboratori | Z171: PO4P 05.06 | AC171: Laboratori | AD171: Laboratori | AE171: Laboratori | AF171: Laboratori | AG171: NH4N 08.10 | AJ171: Laboratori | AK171: Laboratori | AL171: Laboratori | AM171: Laboratori | AN171: Laboratori | AO171: Laboratori | AP171: Laboratori | AQ171: Laboratori | AR171: Laboratori | AS171: Laboratori | AT171: Laboratori | AU171: FT 13.01 | AY171: Laboratori | AZ171: Laboratori | BA171: Laboratori | BB171: Laboratori | BC171: Laboratori | BD171: PO4P 07.02 | BG171: Laboratori | BH171: TOC 14.01 | BK171: TN 14.01 | BN171: Laboratori | BO171: Laboratori | BP171: Laboratori | BQ171: NH4N 08.11 | BT171: Laboratori | BU171: Laboratori | BV171: Laboratori | BW171: Laboratori | BX171: Laboratori | BY171: Laboratori | BZ171: Laboratori | CA171: Laboratori | CB171: Laboratori | CC171: Laboratori | CD171: Laboratori
I172: Enote | J172: m³ | K172: m³/h | L172: m³/h | M172: m³/h | N172: m³ | O172: mg/l | P172: mg/l | Q172: mg/l | R172: ml/l | S172: °C | T172: °C | U172: °C | Z172: mg/l | AA172: mg/l | AB172: mg/l | AC172: mg/l | AD172: µS/cm | AE172: mg/l | AF172: mg/l | AG172: mg/l | AH172: mg/l | AI172: mg/l | AJ172: mg/l | AK172: mg/l | AL172: mg/l | AM172: mg/l | AN172: ml/l | AO172: mg/l | AQ172: µS/cm | AR172: mg/l | AS172: mg/l | AT172: mg/l | AU172: m³ | AV172: m³/h | AW172: m³/h | AX172: m³/h | AY172: mg/l | AZ172: mg/l | BA172: mg/l | BB172: ml/l | BD172: mg/l | BE172: mg/l | BF172: mg/l | BG172: mg/l | BH172: mgC/l | BI172: mgC/l | BJ172: mgC/l | BK172: mgN/l | BL172: mgN/l | BM172: mgN/l | BN172: µS/cm | BO172: mg/l | BP172: mg/l | BQ172: mg/l | BR172: mg/l | BS172: mg/l | BT172: mg/l | BU172: mg/l | BV172: mg/l | BW172: mg/l | BX172: ml/l | BY172: mg/l | CA172: µS/cm | CB172: mg/l | CC172: mg/l | CD172: mg/l
A176: Datum | B176: Dan | J176: Kumulativa | K176: Minimalno | L176: Maksimalno | M176: Povprečje | N176: Kumulativa | O176: Vrednost | P176: Vrednost | Q176: Vrednost | R176: Vrednost | S176: Minimalno | T176: Maksimalno | U176: Povprečje | V176: Minimalno | W176: Maksimalno | X176: Povprečje | Y176: Vrednost | Z176: Minimalno | AA176: Maksimalno | AB176: Povprečje | AC176: Vrednost | AD176: Vrednost | AE176: Vrednost | AF176: Vrednost | AG176: Minimalno | AH176: Maksimalno | AI176: Povprečje | AJ176: Vrednost | AK176: Vrednost | AL176: Vrednost | AM176: Vrednost | AN176: Vrednost | AO176: Vrednost | AP176: Vrednost | AQ176: Vrednost | AR176: Vrednost | AS176: Vrednost | AT176: Vrednost | AU176: Kumulativa | AV176: Minimalno | AW176: Maksimalno | AX176: Povprečje | AY176: Vrednost | AZ176: Vrednost | BA176: Vrednost | BB176: Vrednost | BC176: Vrednost | BD176: Minimalno | BE176: Maksimalno | BF176: Povprečje | BG176: Vrednost | BH176: Minimalno | BI176: Maksimalno | BJ176: Povprečje | BK176: Minimalno | BL176: Maksimalno | BM176: Povprečje | BN176: Vrednost | BO176: Vrednost | BP176: Vrednost | BQ176: Minimalno | BR176: Maksimalno | BS176: Povprečje | BT176: Vrednost | BU176: Vrednost | BV176: Vrednost | BW176: Vrednost | BX176: Vrednost | BY176: Vrednost | BZ176: Vrednost | CA176: Vrednost | CB176: Vrednost | CC176: Vrednost | CD176: Vrednost
A177: 2023-03-01 | B177: =IF(A177>0,A177,"") -> 2023-03-01 | J177: 10550 | K177: 156.2837568 | L177: 924.9011292 | M177: 440.4162227 | N177: 0 | O177: 662 | P177: 340 | Q177: 307 | R177: 12 | S177: 9.303527864 | T177: 10.45752227 | U177: 9.883239842 | V177: 7.674125894 | W177: 8.331809457 | X177: 7.939386624 | Y177: 7.689 | AC177: 10.62 | AD177: 1342 | AE177: 78.9 | AG177: 34.16686535 | AH177: 75.73454285 | AI177: 57.07279338 | AJ177: 63 | AK177: 323 | AL177: 160 | AM177: 84 | AN177: 0.3 | AO177: 7.86 | AP177: 7.607 | AQ177: 1191 | AR177: 62.4 | AT177: 52 | AU177: 10300 | AV177: 115.3247782 | AW177: 931.532074 | AX177: 427.7275663 | AY177: 25.1 | AZ177: 1 | BA177: 2 | BB177: 0 | BC177: 7.086 | BD177: 1.499070776 | BE177: 1.896537648 | BF177: 1.71695416 | BG177: 1.66 | BH177: 10.05260417 | BI177: 10.42890625 | BJ177: 10.2102322 | BK177: 6.916969411 | BL177: 11.9215792 | BM177: 9.337842603 | BN177: 912 | BO177: 6.22 | BQ177: 0.06332838784 | BR177: 7.365087167 | BS177: 1.488434368 | BT177: 1
A178: 2023-03-02 | B178: =IF(A178>0,A178,"") -> 2023-03-02 | J178: 9670 | K178: 206.3054565 | L178: 521.6845098 | M178: 402.890503 | N178: 0 | S178: 8.997357623 | T178: 10.64485866 | U178: 9.909861608 | V178: 7.631492758 | W178: 8.218567785 | X178: 7.969828274 | AG178: 16.79035476 | AH178: 74.80928167 | AI178: 53.10957733 | AU178: 9500 | AV178: 158.5286296 | AW178: 607.7292765 | AX178: 398.7569662 | BD178: 1.488417182 | BE178: 1.883999699 | BF178: 1.657517762 | BH178: 10.29036458 | BI178: 10.90911458 | BJ178: 10.68808594 | BK178: 10.74398521 | BL178: 17.22970425 | BM178: 14.95682529 | BQ178: 0.2054375043 | BR178: 7.727531672 | BS178: 2.07081384
A179: 2023-03-03 | B179: 2023-03-03 | J179: 9010 | K179: 162.6012723 | L179: 504.6923192 | M179: 375.546351 | N179: 0 | S179: 9.67706 | T179: 10.74048955 | U179: 10.2787036 | V179: 7.830315495 | W179: 8.387607416 | X179: 8.031555794 | AG179: 47.44485423 | AH179: 76.96155268 | AI179: 61.56055025 | AU179: 8800 | AV179: 151.7107758 | AW179: 489.9992432 | AX179: 367.011903 | BD179: 1.505191072 | BE179: 1.835206262 | BF179: 1.697284933 | BH179: 11.05833333 | BI179: 11.78515625 | BJ179: 11.47458767 | BK179: 8.952281809 | BL179: 16.41656359 | BM179: 15.10012994 | BQ179: 0.1157374177 | BR179: 2.394365823 | BS179: 0.8301378749
A180: 2023-03-04 | B180: 2023-03-04 | J180: 9220 | K180: 168.5474538 | L180: 565.3067103 | M180: 383.6629723 | N180: 0 | S180: 9.616288153 | T180: 11.36994971 | U180: 10.33566381 | V180: 7.775507323 | W180: 8.334129524 | X180: 7.951801743 | AG180: 39.71810932 | AH180: 62.68864079 | AI180: 48.3301311 | AU180: 9100 | AV180: 137.2250916 | AW180: 534.8487976 | AX180: 379.4999977 | BD180: 1.471960908 | BE180: 1.952659202 | BF180: 1.760828136 | BH180: 11.46666667 | BI180: 13.38802083 | BJ180: 12.07396918 | BK180: 11.94318832 | BL180: 18.16631365 | BM180: 17.05108903 | BQ180: 0.1517153949 | BR180: 1.438938079 | BS180: 0.7383676833
A181: 2023-03-05 | B181: 2023-03-05 | J181: 8900 | K181: 140.723862 | L181: 542.8264801 | M181: 371.3616001 | N181: 0 | S181: 9.578769795 | T181: 10.80176717 | U181: 10.2713871 | V181: 7.798235178 | W181: 8.351814016 | X181: 7.923191198 | AG181: 43.71109683 | AH181: 64.73855985 | AI181: 49.1376665 | AU181: 8900 | AV181: 125.8861216 | AW181: 558.376711 | AX181: 370.6913458 | BD181: 1.264574595 | BE181: 1.784332418 | BF181: 1.554750935 | BH181: 12.73255208 | BI181: 13.6609375 | BJ181: 13.26183811 | BK181: 9.630938371 | BL181: 16.46146984 | BM181: 12.80137594 | BQ181: 0.001980861183 | BR181: 1.374995311 | BS181: 0.492666138
A182: 2023-03-06 | B182: 2023-03-06 | J182: 10470 | K182: 157.7570394 | L182: 772.793692 | M182: 436.1708884 | N182: 0 | O182: 745 | P182: 360 | Q182: 253 | R182: 12 | S182: 9.540426079 | T182: 10.65918589 | U182: 10.05974755 | V182: 7.549538938 | W182: 8.301095994 | X182: 7.917713152 | Y182: 7.567 | AC182: 9.17 | AD182: 1106 | AE182: 69.2 | AG182: 41.50154483 | AH182: 67.67618154 | AI182: 50.41010332 | AJ182: 51 | AU182: 10200 | AV182: 108.3803324 | AW182: 807.2012024 | AX182: 426.5535823 | BD182: 1.115281343 | BE182: 1.409561416 | BF182: 1.284492581 | BH182: 9.53671875 | BI182: 13.20885417 | BJ182: 10.42730035 | BK182: 6.134016387 | BL182: 9.55865701 | BM182: 7.615985145 | BQ182: 0.001980861183 | BR182: 1.964095434 | BS182: 0.6139436847
A183: 2023-03-07 | B183: 2023-03-07 | J183: 18570 | K183: 483.7770035 | L183: 1166.374904 | M183: 771.7832324 | N183: 0 | S183: 5.230605658 | T183: 9.72686189 | U183: 8.15559449 | V183: 7.445427291 | W183: 8.290515423 | X183: 7.961521114 | AG183: 7.629456155 | AH183: 60.94463348 | AI183: 37.70726841 | AK183: 124 | AL183: 45 | AM183: 64 | AN183: 0.7 | AO183: 2.14 | AP183: 7.619 | AQ183: 333 | AR183: 19.5 | AT183: 11.8 | AU183: 19000 | AV183: 536.6029806 | AW183: 1229.980422 | AX183: 789.6008885 | AY183: 31.9 | AZ183: 1 | BA183: 1 | BB183: 0 | BC183: 7.224 | BD183: 1.291018983 | BE183: 1.973861128 | BF183: 1.545943498 | BG183: 1.64 | BN183: 891 | BO183: 7.49 | BQ183: 0.1835147773 | BR183: 1.935929247 | BS183: 1.426342796 | BT183: 0.42 | BU183: 77.6 | BV183: 46 | BW183: 46 | BX183: 0 | BY183: 1.12 | BZ183: 7.356 | CA183: 233 | CB183: 9.97 | CD183: 5.85
A184: 2023-03-08 | B184: 2023-03-08 | J184: 12230 | K184: 244.6421664 | L184: 658.5117676 | M184: 509.5733247 | N184: 0 | O184: 556 | P184: 300 | Q184: 300 | R184: 11 | S184: 8.252680508 | T184: 9.98445638 | U184: 9.347860984 | V184: 7.827738746 | W184: 8.311140347 | X184: 8.00470983 | Y184: 7.672 | AC184: 7.07 | AD184: 1029 | AE184: 56.9 | AG184: 35.30053107 | AH184: 64.26921463 | AI184: 50.95620381 | AJ184: 42 | AK184: 226 | AL184: 100 | AM184: 66 | AN184: 0.4 | AO184: 5.21 | AP184: 7.581 | AQ184: 982 | AR184: 46.8 | AT184: 36.5 | AU184: 11400 | AV184: 248.0106791 | AW184: 604.9081014 | AX184: 474.8143056 | AY184: 24.8 | AZ184: 2 | BA184: 0 | BB184: 0 | BC184: 7.227 | BD184: 1.41562436 | BE184: 1.859047186 | BF184: 1.598151921 | BG184: 1.63 | BN184: 764 | BO184: 7.62 | BQ184: 0.1166354805 | BR184: 2.346350133 | BS184: 1.196014209 | BT184: 0.5
A185: 2023-03-09 | B185: 2023-03-09 | J185: 11160 | K185: 252.1653152 | L185: 644.2153753 | M185: 465.439833 | N185: 0 | S185: 8.697927141 | T185: 10.45714847 | U185: 9.613173068 | V185: 7.634492048 | W185: 8.349989096 | X185: 7.891002855 | AG185: 10.73289926 | AH185: 67.27054469 | AI185: 47.79423419 | AU185: 11100 | AV185: 216.9234375 | AW185: 664.2252136 | AX185: 465.2875454 | BD185: 1.623162127 | BE185: 1.866448931 | BF185: 1.747491141 | BQ185: 0.1989288777 | BR185: 2.171699047 | BS185: 1.0414919
A186: 2023-03-10 | B186: 2023-03-10 | J186: 9440 | K186: 162.7459482 | L186: 510.5733973 | M186: 393.1494927 | N186: 0 | S186: 9.644410197 | T186: 11.20583588 | U186: 10.42771609 | V186: 7.530972981 | W186: 7.94377118 | X186: 7.663808285 | AG186: 45.67004426 | AH186: 83.48335965 | AI186: 61.870496 | AU186: 9500 | AV186: 151.2948313 | AW186: 533.8722168 | AX186: 396.8791939 | BD186: 1.440007826 | BE186: 1.95945793 | BF186: 1.732542532 | BQ186: 0.06129811704 | BR186: 2.226889968 | BS186: 0.9385751304
A187: 2023-03-11 | B187: 2023-03-11 | J187: 9680 | K187: 192.9808064 | L187: 556.61651 | M187: 403.580426 | N187: 0 | S187: 9.952219629 | T187: 11.49116209 | U187: 10.63421148 | V187: 7.420423404 | W187: 7.751717552 | X187: 7.5375922 | AG187: 41.96900024 | AH187: 63.89881446 | AI187: 48.88965957 | AU187: 9400 | AV187: 173.9546967 | AW187: 531.8105937 | AX187: 389.7810323 | BD187: 1.588686057 | BE187: 1.899611525 | BF187: 1.722079122 | BQ187: 0.00392966499 | BR187: 1.482941588 | BS187: 0.2978699063
A188: 2023-03-12 | B188: 2023-03-12 | J188: 8690 | K188: 133.0922063 | L188: 507.9161799 | M188: 361.5993909 | N188: 0 | S188: 9.9024182 | T188: 11.31695604 | U188: 10.6087925 | V188: 7.44898301 | W188: 7.951663931 | X188: 7.720799314 | AG188: 43.77869136 | AH188: 66.19880867 | AI188: 50.76745048 | AU188: 8800 | AV188: 124.9276428 | AW188: 523.8895854 | AX188: 366.9968345 | BD188: 1.385640631 | BE188: 1.693605578 | BF188: 1.52308126 | BQ188: 0.001994302729 | BR188: 0.5445612142 | BS188: 0.05812617953
A189: 2023-03-13 | B189: 2023-03-13 | J189: 8890 | K189: 141.1313655 | L189: 532.9137705 | M189: 371.204566 | N189: 0 | S189: 10.01162988 | T189: 11.37210514 | U189: 10.69741315 | V189: 7.711401049 | W189: 8.372831122 | X189: 7.918563221 | AG189: 43.85500946 | AH189: 69.54850375 | AI189: 54.52955796 | AU189: 8800 | AV189: 153.772403 | AW189: 563.2595194 | AX189: 367.0314942 | BD189: 1.402643075 | BE189: 1.777206882 | BF189: 1.580856033 | BQ189: 0.001963823801 | BR189: 0.3563739059 | BS189: 0.05075484911
A190: 2023-03-14 | B190: 2023-03-14 | J190: 13660 | K190: 158.5358777 | L190: 1232.771506 | M190: 568.27106 | N190: 0 | O190: 958 | P190: 450 | Q190: 340 | R190: 13 | S190: 9.80155646 | T190: 11.55666733 | U190: 10.70889662 | V190: 7.613142896 | W190: 8.156027317 | X190: 7.858666127 | Y190: 7.529 | Z190: 3.194758634 | AA190: 7.149236039 | AB190: 4.855440634 | AC190: 11.1 | AD190: 1291 | AE190: 78.5 | AG190: 33.35322584 | AH190: 78.8040479 | AI190: 52.603955 | AJ190: 55 | AK190: 436 | AL190: 240 | AM190: 106 | AN190: 0 | AO190: 8.79 | AP190: 7.394 | AQ190: 1301 | AR190: 68.1 | AT190: 52 | AU190: 13100 | AV190: 144.5493144 | AW190: 1137.912272 | AX190: 546.4703288 | AY190: 24.1 | AZ190: 2 | BA190: 0 | BB190: 0 | BC190: 7.205 | BD190: 1.578002111 | BE190: 2.475165534 | BF190: 1.79574876 | BG190: 1.72 | BH190: 8.57421875 | BI190: 10.19791667 | BJ190: 9.117285156 | BK190: 3.640406704 | BL190: 9.475500806 | BM190: 5.176317004 | BN190: 815 | BO190: 5.08 | BQ190: 0.001963823801 | BR190: 3.12653029 | BS190: 0.8393097319 | BT190: 0.09
A191: 2023-03-15 | B191: 2023-03-15 | J191: 10190 | K191: 172.075134 | L191: 771.0310516 | M191: 425.1686864 | N191: 0 | O191: 1094 | P191: 498 | Q191: 800 | R191: 11 | S191: 10.33754651 | T191: 11.37220438 | U191: 10.92681855 | V191: 7.807232221 | W191: 8.335307439 | X191: 8.021895397 | Y191: 7.596 | Z191: 3.60170604 | AA191: 7.656725025 | AB191: 5.112169856 | AC191: 11.61 | AD191: 1072 | AE191: 74.3 | AG191: 18.50685851 | AH191: 78.3107769 | AI191: 55.26434713 | AJ191: 52 | AK191: 315 | AL191: 165 | AM191: 100 | AN191: 0.4 | AO191: 6.99 | AP191: 7.509 | AQ191: 1010 | AR191: 57.5 | AT191: 45 | AU191: 9600 | AV191: 143.8259349 | AW191: 715.5670878 | AX191: 400.240647 | AY191: 26.2 | AZ191: 0 | BA191: 1 | BB191: 0 | BC191: 7.181 | BD191: 1.474709352 | BE191: 1.849256055 | BF191: 1.609245916 | BG191: 1.94 | BH191: 8.972916667 | BI191: 10.08072917 | BJ191: 9.489409722 | BK191: 6.123188368 | BL191: 10.24345398 | BM191: 8.50209847 | BN191: 839 | BO191: 6.84 | BQ191: 0.001975627616 | BR191: 1.491628879 | BS191: 0.7273691444 | BT191: 1.22
A192: 2023-03-16 | B192: 2023-03-16 | J192: 9420 | K192: 160.5010604 | L192: 512.152774 | M192: 393.0778581 | N192: 0 | S192: 10.27587964 | T192: 11.64767385 | U192: 10.99090445 | V192: 7.845923313 | W192: 8.310342503 | X192: 7.990683558 | Z192: 3.649417273 | AA192: 8.300651437 | AB192: 5.882605706 | AG192: 45.1696715 | AH192: 75.82127787 | AI192: 61.1511328 | AU192: 8800 | AV192: 148.2023783 | AW192: 522.0630595 | AX192: 370.8541039 | BD192: 1.514171473 | BE192: 1.988821888 | BF192: 1.707727494 | BH192: 8.753385417 | BI192: 9.114322917 | BJ192: 8.972276476 | BK192: 7.158609899 | BL192: 8.871844546 | BM192: 8.262283979 | BQ192: 0.001975627616 | BR192: 1.224219898 | BS192: 0.290680404
A193: 2023-03-17 | B193: 2023-03-17 | J193: 9310 | K193: 176.4732817 | L193: 525.0217 | M193: 387.2870038 | N193: 0 | S193: 10.27794361 | T193: 11.49298258 | U193: 10.96224281 | V193: 7.795230309 | W193: 8.365513325 | X193: 7.959882171 | Z193: 3.908554153 | AA193: 14.4456121 | AB193: 7.034319623 | AG193: 46.3437657 | AH193: 79.4688221 | AI193: 60.20903838 | AU193: 8600 | AV193: 129.1232422 | AW193: 494.7192912 | AX193: 356.1303145 | BD193: 1.698752842 | BE193: 2.044358999 | BF193: 1.859446614 | BH193: 8.769010417 | BI193: 11.13880208 | BJ193: 9.414746094 | BK193: 8.281735055 | BL193: 11.88318863 | BM193: 10.60149697 | BQ193: 0.001820502776 | BR193: 2.013110224 | BS193: 0.3307898996
A194: 2023-03-18 | B194: 2023-03-18 | J194: 9680 | K194: 182.3857049 | L194: 576.6710047 | M194: 403.8499857 | N194: 0 | S194: 10.41314648 | T194: 11.56843306 | U194: 10.98873798 | V194: 7.755290349 | W194: 8.290893809 | X194: 7.909279982 | Z194: 3.688884852 | AA194: 10.19885391 | AB194: 5.20074185 | AG194: 38.16863683 | AH194: 62.53673236 | AI194: 47.80272379 | AU194: 8800 | AV194: 153.9894165 | AW194: 549.2078715 | AX194: 366.3246943 | BD194: 1.732202349 | BE194: 2.046462039 | BF194: 1.850865353 | BH194: 11.30833333 | BI194: 12.2109375 | BJ194: 11.83413628 | BK194: 12.26376648 | BL194: 14.15929778 | BM194: 13.09312793 | BQ194: 0.001978001092 | BR194: 0.4865581522 | BS194: 0.06562916987
A195: 2023-03-19 | B195: 2023-03-19 | J195: 9420 | K195: 142.6432279 | L195: 569.7337936 | M195: 391.9152259 | N195: 0 | S195: 10.39265609 | T195: 11.76706802 | U195: 11.1517037 | V195: 7.748619763 | W195: 8.345982806 | X195: 7.903559759 | Z195: 3.287509591 | AA195: 5.272155968 | AB195: 4.475178818 | AG195: 43.22161039 | AH195: 65.73014832 | AI195: 48.39636711 | AU195: 8400 | AV195: 116.3555908 | AW195: 496.9436951 | AX195: 351.132968 | BD195: 1.567911488 | BE195: 1.952134283 | BF195: 1.742990127 | BH195: 10.79166667 | BI195: 11.79973958 | BJ195: 11.2844184 | BK195: 6.630141354 | BL195: 12.32386036 | BM195: 9.538414872 | BQ195: 0.001753240536 | BR195: 1.120466626 | BS195: 0.3368447723
A196: 2023-03-20 | B196: 2023-03-20 | J196: 9290 | K196: 145.7609951 | L196: 504.8972819 | M196: 387.1507671 | N196: 0 | S196: 10.67531314 | T196: 11.92850156 | U196: 11.35921451 | V196: 7.722087399 | W196: 8.296221797 | X196: 7.908965766 | Z196: 3.583984586 | AA196: 5.666830079 | AB196: 4.632834008 | AG196: 44.87618828 | AH196: 67.2595342 | AI196: 52.64000769 | AU196: 8300 | AV196: 122.0341207 | AW196: 482.0420756 | AX196: 345.4258044 | BD196: 1.52216502 | BE196: 1.826543359 | BF196: 1.665678028 | BH196: 10.6140625 | BI196: 11.63932292 | BJ196: 11.1218533 | BK196: 5.058563042 | BL196: 7.646438154 | BM196: 6.074303435 | BQ196: 0.001685651335 | BR196: 0.4627356718 | BS196: 0.06016820131
A197: 2023-03-21 | B197: 2023-03-21 | J197: 9390 | K197: 157.4194636 | L197: 536.4776184 | M197: 391.1773793 | N197: 0 | O197: 931 | P197: 500 | Q197: 407 | R197: 15 | S197: 10.77402822 | T197: 11.92463083 | U197: 11.44519167 | V197: 7.535040402 | W197: 8.227507146 | X197: 7.820340412 | Y197: 7.573 | Z197: 3.981136946 | AA197: 8.943633429 | AB197: 6.557382068 | AC197: 10.85 | AD197: 1218 | AE197: 68.7 | AG197: 45.56884295 | AH197: 72.18755163 | AI197: 58.24348688 | AJ197: 45 | AK197: 360 | AL197: 180 | AM197: 96 | AN197: 0.3 | AO197: 8.24 | AP197: 7.462 | AQ197: 1156 | AR197: 57.5 | AT197: 44 | AU197: 8400 | AV197: 120.695873 | AW197: 500.0723124 | AX197: 351.2301709 | AY197: 30 | AZ197: 2 | BA197: 1 | BB197: 0 | BC197: 7.17 | BD197: 1.54333597 | BE197: 1.751845002 | BF197: 1.630663629 | BG197: 1.85 | BH197: 10.83177083 | BI197: 16.60260417 | BJ197: 11.38963759 | BK197: 4.415813065 | BL197: 5.983594386 | BM197: 5.276500625 | BN197: 835 | BO197: 5.57 | BQ197: 0.001941849955 | BR197: 1.260785162 | BS197: 0.2801047564 | BT197: 0.08
A198: 2023-03-22 | B198: 2023-03-22 | J198: 9700 | K198: 161.0026035 | L198: 588.0690592 | M198: 404.4770157 | N198: 0 | O198: 1265 | P198: 600 | Q198: 493 | R198: 6 | S198: 10.98938422 | T198: 12.30910813 | U198: 11.75148051 | V198: 7.69772191 | W198: 8.606572946 | X198: 7.946804529 | Y198: 7.562 | Z198: 4.893668771 | AA198: 8.805805222 | AB198: 6.34921875 | AC198: 13.48 | AD198: 1249 | AE198: 82 | AG198: 44.96086413 | AH198: 79.73390007 | AI198: 60.05539731 | AJ198: 55 | AU198: 8600 | AV198: 125.669102 | AW198: 499.6925334 | AX198: 359.629664 | BD198: 1.172376414 | BE198: 1.663524338 | BF198: 1.341759634 | BH198: 10.69348958 | BI198: 11.2421875 | BJ198: 11.00916884 | BK198: 5.220516078 | BL198: 6.223454062 | BM198: 5.688448028 | BQ198: 0.001969591482 | BR198: 1.039436171 | BS198: 0.1748313024
A199: 2023-03-23 | B199: 2023-03-23 | J199: 9940 | K199: 179.8490548 | L199: 532.4459819 | M199: 414.472112 | N199: 0 | O199: 924 | P199: 500 | Q199: 613 | R199: 14 | S199: 11.27086523 | T199: 12.68242885 | U199: 11.91373035 | V199: 7.628983847 | W199: 8.607165138 | X199: 7.883432601 | Y199: 7.616 | Z199: 3.998678162 | AA199: 9.21605986 | AB199: 6.023756069 | AC199: 13.47 | AD199: 1312 | AE199: 82.9 | AG199: 31.35653468 | AH199: 65.77223206 | AI199: 52.91402859 | AJ199: 59 | AK199: 419 | AL199: 220 | AM199: 88 | AN199: 0.4 | AO199: 8.15 | AP199: 7.533 | AQ199: 1236 | AR199: 63.8 | AT199: 48 | AU199: 8700 | AV199: 134.8198629 | AW199: 489.5290527 | AX199: 363.5170767 | AY199: 28.6 | AZ199: 2 | BA199: 1 | BB199: 0 | BC199: 7.22 | BD199: 0.9932606618 | BE199: 1.829250292 | BF199: 1.472747408 | BG199: 1.59 | BH199: 10.6390625 | BI199: 11.26666667 | BJ199: 10.92823351 | BK199: 5.273625882 | BL199: 6.826359908 | BM199: 6.061086681 | BN199: 904 | BO199: 5.76 | BQ199: 0.001977409236 | BR199: 1.037006003 | BS199: 0.1825275007 | BT199: 0.13
A200: 2023-03-24 | B200: 2023-03-24 | J200: 9600 | K200: 155.789448 | L200: 530.1625198 | M200: 399.8811435 | N200: 0 | S200: 11.48906374 | T200: 13.07615884 | U200: 12.10464859 | V200: 7.725665553 | W200: 8.438702806 | X200: 7.899085395 | Z200: 5.153196891 | AA200: 9.938314342 | AB200: 7.266520237 | AG200: 45.19926484 | AH200: 79.09879252 | AI200: 62.35547198 | AU200: 8400 | AV200: 141.7281331 | AW200: 484.7728292 | AX200: 349.6123641 | BD200: 1.570051072 | BE200: 1.935536162 | BF200: 1.758982988 | BH200: 11.18984375 | BI200: 13.08958333 | BJ200: 12.0038737 | BK200: 5.762719472 | BL200: 7.880110296 | BM200: 6.731430419 | BQ200: 0.001858270572 | BR200: 1.777545341 | BS200: 0.6267709319
A201: 2023-03-25 | B201: 2023-03-25 | J201: 15280 | K201: 167.4985518 | L201: 1206.495946 | M201: 656.874515 | N201: 0 | S201: 9.623893722 | T201: 11.94275519 | U201: 10.84442102 | V201: 7.411525901 | W201: 8.140719541 | X201: 7.810906427 | Z201: 1.65240443 | AA201: 7.155107069 | AB201: 4.26788377 | AG201: 13.06397807 | AH201: 53.22206484 | AI201: 33.10760824 | AU201: 14500 | AV201: 147.8406881 | AW201: 992.5672323 | AX201: 625.1250541 | BD201: 1.416411829 | BE201: 2.073387965 | BF201: 1.716730322 | BH201: 12.0671875 | BI201: 14.22213542 | BJ201: 13.30745443 | BK201: 6.711141364 | BL201: 9.288750966 | BM201: 8.482409015 | BQ201: 0.001994303893 | BR201: 1.186917013 | BS201: 0.4816176398
A202: 2023-03-26 | B202: 2023-03-26 | J202: 13100 | K202: 252.9152194 | L202: 1242.82407 | M202: 568.8604962 | N202: 0 | S202: 9.47331055 | T202: 11.55333087 | U202: 10.89901999 | V202: 7.363262844 | W202: 8.359537633 | X202: 7.932761447 | Z202: 2.774048662 | AA202: 5.957126999 | AB202: 4.761221655 | AG202: 12.23658729 | AH202: 51.82196617 | AI202: 39.24019743 | AU202: 12000 | AV202: 205.367454 | AW202: 1034.577507 | AX202: 522.1243795 | BD202: 1.465872335 | BE202: 2.081328444 | BF202: 1.631132613 | BH202: 11.28411458 | BI202: 12.09973958 | BJ202: 11.72733243 | BK202: 4.706625716 | BL202: 6.575578721 | BM202: 5.394357309 | BQ202: 0.001994303893 | BR202: 1.271583414 | BS202: 0.7770194519
A203: 2023-03-27 | B203: 2023-03-27 | J203: 21480 | K203: 613.0762853 | L203: 1031.428421 | M203: 895.3963888 | N203: 0 | S203: 8.150608683 | T203: 10.48738449 | U203: 9.457501321 | V203: 7.349014322 | W203: 8.527968407 | X203: 7.934979023 | Z203: 0.9289637605 | AA203: 5.253777917 | AB203: 2.407307371 | AG203: 4.791762948 | AH203: 32.07343559 | AI203: 19.7222524 | AU203: 20700 | AV203: 661.9827494 | AW203: 997.0702677 | AX203: 866.4007848 | BD203: 1.165810035 | BE203: 1.820433603 | BF203: 1.407128808 | BH203: 7.50234375 | BI203: 11.38776042 | BJ203: 9.022287326 | BK203: 2.595703713 | BL203: 6.053906949 | BM203: 4.208619742 | BQ203: 0.001553372592 | BR203: 1.242372509 | BS203: 0.5952583749 | BU203: 53.4 | BV203: 38 | BW203: 24 | BX203: 0 | BY203: 0.687 | BZ203: 7.399 | CA203: 201 | CB203: 6.83 | CD203: 4.5
A204: 2023-03-28 | B204: 2023-03-28 | J204: 12480 | K204: 318.9983597 | L204: 667.2767146 | M204: 520.1995706 | N204: 0 | O204: 447 | P204: 180 | Q204: 167 | R204: 9 | S204: 9.281059345 | T204: 10.95267577 | U204: 10.18520281 | V204: 7.921674172 | W204: 8.505011463 | X204: 8.133288598 | Y204: 7.716 | Z204: 3.097561888 | AA204: 6.315293574 | AB204: 4.614521844 | AC204: 5.61 | AD204: 802 | AE204: 40.3 | AG204: 24.79745696 | AH204: 45.9719518 | AI204: 35.95076746 | AJ204: 28.7 | AK204: 175 | AL204: 90 | AM204: 36 | AN204: 0.4 | AO204: 4.26 | AP204: 7.547 | AQ204: 759 | AR204: 31.8 | AT204: 25.8 | AU204: 12700 | AV204: 316.6051565 | AW204: 645.9237223 | AX204: 529.5553037 | AY204: 20.9 | AZ204: 0 | BA204: 1 | BB204: 0 | BC204: 7.072 | BD204: 1.280532022 | BE204: 1.541121908 | BF204: 1.390940863 | BG204: 1.53 | BH204: 7.152604167 | BI204: 8.647916667 | BJ204: 7.528993056 | BK204: 4.583859873 | BL204: 6.337828795 | BM204: 4.994850259 | BN204: 543 | BO204: 3.97 | BQ204: 0.001941606769 | BR204: 1.209548994 | BS204: 0.444932387 | BT204: 0.25
A205: 2023-03-29 | B205: 2023-03-29 | J205: 11660 | K205: 258.8589867 | L205: 655.3578318 | M205: 485.634985 | N205: 10 | S205: 9.61194698 | T205: 11.5579092 | U205: 10.63092555 | V205: 7.864009825 | W205: 8.406104692 | X205: 8.015383925 | Z205: 4.107276221 | AA205: 8.640914281 | AB205: 5.724263265 | AG205: 31.28738022 | AH205: 54.44787629 | AI205: 42.33600213 | AU205: 11600 | AV205: 246.1118123 | AW205: 641.3845154 | AX205: 483.4895851 | BD205: 1.389583534 | BE205: 1.651134205 | BF205: 1.521097262 | BH205: 7.17109375 | BI205: 7.687239583 | BJ205: 7.412131076 | BK205: 6.608297666 | BL205: 7.594688193 | BM205: 7.155944159 | BQ205: 0.001630216829 | BR205: 1.526045827 | BS205: 0.5379930666
A206: 2023-03-30 | B206: 2023-03-30 | J206: 10130 | K206: 248.2663002 | L206: 564.6074432 | M206: 422.6284185 | N206: 0 | S206: 10.15429401 | T206: 12.07217817 | U206: 11.14596783 | V206: 7.535471765 | W206: 8.405468718 | X206: 7.945053553 | Z206: 4.423394124 | AA206: 7.655219897 | AB206: 5.87906026 | AG206: 23.46605907 | AH206: 68.00404205 | AI206: 46.66380468 | AU206: 10000 | AV206: 225.1338013 | AW206: 575.4846415 | AX206: 415.8784589 | BD206: 1.46678021 | BE206: 1.715737307 | BF206: 1.602100611 | BH206: 7.599739583 | BI206: 7.957552083 | BJ206: 7.74547526 | BK206: 7.324547768 | BL206: 8.275875664 | BM206: 7.724414849 | BQ206: 0.001919114858 | BR206: 1.46258649 | BS206: 0.3630397791
A207: 2023-03-31 | B207: 2023-03-31 | J207: 10470 | K207: 187.2757509 | L207: 1229.376444 | M207: 436.5155993 | N207: 20 | O207: 554 | P207: 380 | Q207: 287 | R207: 13 | S207: 10.42957805 | T207: 12.08873485 | U207: 11.47087804 | V207: 7.777561061 | W207: 8.275915559 | X207: 7.98689826 | Y207: 7.627 | Z207: 4.744440222 | AA207: 7.378995021 | AB207: 5.924340608 | AC207: 8.97 | AD207: 1131 | AE207: 67.7 | AG207: 39.26271483 | AH207: 71.0685538 | AI207: 54.63203644 | AJ207: 52 | AL207: 140 | AM207: 72 | AN207: 0.8 | AO207: 6.58 | AP207: 7.556 | AQ207: 1062 | AR207: 55.1 | AT207: 45 | AU207: 9900 | AV207: 176.5950287 | AW207: 950.0144246 | AX207: 411.6964186 | AY207: 20.6 | AZ207: 0 | BA207: 0 | BB207: 0 | BC207: 7.106 | BD207: 1.418876163 | BE207: 2.051156243 | BF207: 1.645642579 | BG207: 1.65 | BH207: 7.87109375 | BI207: 8.5171875 | BJ207: 8.192230903 | BK207: 6.750797621 | BL207: 7.496625773 | BM207: 7.153926538 | BN207: 751 | BO207: 7.52 | BQ207: 0.001685479254 | BR207: 1.70531074 | BS207: 0.453795069 | BT207: 0.16
B208: Povprečje | J208: =IF(OR(J177,J178,J179,J180,J181,J182,J183,J184,J185,J186,J187,J188,J189,J190,J191,J192,J193,J194,J195,J196,J197,J198,J199,J200,J200,J201,J202<>""),AVERAGE(J177:J207),"") -> 10989.67742 | M208: =IF(OR(M177,M178,M179,M180,M181,M182,M183,M184,M185,M186,M187,M188,M189,M190,M191,M192,M193,M194,M195,M196,M197,M198,M199,M200,M200,M201,M202<>""),AVERAGE(M177:M207),"") -> 459.3295811 | N208: 0.9677419355 | O208: 813.6 | P208: 410.8 | Q208: 396.7 | R208: 11.6 | U208: =IF(OR(U177,U178,U179,U180,U181,U182,U183,U184,U185,U186,U187,U188,U189,U190,U191,U192,U193,U194,U195,U196,U197,U198,U199,U200,U200,U201,U202<>""),AVERAGE(U177:U207),"") -> 10.61809199 | X208: =IF(OR(X177,X178,X179,X180,X181,X182,X183,X184,X185,X186,X187,X188,X189,X190,X191,X192,X193,X194,X195,X196,X197,X198,X199,X200,X200,X201,X202<>""),AVERAGE(X177:X207),"") -> 7.912688404 | Y208: =IF(OR(Y177,Y178,Y179,Y180,Y181,Y182,Y183,Y184,Y185,Y186,Y187,Y188,Y189,Y190,Y191,Y192,Y193,Y194,Y195,Y196,Y197,Y198,Y199,Y200,Y200,Y201,Y202<>""),AVERAGE(Y177:Y207),"") -> 7.6147 | AB208: =IF(OR(AB177,AB178,AB179,AB180,AB181,AB182,AB183,AB184,AB185,AB186,AB187,AB188,AB189,AB190,AB191,AB192,AB193,AB194,AB195,AB196,AB197,AB198,AB199,AB200,AB200,AB201,AB202<>""),AVERAGE(AB177:AB207),"") -> 5.387153688 | AC208: =IF(OR(AC177,AC178,AC179,AC180,AC181,AC182,AC183,AC184,AC185,AC186,AC187,AC188,AC189,AC190,AC191,AC192,AC193,AC194,AC195,AC196,AC197,AC198,AC199,AC200,AC200,AC201,AC202<>""),AVERAGE(AC177:AC207),"") -> 10.195 | AD208: =IF(OR(AD177,AD178,AD179,AD180,AD181,AD182,AD183,AD184,AD185,AD186,AD187,AD188,AD189,AD190,AD191,AD192,AD193,AD194,AD195,AD196,AD197,AD198,AD199,AD200,AD200,AD201,AD202<>""),AVERAGE(AD177:AD207),"") -> 1155.2 | AE208: =IF(OR(AE177,AE178,AE179,AE180,AE181,AE182,AE183,AE184,AE185,AE186,AE187,AE188,AE189,AE190,AE191,AE192,AE193,AE194,AE195,AE196,AE197,AE198,AE199,AE200,AE200,AE201,AE202<>""),AVERAGE(AE177:AE207),"") -> 69.94 | AF208: =IF(OR(AF177,AF178,AF179,AF180,AF181,AF182,AF183,AF184,AF185,AF186,AF187,AF188,AF189,AF190,AF191,AF192,AF193,AF194,AF195,AF196,AF197,AF198,AF199,AF200,AF200,AF201,AF202<>""),AVERAGE(AF177:AF207),"") ->  | AI208: =IF(OR(AI177,AI178,AI179,AI180,AI181,AI182,AI183,AI184,AI185,AI186,AI187,AI188,AI189,AI190,AI191,AI192,AI193,AI194,AI195,AI196,AI197,AI198,AI199,AI200,AI200,AI201,AI202<>""),AVERAGE(AI177:AI207),"") -> 50.17497799 | AJ208: 50.27 | AK208: 297.25 | AL208: 148.8888889 | AM208: 79.11111111 | AN208: 0.4111111111 | AO208: 6.468888889 | AP208: 7.534222222 | AQ208: 1003.333333 | AR208: 51.38888889 | AT208: 40.01111111 | AU208: 10512.90323 | AX208: =IF(OR(AX177,AX178,AX179,AX180,AX181,AX182,AX183,AX184,AX185,AX186,AX187,AX188,AX189,AX190,AX191,AX192,AX193,AX194,AX195,AX196,AX197,AX198,AX199,AX200,AX200,AX201,AX202<>""),AVERAGE(AX177:AX207),"") -> 439.853896 | AY208: 25.8 | AZ208: 1.111111111 | BA208: 0.7777777778 | BC208: 7.165666667 | BF208: =IF(OR(BF177,BF178,BF179,BF180,BF181,BF182,BF183,BF184,BF185,BF186,BF187,BF188,BF189,BF190,BF191,BF192,BF193,BF194,BF195,BF196,BF197,BF198,BF199,BF200,BF200,BF201,BF202<>""),AVERAGE(BF177:BF207),"") -> 1.628148485 | BG208: =IF(OR(BG177,BG178,BG179,BG180,BG181,BG182,BG183,BG184,BG185,BG186,BG187,BG188,BG189,BG190,BG191,BG192,BG193,BG194,BG195,BG196,BG197,BG198,BG199,BG200,BG200,BG201,BG202<>""),AVERAGE(BG177:BG207),"") -> 1.69 | BJ208: =IF(OR(BJ177,BJ178,BJ179,BJ180,BJ181,BJ182,BJ183,BJ184,BJ185,BJ186,BJ187,BJ188,BJ189,BJ190,BJ191,BJ192,BJ193,BJ194,BJ195,BJ196,BJ197,BJ198,BJ199,BJ200,BJ200,BJ201,BJ202<>""),AVERAGE(BJ177:BJ207),"") -> 10.40153987 | BM208: =IF(OR(BM177,BM178,BM179,BM180,BM181,BM182,BM183,BM184,BM185,BM186,BM187,BM188,BM189,BM190,BM191,BM192,BM193,BM194,BM195,BM196,BM197,BM198,BM199,BM200,BM200,BM201,BM202<>""),AVERAGE(BM177:BM207),"") -> 8.624303259 | BN208: =IF(OR(BN177,BN178,BN179,BN180,BN181,BN182,BN183,BN184,BN185,BN186,BN187,BN188,BN189,BN190,BN191,BN192,BN193,BN194,BN195,BN196,BN197,BN198,BN199,BN200,BN200,BN201,BN202<>""),AVERAGE(BN177:BN207),"") -> 806 | BO208: =IF(OR(BO177,BO178,BO179,BO180,BO181,BO182,BO183,BO184,BO185,BO186,BO187,BO188,BO189,BO190,BO191,BO192,BO193,BO194,BO195,BO196,BO197,BO198,BO199,BO200,BO200,BO201,BO202<>""),AVERAGE(BO177:BO207),"") -> 6.23 | BP208: =IF(OR(BP177,BP178,BP179,BP180,BP181,BP182,BP183,BP184,BP185,BP186,BP187,BP188,BP189,BP190,BP191,BP192,BP193,BP194,BP195,BP196,BP197,BP198,BP199,BP200,BP200,BP201,BP202<>""),AVERAGE(BP177:BP207),"") ->  | BS208: =IF(OR(BS177,BS178,BS179,BS180,BS181,BS182,BS183,BS184,BS185,BS186,BS187,BS188,BS189,BS190,BS191,BS192,BS193,BS194,BS195,BS196,BS197,BS198,BS199,BS200,BS200,BS201,BS202<>""),AVERAGE(BS177:BS207),"") -> 0.606845811 | BT208: 0.4277777778 | BU208: 65.5 | BV208: 42 | BW208: 35 | BY208: 0.9035 | BZ208: 7.3775 | CA208: 217 | CB208: 8.4 | CD208: 5.175
B209: Skupno: | J209: =IF(OR(J177,J178,J179,J180,J181,J182,J183,J184,J185,J186,J187,J188,J189,J190,J191,J192,J193,J194,J195,J196,J197,J198,J199,J200,J200,J201,J202<>""),SUM(J177:J207),"") -> 340680 | N209: =IF(OR(N177,N178,N179,N180,N181,N182,N183,N184,N185,N186,N187,N188,N189,N190,N191,N192,N193,N194,N195,N196,N197,N198,N199,N200,N200,N201,N202<>""),SUM(N177:N207),"") -> 30 | AU209: =IF(OR(AU177,AU178,AU179,AU180,AU181,AU182,AU183,AU184,AU185,AU186,AU187,AU188,AU189,AU190,AU191,AU192,AU193,AU194,AU195,AU196,AU197,AU198,AU199,AU200,AU200,AU201,AU202<>""),SUM(AU177:AU207),"") -> 325900
B210: Min: | J210: =IF(OR(J177,J178,J179,J180,J181,J182,J183,J184,J185,J186,J187,J188,J189,J190,J191,J192,J193,J194,J195,J196,J197,J198,J199,J200,J200,J201,J202<>""),MIN(J177:J207),"") -> 8690 | K210: 133.0922063 | L210: 504.6923192 | M210: 361.5993909 | N210: 0 | O210: 447 | P210: 180 | Q210: 167 | R210: 6 | S210: 5.230605658 | T210: 9.72686189 | U210: 8.15559449 | V210: 7.349014322 | W210: 7.751717552 | X210: 7.5375922 | Y210: 7.529 | Z210: 0.9289637605 | AA210: 5.253777917 | AB210: 2.407307371 | AC210: 5.61 | AD210: 802 | AE210: 40.3 | AG210: 4.791762948 | AH210: 32.07343559 | AI210: 19.7222524 | AJ210: 28.7 | AK210: =IF(OR(AK177,AK178,AK179,AK180,AK181,AK182,AK183,AK184,AK185,AK186,AK187,AK188,AK189,AK190,AK191,AK192,AK193,AK194,AK195,AK196,AK197,AK198,AK199,AK200,AK200,AK201,AK202<>""),MIN(AK177:AK207),"") -> 124 | AL210: =IF(OR(AL177,AL178,AL179,AL180,AL181,AL182,AL183,AL184,AL185,AL186,AL187,AL188,AL189,AL190,AL191,AL192,AL193,AL194,AL195,AL196,AL197,AL198,AL199,AL200,AL200,AL201,AL202<>""),MIN(AL177:AL207),"") -> 45 | AM210: 36 | AN210: 0 | AO210: 2.14 | AP210: 7.394 | AQ210: 333 | AR210: 19.5 | AT210: 11.8 | AU210: 8300 | AV210: 108.3803324 | AW210: 482.0420756 | AX210: 345.4258044 | AY210: 20.6 | AZ210: 0 | BA210: 0 | BC210: 7.072 | BD210: 0.9932606618 | BE210: 1.409561416 | BF210: 1.284492581 | BG210: 1.53 | BH210: 7.152604167 | BI210: 7.687239583 | BJ210: 7.412131076 | BK210: 2.595703713 | BL210: 5.983594386 | BM210: 4.208619742 | BN210: 543 | BO210: 3.97 | BQ210: 0.001553372592 | BR210: 0.3563739059 | BS210: 0.05075484911 | BT210: 0.08 | BU210: 53.4 | BV210: =IF(OR(BV177,BV178,BV179,BV180,BV181,BV182,BV183,BV184,BV185,BV186,BV187,BV188,BV189,BV190,BV191,BV192,BV193,BV194,BV195,BV196,BV197,BV198,BV199,BV200,BV200,BV201,BV202<>""),MIN(BV177:BV207),"") -> 38 | BW210: 24 | BY210: 0.687 | BZ210: 7.356 | CA210: 201 | CB210: 6.83 | CD210: 4.5
B211: Max: | J211: =IF(OR(J177,J178,J179,J180,J181,J182,J183,J184,J185,J186,J187,J188,J189,J190,J191,J192,J193,J194,J195,J196,J197,J198,J199,J200,J200,J201,J202<>""),MAX(J177:J207),"") -> 21480 | K211: 613.0762853 | L211: 1242.82407 | M211: 895.3963888 | N211: 20 | O211: 1265 | P211: 600 | Q211: 800 | R211: 15 | S211: 11.48906374 | T211: 13.07615884 | U211: 12.10464859 | V211: 7.921674172 | W211: 8.607165138 | X211: 8.133288598 | Y211: 7.716 | Z211: 5.153196891 | AA211: 14.4456121 | AB211: 7.266520237 | AC211: 13.48 | AD211: 1342 | AE211: 82.9 | AG211: 47.44485423 | AH211: 83.48335965 | AI211: 62.35547198 | AJ211: 63 | AK211: =IF(OR(AK177,AK178,AK179,AK180,AK181,AK182,AK183,AK184,AK185,AK186,AK187,AK188,AK189,AK190,AK191,AK192,AK193,AK194,AK195,AK196,AK197,AK198,AK199,AK200,AK200,AK201,AK202<>""),MAX(AK177:AK207),"") -> 436 | AL211: =IF(OR(AL177,AL178,AL179,AL180,AL181,AL182,AL183,AL184,AL185,AL186,AL187,AL188,AL189,AL190,AL191,AL192,AL193,AL194,AL195,AL196,AL197,AL198,AL199,AL200,AL200,AL201,AL202<>""),MAX(AL177:AL207),"") -> 240 | AM211: 106 | AN211: 0.8 | AO211: 8.79 | AP211: 7.619 | AQ211: 1301 | AR211: 68.1 | AT211: 52 | AU211: 20700 | AV211: 661.9827494 | AW211: 1229.980422 | AX211: 866.4007848 | AY211: 31.9 | AZ211: 2 | BA211: 2 | BC211: 7.227 | BD211: 1.732202349 | BE211: 2.475165534 | BF211: 1.859446614 | BG211: 1.94 | BH211: 12.73255208 | BI211: 16.60260417 | BJ211: 13.30745443 | BK211: 12.26376648 | BL211: 18.16631365 | BM211: 17.05108903 | BN211: 912 | BO211: 7.62 | BQ211: 0.2054375043 | BR211: 7.727531672 | BS211: 2.07081384 | BT211: 1.22 | BU211: 77.6 | BV211: =IF(OR(BV177,BV178,BV179,BV180,BV181,BV182,BV183,BV184,BV185,BV186,BV187,BV188,BV189,BV190,BV191,BV192,BV193,BV194,BV195,BV196,BV197,BV198,BV199,BV200,BV200,BV201,BV202<>""),MAX(BV177:BV207),"") -> 46 | BW211: 46 | BY211: 1.12 | BZ211: 7.399 | CA211: 233 | CB211: 9.97 | CD211: 5.85
J214: VTOK | N214: Septika | O214: VTOK | S214: VTOK | AD214: VTOK | AK214: Mehansko predčiščenje | AU214: IZTOK | BC214: IZTOK | BN214: IZTOK | BU214: Deževni bazen
A215: Slovenčeva 95, 1000 Ljubljana Slovenia | J215: Pretok | N215: Pretok | O215: KPK | P215: BPK | Q215: Neraztopljene snovi | R215: Usedljive snovi | S215: Temperatura | V215: pH | Z215: Fosfor | AD215: Prevodnost | AE215: Celotni dušik | AF215: NO3-N | AG215: Amoniak | AK215: KPK | AL215: BPK | AM215: Neraztopljene snovi | AN215: Usedljive snovi | AO215: Fosfor | AP215: pH | AQ215: Prevodnost | AR215: Celotni dušik | AS215: NO3-N | AT215: Amoniak | AU215: Pretok | AY215: KPK | AZ215: BPK | BA215: Neraztopljene snovi | BB215: Usedljive snovi | BC215: pH | BD215: Fosfor | BH215: Totalni ogljik | BK215: Totalni dušik | BN215: Prevodnost | BO215: Celotni dušik | BP215: NO3-N | BQ215: Amoniak | BU215: KPK | BV215: BPK | BW215: Neraztopljene snovi | BX215: Usedljive snovi | BY215: Fosfor | BZ215: pH | CA215: Prevodnost | CB215: Celotni dušik | CC215: NO3-N | CD215: Amoniak
I217: Tag: | J217: LT 05.01 in LT 05.02 | N217: FT 15.01 | O217: Laboratori | P217: Laboratori | Q217: Laboratori | R217: Laboratori | S217: AT 05.03 | V217: pH 05.03 | Y217: Laboratori | Z217: PO4P 05.06 | AC217: Laboratori | AD217: Laboratori | AE217: Laboratori | AF217: Laboratori | AG217: NH4N 08.10 | AJ217: Laboratori | AK217: Laboratori | AL217: Laboratori | AM217: Laboratori | AN217: Laboratori | AO217: Laboratori | AP217: Laboratori | AQ217: Laboratori | AR217: Laboratori | AS217: Laboratori | AT217: Laboratori | AU217: FT 13.01 | AY217: Laboratori | AZ217: Laboratori | BA217: Laboratori | BB217: Laboratori | BC217: Laboratori | BD217: PO4P 07.02 | BG217: Laboratori | BH217: TOC 14.01 | BK217: TN 14.01 | BN217: Laboratori | BO217: Laboratori | BP217: Laboratori | BQ217: NH4N 08.11 | BT217: Laboratori | BU217: Laboratori | BV217: Laboratori | BW217: Laboratori | BX217: Laboratori | BY217: Laboratori | BZ217: Laboratori | CA217: Laboratori | CB217: Laboratori | CC217: Laboratori | CD217: Laboratori
I218: Enote | J218: m³ | K218: m³/h | L218: m³/h | M218: m³/h | N218: m³ | O218: mg/l | P218: mg/l | Q218: mg/l | R218: ml/l | S218: °C | T218: °C | U218: °C | Z218: mg/l | AA218: mg/l | AB218: mg/l | AC218: mg/l | AD218: µS/cm | AE218: mg/l | AF218: mg/l | AG218: mg/l | AH218: mg/l | AI218: mg/l | AJ218: mg/l | AK218: mg/l | AL218: mg/l | AM218: mg/l | AN218: ml/l | AO218: mg/l | AQ218: µS/cm | AR218: mg/l | AS218: mg/l | AT218: mg/l | AU218: m³ | AV218: m³/h | AW218: m³/h | AX218: m³/h | AY218: mg/l | AZ218: mg/l | BA218: mg/l | BB218: ml/l | BD218: mg/l | BE218: mg/l | BF218: mg/l | BG218: mg/l | BH218: mgC/l | BI218: mgC/l | BJ218: mgC/l | BK218: mgN/l | BL218: mgN/l | BM218: mgN/l | BN218: µS/cm | BO218: mg/l | BP218: mg/l | BQ218: mg/l | BR218: mg/l | BS218: mg/l | BT218: mg/l | BU218: mg/l | BV218: mg/l | BW218: mg/l | BX218: ml/l | BY218: mg/l | CA218: µS/cm | CB218: mg/l | CC218: mg/l | CD218: mg/l
A222: Datum | B222: Dan | J222: Kumulativa | K222: Minimalno | L222: Maksimalno | M222: Povprečje | N222: Kumulativa | O222: Vrednost | P222: Vrednost | Q222: Vrednost | R222: Vrednost | S222: Minimalno | T222: Maksimalno | U222: Povprečje | V222: Minimalno | W222: Maksimalno | X222: Povprečje | Y222: Vrednost | Z222: Minimalno | AA222: Maksimalno | AB222: Povprečje | AC222: Vrednost | AD222: Vrednost | AE222: Vrednost | AF222: Vrednost | AG222: Minimalno | AH222: Maksimalno | AI222: Povprečje | AJ222: Vrednost | AK222: Vrednost | AL222: Vrednost | AM222: Vrednost | AN222: Vrednost | AO222: Vrednost | AP222: Vrednost | AQ222: Vrednost | AR222: Vrednost | AS222: Vrednost | AT222: Vrednost | AU222: Kumulativa | AV222: Minimalno | AW222: Maksimalno | AX222: Povprečje | AY222: Vrednost | AZ222: Vrednost | BA222: Vrednost | BB222: Vrednost | BC222: Vrednost | BD222: Minimalno | BE222: Maksimalno | BF222: Povprečje | BG222: Vrednost | BH222: Minimalno | BI222: Maksimalno | BJ222: Povprečje | BK222: Minimalno | BL222: Maksimalno | BM222: Povprečje | BN222: Vrednost | BO222: Vrednost | BP222: Vrednost | BQ222: Minimalno | BR222: Maksimalno | BS222: Povprečje | BT222: Vrednost | BU222: Vrednost | BV222: Vrednost | BW222: Vrednost | BX222: Vrednost | BY222: Vrednost | BZ222: Vrednost | CA222: Vrednost | CB222: Vrednost | CC222: Vrednost | CD222: Vrednost
A223: 2023-04-01 | B223: =IF(A223>0,A223,"") -> 2023-04-01 | J223: 15990 | K223: 368.6848958 | L223: 1005.167337 | M223: 665.2083514 | N223: 0 | S223: 8.700366624 | T223: 11.82376822 | U223: 10.44878889 | V223: 7.460803596 | W223: 8.473780123 | X223: 7.997468281 | Z223: 1.563155909 | AA223: 4.643373068 | AB223: 3.349741879 | AG223: 8.212701241 | AH223: 46.95810795 | AI223: 28.78313877 | AU223: 16200 | AV223: 380.515745 | AW223: 1038.700775 | AX223: 675.7646384 | BD223: 1.411442675 | BE223: 2.532646318 | BF223: 1.600397455 | BH223: 7.921875 | BI223: 9.2 | BJ223: 8.547243924 | BK223: 6.095250543 | BL223: 9.93750089 | BM223: 7.831977333 | BQ223: 0.001981934765 | BR223: 2.210661604 | BS223: 0.4421059414
A224: 2023-04-02 | B224: =IF(A224>0,A224,"") -> 2023-04-02 | J224: 11130 | K224: 241.1313634 | L224: 641.4038361 | M224: 463.8935091 | N224: 0 | S224: 10.09211966 | T224: 12.08308061 | U224: 11.10777747 | V224: 7.862192027 | W224: 8.540262985 | X224: 8.094032171 | Z224: 3.573199284 | AA224: 5.631126825 | AB224: 4.317961904 | AG224: 33.23331553 | AH224: 57.56950442 | AI224: 40.56738742 | AU224: 11200 | AV224: 244.5927073 | AW224: 644.9652425 | AX224: 466.4555035 | BD224: 1.308602075 | BE224: 1.598280271 | BF224: 1.431340642 | BH224: 8.016666667 | BI224: 8.323958333 | BJ224: 8.140332031 | BK224: 3.13607866 | BL224: 6.080813185 | BM224: 4.666147157 | BQ224: 0.001977765467 | BR224: 1.077747717 | BS224: 0.2222580634
A225: 2023-04-03 | B225: 2023-04-03 | J225: 9960 | K225: 200.373745 | L225: 540.8010213 | M225: 415.1773069 | N225: 20 | S225: 10.34244512 | T225: 11.86782777 | U225: 11.19639371 | V225: 7.781805213 | W225: 8.365694682 | X225: 8.004985146 | Z225: 2.588895635 | AA225: 6.638485122 | AB225: 4.756272832 | AG225: 34.40038745 | AH225: 62.53540497 | AI225: 46.35199964 | AU225: 10400 | AV225: 220.3775767 | AW225: 563.8020589 | AX225: 435.5144458 | BD225: 1.348565328 | BE225: 1.593877588 | BF225: 1.439622624 | BH225: 8.037760417 | BI225: 8.55078125 | BJ225: 8.273166233 | BK225: 2.97501599 | BL225: 4.475203784 | BM225: 3.678822854 | BQ225: 0.001977765467 | BR225: 1.054192521 | BS225: 0.34579991
A226: 2023-04-04 | B226: 2023-04-04 | J226: 8840 | K226: 174.2934987 | L226: 538.0135971 | M226: 368.331242 | N226: 0 | O226: 1364 | P226: 450 | Q226: 573 | R226: 14 | S226: 10.87628551 | T226: 12.51589476 | U226: 11.52325027 | V226: 7.799829658 | W226: 8.345802402 | X226: 7.967578298 | Y226: 7.35 | Z226: 4.927748775 | AA226: 7.28285346 | AB226: 5.996838829 | AC226: 12.78 | AD226: 1114 | AE226: 76.7 | AG226: 46.89276136 | AH226: 82.65849686 | AI226: 55.42139242 | AJ226: 50 | AU226: 9100 | AV226: 157.2627096 | AW226: 541.7028076 | AX226: 380.0447937 | BD226: 1.241834044 | BE226: 1.419626657 | BF226: 1.320734282 | BH226: 8.426822917 | BI226: 9.270052083 | BJ226: 8.839095052 | BK226: 3.092250395 | BL226: 4.721625694 | BM226: 3.629457645 | BQ226: 0.001975151477 | BR226: 1.059054852 | BS226: 0.2359613135
A227: 2023-04-05 | B227: 2023-04-05 | J227: 8550 | K227: 162.056326 | L227: 519.0899867 | M227: 356.6139991 | N227: 0 | S227: 10.82638698 | T227: 12.01746647 | U227: 11.4611158 | V227: 7.695969073 | W227: 8.314653969 | X227: 7.846166917 | Z227: 4.3819622 | AA227: 7.62455279 | AB227: 6.096976179 | AG227: 46.57930667 | AH227: 72.08712349 | AI227: 52.37332762 | AK227: 305 | AL227: 131 | AM227: 116 | AN227: 1 | AO227: 7.54 | AP227: 7.42 | AQ227: 1126 | AR227: 56.1 | AT227: 47 | AU227: 8800 | AV227: 128.0743469 | AW227: 550.5099508 | AX227: 369.4796831 | AY227: 23.4 | AZ227: 0 | BA227: 1 | BB227: 0 | BC227: 7.155 | BD227: 1.191392128 | BE227: 1.667188118 | BF227: 1.42907017 | BG227: 1.53 | BH227: 9.01015625 | BI227: 9.65 | BJ227: 9.356065538 | BK227: 3.744516309 | BL227: 5.200547568 | BM227: 4.502172481 | BN227: 771 | BO227: 4.18 | BQ227: 0.001975151477 | BR227: 1.11406822 | BS227: 0.3559685181 | BT227: 0.09
A228: 2023-04-06 | B228: 2023-04-06 | J228: 8620 | K228: 168.2122878 | L228: 479.0051112 | M228: 358.2840016 | N228: 0 | S228: 10.84523527 | T228: 12.16633188 | U228: 11.51791028 | V228: 7.632383267 | W228: 8.24590559 | X228: 7.903120962 | Z228: 4.920415004 | AA228: 7.055314183 | AB228: 5.777239775 | AG228: 24.49424631 | AH228: 68.30986176 | AI228: 50.67602468 | AU228: 8800 | AV228: 138.7984456 | AW228: 531.1957113 | AX228: 366.6276095 | BD228: 1.39562517 | BE228: 1.787779133 | BF228: 1.573550238 | BH228: 9.319791667 | BI228: 10.1765625 | BJ228: 9.631065538 | BK228: 3.807750607 | BL228: 4.794141245 | BM228: 4.331242834 | BQ228: 0.001968056662 | BR228: 1.634730977 | BS228: 0.4962088651
A229: 2023-04-07 | B229: 2023-04-07 | J229: 8770 | K229: 129.6561535 | L229: 507.6629985 | M229: 365.7119044 | N229: 0 | S229: 10.90980083 | T229: 12.62838761 | U229: 11.68189952 | V229: 7.718724577 | W229: 8.399311988 | X229: 7.925259644 | Z229: 4.357487575 | AA229: 7.156312497 | AB229: 5.47006541 | AG229: 43.34653091 | AH229: 70.63279978 | AI229: 51.18952873 | AU229: 8800 | AV229: 122.8479238 | AW229: 503.4902791 | AX229: 367.2899529 | BD229: 1.465576935 | BE229: 1.720891368 | BF229: 1.597832879 | BH229: 10.06484375 | BI229: 10.59661458 | BJ229: 10.20843099 | BK229: 3.750000477 | BL229: 5.123016103 | BM229: 4.333428337 | BQ229: 0.001968056662 | BR229: 1.321785086 | BS229: 0.4195674866
A230: 2023-04-08 | B230: 2023-04-08 | J230: 10930 | K230: 144.2346634 | L230: 1175.672733 | M230: 455.7696539 | N230: 0 | S230: 10.81929693 | T230: 12.20647411 | U230: 11.74207142 | V230: 7.525201042 | W230: 8.101093388 | X230: 7.794299104 | Z230: 4.59118584 | AA230: 7.032056848 | AB230: 5.652801178 | AG230: 25.6658891 | AH230: 64.92305946 | AI230: 46.80774009 | AU230: 10400 | AV230: 123.969161 | AW230: 991.6449198 | AX230: 431.656422 | BD230: 1.450370648 | BE230: 1.821705548 | BF230: 1.631806618 | BH230: 9.9625 | BI230: 237.7083333 | BJ230: 25.09686415 | BK230: 3.786609952 | BL230: 41.44922053 | BM230: 6.496604197 | BQ230: 0.01174654583 | BR230: 1.134922175 | BS230: 0.4822526983
A231: 2023-04-09 | B231: 2023-04-09 | J231: 8480 | K231: 171.9425144 | L231: 665.2440145 | M231: 352.9820308 | N231: 0 | S231: 10.56535649 | T231: 11.98948854 | U231: 11.47566492 | V231: 7.642229414 | W231: 8.422086493 | X231: 7.985270587 | Z231: 3.149431892 | AA231: 7.696728897 | AB231: 5.276828058 | AG231: 18.96488031 | AH231: 65.96794313 | AI231: 42.55694643 | AU231: 8600 | AV231: 146.1950063 | AW231: 916.0698405 | AX231: 359.2423541 | BD231: 1.331424556 | BE231: 1.81769278 | BF231: 1.566229654 | BH231: 9.866666667 | BI231: 250.0174479 | BJ231: 31.83971354 | BK231: 3.364781888 | BL231: 44.44818974 | BM231: 7.526746829 | BQ231: 0.001972073456 | BR231: 1.433996109 | BS231: 0.3201307145
A232: 2023-04-10 | B232: 2023-04-10 | J232: 8160 | K232: 124.8914927 | L232: 513.2860743 | M232: 340.3318292 | N232: 0 | S232: 10.79795586 | T232: 12.58969294 | U232: 11.721576 | V232: 7.792468596 | W232: 8.496525002 | X232: 7.967778535 | Z232: 4.914110867 | AA232: 6.92625459 | AB232: 5.937145397 | AG232: 42.80535571 | AH232: 74.70393346 | AI232: 53.63117902 | AU232: 8100 | AV232: 108.1090637 | AW232: 533.6009583 | AX232: 337.4271836 | BD232: 1.277774751 | BE232: 1.683829923 | BF232: 1.48233371 | BH232: 9.232552083 | BI232: 9.894791667 | BJ232: 9.570713976 | BK232: 3.198047447 | BL232: 4.93275067 | BM232: 3.999293581 | BQ232: 0.001820680771 | BR232: 1.272116586 | BS232: 0.1826078467
A233: 2023-04-11 | B233: 2023-04-11 | J233: 8300 | K233: 146.5301872 | L233: 460.4793559 | M233: 346.4691024 | N233: 0 | O233: 1014 | P233: 450 | Q233: 553 | R233: 24 | S233: 11.22696811 | T233: 12.41837072 | U233: 11.83928497 | V233: 7.479188768 | W233: 8.219730536 | X233: 7.857083087 | Y233: 7.504 | Z233: 3.505107276 | AA233: 6.377583027 | AB233: 5.157261447 | AC233: 18.1 | AD233: 1191 | AE233: 82.2 | AG233: 44.87531408 | AH233: 72.09110896 | AI233: 54.01156705 | AJ233: 53 | AK233: 264 | AU233: 8200 | AV233: 114.3482168 | AW233: 480.2878825 | AX233: 342.3092435 | BD233: 1.194550133 | BE233: 1.417241685 | BF233: 1.290728094 | BH233: 7.638802083 | BI233: 9.761197917 | BJ233: 9.201475694 | BK233: 3.713766162 | BL233: 5.265610059 | BM233: 4.512145183 | BQ233: 0.001737818093 | BR233: 1.241394431 | BS233: 0.2740407552
A234: 2023-04-12 | B234: 2023-04-12 | J234: 8620 | K234: 155.666472 | L234: 525.1085058 | M234: 359.1904367 | N234: 0 | S234: 11.56939394 | T234: 12.91923056 | U234: 12.16426251 | V234: 7.718698947 | W234: 8.340257454 | X234: 7.949649213 | Z234: 2.54998068 | AA234: 7.651906252 | AB234: 5.43403156 | AG234: 38.5079945 | AH234: 68.67904739 | AI234: 51.23325894 | AK234: 276 | AL234: 130 | AM234: 66 | AN234: 0 | AO234: 7.6 | AP234: 7.563 | AQ234: 1093 | AR234: 55.3 | AT234: 48 | AU234: 8300 | AV234: 146.7194529 | AW234: 527.1628825 | AX234: 348.1543018 | AY234: 24.2 | AZ234: 1 | BA234: 2 | BB234: 0 | BC234: 7.198 | BD234: 1.183308136 | BE234: 1.684298654 | BF234: 1.487000869 | BG234: 1.64 | BH234: 8.922135417 | BI234: 9.278125 | BJ234: 9.11781684 | BK234: 3.815016365 | BL234: 5.371453889 | BM234: 4.847979203 | BN234: 813 | BO234: 4.46 | BQ234: 0.00165325544 | BR234: 1.3501097 | BS234: 0.3408879857 | BT234: 0.19
A235: 2023-04-13 | B235: 2023-04-13 | J235: 18490 | K235: 163.8141388 | L235: 1035.206882 | M235: 770.0343973 | N235: 0 | S235: 7.882493512 | T235: 12.48990078 | U235: 10.0000999 | V235: 7.280485606 | W235: 7.883573079 | X235: 7.504578984 | Z235: 0.2210217565 | AA235: 9.531319674 | AB235: 3.051468698 | AG235: 6.46524303 | AH235: 49.4776144 | AI235: 23.44229015 | AU235: 17100 | AV235: 158.4201172 | AW235: 968.6052856 | AX235: 711.9388919 | BD235: 1.41181458 | BE235: 1.806368657 | BF235: 1.591890471 | BH235: 8.974739583 | BI235: 250.0106771 | BJ235: 156.2145616 | BK235: 4.644375594 | BL235: 44.72493941 | BM235: 28.21708943 | BQ235: 0.001945474635 | BR235: 1.249860513 | BS235: 0.5652173745 | BU235: 238 | BV235: 120 | BW235: 152 | BX235: 3.5 | BY235: 2.51 | BZ235: 7.198 | CA235: 258 | CB235: 17 | CD235: 9.57
A236: 2023-04-14 | B236: 2023-04-14 | J236: 21630 | K236: 846.2119039 | L236: 939.5640422 | M236: 901.9260964 | N236: 0 | O236: 308 | P236: 100 | Q236: 187 | R236: 14 | S236: 8.275137234 | T236: 10.52045415 | U236: 9.54794116 | V236: 7.329461273 | W236: 8.205607732 | X236: 7.636547288 | Y236: 7.343 | Z236: 0.2164428979 | AA236: 13.20537853 | AB236: 4.933986693 | AC236: 5.24 | AD236: 416 | AE236: 22.9 | AG236: 6.677162679 | AH236: 31.0639768 | AI236: 18.40602567 | AJ236: 10.5 | AK236: 85.8 | AL236: 30 | AM236: 30 | AN236: 1.1 | AO236: 2.45 | AP236: 7.408 | AQ236: 521 | AR236: 14.2 | AT236: 8.01 | AU236: 19800 | AV236: 654.0255778 | AW236: 919.2888692 | AX236: 827.2184743 | AY236: 32.3 | AZ236: 7 | BA236: 13 | BB236: 0 | BC236: 6.683 | BD236: 1.184287934 | BE236: 1.444395826 | BF236: 1.29866875 | BG236: 1.89 | BH236: 2.2953125 | BI236: 244.2286458 | BJ236: 72.81873915 | BK236: 3.750188096 | BL236: 42.94640846 | BM236: 14.73288382 | BN236: 597 | BO236: 3.9 | BQ236: 0.001817327068 | BR236: 2.031431003 | BS236: 0.8965410326 | BT236: 0.3
A237: 2023-04-15 | B237: 2023-04-15 | J237: 16210 | K237: 465.2729523 | L237: 907.4098145 | M237: 674.9352955 | N237: 0 | S237: 8.773392868 | T237: 11.14341246 | U237: 10.23277885 | V237: 7.1809472 | W237: 7.798318895 | X237: 7.378962856 | Z237: 0.2408671061 | AA237: 12.66954327 | AB237: 4.817103573 | AG237: 17.71670246 | AH237: 39.69492747 | AI237: 26.4106906 | AU237: 15700 | AV237: 437.7531514 | AW237: 834.5449524 | AX237: 655.1603733 | BD237: 1.188753595 | BE237: 1.335257987 | BF237: 1.269299587 | BH237: 7.2390625 | BI237: 7.926822917 | BJ237: 7.449804687 | BK237: 6.629297717 | BL237: 8.426250871 | BM237: 7.596403105 | BQ237: 0.00157016949 | BR237: 2.783653188 | BS237: 1.185823309
A238: 2023-04-16 | B238: 2023-04-16 | J238: 13880 | K238: 356.4428993 | L238: 725.2797078 | M238: 578.2079859 | N238: 0 | S238: 7.116682593 | T238: 11.62636134 | U238: 10.09359685 | V238: 7.127870115 | W238: 8.341611195 | X238: 7.953415668 | Z238: 0.2199903727 | AA238: 0.9662508974 | AB238: 0.3598973717 | AG238: 21.37787126 | AH238: 46.46092008 | AI238: 31.36639244 | AU238: 13300 | AV238: 320.095459 | AW238: 697.6996073 | AX238: 552.5625395 | BD238: 1.183137222 | BE238: 1.360187451 | BF238: 1.267745632 | BH238: 7.608333333 | BI238: 8.121614583 | BJ238: 7.825086806 | BK238: 4.837969573 | BL238: 7.418250751 | BM238: 5.917596432 | BQ238: 0.001973372884 | BR238: 2.379098177 | BS238: 0.7206070252
A239: 2023-04-17 | B239: 2023-04-17 | J239: 12020 | K239: 317.3779892 | L239: 620.6958893 | M239: 500.5209325 | N239: 10 | S239: 8.631118441 | T239: 12.30215591 | U239: 10.90906058 | V239: 7.23317953 | W239: 8.140171115 | X239: 7.650299549 | Z239: 0.2145334929 | AA239: 2.056059845 | AB239: 0.7598503459 | AG239: 24.73139858 | AH239: 61.15261161 | AI239: 40.00053398 | AU239: 12500 | AV239: 300.8897339 | AW239: 676.0524719 | AX239: 524.1736594 | BD239: 1.236867217 | BE239: 1.84965982 | BF239: 1.490547154 | BH239: 7.537239583 | BI239: 8.972395833 | BJ239: 7.940082465 | BK239: 4.158188121 | BL239: 8.26875089 | BM239: 6.073121767 | BQ239: 0.001884075797 | BR239: 5.47042896 | BS239: 1.897264694
A240: 2023-04-18 | B240: 2023-04-18 | J240: 10700 | K240: 238.2233798 | L240: 595.6790085 | M240: 445.0566031 | N240: 0 | O240: 947 | P240: 350 | Q240: 340 | R240: 15 | S240: 8.825981681 | T240: 12.43548892 | U240: 11.1001161 | V240: 7.184659529 | W240: 8.060897001 | X240: 7.488099179 | Y240: 7.631 | Z240: 0.3136322081 | AA240: 2.504778504 | AB240: 1.104802699 | AC240: 9.14 | AD240: 991 | AE240: 61.2 | AG240: 33.39775588 | AH240: 62.87133401 | AI240: 45.21996401 | AJ240: 41 | AK240: 289 | AL240: 130 | AM240: 84 | AN240: 1.5 | AO240: 6.44 | AP240: 7.665 | AQ240: 935 | AR240: 40.5 | AT240: 34.7 | AU240: 11100 | AV240: 271.5928569 | AW240: 587.4023173 | AX240: 462.343541 | AY240: 21.5 | AZ240: 2 | BA240: 3 | BB240: 0 | BC240: 7.164 | BD240: 1.403886209 | BE240: 1.700153196 | BF240: 1.503151962 | BG240: 1.71 | BH240: 8.18984375 | BI240: 11.04166667 | BJ240: 8.8046875 | BK240: 5.662547572 | BL240: 10.91423534 | BM240: 8.568633563 | BN240: 560 | BO240: 7.26 | BQ240: 0.5139557064 | BR240: 4.457190307 | BS240: 2.514356186 | BT240: 1.35
A241: 2023-04-19 | B241: 2023-04-19 | J241: 12920 | K241: 214.1517161 | L241: 1093.248452 | M241: 538.507204 | N241: 0 | S241: 10.43731391 | T241: 12.53757658 | U241: 11.79732151 | V241: 6.513283873 | W241: 7.858196751 | X241: 7.359803725 | Z241: 0.3423709298 | AA241: 4.946958092 | AB241: 1.357459871 | AG241: 32.54266151 | AH241: 57.3005839 | AI241: 43.36223844 | AU241: 11700 | AV241: 200.068692 | AW241: 951.2984273 | AX241: 486.9060465 | BD241: 1.353128008 | BE241: 1.56875089 | BF241: 1.427813171 | BH241: 8.6609375 | BI241: 15.37083333 | BJ241: 10.13536241 | BK241: 9.618094412 | BL241: 13.48720411 | BM241: 11.67135244 | BQ241: 0.5023115416 | BR241: 5.756794802 | BS241: 3.320188099
A242: 2023-04-20 | B242: 2023-04-20 | J242: 15750 | K242: 515.5213147 | L242: 935.5637482 | M242: 656.3645324 | N242: 0 | O242: 668 | P242: 340 | Q242: 440 | R242: 24 | S242: 11.62670368 | T242: 12.63094848 | U242: 12.21234164 | V242: 6.001749865 | W242: 8.22660172 | X242: 7.048727306 | Y242: 7.476 | Z242: 0.4940513936 | AA242: 10.91669959 | AB242: 3.055229125 | AC242: 9.29 | AD242: 856 | AE242: 49.1 | AG242: 12.27750421 | AH242: 51.82007478 | AI242: 33.80420436 | AJ242: 30.2 | AK242: 168 | AL242: 75 | AM242: 78 | AN242: 1.2 | AO242: 3.3 | AP242: 7.529 | AQ242: 607 | AR242: 28.7 | AT242: 20.1 | AU242: 15400 | AV242: 492.2959757 | AW242: 879.050883 | AX242: 643.3481911 | AY242: 26 | AZ242: 4 | BA242: 5 | BB242: 0 | BC242: 7.21 | BD242: 1.175203433 | BE242: 1.769633432 | BF242: 1.396746681 | BG242: 1.8 | BH242: 9.5421875 | BI242: 20.15963542 | BJ242: 11.42534722 | BK242: 6.549188328 | BL242: 13.31184483 | BM242: 9.513598502 | BN242: 797 | BO242: 12.2 | BQ242: 0.001989996061 | BR242: 5.758107448 | BS242: 1.772283355 | BT242: 3.07
A243: 2023-04-21 | B243: 2023-04-21 | J243: 9500 | K243: 180.4398149 | L243: 523.4664317 | M243: 396.2023563 | N243: 0 | S243: 11.53669171 | T243: 12.53102198 | U243: 12.07345199 | V243: 7.788484399 | W243: 8.306185691 | X243: 7.931716962 | Z243: 0.6676620513 | AA243: 4.361444817 | AB243: 2.158561973 | AG243: 40.37225501 | AH243: 65.95183741 | AI243: 48.24633231 | AU243: 9100 | AV243: 152.3256449 | AW243: 496.437323 | AX243: 379.1571454 | BD243: 1.385633703 | BE243: 1.812202726 | BF243: 1.58057299 | BH243: 9.227864583 | BI243: 16.62526042 | BJ243: 10.34701606 | BK243: 8.79506313 | BL243: 11.87086026 | BM243: 10.66203016 | BQ243: 0.3480081245 | BR243: 3.482995733 | BS243: 1.66915417
A244: 2023-04-22 | B244: 2023-04-22 | J244: 9560 | K244: 176.7963909 | L244: 651.5890172 | M244: 398.2316373 | N244: 0 | S244: 11.5348206 | T244: 13.23380547 | U244: 12.33499518 | V244: 7.591504749 | W244: 8.280300872 | X244: 7.867896446 | Z244: 0.8718059813 | AA244: 5.865109207 | AB244: 2.238098403 | AG244: 39.8742396 | AH244: 60.59906336 | AI244: 46.65230407 | AU244: 9100 | AV244: 156.5212484 | AW244: 597.6923869 | AX244: 380.440391 | BD244: 1.44951454 | BE244: 1.794204362 | BF244: 1.656226912 | BH244: 9.6015625 | BI244: 17.56223958 | BJ244: 10.67357856 | BK244: 8.798625755 | BL244: 12.98906374 | BM244: 11.80846577 | BQ244: 0.001973137958 | BR244: 3.90520066 | BS244: 1.468627603
A245: 2023-04-23 | B245: 2023-04-23 | J245: 9270 | K245: 122.0100305 | L245: 582.5327942 | M245: 386.2646269 | N245: 0 | S245: 11.72187594 | T245: 13.23308905 | U245: 12.48708504 | V245: 7.73081495 | W245: 8.276637141 | X245: 7.877759842 | Z245: 0.2659351553 | AA245: 3.026966049 | AB245: 1.602162962 | AG245: 42.02456919 | AH245: 65.51818689 | AI245: 48.17004268 | AU245: 8700 | AV245: 119.2852804 | AW245: 551.9928772 | AX245: 361.3544735 | BD245: 1.387222201 | BE245: 1.851938323 | BF245: 1.640603161 | BH245: 10.22291667 | BI245: 11.753125 | BJ245: 10.7389974 | BK245: 7.504219468 | BL245: 11.99559479 | BM245: 9.922590686 | BQ245: 0.001973137958 | BR245: 2.987778743 | BS245: 1.004431456
A246: 2023-04-24 | B246: 2023-04-24 | J246: 13380 | K246: 156.8841626 | L246: 1049.31279 | M246: 558.071106 | N246: 0 | O246: 623 | P246: 340 | Q246: 327 | R246: 13 | S246: 11.94471677 | T246: 12.90642026 | U246: 12.33410832 | V246: 7.46212937 | W246: 8.44402469 | X246: 7.884153881 | Y246: 7.668 | Z246: 0.6797312856 | AA246: 6.364923428 | AB246: 2.550928186 | AC246: 9.15 | AD246: 1018 | AE246: 66.3 | AG246: 13.46853083 | AH246: 70.49292272 | AI246: 39.82409386 | AJ246: 46 | AK246: 302 | AL246: 88 | AM246: 84 | AN246: 0.5 | AO246: 7.27 | AP246: 7.548 | AQ246: 996 | AR246: 52.9 | AT246: 42 | AU246: 13000 | AV246: 105.0166138 | AW246: 947.536851 | AX246: 544.1057811 | AY246: 27.6 | AZ246: 3 | BA246: 4 | BB246: 0 | BC246: 7.085 | BD246: 1.270605087 | BE246: 1.993258079 | BF246: 1.70652627 | BG246: 1.96 | BH246: 10.859375 | BI246: 16.44765625 | BJ246: 12.40901693 | BK246: 7.890282091 | BL246: 13.11525116 | BM246: 9.798657167 | BN246: 814 | BO246: 9.9 | BQ246: 0.06099030972 | BR246: 12.91800489 | BS246: 3.746992324 | BT246: 1.3
A247: 2023-04-25 | B247: 2023-04-25 | J247: 10800 | K247: 248.6014656 | L247: 851.0127268 | M247: 449.2737051 | N247: 0 | S247: 11.71349273 | T247: 12.74083522 | U247: 12.25060327 | V247: 7.438371166 | W247: 8.324777412 | X247: 7.827666773 | Z247: 0.8578753581 | AA247: 7.50661693 | AB247: 2.667626915 | AG247: 31.07599936 | AH247: 62.11402823 | AI247: 43.21814848 | AU247: 10500 | AV247: 198.5134298 | AW247: 801.1429016 | AX247: 434.5943966 | BD247: 1.246720223 | BE247: 1.451615294 | BF247: 1.356689616 | BH247: 11.35338542 | BI247: 14.40885417 | BJ247: 12.26103516 | BK247: 7.400625515 | BL247: 10.63903211 | BM247: 8.848766443 | BQ247: 1.093855655 | BR247: 4.300442203 | BS247: 2.357509894
A248: 2023-04-26 | B248: 2023-04-26 | J248: 8540 | K248: 148.7196173 | L248: 464.7979345 | M248: 355.4146967 | N248: 0 | S248: 11.7802958 | T248: 12.81349409 | U248: 12.36982513 | V248: 7.683973217 | W248: 8.371625074 | X248: 7.910033642 | Z248: 1.16298626 | AA248: 8.759377448 | AB248: 2.822324827 | AG248: 35.41906813 | AH248: 71.57852453 | AI248: 47.39433544 | AU248: 8300 | AV248: 137.4421061 | AW248: 456.868455 | AX248: 348.136968 | BD248: 1.340426668 | BE248: 1.611808368 | BF248: 1.447407867 | BH248: 11.6765625 | BI248: 13.28098958 | BJ248: 12.08604601 | BK248: 8.134454091 | BL248: 10.5606102 | BM248: 9.286813315 | BQ248: 1.22611105 | BR248: 3.187448676 | BS248: 1.657668527
A249: 2023-04-27 | B249: 2023-04-27 | J249: 7340 | K249: 131.1776617 | L249: 469.2660095 | M249: 305.941759 | N249: 0 | S249: 12.11924189 | T249: 13.23674083 | U249: 12.60792645 | V249: 7.724867932 | W249: 8.204361598 | X249: 7.85192453 | Z249: 1.580783129 | AA249: 1.580783129 | AB249: 1.580783129 | AG249: 41.31820234 | AH249: 61.95683034 | AI249: 46.76485486 | AU249: 7000 | AV249: 101.7433248 | AW249: 455.7653056 | AX249: 292.1436216 | BD249: 0.925569883 | BE249: 1.543646797 | BF249: 1.195213027 | BH249: 11.99973958 | BI249: 13.76822917 | BJ249: 12.31980252 | BK249: 5.890313435 | BL249: 9.01270415 | BM249: 7.839680475 | BQ249: 0.001654744006 | BR249: 1.446368378 | BS249: 0.2172820595
A250: 2023-04-28 | B250: 2023-04-28 | J250: 6580 | K250: 92.47202924 | L250: 376.8156804 | M250: 273.8661017 | N250: 10 | S250: 12.04059137 | T250: 12.68757575 | U250: 12.39156046 | V250: 7.594120995 | W250: 8.306187185 | X250: 7.860710564 | Z250: 1.580783129 | AA250: 1.580783129 | AB250: 1.580783129 | AG250: 44.48976046 | AH250: 71.90126699 | AI250: 50.64223427 | AU250: 6000 | AV250: 88.3788859 | AW250: 348.9763977 | AX250: 252.4413813 | BD250: 0.6735347658 | BE250: 1.263539926 | BF250: 0.9164033893 | BH250: 11.42447917 | BI250: 13.21588542 | BJ250: 11.88286675 | BK250: 4.038563077 | BL250: 6.149344603 | BM250: 5.273455776 | BQ250: 0.001618638504 | BR250: 0.04507027616 | BS250: 0.006928628431
A251: 2023-04-29 | B251: 2023-04-29 | J251: 8970 | K251: 106.2041859 | L251: 920.8092168 | M251: 374.0452376 | N251: 0 | S251: 12.09827679 | T251: 13.51862779 | U251: 12.61711038 | V251: 7.420816636 | W251: 8.077805392 | X251: 7.762885892 | Z251: 1.580783129 | AA251: 1.580783129 | AB251: 1.580783129 | AG251: 11.43072812 | AH251: 61.68430608 | AI251: 41.80284081 | AU251: 8800 | AV251: 99.64552511 | AW251: 935.3659892 | AX251: 364.7649039 | BD251: 0.590647614 | BE251: 1.946887453 | BF251: 1.028403234 | BH251: 11.21276042 | BI251: 14.64114583 | BJ251: 11.71486545 | BK251: 3.497719463 | BL251: 4.921875652 | BM251: 4.410149032 | BQ251: 0.001672512722 | BR251: 8.065452361 | BS251: 1.114338077
A252: 2023-04-30 | B252: 2023-04-30 | J252: 6350 | K252: 95.4668197 | L252: 370.4161868 | M252: 264.6958583 | N252: 0 | S252: 12.11965542 | T252: 12.96714342 | U252: 12.64328879 | V252: 7.730785608 | W252: 8.220992343 | X252: 7.845701555 | Z252: 1.580783129 | AA252: 1.580783129 | AB252: 1.580783129 | AG252: 27.43239749 | AH252: 60.16645972 | AI252: 40.66537788 | AU252: 5900 | AV252: 68.07000224 | AW252: 355.9027629 | AX252: 247.564598 | BD252: 0.449623848 | BE252: 1.638298424 | BF252: 0.7283363425 | BH252: 11.47916667 | BI252: 12.30572917 | BJ252: 11.86715495 | BK252: 3.870891269 | BL252: 7.737750848 | BM252: 6.221729187 | BQ252: 0.001965821488 | BR252: 3.733031499 | BS252: 0.2174828242
B254: Povprečje | J254: =IF(OR(J223,J224,J225,J226,J227,J228,J229,J230,J231,J232,J233,J234,J235,J236,J237,J238,J239,J240,J241,J242,J243,J244,J245,J246,J246,J247,J248<>""),AVERAGE(J223:J253),"") -> 10941.33333 | M254: =IF(OR(M223,M224,M225,M226,M227,M228,M229,M230,M231,M232,M233,M234,M235,M236,M237,M238,M239,M240,M241,M242,M243,M244,M245,M246,M246,M247,M248<>""),AVERAGE(M223:M253),"") -> 455.8507833 | N254: 1.333333333 | O254: 820.6666667 | P254: 338.3333333 | Q254: 403.3333333 | R254: 17.33333333 | U254: =IF(OR(U223,U224,U225,U226,U227,U228,U229,U230,U231,U232,U233,U234,U235,U236,U237,U238,U239,U240,U241,U242,U243,U244,U245,U246,U246,U247,U248<>""),AVERAGE(U223:U253),"") -> 11.59610691 | X254: =IF(OR(X223,X224,X225,X226,X227,X228,X229,X230,X231,X232,X233,X234,X235,X236,X237,X238,X239,X240,X241,X242,X243,X244,X245,X246,X246,X247,X248<>""),AVERAGE(X223:X253),"") -> 7.797785886 | Y254: =IF(OR(Y223,Y224,Y225,Y226,Y227,Y228,Y229,Y230,Y231,Y232,Y233,Y234,Y235,Y236,Y237,Y238,Y239,Y240,Y241,Y242,Y243,Y244,Y245,Y246,Y246,Y247,Y248<>""),AVERAGE(Y223:Y253),"") -> 7.495333333 | AB254: =IF(OR(AB223,AB224,AB225,AB226,AB227,AB228,AB229,AB230,AB231,AB232,AB233,AB234,AB235,AB236,AB237,AB238,AB239,AB240,AB241,AB242,AB243,AB244,AB245,AB246,AB246,AB247,AB248<>""),AVERAGE(AB223:AB253),"") -> 3.434193287 | AC254: =IF(OR(AC223,AC224,AC225,AC226,AC227,AC228,AC229,AC230,AC231,AC232,AC233,AC234,AC235,AC236,AC237,AC238,AC239,AC240,AC241,AC242,AC243,AC244,AC245,AC246,AC246,AC247,AC248<>""),AVERAGE(AC223:AC253),"") -> 10.61666667 | AD254: =IF(OR(AD223,AD224,AD225,AD226,AD227,AD228,AD229,AD230,AD231,AD232,AD233,AD234,AD235,AD236,AD237,AD238,AD239,AD240,AD241,AD242,AD243,AD244,AD245,AD246,AD246,AD247,AD248<>""),AVERAGE(AD223:AD253),"") -> 931 | AE254: =IF(OR(AE223,AE224,AE225,AE226,AE227,AE228,AE229,AE230,AE231,AE232,AE233,AE234,AE235,AE236,AE237,AE238,AE239,AE240,AE241,AE242,AE243,AE244,AE245,AE246,AE246,AE247,AE248<>""),AVERAGE(AE223:AE253),"") -> 59.73333333 | AF254: =IF(OR(AF223,AF224,AF225,AF226,AF227,AF228,AF229,AF230,AF231,AF232,AF233,AF234,AF235,AF236,AF237,AF238,AF239,AF240,AF241,AF242,AF243,AF244,AF245,AF246,AF246,AF247,AF248<>""),AVERAGE(AF223:AF253),"") ->  | AI254: =IF(OR(AI223,AI224,AI225,AI226,AI227,AI228,AI229,AI230,AI231,AI232,AI233,AI234,AI235,AI236,AI237,AI238,AI239,AI240,AI241,AI242,AI243,AI244,AI245,AI246,AI246,AI247,AI248<>""),AVERAGE(AI223:AI253),"") -> 42.9665465 | AJ254: 38.45 | AK254: 241.4 | AL254: 97.33333333 | AM254: 76.33333333 | AN254: 0.8833333333 | AO254: 5.766666667 | AP254: 7.522166667 | AQ254: 879.6666667 | AR254: 41.28333333 | AT254: 33.30166667 | AU254: 10663.33333 | AX254: =IF(OR(AX223,AX224,AX225,AX226,AX227,AX228,AX229,AX230,AX231,AX232,AX233,AX234,AX235,AX236,AX237,AX238,AX239,AX240,AX241,AX242,AX243,AX244,AX245,AX246,AX246,AX247,AX248<>""),AVERAGE(AX223:AX253),"") -> 444.9440503 | AY254: 25.83333333 | AZ254: 2.833333333 | BA254: 4.666666667 | BC254: 7.0825 | BF254: =IF(OR(BF223,BF224,BF225,BF226,BF227,BF228,BF229,BF230,BF231,BF232,BF233,BF234,BF235,BF236,BF237,BF238,BF239,BF240,BF241,BF242,BF243,BF244,BF245,BF246,BF246,BF247,BF248<>""),AVERAGE(BF223:BF253),"") -> 1.411763115 | BG254: =IF(OR(BG223,BG224,BG225,BG226,BG227,BG228,BG229,BG230,BG231,BG232,BG233,BG234,BG235,BG236,BG237,BG238,BG239,BG240,BG241,BG242,BG243,BG244,BG245,BG246,BG246,BG247,BG248<>""),AVERAGE(BG223:BG253),"") -> 1.755 | BJ254: =IF(OR(BJ223,BJ224,BJ225,BJ226,BJ227,BJ228,BJ229,BJ230,BJ231,BJ232,BJ233,BJ234,BJ235,BJ236,BJ237,BJ238,BJ239,BJ240,BJ241,BJ242,BJ243,BJ244,BJ245,BJ246,BJ246,BJ247,BJ248<>""),AVERAGE(BJ223:BJ253),"") -> 18.22453451 | BM254: =IF(OR(BM223,BM224,BM225,BM226,BM227,BM228,BM229,BM230,BM231,BM232,BM233,BM234,BM235,BM236,BM237,BM238,BM239,BM240,BM241,BM242,BM243,BM244,BM245,BM246,BM246,BM247,BM248<>""),AVERAGE(BM223:BM253),"") -> 7.89063449 | BN254: =IF(OR(BN223,BN224,BN225,BN226,BN227,BN228,BN229,BN230,BN231,BN232,BN233,BN234,BN235,BN236,BN237,BN238,BN239,BN240,BN241,BN242,BN243,BN244,BN245,BN246,BN246,BN247,BN248<>""),AVERAGE(BN223:BN253),"") -> 725.3333333 | BO254: =IF(OR(BO223,BO224,BO225,BO226,BO227,BO228,BO229,BO230,BO231,BO232,BO233,BO234,BO235,BO236,BO237,BO238,BO239,BO240,BO241,BO242,BO243,BO244,BO245,BO246,BO246,BO247,BO248<>""),AVERAGE(BO223:BO253),"") -> 6.983333333 | BP254: =IF(OR(BP223,BP224,BP225,BP226,BP227,BP228,BP229,BP230,BP231,BP232,BP233,BP234,BP235,BP236,BP237,BP238,BP239,BP240,BP241,BP242,BP243,BP244,BP245,BP246,BP246,BP247,BP248<>""),AVERAGE(BP223:BP253),"") ->  | BS254: =IF(OR(BS223,BS224,BS225,BS226,BS227,BS228,BS229,BS230,BS231,BS232,BS233,BS234,BS235,BS236,BS237,BS238,BS239,BS240,BS241,BS242,BS243,BS244,BS245,BS246,BS246,BS247,BS248<>""),AVERAGE(BS223:BS253),"") -> 1.015016225 | BT254: 1.05 | BU254: 238 | BV254: 120 | BW254: 152 | BX254: 3.5 | BY254: 2.51 | BZ254: 7.198 | CA254: 258 | CB254: 17 | CD254: 9.57
B255: Skupno: | J255: =IF(OR(J223,J224,J225,J226,J227,J228,J229,J230,J231,J232,J233,J234,J235,J236,J237,J238,J239,J240,J241,J242,J243,J244,J245,J246,J246,J247,J248<>""),SUM(J223:J253),"") -> 328240 | N255: =IF(OR(N223,N224,N225,N226,N227,N228,N229,N230,N231,N232,N233,N234,N235,N236,N237,N238,N239,N240,N241,N242,N243,N244,N245,N246,N246,N247,N248<>""),SUM(N223:N253),"") -> 40 | AU255: =IF(OR(AU223,AU224,AU225,AU226,AU227,AU228,AU229,AU230,AU231,AU232,AU233,AU234,AU235,AU236,AU237,AU238,AU239,AU240,AU241,AU242,AU243,AU244,AU245,AU246,AU246,AU247,AU248<>""),SUM(AU223:AU253),"") -> 319900
B256: Min: | J256: =IF(OR(J223,J224,J225,J226,J227,J228,J229,J230,J231,J232,J233,J234,J235,J236,J237,J238,J239,J240,J241,J242,J243,J244,J245,J246,J246,J247,J248<>""),MIN(J223:J253),"") -> 6350 | K256: 92.47202924 | L256: 370.4161868 | M256: 264.6958583 | N256: 0 | O256: 308 | P256: 100 | Q256: 187 | R256: 13 | S256: 7.116682593 | T256: 10.52045415 | U256: 9.54794116 | V256: 6.001749865 | W256: 7.798318895 | X256: 7.048727306 | Y256: 7.343 | Z256: 0.2145334929 | AA256: 0.9662508974 | AB256: 0.3598973717 | AC256: 5.24 | AD256: 416 | AE256: 22.9 | AG256: 6.46524303 | AH256: 31.0639768 | AI256: 18.40602567 | AJ256: 10.5 | AK256: =IF(OR(AK223,AK224,AK225,AK226,AK227,AK228,AK229,AK230,AK231,AK232,AK233,AK234,AK235,AK236,AK237,AK238,AK239,AK240,AK241,AK242,AK243,AK244,AK245,AK246,AK246,AK247,AK248<>""),MIN(AK223:AK253),"") -> 85.8 | AL256: =IF(OR(AL223,AL224,AL225,AL226,AL227,AL228,AL229,AL230,AL231,AL232,AL233,AL234,AL235,AL236,AL237,AL238,AL239,AL240,AL241,AL242,AL243,AL244,AL245,AL246,AL246,AL247,AL248<>""),MIN(AL223:AL253),"") -> 30 | AM256: 30 | AN256: 0 | AO256: 2.45 | AP256: 7.408 | AQ256: 521 | AR256: 14.2 | AT256: 8.01 | AU256: 5900 | AV256: 68.07000224 | AW256: 348.9763977 | AX256: 247.564598 | AY256: 21.5 | AZ256: 0 | BA256: 1 | BC256: 6.683 | BD256: 0.449623848 | BE256: 1.263539926 | BF256: 0.7283363425 | BG256: 1.53 | BH256: 2.2953125 | BI256: 7.926822917 | BJ256: 7.449804687 | BK256: 2.97501599 | BL256: 4.475203784 | BM256: 3.629457645 | BN256: 560 | BO256: 3.9 | BQ256: 0.00157016949 | BR256: 0.04507027616 | BS256: 0.006928628431 | BT256: 0.09 | BU256: 238 | BV256: =IF(OR(BV223,BV224,BV225,BV226,BV227,BV228,BV229,BV230,BV231,BV232,BV233,BV234,BV235,BV236,BV237,BV238,BV239,BV240,BV241,BV242,BV243,BV244,BV245,BV246,BV246,BV247,BV248<>""),MIN(BV223:BV253),"") -> 120 | BW256: 152 | BX256: 3.5 | BY256: 2.51 | BZ256: 7.198 | CA256: 258 | CB256: 17 | CD256: 9.57
B257: Max: | J257: =IF(OR(J223,J224,J225,J226,J227,J228,J229,J230,J231,J232,J233,J234,J235,J236,J237,J238,J239,J240,J241,J242,J243,J244,J245,J246,J246,J247,J248<>""),MAX(J223:J253),"") -> 21630 | K257: 846.2119039 | L257: 1175.672733 | M257: 901.9260964 | N257: 20 | O257: 1364 | P257: 450 | Q257: 573 | R257: 24 | S257: 12.11965542 | T257: 13.51862779 | U257: 12.64328879 | V257: 7.862192027 | W257: 8.540262985 | X257: 8.094032171 | Y257: 7.668 | Z257: 4.927748775 | AA257: 13.20537853 | AB257: 6.096976179 | AC257: 18.1 | AD257: 1191 | AE257: 82.2 | AG257: 46.89276136 | AH257: 82.65849686 | AI257: 55.42139242 | AJ257: 53 | AK257: =IF(OR(AK223,AK224,AK225,AK226,AK227,AK228,AK229,AK230,AK231,AK232,AK233,AK234,AK235,AK236,AK237,AK238,AK239,AK240,AK241,AK242,AK243,AK244,AK245,AK246,AK246,AK247,AK248<>""),MAX(AK223:AK253),"") -> 305 | AL257: =IF(OR(AL223,AL224,AL225,AL226,AL227,AL228,AL229,AL230,AL231,AL232,AL233,AL234,AL235,AL236,AL237,AL238,AL239,AL240,AL241,AL242,AL243,AL244,AL245,AL246,AL246,AL247,AL248<>""),MAX(AL223:AL253),"") -> 131 | AM257: 116 | AN257: 1.5 | AO257: 7.6 | AP257: 7.665 | AQ257: 1126 | AR257: 56.1 | AT257: 48 | AU257: 19800 | AV257: 654.0255778 | AW257: 1038.700775 | AX257: 827.2184743 | AY257: 32.3 | AZ257: 7 | BA257: 13 | BC257: 7.21 | BD257: 1.465576935 | BE257: 2.532646318 | BF257: 1.70652627 | BG257: 1.96 | BH257: 11.99973958 | BI257: 250.0174479 | BJ257: 156.2145616 | BK257: 9.618094412 | BL257: 44.72493941 | BM257: 28.21708943 | BN257: 814 | BO257: 12.2 | BQ257: 1.22611105 | BR257: 12.91800489 | BS257: 3.746992324 | BT257: 3.07 | BU257: 238 | BV257: =IF(OR(BV223,BV224,BV225,BV226,BV227,BV228,BV229,BV230,BV231,BV232,BV233,BV234,BV235,BV236,BV237,BV238,BV239,BV240,BV241,BV242,BV243,BV244,BV245,BV246,BV246,BV247,BV248<>""),MAX(BV223:BV253),"") -> 120 | BW257: 152 | BX257: 3.5 | BY257: 2.51 | BZ257: 7.198 | CA257: 258 | CB257: 17 | CD257: 9.57
J260: VTOK | N260: Septika | O260: VTOK | S260: VTOK | AD260: VTOK | AK260: Mehansko predčiščenje | AU260: IZTOK | BC260: IZTOK | BN260: IZTOK | BU260: Deževni bazen
... 316 more rows

Sheet Pooblastilo

Sheet KČN (hidden)
A1: Ime KČN | D1: Ime | E1: AGLO_ID | F1: AGLO_IME | G1: PE_SKUPAJ | J1: Dodatno čiščenje | L1: ID občine | M1: Ime občine
A3: AJDOVŠČINA | D3: 29 - Maribor 2019 | E3: 29 | F3: Maribor 2019 | G3: 136133 | J3: UV dezinfekcija | L3: 1 | M3: Ajdovščina
A4: APAČE | D4: 57 - Osluševci – Cvetkovci 2019 | E4: 57 | F4: Osluševci – Cvetkovci 2019 | G4: 538 | J4: Membranska filtracija | L4: 213 | M4: Ankaran
A5: BISTRICA | D5: 101 - Sveti Tomaž 2019 | E5: 101 | F5: Sveti Tomaž 2019 | G5: 347 | J5: Ozonizacija | L5: 195 | M5: Apače
A6: BLED | D6: 129 - Podgorci – Velika Nedelja 2019 | E6: 129 | F6: Podgorci – Velika Nedelja 2019 | G6: 1385 | J6: Absorbcija na aktivno oglje | L6: 2 | M6: Beltinci
A7: BOHINJSKA BISTRICA | D7: 197 - Ormož – Hardek 2019 | E7: 197 | F7: Ormož – Hardek 2019 | G7: 3696 | J7: Rastlinska greda | L7: 148 | M7: Benedikt
A8: BOROVNICA | D8: 210 - Ivanjkovci 2019 | E8: 210 | F8: Ivanjkovci 2019 | G8: 184 | J8: Drugi način dodatnega čiščenja | L8: 149 | M8: Bistrica ob Sotli
A9: BOVEC | D9: 370 - Središče ob Dravi 2019 | E9: 370 | F9: Središče ob Dravi 2019 | G9: 1979 | L9: 3 | M9: Bled
A10: BRESTANICA | D10: 455 - Cezanjevci 2019 | E10: 455 | F10: Cezanjevci 2019 | G10: 175 | L10: 150 | M10: Bloke
A11: BREŽICE | D11: 458 - Šalinci 2019 | E11: 458 | F11: Šalinci 2019 | G11: 395 | L11: 4 | M11: Bohinj
A12: BROD | D12: 482 - Krapje 2019 | E12: 482 | F12: Krapje 2019 | G12: 130 | L12: 5 | M12: Borovnica
A13: CELJE | D13: 493 - Ljutomer 2019 | E13: 493 | F13: Ljutomer 2019 | G13: 6927 | L13: 6 | M13: Bovec
A14: CERKNICA | D14: 501 - Podgradje 2019 | E14: 501 | F14: Podgradje 2019 | G14: 162 | L14: 151 | M14: Braslovče
A15: CERKNO | D15: 507 - Cven 2019 | E15: 507 | F15: Cven 2019 | G15: 662 | L15: 7 | M15: Brda
A16: ČRENŠOVCI | D16: 518 - Mota 2019 | E16: 518 | F16: Mota 2019 | G16: 345 | L16: 8 | M16: Brezovica
A17: ČRNA NA KOROŠKEM | D17: 535 - Razkrižje 2019 | E17: 535 | F17: Razkrižje 2019 | G17: 951 | L17: 9 | M17: Brežice
A18: ČRNUČE | D18: 538 - Lucija 2019 | E18: 538 | F18: Lucija 2019 | G18: 26569 | L18: 152 | M18: Cankova
A19: DIVAČA | D19: 540 - Seča 2019 | E19: 540 | F19: Seča 2019 | G19: 1394 | L19: 11 | M19: Celje
A20: DOBRNA | D20: 554 - Sečovlje 2019 | E20: 554 | F20: Sečovlje 2019 | G20: 588 | L20: 12 | M20: Cerklje na Gorenjskem
A21: DOBROVNIK | D21: 575 - Dragonja spodnji del 2019 | E21: 575 | F21: Dragonja spodnji del 2019 | G21: 261 | L21: 13 | M21: Cerknica
A22: DOBROVO (VINSKA KLET) | D22: 597 - Sveti Peter 2019 | E22: 597 | F22: Sveti Peter 2019 | G22: 312 | L22: 14 | M22: Cerkno
A23: DOL PRI LJUBLJANI | D23: 598 - Padna 2019 | E23: 598 | F23: Padna 2019 | G23: 171 | L23: 153 | M23: Cerkvenjak
A24: DOLENJSKE TOPLICE | D24: 603 - Nova vas nad Dragonjo 2019 | E24: 603 | F24: Nova vas nad Dragonjo 2019 | G24: 173 | L24: 196 | M24: Cirkulane
A25: DOMŽALE-KAMNIK | D25: 643 - Sveti Jurij ob Ščavnici 2019 | E25: 643 | F25: Sveti Jurij ob Ščavnici 2019 | G25: 357 | L25: 15 | M25: Črenšovci
A26: DORNAVA | D26: 678 - Vučja vas 2019 | E26: 678 | F26: Vučja vas 2019 | G26: 173 | L26: 16 | M26: Črna na Koroškem
A27: DRAVOGRAD | D27: 702 - Stara Nova vas 2019 | E27: 702 | F27: Stara Nova vas 2019 | G27: 2376 | L27: 17 | M27: Črnomelj
A28: FORMIN | D28: 704 - Lukavci 2019 | E28: 704 | F28: Lukavci 2019 | G28: 321 | L28: 18 | M28: Destrnik
A29: GLOBOVNICA (LENART-STARA) | D29: 705 - Banovci 2019 | E29: 705 | F29: Banovci 2019 | G29: 236 | L29: 19 | M29: Divača
A30: GORENJA VAS | D30: 706 - Veržej 2019 | E30: 706 | F30: Veržej 2019 | G30: 984 | L30: 154 | M30: Dobje pri Planini
A31: GORIŠNICA | D31: 945 - Prešnica 2019 | E31: 945 | F31: Prešnica 2019 | G31: 194 | L31: 20 | M31: Dobrepolje
A32: GORNJA RADGONA | D32: 953 - Tublje pri Hrpeljah 2019 | E32: 953 | F32: Tublje pri Hrpeljah 2019 | G32: 159 | L32: 155 | M32: Dobrna
A33: GROSUPLJE | D33: 955 - Kozina 2019 | E33: 955 | F33: Kozina 2019 | G33: 2099 | L33: 21 | M33: Dobrova - Polhov Gradec
A34: HRASTNIK | D34: 962 - Rodik 2019 | E34: 962 | F34: Rodik 2019 | G34: 348 | L34: 156 | M34: Dobrovnik
A35: IDRIJA | D35: 965 - Dane pri Divači 2019 | E35: 965 | F35: Dane pri Divači 2019 | G35: 74 | L35: 22 | M35: Dol pri Ljubljani
A36: IG | D36: 967 - Kačiče – Pared 2019 | E36: 967 | F36: Kačiče – Pared 2019 | G36: 107 | L36: 157 | M36: Dolenjske Toplice
A37: ILIRSKA BISTRICA | D37: 968 - Dolnje Ležeče 2019 | E37: 968 | F37: Dolnje Ležeče 2019 | G37: 258 | L37: 23 | M37: Domžale
A38: IVANČNA GORICA | D38: 969 - Divača 2019 | E38: 969 | F38: Divača 2019 | G38: 1715 | L38: 24 | M38: Dornava
A39: JESENICE | D39: 970 - Senadole 2019 | E39: 970 | F39: Senadole 2019 | G39: 64 | L39: 25 | M39: Dravograd
A40: KANAL | D40: 990 - Slivje 2019 | E40: 990 | F40: Slivje 2019 | G40: 109 | L40: 26 | M40: Duplek
A41: KIDRIČEVO | D41: 993 - Markovščina 2019 | E41: 993 | F41: Markovščina 2019 | G41: 102 | L41: 27 | M41: Gorenja vas - Poljane
A42: KOBARID | D42: 994 - Gradišče pri Materiji 2019 | E42: 994 | F42: Gradišče pri Materiji 2019 | G42: 127 | L42: 28 | M42: Gorišnica
A43: KOČEVJE | D43: 995 - Javorje 2019 | E43: 995 | F43: Javorje 2019 | G43: 99 | L43: 207 | M43: Gorje
A44: KOMEN | D44: 997 - Obrov 2019 | E44: 997 | F44: Obrov 2019 | G44: 205 | L44: 29 | M44: Gornja Radgona
A45: KOPER | D45: 1005 - Škoflje 2019 | E45: 1005 | F45: Škoflje 2019 | G45: 127 | L45: 30 | M45: Gornji Grad
A46: KOSTANJEVICA NA KRKI | D46: 1013 - Vremski Britof 2019 | E46: 1013 | F46: Vremski Britof 2019 | G46: 98 | L46: 31 | M46: Gornji Petrovci
A47: KOZINA | D47: 1015 - Gornje Vreme 2019 | E47: 1015 | F47: Gornje Vreme 2019 | G47: 78 | L47: 158 | M47: Grad
A48: KRANJ | D48: 1016 - Barka 2019 | E48: 1016 | F48: Barka 2019 | G48: 109 | L48: 32 | M48: Grosuplje
A49: KROPA | D49: 1019 - Laže 2019 | E49: 1019 | F49: Laže 2019 | G49: 90 | L49: 159 | M49: Hajdina
A50: LAŠKO (STRENSKO) | D50: 1020 - Senožeče 2019 | E50: 1020 | F50: Senožeče 2019 | G50: 817 | L50: 160 | M50: Hoče-Slivnica
A51: LENDAVA | D51: 1024 - Opatje Selo 2019 | E51: 1024 | F51: Opatje Selo 2019 | G51: 471 | L51: 161 | M51: Hodoš
A52: LITIJA | D52: 1025 - Lokvica 2019 | E52: 1025 | F52: Lokvica 2019 | G52: 91 | L52: 162 | M52: Horjul
A53: LJUBLJANA (ZALOG) | D53: 1031 - Sela na Krasu 2019 | E53: 1031 | F53: Sela na Krasu 2019 | G53: 158 | L53: 34 | M53: Hrastnik
A54: LJUTOMER | D54: 1033 - Miren 2019 | E54: 1033 | F54: Miren 2019 | G54: 2150 | L54: 35 | M54: Hrpelje-Kozina
A55: LOGATEC | D55: 1034 - Brestovica pri Komnu 2019 | E55: 1034 | F55: Brestovica pri Komnu 2019 | G55: 109 | L55: 36 | M55: Idrija
A56: LOVRENC NA POHORJU | D56: 1036 - Bilje 2019 | E56: 1036 | F56: Bilje 2019 | G56: 1305 | L56: 37 | M56: Ig
A57: LUKAČEVCI | D57: 1038 - Kostanjevica na Krasu 2019 | E57: 1038 | F57: Kostanjevica na Krasu 2019 | G57: 284 | L57: 38 | M57: Ilirska Bistrica
A58: LUKOVICA | D58: 1042 - Vojščica 2019 | E58: 1042 | F58: Vojščica 2019 | G58: 222 | L58: 39 | M58: Ivančna Gorica
A59: MARIBOR | D59: 1044 - Temnica 2019 | E59: 1044 | F59: Temnica 2019 | G59: 175 | L59: 40 | M59: Izola
A60: MARKOVCI | D60: 1050 - Prelože pri Lokvi 2019 | E60: 1050 | F60: Prelože pri Lokvi 2019 | G60: 91 | L60: 41 | M60: Jesenice
A61: MELINCI (BELTINCI) | D61: 1051 - Lokev 2019 | E61: 1051 | F61: Lokev 2019 | G61: 778 | L61: 163 | M61: Jezersko
A62: METLIKA | D62: 1052 - Sežana 2019 | E62: 1052 | F62: Sežana 2019 | G62: 6059 | L62: 42 | M62: Juršinci
A63: MEŽICA | D63: 1057 - Orlek 2019 | E63: 1057 | F63: Orlek 2019 | G63: 199 | L63: 43 | M63: Kamnik
A64: MIRNA | D64: 1063 - Dane pri Sežani 2019 | E64: 1063 | F64: Dane pri Sežani 2019 | G64: 444 | L64: 44 | M64: Kanal ob Soči
A65: MISLINJA | D65: 1064 - Šmarje pri Sežani 2019 | E65: 1064 | F65: Šmarje pri Sežani 2019 | G65: 282 | L65: 45 | M65: Kidričevo
A66: MOZIRJE | D66: 1065 - Povir 2019 | E66: 1065 | F66: Povir 2019 | G66: 327 | L66: 46 | M66: Kobarid
A67: MURSKA SOBOTA | D67: 1070 - Merče 2019 | E67: 1070 | F67: Merče 2019 | G67: 88 | L67: 47 | M67: Kobilje
A68: MURSKI ČRNCI | D68: 1071 - Gorenje pri Divači 2019 | E68: 1071 | F68: Gorenje pri Divači 2019 | G68: 131 | L68: 48 | M68: Kočevje
A69: MUTA - VUZENICA | D69: 1073 - Štorje 2019 | E69: 1073 | F69: Štorje 2019 | G69: 344 | L69: 49 | M69: Komen
A70: NOVA GORICA | D70: 1074 - Žirje 2019 | E70: 1074 | F70: Žirje 2019 | G70: 98 | L70: 164 | M70: Komenda
A71: NOVO MESTO (LOČNA) | D71: 1078 - Gabrovica pri Komnu 2019 | E71: 1078 | F71: Gabrovica pri Komnu 2019 | G71: 124 | L71: 50 | M71: Koper
A72: OBREŽJE | D72: 1079 - Pliskovica 2019 | E72: 1079 | F72: Pliskovica 2019 | G72: 241 | L72: 197 | M72: Kostanjevica na Krki
A73: ORMOŽ | D73: 1080 - Veliki Dol 2019 | E73: 1080 | F73: Veliki Dol 2019 | G73: 134 | L73: 165 | M73: Kostel
A74: PALOMA SLADKOGORSKA | D74: 1081 - Volčji Grad 2019 | E74: 1081 | F74: Volčji Grad 2019 | G74: 86 | L74: 51 | M74: Kozje
A75: PIRAN | D75: 1083 - Gorjansko 2019 | E75: 1083 | F75: Gorjansko 2019 | G75: 287 | L75: 52 | M75: Kranj
A76: PIVKA | D76: 1093 - Komen 2019 | E76: 1093 | F76: Komen 2019 | G76: 664 | L76: 53 | M76: Kranjska Gora
A77: PODPEČ-PRESERJE | D77: 1094 - Sveto 2019 | E77: 1094 | F77: Sveto 2019 | G77: 146 | L77: 166 | M77: Križevci pri Ljutomeru
A78: POSTOJNA | D78: 1100 - Škrbina 2019 | E78: 1100 | F78: Škrbina 2019 | G78: 150 | L78: 54 | M78: Krško
A79: PRAGERSKO | D79: 1108 - Dutovlje 2019 | E79: 1108 | F79: Dutovlje 2019 | G79: 362 | L79: 55 | M79: Kungota
A80: PREDDVOR | D80: 1114 - Šepulje 2019 | E80: 1114 | F80: Šepulje 2019 | G80: 1557 | L80: 56 | M80: Kuzma
A81: PREVALJE | D81: 1115 - Tomaj 2019 | E81: 1115 | F81: Tomaj 2019 | G81: 235 | L81: 57 | M81: Laško
A82: PRVAČINA-DORNBERK | D82: 1117 - Kopriva 2019 | E82: 1117 | F82: Kopriva 2019 | G82: 207 | L82: 58 | M82: Lenart
A83: PTUJ | D83: 1121 - Avber 2019 | E83: 1121 | F83: Avber 2019 | G83: 102 | L83: 59 | M83: Lendava
A84: PUCONCI | D84: 1122 - Ponikve – Križ 2019 | E84: 1122 | F84: Ponikve – Križ 2019 | G84: 145 | L84: 60 | M84: Litija
A85: RAČE | D85: 1128 - Kazlje 2019 | E85: 1128 | F85: Kazlje 2019 | G85: 98 | L85: 61 | M85: Ljubljana
A86: RADEČE | D86: 1143 - Štanjel 2019 | E86: 1143 | F86: Štanjel 2019 | G86: 364 | L86: 62 | M86: Ljubno
A87: RADENCI | D87: 1144 - Hruševica 2019 | E87: 1144 | F87: Hruševica 2019 | G87: 160 | L87: 63 | M87: Ljutomer
A88: RADLJE OB DRAVI | D88: 1146 - Tupelče 2019 | E88: 1146 | F88: Tupelče 2019 | G88: 246 | L88: 64 | M88: Logatec
A89: RADOVLJICA | D89: 1150 - Kobdilj 2019 | E89: 1150 | F89: Kobdilj 2019 | G89: 158 | L89: 208 | M89: Log-Dragomer
A90: RAKEK | D90: 1152 - Trpčane 2019 | E90: 1152 | F90: Trpčane 2019 | G90: 136 | L90: 65 | M90: Loška dolina
A91: RAVNE NA KOROŠKEM | D91: 1156 - Hrušica – Podgrad 2019 | E91: 1156 | F91: Hrušica – Podgrad 2019 | G91: 264 | L91: 66 | M91: Loški Potok
A92: RAZKRIŽJE | D92: 1160 - Huje 2019 | E92: 1160 | F92: Huje 2019 | G92: 92 | L92: 167 | M92: Lovrenc na Pohorju
A93: RETEČE | D93: 1167 - Račice 2019 | E93: 1167 | F93: Račice 2019 | G93: 172 | L93: 67 | M93: Luče
A94: RIBNICA | D94: 1168 - Podgrad – Obrov 2019 | E94: 1168 | F94: Podgrad – Obrov 2019 | G94: 671 | L94: 68 | M94: Lukovica
A95: ROGAŠKA SLATINA | D95: 1172 - Sabonje 2019 | E95: 1172 | F95: Sabonje 2019 | G95: 75 | L95: 69 | M95: Majšperk
A96: ROGLA | D96: 1173 - Jelšane 2019 | E96: 1173 | F96: Jelšane 2019 | G96: 349 | L96: 198 | M96: Makole
A97: SEČOVLJE | D97: 1174 - Novokračine 2019 | E97: 1174 | F97: Novokračine 2019 | G97: 179 | L97: 70 | M97: Maribor
A98: SELNICA OB DRAVI | D98: 1175 - Dolenje pri Jelšanah 2019 | E98: 1175 | F98: Dolenje pri Jelšanah 2019 | G98: 199 | L98: 168 | M98: Markovci
A99: SEMIČ | D99: 1181 - Gornji Zemon 2019 | E99: 1181 | F99: Gornji Zemon 2019 | G99: 96 | L99: 71 | M99: Medvode
A100: ŠENTJERNEJ | D100: 1184 - Zarečica 2019 | E100: 1184 | F100: Zarečica 2019 | G100: 126 | L100: 72 | M100: Mengeš
A101: ŠENTJUR | D101: 1186 - Podbeže 2019 | E101: 1186 | F101: Podbeže 2019 | G101: 97 | L101: 73 | M101: Metlika
A102: SEVNICA | D102: 1188 - Harije 2019 | E102: 1188 | F102: Harije 2019 | G102: 298 | L102: 74 | M102: Mežica
A103: SEŽANA | D103: 1196 - Pregarje 2019 | E103: 1196 | F103: Pregarje 2019 | G103: 183 | L103: 169 | M103: Miklavž na Dravskem polju
A104: ŠKOFJA LOKA | D104: 1197 - Topolc 2019 | E104: 1197 | F104: Topolc 2019 | G104: 331 | L104: 75 | M104: Miren-Kostanjevica
A105: ŠKOFJA VAS | D105: 1199 - Zarečje 2019 | E105: 1199 | F105: Zarečje 2019 | G105: 162 | L105: 212 | M105: Mirna
A106: SLOVENJ GRADEC | D106: 1205 - Smrje 2019 | E106: 1205 | F106: Smrje 2019 | G106: 118 | L106: 170 | M106: Mirna Peč
A107: SLOVENSKA BISTRICA | D107: 1206 - Prem 2019 | E107: 1206 | F107: Prem 2019 | G107: 152 | L107: 76 | M107: Mislinja
A108: SLOVENSKE KONJICE | D108: 1207 - Dolnji Zemon 2019 | E108: 1207 | F108: Dolnji Zemon 2019 | G108: 254 | L108: 199 | M108: Mokronog-Trebelno
A109: ŠMARJE PRI JELŠAH | D109: 1208 - Dolnji Zemon – Zemonska vaga 2019 | E109: 1208 | F109: Dolnji Zemon – Zemonska vaga 2019 | G109: 243 | L109: 77 | M109: Moravče
A110: ŠMARJEŠKE TOPLICE | D110: 1210 - Ilirska Bistrica 2019 | E110: 1210 | F110: Ilirska Bistrica 2019 | G110: 5176 | L110: 78 | M110: Moravske Toplice
A111: ŠOŠTANJ (ŠALEŠKE DOLINE) | D111: 1214 - Velika Bukovica 2019 | E111: 1214 | F111: Velika Bukovica 2019 | G111: 227 | L111: 79 | M111: Mozirje
A112: SPODNJA IDRIJA | D112: 1215 - Jablanica 2019 | E112: 1215 | F112: Jablanica 2019 | G112: 158 | L112: 80 | M112: Murska Sobota
A113: SREDIŠČE OB DRAVI | D113: 1216 - Vrbovo – Vrbica 2019 | E113: 1216 | F113: Vrbovo – Vrbica 2019 | G113: 501 | L113: 81 | M113: Muta
A114: STARI TRG (LOŽ) | D114: 1217 - Šembije 2019 | E114: 1217 | F114: Šembije 2019 | G114: 251 | L114: 82 | M114: Naklo
A115: STRAŽA (SELA PRI STRAŽI) | D115: 1220 - Neverke 2019 | E115: 1220 | F115: Neverke 2019 | G115: 459 | L115: 83 | M115: Nazarje
A116: TABRE (KRANJSKA GORA) | D116: 1221 - Ostrožno Brdo 2019 | E116: 1221 | F116: Ostrožno Brdo 2019 | G116: 88 | L116: 84 | M116: Nova Gorica
A117: TERME ČATEŽ | D117: 1223 - Gornja Košana 2019 | E117: 1223 | F117: Gornja Košana 2019 | G117: 154 | L117: 85 | M117: Novo mesto
A118: TOLMIN | D118: 1237 - Kal 2019 | E118: 1237 | F118: Kal 2019 | G118: 325 | L118: 86 | M118: Odranci
A119: TRBOJE | D119: 1239 - Nova sušica 2019 | E119: 1239 | F119: Nova sušica 2019 | G119: 106 | L119: 171 | M119: Oplotnica
A120: TRBOVLJE | D120: 1242 - Parje 2019 | E120: 1242 | F120: Parje 2019 | G120: 129 | L120: 87 | M120: Ormož
A121: TREBNJE | D121: 1243 - Narin 2019 | E121: 1243 | F121: Narin 2019 | G121: 232 | L121: 88 | M121: Osilnica
A122: TRŽIČ | D122: 1247 - Bač 2019 | E122: 1247 | F122: Bač 2019 | G122: 516 | L122: 89 | M122: Pesnica
A123: TURNIŠČE | D123: 1248 - Knežak 2019 | E123: 1248 | F123: Knežak 2019 | G123: 424 | L123: 90 | M123: Piran
A124: VELIKA POLANA | D124: 1249 - Koritnice 2019 | E124: 1249 | F124: Koritnice 2019 | G124: 144 | L124: 91 | M124: Pivka
A125: VIDEM PRI PTUJU | D125: 1250 - Drskovče 2019 | E125: 1250 | F125: Drskovče 2019 | G125: 113 | L125: 92 | M125: Podčetrtek
A126: VIPAP | D126: 1251 - Zagorje 2019 | E126: 1251 | F126: Zagorje 2019 | G126: 406 | L126: 172 | M126: Podlehnik
A127: VIPAVA | D127: 1252 - Jurišče 2019 | E127: 1252 | F127: Jurišče 2019 | G127: 167 | L127: 93 | M127: Podvelka
A128: VIPAVA (AGROIND) | D128: 1254 - Klenik 2019 | E128: 1254 | F128: Klenik 2019 | G128: 181 | L128: 200 | M128: Poljčane
A129: VNANJE GORICE | D129: 1258 - Pivka 2019 | E129: 1258 | F129: Pivka 2019 | G129: 2684 | L129: 173 | M129: Polzela
A130: VOJNA VAS (ČRNOMELJ) | D130: 1259 - Selce 2019 | E130: 1259 | F130: Selce 2019 | G130: 243 | L130: 94 | M130: Postojna
A131: VRHNIKA (TOJNICE) | D131: 1261 - Palčje 2019 | E131: 1261 | F131: Palčje 2019 | G131: 215 | L131: 174 | M131: Prebold
A132: ZAGORJE OB SAVI | D132: 1262 - Trnje – Pivka 2019 | E132: 1262 | F132: Trnje – Pivka 2019 | G132: 163 | L132: 95 | M132: Preddvor
A133: ŽALEC (KASAZE) | D133: 1264 - Sušak 2019 | E133: 1264 | F133: Sušak 2019 | G133: 99 | L133: 175 | M133: Prevalje
A134: ŽELEZNIKI | D134: 1265 - Zabiče – Podgraje 2019 | E134: 1265 | F134: Zabiče – Podgraje 2019 | G134: 615 | L134: 96 | M134: Ptuj
A135: ŽIRI | D135: 1266 - Kuteževo 2019 | E135: 1266 | F135: Kuteževo 2019 | G135: 204 | L135: 97 | M135: Puconci
A136: ZREČE | D136: 1276 - Male Žablje 2019 | E136: 1276 | F136: Male Žablje 2019 | G136: 493 | L136: 98 | M136: Rače-Fram
A137: ŽUŽEMBERK | D137: 1277 - Podraga 2019 | E137: 1277 | F137: Podraga 2019 | G137: 373 | L137: 99 | M137: Radeče
D138: 1280 - Poreče 2019 | E138: 1280 | F138: Poreče 2019 | G138: 729 | L138: 100 | M138: Radenci
D139: 1281 - Orehovica – Podbreg 2019 | E139: 1281 | F139: Orehovica – Podbreg 2019 | G139: 177 | L139: 101 | M139: Radlje ob Dravi
D140: 1282 - Ustje 2019 | E140: 1282 | F140: Ustje 2019 | G140: 322 | L140: 102 | M140: Radovljica
D141: 1283 - Gaberje 2019 | E141: 1283 | F141: Gaberje 2019 | G141: 181 | L141: 103 | M141: Ravne na Koroškem
D142: 1284 - Zavino 2019 | E142: 1284 | F142: Zavino 2019 | G142: 100 | L142: 176 | M142: Razkrižje
D143: 1287 - Brje 2019 | E143: 1287 | F143: Brje 2019 | G143: 177 | L143: 209 | M143: Rečica ob Savinji
D144: 1292 - Tevče 2019 | E144: 1292 | F144: Tevče 2019 | G144: 151 | L144: 201 | M144: Renče-Vogrsko
D145: 1297 - Šmarje – Vrtovče 2019 | E145: 1297 | F145: Šmarje – Vrtovče 2019 | G145: 143 | L145: 104 | M145: Ribnica
D146: 1298 - Velike Žablje 2019 | E146: 1298 | F146: Velike Žablje 2019 | G146: 345 | L146: 177 | M146: Ribnica na Pohorju
D147: 1300 - Lože 2019 | E147: 1300 | F147: Lože 2019 | G147: 231 | L147: 106 | M147: Rogaška Slatina
D148: 1301 - Manče 2019 | E148: 1301 | F148: Manče 2019 | G148: 153 | L148: 105 | M148: Rogašovci
D149: 1302 - Slap pri Vipavi 2019 | E149: 1302 | F149: Slap pri Vipavi 2019 | G149: 426 | L149: 107 | M149: Rogatec
D150: 1303 - Goče 2019 | E150: 1303 | F150: Goče 2019 | G150: 187 | L150: 108 | M150: Ruše
D151: 1307 - Vipava 2019 | E151: 1307 | F151: Vipava 2019 | G151: 2787 | L151: 178 | M151: Selnica ob Dravi
D152: 1314 - Dolenje 2019 | E152: 1314 | F152: Dolenje 2019 | G152: 66 | L152: 109 | M152: Semič
D153: 1315 - Planina – Marci 2019 | E153: 1315 | F153: Planina – Marci 2019 | G153: 385 | L153: 110 | M153: Sevnica
D154: 1317 - Planina – Britih 2019 | E154: 1317 | F154: Planina – Britih 2019 | G154: 79 | L154: 111 | M154: Sežana
D155: 1318 - Sanabor 2019 | E155: 1318 | F155: Sanabor 2019 | G155: 84 | L155: 112 | M155: Slovenj Gradec
D156: 1319 - Vrhpolje 2019 | E156: 1319 | F156: Vrhpolje 2019 | G156: 645 | L156: 113 | M156: Slovenska Bistrica
D157: 1321 - Budanje 2019 | E157: 1321 | F157: Budanje 2019 | G157: 1272 | L157: 114 | M157: Slovenske Konjice
D158: 1324 - Selo 2019 | E158: 1324 | F158: Selo 2019 | G158: 882 | L158: 179 | M158: Sodražica
D159: 1326 - Batuje 2019 | E159: 1326 | F159: Batuje 2019 | G159: 345 | L159: 180 | M159: Solčava
D160: 1332 - Črniče 2019 | E160: 1332 | F160: Črniče 2019 | G160: 445 | L160: 202 | M160: Središče ob Dravi
D161: 1334 - Ajdovščina 2019 | E161: 1334 | F161: Ajdovščina 2019 | G161: 10506 | L161: 115 | M161: Starše
D162: 1335 - Lokavec – Čohi 2019 | E162: 1335 | F162: Lokavec – Čohi 2019 | G162: 284 | L162: 203 | M162: Straža
D163: 1337 - Skrilje 2019 | E163: 1337 | F163: Skrilje 2019 | G163: 288 | L163: 181 | M163: Sveta Ana
D164: 1339 - Dobravlje – Pikči 2019 | E164: 1339 | F164: Dobravlje – Pikči 2019 | G164: 428 | L164: 204 | M164: Sveta Trojica v Slovenskih goricah
D165: 1342 - Kamnje 2019 | E165: 1342 | F165: Kamnje 2019 | G165: 213 | L165: 182 | M165: Sveti Andraž v Slovenskih goricah
D166: 1344 - Vrtovin – Potoče 2019 | E166: 1344 | F166: Vrtovin – Potoče 2019 | G166: 203 | L166: 116 | M166: Sveti Jurij ob Ščavnici
D167: 1345 - Vrtovin 2019 | E167: 1345 | F167: Vrtovin 2019 | G167: 322 | L167: 210 | M167: Sveti Jurij v Slovenskih goricah
D168: 1348 - Plače 2019 | E168: 1348 | F168: Plače 2019 | G168: 262 | L168: 205 | M168: Sveti Tomaž
D169: 1349 - Lokavec 2019 | E169: 1349 | F169: Lokavec 2019 | G169: 832 | L169: 33 | M169: Šalovci
D170: 1352 - Cesta v občini Ajdovščina 2019 | E170: 1352 | F170: Cesta v občini Ajdovščina 2019 | G170: 505 | L170: 183 | M170: Šempeter-Vrtojba
D171: 1354 - Stomaž 2019 | E171: 1354 | F171: Stomaž 2019 | G171: 219 | L171: 117 | M171: Šenčur
D172: 1360 - Dolga Poljana 2019 | E172: 1360 | F172: Dolga Poljana 2019 | G172: 353 | L172: 118 | M172: Šentilj
D173: 1364 - Lokavec – Gorenje 2019 | E173: 1364 | F173: Lokavec – Gorenje 2019 | G173: 74 | L173: 119 | M173: Šentjernej
D174: 1409 - Col 2019 | E174: 1409 | F174: Col 2019 | G174: 535 | L174: 120 | M174: Šentjur
D175: 1410 - Žagolič 2019 | E175: 1410 | F175: Žagolič 2019 | G175: 124 | L175: 211 | M175: Šentrupert
D176: 1411 - Prestranek 2019 | E176: 1411 | F176: Prestranek 2019 | G176: 1621 | L176: 121 | M176: Škocjan
D177: 1416 - Slavina 2019 | E177: 1416 | F177: Slavina 2019 | G177: 235 | L177: 122 | M177: Škofja Loka
D178: 1418 - Veliko Ubeljsko 2019 | E178: 1418 | F178: Veliko Ubeljsko 2019 | G178: 101 | L178: 123 | M178: Škofljica
D179: 1419 - Razdrto 2019 | E179: 1419 | F179: Razdrto 2019 | G179: 183 | L179: 124 | M179: Šmarje pri Jelšah
D180: 1423 - Hruševje 2019 | E180: 1423 | F180: Hruševje 2019 | G180: 374 | L180: 206 | M180: Šmarješke Toplice
D181: 1429 - Šmihel pod Nanosom 2019 | E181: 1429 | F181: Šmihel pod Nanosom 2019 | G181: 199 | L181: 125 | M181: Šmartno ob Paki
D182: 1431 - Višnje 2019 | E182: 1431 | F182: Višnje 2019 | G182: 111 | L182: 194 | M182: Šmartno pri Litiji
D183: 1435 - Podkraj 2019 | E183: 1435 | F183: Podkraj 2019 | G183: 326 | L183: 126 | M183: Šoštanj
D184: 1445 - Orehek 2019 | E184: 1445 | F184: Orehek 2019 | G184: 224 | L184: 127 | M184: Štore
D185: 1447 - Hrašče 2019 | E185: 1447 | F185: Hrašče 2019 | G185: 398 | L185: 184 | M185: Tabor
D186: 1448 - Goriče 2019 | E186: 1448 | F186: Goriče 2019 | G186: 90 | L186: 10 | M186: Tišina
D187: 1449 - Postojna 2019 | E187: 1449 | F187: Postojna 2019 | G187: 11378 | L187: 128 | M187: Tolmin
D188: 1455 - Hrenovice 2019 | E188: 1455 | F188: Hrenovice 2019 | G188: 109 | L188: 129 | M188: Trbovlje
D189: 1461 - Zagon 2019 | E189: 1461 | F189: Zagon 2019 | G189: 169 | L189: 130 | M189: Trebnje
D190: 1468 - Belsko 2019 | E190: 1468 | F190: Belsko 2019 | G190: 232 | L190: 185 | M190: Trnovska vas
D191: 1470 - Bukovje 2019 | E191: 1470 | F191: Bukovje 2019 | G191: 195 | L191: 186 | M191: Trzin
D192: 1473 - Strmca 2019 | E192: 1473 | F192: Strmca 2019 | G192: 90 | L192: 131 | M192: Tržič
D193: 1474 - Studeno 2019 | E193: 1474 | F193: Studeno 2019 | G193: 298 | L193: 132 | M193: Turnišče
D194: 1478 - Planina 2019 | E194: 1478 | F194: Planina 2019 | G194: 753 | L194: 133 | M194: Velenje
D195: 1492 - Šempeter pri Gorici 2019 | E195: 1492 | F195: Šempeter pri Gorici 2019 | G195: 1933 | L195: 187 | M195: Velika Polana
D196: 1515 - Nova Gorica 2019 | E196: 1515 | F196: Nova Gorica 2019 | G196: 33081 | L196: 134 | M196: Velike Lašče
D197: 1518 - Renčne zahod 2019 | E197: 1518 | F197: Renčne zahod 2019 | G197: 1237 | L197: 188 | M197: Veržej
D198: 1535 - Grgar 2019 | E198: 1535 | F198: Grgar 2019 | G198: 702 | L198: 135 | M198: Videm
D199: 1536 - Renče vzhod 2019 | E199: 1536 | F199: Renče vzhod 2019 | G199: 469 | L199: 136 | M199: Vipava
D200: 1543 - Grgar – Zagorje 2019 | E200: 1543 | F200: Grgar – Zagorje 2019 | G200: 65 | L200: 137 | M200: Vitanje
D201: 1547 - Banjšice 2019 | E201: 1547 | F201: Banjšice 2019 | G201: 71 | L201: 138 | M201: Vodice
... 1334 more rows

Sheet Izvajalci_JS (hidden)
A1: Naziv | B1: Ulica | C1: Št. pošte | D1: pošta | E1: davčna št. | F1: kontaktna os. | G1: tel. | H1: fax | I1: e-mail
A3: AGJ, D.O.O. | B3: POT NA KAMENŠAK 17 | C3: 2230 | D3: LENART V SLOV. GORICAH | E3: 84014598 | G3: 031 663 810 | H3: / | I3: agj@triera.net | J3: 215
A4: ČISTA NARAVA, JAVNO KOMUNALNO PODJETJE D.O.O. | B4: TEŠANOVCI 20 | C4: 9226 | D4: MORAVSKE TOPLICE | E4: 39046923 | F4: Dragica Piv, Števančec Andrej | G4: (02)5381617; (041)803793 (g. Števančec); (031)388510 (g. Šrok) | H4: (02)5381613 | I4: racunovodstvo.cn@siol.net | J4: 68
A5: EKO-PARK D.O.O. LENDAVA | B5: GLAVNA ULICA 109 | C5: 9220 | D5: LENDAVA | E5: 87430401 | F5: Stanko Gjekeš | G5: 02 577 62 80 | H5: 02 577 62 84 | I5: stanko.gjerkes@eko-park.si | J5: 188
A6: GRADNJE STARŠE, JAVNO PODJETJE D.O.O. | B6: STARŠE 93 | C6: 2205 | D6: STARŠE | E6: 17124328 | G6: 02/686 48 00 | H6: 02/686 48 10 | I6: obcina@starse.si | J6: 197
A7: JAVNO KOMUNALNO PODJETJE BREZOVICA D.O.O. | B7: KAMNIK POD KRIMOM 6 | C7: 1352 | D7: PRESERJE | E7: 22513434 | F7: Gorazd Kompič | G7: (01)3633020 | H7: (01)3633021 | I7: info@jkp-brezovica.si; damjana@jkp-brezovica.si | J7: 102
A8: JAVNO KOMUNALNO PODJETJE DRAVOGRAD D.O.O. | B8: MEŽA 143 | C8: 2370 | D8: DRAVOGRAD | E8: 72013257 | F8: Irena Petelin | G8: (02)8721121 | H8: (02)8721129 | I8: irena.petelin@jkp-dravograd.si | J8: 18
A9: JAVNO KOMUNALNO PODJETJE GROSUPLJE D.O.O. | B9: CESTA NA KRKO 7 | C9: 1290 | D9: GROSUPLJE | E9: 65119037 | F9: Matija Kastelic | G9: (01)7888932 | H9: (01)7888913 | I9: matija.kastelic@jkpg.si | J9: 8
A10: JAVNO KOMUNALNO PODJETJE KOMUNALA KOČEVJE, D.O.O. | B10: TESARSKA ULICA 10 | C10: 1330 | D10: KOČEVJE | E10: 10626271 | F10: Bojana Klepac, Aleš Marolt (obč. Kostel) | G10: (01)8950340; (01)8952395 in (041)556339 (ga. Klepac) | H10: (01)8951697 | I10: bojana.klepac@siol.net; ursa.butala@komunala-kocevje.si | J10: 12
A11: JAVNO KOMUNALNO PODJETJE KOMUNALA RIBNICA D.O.O. | B11: GORIČA VAS 11 A | C11: 1310 | D11: RIBNICA | E11: 81322496 | F11: Metka Dobovšek Jerbič | G11: (01)8361138; (051)682 405 (g. Zakrajšek) | H11: (01)8361138 | I11: metka@komunala-ribnica.si | J11: 9
A12: JAVNO KOMUNALNO PODJETJE LOG D.O.O. | B12: DOBJA VAS 187 | C12: 2390 | D12: RAVNE NA KOROŠKEM | E12: 23002107 | F12: Ernest Blatnik, Nataša Štern | G12: (02)8223963; (031)613031 (ga. Štern) | H12: (02)8220912 | I12: kp-log@siol.net, stnatasa@email.si | J12: 23
A13: JAVNO KOMUNALNO PODJETJE PRODNIK D.O.O. | B13: SAVSKA CESTA 34 | C13: 1230 | D13: DOMŽALE | E13: 54471656 | F13: Špela Pirnat(do 1.7.10); Sabina Zupan,Stane Grmek | G13: (01)7295430 ali 460; 031 690 609 (ga. Zupan) | H13: (01)7295450 | I13: info@jkp-prodnik.si; spela.pirnat@jkp-prodnik.si | J13: 2
A14: JAVNO KOMUNALNO PODJETJE RADLJE OB DRAVI D.O.O. | B14: MARIBORSKA CESTA 3 | C14: 2360 | D14: RADLJE OB DRAVI | E14: 64562999 | F14: Andrej Podlesnik | G14: (02)8871105; (031)348363 (g. Podlesnik); (041)729146 (g. Mravljak) | H14: (02)8871317 | I14: andrej.podlesnik@jkp-radlje.si; info@jkp-radlje.si | J14: 14
A15: JAVNO KOMUNALNO PODJETJE RAVNE NA KOROŠKEM, D.O.O. | B15: GAČNIKOVA POT 5 | C15: 2390 | D15: RAVNE NA KOROŠKEM | E15: 20356846 | G15: (02) 82 15 483 | H15: / | I15: info@jkpravne.si | J15: 213
A16: JAVNO KOMUNALNO PODJETJE ŽALEC, D.O.O. | B16: ULICA NADE CILENŠEK 5 | C16: 3310 | D16: ŽALEC | E16: 94086362 | F16: Martina Kostanjšek | G16: 03 713 6000 | H16: 03 713 6796 | I16: tina.kostanjsek@jkp-zalec.si | J16: 26
A17: JAVNO PODJETJE - AZIENDA PUBBLICA MARJETICA KOPER, D.O.O.-S.R.L. | B17: ULICA 15. MAJA 4 | C17: 6000 | D17: KOPER | E17: 32375204 | F17: Nataša Đukić Vasić, univ.dipl.inž.grad. | G17: (05)6633761; (05)6633760 (g. Štrancar) | H17: (05)6633706 | I17: goran.strancar@marjeticakoper.si | J17: 51
A18: JAVNO PODJETJE KANALIZACIJA IN ČISTILNA NAPRAVA RADLJE, D.O.O. | B18: MARIBORSKA CESTA 007 | C18: 2360 | D18: RADLJE OB DRAVI | E18: 67401961 | G18: (02) 887 96 30 | H18: (02) 887 96 40 | I18: obcina.radlje@radlje.si | J18: 209
A19: JAVNO PODJETJE KOMUNALA BREŽICE D.O.O. | B19: CESTA PRVIH BORCEV 18 | C19: 8250 | D19: BREŽICE | E19: 21101906 | F19: Dejan Zofič | G19: 07/620-92-50 | H19: 07/620-92-80 | I19: info@komunala-brezice.si | J19: 199
A20: JAVNO PODJETJE KOMUNALA CERKNICA D.O.O. CERKNICA | B20: NOTRANJSKA CESTA 44 | C20: 1380 | D20: CERKNICA | E20: 77038037 | F20: Sašo Modic; Katarina Vavtar Kovač | G20: 051275242 (01)7097910; (01)7097913 | I20: saso.modic@komunala-cerknica.si; katarina.vavtar@komunala-cerknica.si; info@komunala-cerknica.si | J20: 11
A21: JAVNO PODJETJE KOMUNALA ČRNOMELJ D.O.O. | B21: BELOKRANJSKA CESTA 24 | C21: 8340 | D21: ČRNOMELJ | E21: 66111889 | F21: Marija Mušič | G21: (07)3061660; (07)3061666 (ga. Mušič) | H21: (07)3061697 | I21: komunala.crnomelj@siol.net; marija.music@komunala-crnomelj.si | J21: 57
A22: JAVNO PODJETJE KOMUNALA D.O.O. MOZIRJE | B22: PRAPROTNIKOVA ULICA 36 | C22: 3330 | D22: MOZIRJE | E22: 25344650 | F22: Andrej Ermenc | G22: (03)8393650 | H22: (03)8393660 | I22: andi@komunala-mozirje.si | J22: 24
A23: JAVNO PODJETJE KOMUNALA D.O.O. SEVNICA | B23: NASELJE HEROJA MAROKA 17 | C23: 8290 | D23: SEVNICA | E23: 90581121 | F23: Mitja Udovč, Urška Jamšek | G23: (07)8164700; (07)8164721 (g. Udovč) | H23: (07)8164711 | I23: mitja.udovc@komunala-sevnica.si; urska.jamsek@komunala-sevnica.si | J23: 56
A24: JAVNO PODJETJE KOMUNALA ILIRSKA BISTRICA, D.O.O. | B24: PREŠERNOVA ULICA 7 | C24: 6250 | D24: ILIRSKA BISTRICA | E24: 37819127 | F24: Darinka Antonič | G24: (05)7110680; (05)7110671 | H24: (05)7110672 | I24: martina.vrh@kp-ilb.si | J24: 49
A25: JAVNO PODJETJE KOMUNALA IZOLA, D.O.O. – AZIENDA PUBBLICA KOMUNALA ISOLA, S.R.L. | B25: INDUSTRIJSKA CESTA 8 | C25: 6310 | D25: IZOLA | E25: 70981515 | F25: Dorian Kaligarič | G25: (05)6634935, 031 650 375 | H25: (05)6634949 | I25: dorian.kaligaric@komunala-izola.si | J25: 47
A26: JAVNO PODJETJE KOMUNALA RADEČE D.O.O. | B26: TITOVA ULICA 107 | C26: 1433 | D26: RADEČE | E26: 30080070 | F26: Boris Knavs | G26: (03)5680240 | H26: (03)5680242 | I26: komunala.radece@siol.net | J26: 55
A27: JAVNO PODJETJE KOMUNALA ŠKOFJA LOKA D.O.O. | B27: KIDRIČEVA CESTA 43 A | C27: 4220 | D27: ŠKOFJA LOKA | E27: 67105874 | F27: Anže Sodnik | G27: 041 750 043 | H27: 04 50 23 513 | I27: anze.sodnik@komunalaskofjaloka.si | J27: 219
A28: JAVNO PODJETJE KOMUNALA SLOVENJ GRADEC D.O.O. | B28: PAMEČE 177 A | C28: 2380 | D28: SLOVENJ GRADEC | E28: 53440978 | F28: Jože Dvorjak, inž. | G28: (02)8812020; (02)8812044 ali (031)650427 (g. Dvorjak) | H28: (02)8812040 | I28: joze.dvorjak@jkp-sg.si | J28: 16
A29: JAVNO PODJETJE KOMUNALA TRBOVLJE D.O.O. | B29: SAVINJSKA CESTA 11 A | C29: 1420 | D29: TRBOVLJE | E29: 40870057 | F29: Gašper Princ | G29: 031 322 347; 03 56 53 100 | H29: (03)5627592 | I29: gasper.princ@komunala-trbovlje.si | J29: 1
A30: JAVNO PODJETJE KOMUNALA VODICE, D.O.O. | B30: KOPITARJEV TRG 1 | C30: 1217 | D30: VODICE | E30: 85158640 | F30: Miha Brgant | G30: (01)8332500 | H30: (01)8332509 | I30: sprejemna@jpk-vodice.si | J30: 139
A31: JAVNO PODJETJE KOMUNALA ZAGORJE, D.O.O. | B31: CESTA ZMAGE 57 | C31: 1410 | D31: ZAGORJE OB SAVI | E31: 82253536 | F31: Blanka Povše | G31: 03 56 67 700; (03)5667704 | H31: (03)5667714 | I31: blanka.povse@komunala-zagorje.si | J31: 6
A32: JAVNO PODJETJE KOMUNALNO PODJETJE VRHNIKA, D.O.O. | B32: POT NA TOJNICE 40 | C32: 1360 | D32: VRHNIKA | E32: 75879611 | F32: Mojca Plečnik, dipl.ing. | G32: (01)7505062; (041)760398 | H32: (01)7552013 | I32: mojca.plecnik@kpv.si; info@kpv.si | J32: 3
A33: JAVNO PODJETJE KOMUNALNO STANOVANJSKO PODJETJE LITIJA, D.O.O. | B33: PONOVIŠKA CESTA 15 | C33: 1270 | D33: LITIJA | E33: 84245956 | F33: Milan Klinc, Karmen Potisek | G33: (01)8900010; (01)8900015 (g. Klinc) | H33: (01)8900020 | I33: milan.klinc@ksp-litija.si; karmen.potisek@ksp-litija.si | J33: 10
A34: JAVNO PODJETJE KOVOD POSTOJNA, VODOVOD, KANALIZACIJA, D.O.O. | B34: JERŠICE 3 | C34: 6230 | D34: POSTOJNA | E34: 17322057 | F34: Tomaž Fabčič | G34: (05)7264551 | H34: (05)7262211 | I34: tomaz.fabcic@kovodpostojna.si | J34: 48
A35: JAVNO PODJETJE OKOLJE PIRAN D.O.O. - AZIENDA PUBBLICA OKOLJE PIRANO S.R.L. | B35: ARZE 1 B | C35: 6330 | D35: PIRAN | E35: 73819174 | F35: Danijela Kleva Švagelj | G35: (05)6175044; (041)632926 (ga. Švagelj) | H35: (05)6175015 | I35: danijela.svagelj@okoljepiran.si; okolje.piran@siol.net | J35: 52
A36: JAVNO PODJETJE PRLEKIJA D.O.O. | B36: BABINSKA CESTA 2 A | C36: 9240 | D36: LJUTOMER | E36: 34813144 | F36: Maja Vogrinec | G36: 02 58 58 240 | H36: / | I36: info@jp-prlekija.si | J36: 186
A37: JAVNO PODJETJE VODOVOD KANALIZACIJA SNAGA D.O.O. (LJUBLJANA) | B37: VODOVODNA CESTA 90 | C37: 1000 | D37: LJUBLJANA | E37: 64520463 | F37: Mojca Vrbančič, Marjan Levstek, Cirila Bordon, | G37: 5808219; 01-5808-201; 01 5808 211 | H37: 5808305;01-5808-203 | I37: cbordon@vo-ka.si;mlevstek@vo-ka.si | J37: 13
A38: JEKO, JAVNO KOMUNALNO PODJETJE, D.O.O., JESENICE | B38: CESTA MARŠALA TITA 51 | C38: 4270 | D38: JESENICE | E38: 67496717 | F38: Mateja Košir | G38: (04)5810482 in (041) 887-729 (ga. Košir) | H38: (04)5810420 | I38: nusa.jelenc@jeko-in.si; info@jeko-in.si | J38: 36
A39: JKP ŠENTJUR, JAVNO KOMUNALNO PODJETJE, D.O.O. | B39: CESTA LEONA DOBROTINŠKA 18 | C39: 3230 | D39: ŠENTJUR | E39: 54691877 | F39: Igor Gorjup, dipl.inž.grad. | G39: (03)7471620 | H39: (03)7471637 | I39: igor.gorjup@jkp-sentjur.si | J39: 27
A40: JKP, JAVNO KOMUNALNO PODJETJE D.O.O. SLOVENSKE KONJICE | B40: CELJSKA CESTA 3 | C40: 3210 | D40: SLOVENSKE KONJICE | E40: 85452360 | F40: Stanislav Jeršič | G40: (03)7580400; (03)7580420 (g. Jeršič) | H40: (03)7580416 | I40: slavko.jersic@jkp-konjice.si; spela.hlacar@jkp-konjice.si; jkp.konjice@siol.net | J40: 21
A41: JP EDŠ, D.O.O. ŠENTJERNEJ | B41: TRUBARJEVA CESTA 5 | C41: 8310 | D41: ŠENTJERNEJ | E41: 90170296 | F41: Uroš Jerič | G41: 051 494 633 | H41: / | I41: uros.jeric@jp-eds.si | J41: 218
A42: JP VARAŠ, PODJETJE ZA KOMUNALNE IN DRUGE STORITVE D.O.O. | B42: ULICA ŠTEFANA KOVAČA 73 | C42: 9224 | D42: TURNIŠČE | E42: 97308285 | G42: 02 572 22 20 | H42: (02)573-50-41 | I42: obcina@turnisce.si | J42: 195
A43: KOMUNA, JAVNO KOMUNALNO PODJETJE BELTINCI D.O.O. | B43: MLADINSKA ULICA 2 | C43: 9231 | D43: BELTINCI | E43: 32876858 | H43: / | I43: / | J43: 193
A44: KOMUNALA D.O.O. (IDRIJA) | B44: CARL JAKOBA ULICA 4 | C44: 5280 | D44: IDRIJA | E44: 13286218 | F44: Ana Knap | G44: (05)3727200; (05)3727211; (051)440500 (g. Murovec) | H44: (05)3772237 | I44: ana.knap@komunalaidrija.si | J44: 45
A45: KOMUNALA JAVNO KOMUNALNO PODJETJE D.O.O. GORNJI GRAD | B45: KOCBEKOVA CESTA 23 | C45: 3342 | D45: GORNJI GRAD | E45: 43444954 | F45: Zdenko Purnat | G45: (03)8383010; (051)341733 (g. Zdenko Purnat) | H45: (03)8383011 | I45: komunala.gornji-grad@siol.net | J45: 29
A46: KOMUNALA KRANJ, JAVNO PODJETJE, D.O.O. | B46: ULICA MIRKA VADNOVA 1 | C46: 4000 | D46: KRANJ | E46: 72495421 | F46: Saša Pegam, Blaž Bajželj | G46: (04)2811300; (04)2811354; (04)2811328 (ga. Pegam), 041 343 132 | H46: (04)2811301 | I46: spegam@komunala-kranj.si; jpk@komunala-kranj.si | J46: 40
A47: KOMUNALA METLIKA D.O.O. | B47: CESTA XV. BRIGADE 4 | C47: 8330 | D47: METLIKA | E47: 38241528 | F47: Marjan Končar, računovodja | G47: (07)3637200; (07)3637203; (031)367120 | H47: (07)3637210 | I47: koncar@komunala-metlika.si | J47: 58
A48: KOMUNALA MEŽICA JAVNO KOMUNALNO PODJETJE D.O.O. | B48: TRG SVOBODE 1 | C48: 2392 | D48: MEŽICA | E48: 73310948 | F48: Franjo Kocen | G48: (02)8279361; (041)643886 (g. Kocen) | H48: (02)8279359 | I48: franjo.kocen@mezica.si | J48: 109
A49: KOMUNALA NOVO MESTO D.O.O. | B49: PODBEVŠKOVA ULICA 12 | C49: 8000 | D49: NOVO MESTO | E49: 13503766 | F49: Jordan Hrvatin, dipl.inž.str.; Andreja Gorše | G49: (07)3932494 (g. Hrvatin direktna); (07)3932495 (ga. Gorše) | H49: (07)3932505 | I49: jordan.hrvatin@komunala-nm.si; andreja.gorse@komunala-nm.si | J49: 60
A50: KOMUNALA ODTOK D.O.O. | B50: TRŽAŠKA CESTA 39 | C50: 2000 | D50: MARIBOR | E50: 65843487 | G50: 02 300 70 61 | H50: / | I50: info@odtok.si | J50: 214
A51: KOMUNALA RADGONA, JAVNO PODJETJE D.O.O. | B51: PARTIZANSKA CESTA 13 | C51: 9250 | D51: GORNJA RADGONA | E51: 69673195 | F51: Tadeja Zupančič | G51: 02 5644800 | H51: 02 5644808 | I51: tadeja.zupancic@komunala-radgona.si | J51: 141
A52: KOMUNALA RADOVLJICA, JAVNO PODJETJE ZA KOMUNALNO DEJAVNOST, D.O.O. | B52: LJUBLJANSKA CESTA 27 | C52: 4240 | D52: RADOVLJICA | E52: 98605275 | F52: Darko Lukan | G52: 04 5370128, 041 677979 | H52: 04 5370112 | I52: darko.lukan@komunala-radovljica.si | J52: 33
A53: KOMUNALA SLOVENSKA BISTRICA PODJETJE ZA KOMUNALNE IN DRUGE STORITVE D.O.O. | B53: ULICA POHORSKEGA BATALJONA 12 | C53: 2310 | D53: SLOVENSKA BISTRICA | E53: 32621213 | F53: Jerneja Zorko | G53: (02)8055400; (02)8055419 in (051)337094 (ga. Zorko) | H53: (02)8055410 | I53: jerneja.zorko@komunala-slb.si | J53: 22
A54: KOMUNALA TOLMIN JAVNO PODJETJE D.O.O. | B54: POLJUBINJ 89 H | C54: 5220 | D54: TOLMIN | E54: 97143499 | F54: Ada Eržen, dipl.inž.grad. | G54: (05)3819300; (05)3819322 (ga. Eržen) | H54: (05)3881025 | I54: ada.erzen@komunala-tolmin.si; kp.tolmin@siol.net | J54: 41
A55: KOMUNALA TREBNJE D.O.O. | B55: GOLIEV TRG 9 | C55: 8210 | D55: TREBNJE | E55: 96907436 | F55: Tone Gričar, Španger Mitja | G55: (07)3481260; (07)3481264 in (051)372871 (g. Gričar); (07)3481266 (ga. Judež) | H55: (07)3481282 | I55: investicije@komunala-trebnje.si | J55: 54
A56: KOMUNALA TRŽIČ D.O.O. | B56: MLAKA 6 | C56: 4290 | D56: TRŽIČ | E56: 45105138 | F56: Tina Božič | G56: (04)5971300 | H56: (04)5971320 | I56: info@komunala-trzic.si | J56: 39
A57: KOMUNALA VITANJE, JAVNO PODJETJE D.O.O. | B57: GRAJSKI TRG 6 | C57: 3205 | D57: VITANJE | E57: 85712990 | F57: Gorazd Fric | G57: (03)7525060; (041)668656 (g. Fric) | H57: (03)7520561 | I57: komunalavitanje@gmail.com | J57: 125
A58: KOMUNALA, JAVNO PODJETJE D.O.O. (MURSKA SOBOTA) | B58: KOPALIŠKA ULICA 2 | C58: 9000 | D58: MURSKA SOBOTA | E58: 61364576 | F58: Vasja Bugar, Boštjan Gorza | G58: (02)5213700; (02)5213748 in (051)633588 (g. Bugar); (02)5213756 in (041)800837 (g. Gorza) | H58: (02)5213740 | I58: vasjab@komunalams.si; bostjan.gorza@komunalams.si | J58: 66
A59: KOMUNALA, JAVNO PODJETJE, KRANJSKA GORA, D.O.O. | B59: SPODNJE RUTE 50 | C59: 4282 | D59: GOZD MARTULJEK | E59: 43632319 | F59: Henrika Zupan | G59: (04)5881156 | H59: (04)5879309 | I59: info@komunala-kg.si | J59: 37
A60: KOMUNALNO PODJETJE KAMNIK D.O.O. | B60: CANKARJEVA CESTA 11 | C60: 1241 | D60: KAMNIK | E60: 96465883 | F60: Gregor Ulčar | G60: (01)8391731; (041)262623 (g. Ulčar); (041)349478 (g. Klemen) | H60: (01)8391303 | I60: gregor.ulcar@kpk-kamnik.si | J60: 7
A61: KOMUNALNO PODJETJE LOGATEC D.O.O. | B61: TRŽAŠKA CESTA 27 | C61: 1370 | D61: LOGATEC | E61: 88743926 | F61: Špela Ferjančič | G61: (01)7508110 | H61: (01)7508111 | I61: kp-logatec@siol.net; spela.ferjancic@kp-logatec.si | J61: 5
A62: KOMUNALNO PODJETJE ORMOŽ D.O.O. | B62: HARDEK 21 C | C62: 2270 | D62: ORMOŽ | E62: 66338441 | F62: Ludvik Hriberšek | G62: (02)7410640; g. Hriberšek (02)7410647 ali (041)649737 | H62: (02)7410650 | I62: odpadki@kp-ormoz.si | J62: 15
A63: KOMUNALNO PODJETJE PTUJ D.D. | B63: PUHOVA ULICA 10 | C63: 2250 | D63: PTUJ | E63: 65735676 | F63: mag. Jernej Šömen | G63: (02)7805460 | H63: (02)7805467 | I63: jernej.somen@komunala-ptuj.si | J63: 19
A64: KOMUNALNO PODJETJE VELENJE D.O.O. | B64: KOROŠKA CESTA 37 B | C64: 3320 | D64: VELENJE | E64: 55713998 | F64: Branko Naveršnik | G64: (03)8961100;(03)8961116 in (041)639318 (g. Naveršnik) | H64: (03)8961127 | I64: branko.naversnik@kp-velenje.si | J64: 28
A65: KOMUNALNO STANOVANJSKA DRUŽBA D.O.O. AJDOVŠČINA | B65: GORIŠKA CESTA 23 B | C65: 5270 | D65: AJDOVŠČINA | E65: 68647336 | F65: Aleš Bačer | G65: (05)3659700; (05)3659709 (Bačer) | H65: (05)3663142 | I65: ksda.investicije@siol.net | J65: 42
A66: KOSTAK KOMUNALNO IN GRADBENO PODJETJE D.D. | B66: LESKOVŠKA CESTA 2 A | C66: 8270 | D66: KRŠKO | E66: 82719241 | F66: Željko Horvat, univ.dipl.inž.grad. | G66: (07)4817201, (07)4817232 (g. Horvat) | H66: (07)4817250 | I66: zeljko.horvat@kostak.si; kostak@kostak.si | J66: 59
A67: KRAŠKI VODOVOD SEŽANA, D.O.O. | B67: BAZOVIŠKA CESTA 6 | C67: 6210 | D67: SEŽANA | E67: 89997271 | F67: Peter Švagelj | G67: (05)7311660 | H67: (05)7311640 | I67: info@kraski-vodovod.si; peter.svagelj@kraski-vodovod.si | J67: 164
A68: KSP HRASTNIK KOMUNALNO - STANOVANJSKO PODJETJE, D.D. | B68: CESTA 3. JULIJA 7 | C68: 1430 | D68: HRASTNIK | E68: 16477448 | F68: Ernest Gričar,dipl.inž.grad. | G68: (03)5642310; (03)5642315 - g. Gričar | H68: (03)5644000 | I68: ernest.gricar@siol.net | J68: 4
A69: NIGRAD, KOMUNALNO PODJETJE D.O.O. | B69: ZAGREBŠKA CESTA 30 | C69: 2000 | D69: MARIBOR | E69: 71083715 | F69: Dejan Tacer | G69: (02)4500300; (02)4500367 in 041 662 812 (g.Tacer direktna) | H69: (02)4500360 | I69: dejan.tacer@nigrad.si | J69: 20
A70: OBČINA BLOKE - REŽIJSKI OBRAT | B70: NOVA VAS 4 A | C70: 1385 | D70: NOVA VAS | E70: 47254629 | F70: Stanislav Jakopin | G70: 01)7098922 (g. Jakopin);(041)778180 (g. Doles) | H70: (01)7098840 | I70: stane.jakopin@bloke.si; obcina.bloke@bloke.si | J70: 107
A71: OBČINA BOHINJ - REŽIJSKI OBRAT | B71: TRIGLAVSKA CESTA 35 | C71: 4264 | D71: BOHINJSKA BISTRICA | E71: 43302904 | F71: Franci Langus - vodja r.o.; Andrej Sodja | G71: (04)5770151 ali 50; (g. Langus) (041)677980; (g. Brence) (04)5743904 ali (040)294898 | H71: (04)5721864 | I71: andrej.sodja@obcina.bohinj.si | J71: 82
A72: OBČINA CERKNO - REŽIJSKI OBRAT | B72: BEVKOVA ULICA 9 | C72: 5282 | D72: CERKNO | E72: 54677696 | F72: Janez Rupnik, Valerija Močnik | G72: (05)3734643 | H72: (05)3734649 | I72: obcina@cerkno.si; valerija.mocnik@cerkno.si | J72: 46
A73: OBČINA CERKVENJAK - REŽIJSKI OBRAT | B73: CERKVENJAK 25 | C73: 2236 | D73: CERKVENJAK | E73: 78110475 | G73: 02/729 57 00 | H73: / | I73: obcina@cerkvenjak.si | J73: 203
A74: OBČINA ČRENŠOVCI - REŽIJSKI OBRAT | B74: ULICA PREKMURSKE ČETE 20 | C74: 9232 | D74: ČRENŠOVCI | E74: 23656484 | F74: Stanko Lebar | G74: (02)5735750; (02)5735756 | H74: (02)5735758 | I74: info@obcina-crensovci.si; stanko@obcina-crensovci.si | J74: 63
A75: OBČINA ČRNA NA KOROŠKEM - REŽIJSKI OBRAT | B75: CENTER 101 | C75: 2393 | D75: ČRNA NA KOROŠKEM | E75: 44743548 | F75: Nada Vačun | G75: (02)8704816 | H75: (02)8704821 | I75: obcina@crna.si; mojca.dimnik@crna.si | J75: 17
A76: OBČINA DESTRNIK - REŽIJSKI OBRAT | B76: VINTAROVCI 50 | C76: 2253 | D76: DESTRNIK | E76: 76286193 | G76: 02 761 92 50 | H76: 02 761 92 52 | I76: obcina.destrnik@destrnik.si | J76: 207
A77: OBČINA DOBJE - REŽIJSKI OBRAT | B77: DOBJE PRI PLANINI 26 | C77: 3224 | D77: DOBJE PRI PLANINI | E77: 22084665 | F77: Franc Leskovšek | G77: (03)7466030; (03)7466034 (g. Leskovšek) | H77: (03)7466035 | I77: obcinadobje@siol.net | J77: 116
A78: OBČINA DOBROVNIK - REŽIJSKI OBRAT | B78: DOBROVNIK 297 | C78: 9223 | D78: DOBROVNIK | E78: 72637706 | F78: Jernej Kuzmič, Tanja Tkalec (računovodkinja) | G78: (02)5776880 | H78: (02)5776887 | I78: obcina@dobrovnik.si; tanja.tkalec@dobrovnik.si | J78: 80
A79: OBČINA DUPLEK - REŽIJSKI OBRAT | B79: CESTA 4. JULIJA 106 | C79: 2241 | D79: SPODNJI DUPLEK | E79: 41316819 | G79: 02 684 09 11 | H79: / | I79: obcina.duplek@duplek.si | J79: 200
A80: OBČINA GORENJA VAS - POLJANE - REŽIJSKI OBRAT | B80: POLJANSKA CESTA 87 | C80: 4224 | D80: GORENJA VAS | E80: 63943026 | F80: Kristina Knific | G80: (04)5183112 | H80: (04)5183101 | I80: kristina.knific@obcina-gvp.si | J80: 38
A81: OBČINA GORNJI PETROVCI - REŽIJSKI OBRAT | B81: GORNJI PETROVCI 31 D | C81: 9203 | D81: PETROVCI | E81: 69366144 | G81: (02)5569000 | H81: (02)5569001 | I81: obcinagp@gornji-petrovci.si | J81: 212
A82: OBČINA GRAD - REŽIJSKI OBRAT | B82: GRAD 172 | C82: 9264 | D82: GRAD | E82: 70454540 | F82: Lidija Krpič | G82: (02)5518884 | H82: (02)5518886 | I82: lidija.krpic@obcina-grad.si | J82: 115
A83: OBČINA HODOŠ - REŽIJSKI OBRAT | B83: HODOŠ 52 | C83: 9205 | D83: HODOŠ | E83: 73790141 | F83: Katalin Bunderla | G83: (02)5598021 | H83: (02)5598020 | I83: obcina-hodos-kozseg@siol.net | J83: 78
A84: OBČINA IG - REŽIJSKI OBRAT | B84: GOVEKARJEVA CESTA 6 | C84: 1292 | D84: IG | E84: 47731206 | F84: Katja Ivanuš | G84: (01)2802300 | H84: (01)2802322 | I84: info@obcina-ig.si | J84: 179
A85: OBČINA KANAL OB SOČI - REŽIJSKI OBRAT | B85: TRG SVOBODE 23 | C85: 5213 | D85: KANAL | E85: 88524671 | F85: Kristina Marinič | G85: (05)3981200; (05)3981208 (ga. Baričevič) | H85: (05)3981223 | I85: kristina.marinic@obcina-kanal.si; obcina.kanal@obcina-kanal.si | J85: 44
A86: OBČINA KOBILJE - REŽIJSKI OBRAT | B86: KOBILJE 35 | C86: 9227 | D86: KOBILJE | E86: 47774720 | F86: Sabina Toplak | G86: (02)5799220 | H86: (02)5799220 | I86: obcina.kobilje@siol.net | J86: 65
A87: OBČINA KOMENDA - REŽIJSKI OBRAT | B87: ZAJČEVA CESTA 23 | C87: 1218 | D87: KOMENDA | E87: 22332570 | F87: Bernarda Pavlinič, Slavko Poglajen | G87: (01)7247400; (041)799176 - g. Poglajen | H87: (01)8341323 | I87: slavko.poglajen@komenda.si; obcina@komenda.si | J87: 126
A88: OBČINA KUZMA - REŽIJSKI OBRAT | B88: KUZMA 60 C | C88: 9263 | D88: KUZMA | E88: 64854302 | F88: Milan Matiš | G88: (02)5558016 | H88: (02)5558018 | I88: milan.matis@obcina-kuzma.si | J88: 117
A89: OBČINA LAŠKO - REŽIJSKI OBRAT | B89: MESTNA ULICA 2 | C89: 3270 | D89: LAŠKO | E89: 11734612 | F89: Luka Picej | G89: (03)7338800; (03)7338714 (g. Picej); (041)704118 (g. Picej) | H89: (03)7338740 | I89: luka.picej@lasko.si | J89: 25
A90: OBČINA LENART- REŽIJSKI OBRAT | B90: TRG OSVOBODITVE 7 | C90: 2230 | D90: LENART V SLOVENSKIH GORICAH | E90: 68458509 | F90: Avgust Zavernik | G90: 051 315 002 | H90: 02 720 73 52 | I90: avgust.zavernik@lenart.si | J90: 85
A91: OBČINA LOVRENC NA POHORJU - REŽIJSKI OBRAT | B91: SPODNJI TRG 8 | C91: 2344 | D91: LOVRENC NA POHORJU | E91: 11392657 | F91: Albina Pajtler | G91: (02)6300550; (02)6300557 | H91: (02)6300560 | I91: albina.pajtler@lovrenc.si | J91: 140
A92: OBČINA ODRANCI - REŽIJSKI OBRAT | B92: PANONSKA ULICA 33 | C92: 9233 | D92: ODRANCI | E92: 20765762 | F92: Matija Kikel | G92: (02)5773480 | H92: (02)5773486 | I92: obcina.odranci@siol.net | J92: 62
A93: OBČINA OSILNICA - REŽIJSKI OBRAT | B93: OSILNICA 11 | C93: 1337 | D93: OSILNICA | E93: 27549887 | F93: Sanja Janeš | G93: 01-89-41-505 Gsm 041 319 575 | H93: (01)8941038 | I93: obcina@osilnica.si | J93: 75
A94: OBČINA RADENCI | B94: RADGONSKA CESTA 9 | C94: 9252 | D94: RADENCI | E94: 53944640 | G94: 02 566 96 10 | H94: / | I94: obcina@radenci.si | J94: 216
A95: OBČINA ROGAŠOVCI - REŽIJSKI OBRAT | B95: ROGAŠOVCI 14 B | C95: 9262 | D95: ROGAŠOVCI | E95: 61143707 | G95: 02 5588 816 | H95: 02 5588812 | I95: obcina.rogasovci@siol.net | J95: 198
A96: OBČINA ŠALOVCI - REŽIJSKI OBRAT | B96: ŠALOVCI 162 | C96: 9204 | D96: ŠALOVCI | E96: 83272631 | G96: 02 559 80 50 | H96: 02 559 80 54 | I96: info@salovci.si | J96: 211
A97: OBČINA SOLČAVA - REŽIJSKI OBRAT | B97: SOLČAVA 16 | C97: 3335 | D97: SOLČAVA | E97: 78412447 | F97: Rudi Jezernik | G97: (03)8392750; (03)8392755 | H97: (03)8392750; (03)8392755 | I97: obcina.solcava@siol.net | J97: 178
A98: OBČINA SVETA ANA - REŽIJSKI OBRAT | B98: SV. ANA V SLOV. GORICAH 17 | C98: 2233 | D98: SVETA ANA V SLOVENSKIH GORICAH | E98: 59385081 | G98: 02/7295880 | H98: / | I98: obcina@sv-ana.si | J98: 204
A99: OBČINA SVETA TROJICA V SLOVENSKIH GORICAH - REŽIJSKI OBRAT | B99: MARIBORSKA CESTA 1 | C99: 2235 | D99: SVETA TROJICA V SLOVENSKIH GORICAH | E99: 58878734 | F99: župan: Valentin Južnič | G99: 01/8948-006 | H99: 01/8948-007 | J99: 194
A100: OBČINA SVETI JURIJ V SLOVENSKIH GORICAH - REŽIJSKI OBRAT | B100: JUROVSKI DOL 70 B | C100: 2223 | D100: JUROVSKI DOL | E100: 58481435 | G100: 02 729 52 50 | H100: 02 729 52 55 | I100: obcina@obcinajurij.si | J100: 206
A101: OBČINA TIŠINA - REŽIJSKI OBRAT | B101: TIŠINA 4 | C101: 9251 | D101: TIŠINA | E101: 43730361 | F101: Klaudija Šadl Jug, Dušan Hauko | G101: (02)5391710 | H101: (02)5391711 | I101: obcina@tisina.si; rezijski.obrat@tisina.si | J101: 73
A102: OBČINA VELIKA POLANA - REŽIJSKI OBRAT | B102: VELIKA POLANA 111 | C102: 9225 | D102: VELIKA POLANA | E102: 35407727 | F102: Metka Horvat, Lidija Vučko Bukovec (na porodniški) | G102: (02)5776750; (02)5776755 (ga. Bukovec) | H102: (02)5776752 | I102: obcina@velika-polana.si; finance@velika-polana.si | J102: 124
A103: OBČINA ŽELEZNIKI - REŽIJSKI OBRAT | B103: ČEŠNJICA 48 | C103: 4228 | D103: ŽELEZNIKI | E103: 59920327 | F103: Saša Lazar | G103: (04)5000022 (Lazar); (04)5000018 (Tušek) | H103: (04)5000020 | I103: sasa.lazar@obcina.zelezniki.si; cirila.tusek@obcina.zelezniki.si | J103: 81
A104: OBČINA ŽIRI - REŽIJSKI OBRAT | B104: LOŠKA CESTA 1 | C104: 4226 | D104: ŽIRI | E104: 69533768 | F104: Andrej Poljanšek, Franci Kranjc | G104: (04)5050700; (041)639609 (g. Kranjc) | H104: (04)5105444 | I104: andrej.poljansek@obcina.ziri.si; franci.kranjc@obcina.ziri.si | J104: 35
A105: OBČINA ZREČE - REŽIJSKI OBRAT | B105: CESTA NA ROGLO 13 B | C105: 3214 | D105: ZREČE | E105: 35536519 | F105: Gregor Kovačič | G105: (03)7571700; (03) 7571713 in (051)311150 (g. Kovačič) | H105: (03)5762498 | I105: gregor.kovacic@zrece.si; info@zrece.si | J105: 74
A106: OKP JAVNO PODJETJE ZA KOMUNALNE STORITVE ROGAŠKA SLATINA D.O.O. | B106: CELJSKA CESTA 12 | C106: 3250 | D106: ROGAŠKA SLATINA | E106: 43438806 | F106: Tone Krivec, Marjeta Stefanovski | G106: (03)8121401 (g. Krivec), (03)8121411 (ga. Stefanovski) | H106: (03)8121415 | I106: okp.rogaska.slatina@siol.net, stefanovski.marjeta@okp.si | J106: 32
A107: PÜNGRAD JAVNO KOMUNALNO PODJETJE D.O.O. | B107: BODONCI 127 A | C107: 9265 | D107: BODONCI | E107: 71583475 | F107: Anton Lang | G107: (02)5496026 | H107: (02)5496027 | I107: pungrad@siol.net | J107: 114
A108: VODOVODI IN KANALIZACIJA NOVA GORICA D.D. | B108: CESTA 25. JUNIJA 1 B | C108: 5000 | D108: NOVA GORICA | E108: 91503027 | F108: Mitja Gorjan | G108: (05)3391100; (05)3391107 (g. Gorjan) - 113 tajnica | H108: (05)3391128 | I108: mitja@vik-ng.si: vikng@vik-ng.si | J108: 43
A109: VODOVOD-KANALIZACIJA JAVNO PODJETJE D.O.O. (CELJE) | B109: LAVA 2 A | C109: 3000 | D109: CELJE | E109: 45804109 | F109: Tanja Čerič | G109: (03)4250300 | H109: (03)4250310 | I109: tanja.ceric@vo-ka-celje.si | J109: 31
A110: VZDRŽEVANJE IN GRADNJE, JAVNO PODJETJE KIDRIČEVO | B110: ULICA BORISA KRAIGHERJA 25 | C110: 2325 | D110: KIDRIČEVO | E110: 26675714 | G110: (02) 799 06 25 | H110: / | I110: vzdrzevanje@kidricevo.si | J110: 201
A111: WTE WASSERTECHNIK GMBH PODRUŽNICA KRANJSKA GORA | B111: NASELJE SLAVKA ČERNETA 034 | C111: 4280 | D111: KRANJSKA GORA | E111: 57713596 | F111: Robert Bizjak | G111: (04)5885070; (041)721561 (g. Bizjak) | H111: (04)5885071 | I111: info@wte.si | J111: 108

Sheet sifrant (hidden)
A1: ID | B1: Naziv | H1: Šifra | I1: Opis
A2: 0 | D2: obratovalnem monitoringu
A3: 800 | B3: ALS | D3: prvih meritvah | H3: 01 | I3: Kmetijska proizvodnja in lov ter z njima povezane storitve
A4: 60 | B4: Bioinstitut d.o.o. | H4: 011 | I4: Pridelovanje netrajnih rastlin
A5: 3 | B5: Cinkarna Celje, d.d. | H5: 0111 | I5: Pridelovanje žit (razen riža), stročnic in oljnic
A6: 4 | B6: EKO Ekoinženiring d.o.o. | H6: 01110 | I6: Pridelovanje žit (razen riža), stročnic in oljnic
A7: 5 | B7: Eurofins ERICo Slovenija d.o.o. | H7: 0112 | I7: Pridelovanje riža
A8: 61 | B8: Euroinspekt Croatiakontrola d.o.o. | H8: 01120 | I8: Pridelovanje riža
A9: 7 | B9: GORENJE d.o.o. | H9: 0113 | I9: Pridelovanje zelenjadnic in melon, korenovk in gomoljnic
A10: 10 | B10: IKEMA d.o.o. | H10: 01130 | I10: Pridelovanje zelenjadnic in melon, korenovk in gomoljnic
A11: 17 | B11: JP Vodovod-Kanalizacija Ljubljana d.o.o | H11: 0114 | I11: Pridelovanje sladkornega trsa
A12: 24 | B12: Komunalno podjetje Ptuj d.d. | H12: 01140 | I12: Pridelovanje sladkornega trsa
A13: 23 | B13: Nigrad d.d. | H13: 0115 | I13: Pridelovanje tobaka
A14: 5901 | B14: NLZOH Celje | H14: 01150 | I14: Pridelovanje tobaka
A15: 5902 | B15: NLZOH Koper | H15: 0116 | I15: Pridelovanje rastlin za vlakna
A16: 5903 | B16: NLZOH Kranj | H16: 01160 | I16: Pridelovanje rastlin za vlakna
A17: 5904 | B17: NLZOH Maribor | H17: 0119 | I17: Pridelovanje cvetja in drugih enoletnih rastlin
A18: 5905 | B18: NLZOH Nova Gorica | H18: 01190 | I18: Pridelovanje cvetja in drugih enoletnih rastlin
A19: 5906 | B19: NLZOH Novo mesto | H19: 012 | I19: Gojenje trajnih nasadov
A20: 56 | B20: Regionalni tehnološki center Zasavje d.o.o. | H20: 0121 | I20: Vinogradništvo
A21: 39 | B21: SIJ Acroni d.o.o. | H21: 01210 | I21: Vinogradništvo
A22: 100 | B22: TAB-IPM d.o.o. | H22: 0122 | I22: Gojenje tropskega in subtropskega sadja
A23: 57 | B23: Talum Inštitut d.o.o. | H23: 01220 | I23: Gojenje tropskega in subtropskega sadja
A24: 9 | B24: VIPAP Videm Krško, d.d. | H24: 0123 | I24: Gojenje citrusov
H25: 01230 | I25: Gojenje citrusov
H26: 0124 | I26: Gojenje pečkatega in koščičastega sadja
H27: 01240 | I27: Gojenje pečkatega in koščičastega sadja
H28: 0125 | I28: Gojenje drugih sadnih dreves in grmovnic
H29: 01250 | I29: Gojenje drugih sadnih dreves in grmovnic
H30: 0126 | I30: Pridelovanje oljnih sadežev
H31: 01260 | I31: Pridelovanje oljnih sadežev
H32: 0127 | I32: Gojenje rastlin za izdelavo napitkov
H33: 01270 | I33: Gojenje rastlin za izdelavo napitkov
H34: 0128 | I34: Gojenje začimbnih, aromatskih in zdravilnih rastlin
H35: 01280 | I35: Gojenje začimbnih, aromatskih in zdravilnih rastlin
H36: 0129 | I36: Gojenje drugih trajnih nasadov
H37: 01290 | I37: Gojenje drugih trajnih nasadov
H38: 013 | I38: Razmnoževanje rastlin
H39: 0130 | I39: Razmnoževanje rastlin
H40: 01300 | I40: Razmnoževanje rastlin
H41: 014 | I41: Živinoreja
H42: 0141 | I42: Prireja mleka
H43: 01410 | I43: Prireja mleka
H44: 0142 | I44: Druga govedoreja
H45: 01420 | I45: Druga govedoreja
H46: 0143 | I46: Konjereja
H47: 01430 | I47: Konjereja
H48: 0144 | I48: Reja kamel
H49: 01440 | I49: Reja kamel
H50: 0145 | I50: Reja drobnice
H51: 01450 | I51: Reja drobnice
H52: 0146 | I52: Prašičereja
H53: 01460 | I53: Prašičereja
H54: 0147 | I54: Reja perutnine
H55: 01470 | I55: Reja perutnine
H56: 0149 | I56: Reja drugih živali
H57: 01490 | I57: Reja drugih živali
H58: 015 | I58: Mešano kmetijstvo
H59: 0150 | I59: Mešano kmetijstvo
H60: 01500 | I60: Mešano kmetijstvo
H61: 016 | I61: Storitve za kmetijsko proizvodnjo, priprava pridelkov
H62: 0161 | I62: Storitve za rastlinsko pridelavo
H63: 01610 | I63: Storitve za rastlinsko pridelavo
H64: 0162 | I64: Storitve za živinorejo, razen veterinarskih
H65: 01620 | I65: Storitve za živinorejo, razen veterinarskih
H66: 0163 | I66: Priprava pridelkov
H67: 01630 | I67: Priprava pridelkov
H68: 0164 | I68: Obdelava semen
H69: 01640 | I69: Obdelava semen
H70: 017 | I70: Lovstvo
H71: 0170 | I71: Lovstvo
H72: 01700 | I72: Lovstvo
H73: 02 | I73: Gozdarstvo
H74: 021 | I74: Gojenje gozdov in druge gozdarske dejavnosti
H75: 0210 | I75: Gojenje gozdov in druge gozdarske dejavnosti
H76: 02100 | I76: Gojenje gozdov in druge gozdarske dejavnosti
H77: 022 | I77: Sečnja
H78: 0220 | I78: Sečnja
H79: 02200 | I79: Sečnja
H80: 023 | I80: Nabiranje gozdnih dobrin, razen lesa
H81: 0230 | I81: Nabiranje gozdnih dobrin, razen lesa
H82: 02300 | I82: Nabiranje gozdnih dobrin, razen lesa
H83: 024 | I83: Storitve za gozdarstvo
H84: 0240 | I84: Storitve za gozdarstvo
H85: 02400 | I85: Storitve za gozdarstvo
H86: 03 | I86: Ribištvo in gojenje vodnih organizmov
H87: 031 | I87: Ribištvo
H88: 0311 | I88: Morsko ribištvo
H89: 03110 | I89: Morsko ribištvo
H90: 0312 | I90: Sladkovodno ribištvo
H91: 03120 | I91: Sladkovodno ribištvo
H92: 032 | I92: Gojenje vodnih organizmov
H93: 0321 | I93: Gojenje morskih organizmov
H94: 03210 | I94: Gojenje morskih organizmov
H95: 0322 | I95: Gojenje sladkovodnih organizmov
H96: 03220 | I96: Gojenje sladkovodnih organizmov
H97: 05 | I97: Pridobivanje premoga
H98: 051 | I98: Pridobivanje črnega premoga
H99: 0510 | I99: Pridobivanje črnega premoga
H100: 05100 | I100: Pridobivanje črnega premoga
H101: 052 | I101: Pridobivanje rjavega premoga in lignita
H102: 0520 | I102: Pridobivanje rjavega premoga in lignita
H103: 05200 | I103: Pridobivanje rjavega premoga in lignita
H104: 06 | I104: Pridobivanje surove nafte in zemeljskega plina
H105: 061 | I105: Pridobivanje surove nafte
H106: 0610 | I106: Pridobivanje surove nafte
H107: 06100 | I107: Pridobivanje surove nafte
H108: 062 | I108: Pridobivanje zemeljskega plina
H109: 0620 | I109: Pridobivanje zemeljskega plina
H110: 06200 | I110: Pridobivanje zemeljskega plina
H111: 07 | I111: Pridobivanje rud
H112: 071 | I112: Pridobivanje železove rude
H113: 0710 | I113: Pridobivanje železove rude
H114: 07100 | I114: Pridobivanje železove rude
H115: 072 | I115: Pridobivanje rud neželeznih kovin
H116: 0721 | I116: Pridobivanje uranove in torijeve rude
H117: 07210 | I117: Pridobivanje uranove in torijeve rude
H118: 0729 | I118: Pridobivanje rud drugih neželeznih kovin
H119: 07290 | I119: Pridobivanje rud drugih neželeznih kovin
H120: 08 | I120: Pridobivanje rudnin in kamnin
H121: 081 | I121: Pridobivanje kamna, peska in gline
H122: 0811 | I122: Pridobivanje kamna
H123: 08110 | I123: Pridobivanje kamna
H124: 0812 | I124: Pridobivanje gramoza, peska, gline
H125: 08120 | I125: Pridobivanje gramoza, peska, gline
H126: 089 | I126: Pridobivanje drugih rudnin in kamnin
H127: 0891 | I127: Pridobivanje mineralov za kemikalije in gnojila
H128: 08910 | I128: Pridobivanje mineralov za kemikalije in gnojila
H129: 0892 | I129: Pridobivanje šote
H130: 08920 | I130: Pridobivanje šote
H131: 0893 | I131: Pridobivanje soli
H132: 08930 | I132: Pridobivanje soli
H133: 0899 | I133: Drugo pridobivanje rudnin in kamnin
H134: 08990 | I134: Drugo pridobivanje rudnin in kamnin
H135: 09 | I135: Storitve za rudarstvo
H136: 091 | I136: Storitve za pridobivanje nafte in zemeljskega plina
H137: 0910 | I137: Storitve za pridobivanje nafte in zemeljskega plina
H138: 09100 | I138: Storitve za pridobivanje nafte in zemeljskega plina
H139: 099 | I139: Storitve za drugo rudarjenje
H140: 0990 | I140: Storitve za drugo rudarjenje
H141: 09900 | I141: Storitve za drugo rudarjenje
H142: 10 | I142: Proizvodnja živil
H143: 101 | I143: Proizvodnja mesa in mesnih izdelkov
H144: 1011 | I144: Proizvodnja mesa, razen perutninskega
H145: 10110 | I145: Proizvodnja mesa, razen perutninskega
H146: 1012 | I146: Proizvodnja perutninskega mesa
H147: 10120 | I147: Proizvodnja perutninskega mesa
H148: 1013 | I148: Proizvodnja mesnih izdelkov
H149: 10130 | I149: Proizvodnja mesnih izdelkov
H150: 102 | I150: Predelava in konzerviranje rib, rakov in mehkužcev
H151: 1020 | I151: Predelava in konzerviranje rib, rakov in mehkužcev
H152: 10200 | I152: Predelava in konzerviranje rib, rakov in mehkužcev
H153: 103 | I153: Predelava in konzerviranje sadja in zelenjave
H154: 1031 | I154: Predelava in konzerviranje krompirja
H155: 10310 | I155: Predelava in konzerviranje krompirja
H156: 1032 | I156: Proizvodnja sadnih in zelenjavnih sokov
H157: 10320 | I157: Proizvodnja sadnih in zelenjavnih sokov
H158: 1039 | I158: Druga predelava in konzerviranje sadja in zelenjave
H159: 10390 | I159: Druga predelava in konzerviranje sadja in zelenjave
H160: 104 | I160: Proizvodnja rastlinskih in živalskih olj in maščob
H161: 1041 | I161: Proizvodnja olja in maščob
H162: 10410 | I162: Proizvodnja olja in maščob
H163: 1042 | I163: Proizvodnja margarine in podobnih jedilnih maščob
H164: 10420 | I164: Proizvodnja margarine in podobnih jedilnih maščob
H165: 105 | I165: Predelava mleka
H166: 1051 | I166: Mlekarstvo in sirarstvo
H167: 10510 | I167: Mlekarstvo in sirarstvo
H168: 1052 | I168: Proizvodnja sladoleda
H169: 10520 | I169: Proizvodnja sladoleda
H170: 106 | I170: Mlinarstvo, proizvodnja škroba in škrobnih izdelkov
H171: 1061 | I171: Mlinarstvo
H172: 10610 | I172: Mlinarstvo
H173: 1062 | I173: Proizvodnja škroba in škrobnih izdelkov
H174: 10620 | I174: Proizvodnja škroba in škrobnih izdelkov
H175: 107 | I175: Proizvodnja pekarskih izdelkov in testenin
H176: 1071 | I176: Proizvodnja kruha, svežega peciva in slaščic
H177: 10710 | I177: Proizvodnja kruha, svežega peciva in slaščic
H178: 1072 | I178: Proizvodnja prepečenca in piškotov; proizvodnja trajnega peciva in slaščic
H179: 10720 | I179: Proizvodnja prepečenca in piškotov; proizvodnja trajnega peciva in slaščic
H180: 1073 | I180: Proizvodnja testenin
H181: 10730 | I181: Proizvodnja testenin
H182: 108 | I182: Proizvodnja drugih prehrambenih izdelkov
H183: 1081 | I183: Proizvodnja sladkorja
H184: 10810 | I184: Proizvodnja sladkorja
H185: 1082 | I185: Proizvodnja kakava, čokolade in sladkornih izdelkov
H186: 10820 | I186: Proizvodnja kakava, čokolade in sladkornih izdelkov
H187: 1083 | I187: Predelava čaja in kave
H188: 10830 | I188: Predelava čaja in kave
H189: 1084 | I189: Proizvodnja začimb, dišav in drugih dodatkov
H190: 10840 | I190: Proizvodnja začimb, dišav in drugih dodatkov
H191: 1085 | I191: Proizvodnja pripravljenih jedi in obrokov
H192: 10850 | I192: Proizvodnja pripravljenih jedi in obrokov
H193: 1086 | I193: Proizvodnja homogeniziranih in dietetičnih živil
H194: 10860 | I194: Proizvodnja homogeniziranih in dietetičnih živil
H195: 1089 | I195: Proizvodnja drugih prehrambenih izdelkov, drugje nerazvrščenih
H196: 10890 | I196: Proizvodnja drugih prehrambenih izdelkov, drugje nerazvrščenih
H197: 109 | I197: Proizvodnja krmil in hrane za hišne živali
H198: 1091 | I198: Proizvodnja krmil
H199: 10910 | I199: Proizvodnja krmil
H200: 1092 | I200: Proizvodnja hrane za hišne živali
... 1425 more rows

Sheet Izvajalci_mon (hidden)
A1: Naziv | B1: Naselje | C1: Ulica | D1: Hišna številka | E1: Št. pošte | F1: pošta | G1: davčna št. | H1: kontaktna os. | I1: tel. | J1: fax | K1: e-mail | L1: ID_IzvajalcaMonitoringa
A3: ALS | C3: Na Harfe | D3: 336/9 | E3: 19000 | F3: Praga | G3: 0 | L3: 800
A4: Bioinstitut d.o.o. | C4: Rudolfa Steinerja | D4: 7 | E4: 40000 | F4: Čakovec | G4: 68643934 | L4: 60
A5: CINKARNA Celje, d.d. | C5: Kidričeva ulica | D5: 26 | E5: 3000 | F5: Celje | G5: 15280373 | L5: 3
A6: EKO d.o.o. | C6: Koroška cesta | D6: 14 | E6: 2390 | F6: Ravne na Koroškem | G6: 38599996 | L6: 4
A7: Eurofins Croatiakontrola d.o.o. | C7: Karlovačka cesta | D7: 4L | E7: 10000 | F7: Zagreb | G7: 0 | L7: 101
A8: Eurofins ERICo Slovenija d.o.o. | B8: Velenje | C8: Koroška cesta | D8: 58 | E8: 3320 | F8: Velenje | G8: 63543877 | L8: 5
A9: Eurofins Umvelt Ost GmbH | C9: Loebstedter Strasse | D9: 78 | E9: 7749 | F9: Jena | G9: 0 | L9: 801
A10: Euroinspekt Croatiakontrola d.o.o. | C10: Karlovačka cesta | D10: 4L | E10: 10000 | F10: Zagreb | G10: 0 | L10: 61
A11: Gorenje d.o.o. | B11: Velenje | C11: Partizanska cesta | D11: 12 | E11: 3503 | F11: Velenje | G11: 72615320 | L11: 7
A12: IKEMA d.o.o. | C12: Lovrenc na Dravskem polju | D12: 4 | E12: 2324 | F12: Lovrenc na Dravskem polju | G12: 99144620 | L12: 10
A13: Javno podjetje Nigrad, d.o.o. | B13: Maribor | C13: Zagrebška cesta | D13: 30 | E13: 2000 | F13: Maribor | G13: 71083715 | L13: 23
A14: JP VOKA SNAGA d.o.o | B14: Ljubljana | C14: Vodovodna cesta | D14: 90 | E14: 1000 | F14: Ljubljana | G14: 64520463 | L14: 17
A15: KOMUNALA PTUJ d.d. | C15: Puhova ulica | D15: 10 | E15: 2250 | F15: Ptuj | G15: 65735676 | L15: 24
A16: NLZOH | C16: Prvomajska ulica | D16: 1 | E16: 2000 | F16: Maribor | G16: 9651295 | L16: 59
A17: NLZOH Celje | C17: Ipavčeva ulica | D17: 18 | E17: 3000 | F17: Celje | G17: 19651295 | L17: 5901
A18: NLZOH Koper | C18: Vojkovo nabrežje | D18: 10 | E18: 6000 | F18: Koper | G18: 19651295 | L18: 5902
A19: NLZOH Kranj | C19: Gosposvetska ulica | D19: 12 | E19: 4000 | F19: Kranj | G19: 19651295 | L19: 5903
A20: NLZOH Ljubljana | C20: Grablovičeva ulica | D20: 44 | E20: 1000 | F20: Ljubljana | G20: 19651295 | L20: 5907
A21: NLZOH Maribor | C21: Prvomajska ulica | D21: 1 | E21: 2000 | F21: Maribor | G21: 19651295 | L21: 5904
A22: NLZOH Nova Gorica | C22: Vipavska cesta | D22: 13 | E22: 5000 | F22: Nova Gorica | G22: 19651295 | L22: 5905
A23: NLZOH Novo mesto | C23: Dalmatinova ulica | D23: 2 | E23: 8000 | F23: Novo mesto | G23: 19651295 | L23: 5906
A24: RTCZ d.o.o. | B24: Hrastnik | C24: Naselje Aleša Kaple | D24: 9A | E24: 1430 | F24: Hrastnik | G24: 69351953 | L24: 56
A25: SIJ ACRONI d.o.o. | B25: Koroška Bela | C25: Cesta Borisa Kidriča | D25: 44 | E25: 4270 | F25: Jesenice | G25: 25840754 | L25: 39
A26: TAB-IPM d.o.o. | C26: Žerjav | D26: 79 | E26: 2393 | F26: Črna na Koroškem | G26: 75781166 | L26: 100
A27: TALUM INŠTITUT d.o.o. | C27: Tovarniška cesta | D27: 10 | E27: 2325 | F27: Kidričevo | G27: 20310676 | L27: 57
A28: VIPAP VIDEM KRŠKO d.d. | C28: Tovarniška ulica | D28: 18 | E28: 8270 | F28: Krško | G28: 23087226 | L28: 9
